Workbook

Sheet Instrucciones
B3: CALIFICACIÓN DE LAS COMPETENCIAS CLAVE Y DE LAS MATERIAS 4º_ESO
B6: INSTRUCCIONES 1. INCORPORAR LOS CRITERIOS DE CALIFICACIÓN DE LAS COMPETENCIAS CLAVE BOTÓN: "INCORPORAR LOS CRITERIOS DE CALIFICACIÓN DE LAS COMPETENCIAS CLAVE." Para introducir los criterios de calificación de las competencias clave hay que seleccionar una opción en cada uno de los siguientes campos: -Pesos de los criterios de evaluación en el cálculo de la calificación de los descriptores operativos. -Pesos de los descriptores operativos en el cálculo de la calificación de las competencias clave. Si se considera, se puede bloquear la información introducida pulsado en el botón "PROTEGIDA" e introduciendo una contaseña. En caso de querer desbloquear la página se debe pulsar en el botón "DESPROTEGIDA" e introducir la contraseña marcada. 2. INCORPORAR EL NOMBRE DE LOS ALUMNOS QUE COMPONEN EL GRUPO. BOTÓN: "INCORPORAR EL LISTADO DE ALUMNOS" Introducir el nombre de todos los alumnos que componen el grupo-clase. Marcar las materias de opción que cursa cada alumno. Pulsando sobre el botón "informe" en cada alumnno se visualiza de forma individualizada la composición de las calificaciones de las materias y de las competencias clave a partir de las notas de los criterios de evaluación. Además, se incorporan dos botones para facilitar el trabajo colaborativo a través de TEAMS o Onedrive. El procedimiento es el siguiente: 1º Se pulsa el botón superior de esta sección TEAMS/Onedrive; 2º Una vez guardado el archivo, se comparte con las citadas aplicaciones; 3º Los docentes incorporan las céntésimas de redondeo de su materia en la pestaña "Redondeo" y las notas de los criterios de evaluación en la pestaña correspondiente a su materia; 4º Se descarga el archivo y se pulsa en el segundo botón de esta sección TEAMS/Onedrive para normalizar su funcionamiento y poder visualizar toda la información que esta herramienta ofrece. 3. INCORPORAR LAS CALIFICACIONES DE LOS CRITERIOS DE EVALUACIÓN DE LAS MATERIAS CURSADAS POR EL ALUMNO. BOTÓN: "INCORPORAR LA CALIFICACIÓN POR MATERIAS DE LOS CRITERIOS DE EVALUACIÓN " Seleccionar la materia. En la pestaña de destino introducir los pesos (ponderaciones) de cada criterio de evaluación (es decir, los criterios de calificación de la materia) y las calificaciones de los criterios de evaluación para los alumnos que cursen la materia o, en su caso, la calificación de la materia. 4. OBSERVAR LAS NOTAS DE LAS COMPETENCIAS CLAVE DE LOS ALUMNOS. BOTÓN: "VISUALIZAR LAS NOTAS DE LAS COMPETENCIAS CLAVE" Permite observar las notas de las competencias clave de cada alumno en función de los criterios de calificación de las competencias clave introducidos. Además, desde la pantalla de destino se puede generar un documento para exportar las notas de las competencias clave a STILUS. Para ello, previamente es necesario introducir las centésimas de redondeo de las notas de las competencias clave en la celda creada al efecto. 5. OBSERVAR LAS NOTAS DE LAS MATERIAS DE LOS ALUMNOS. BOTÓN: "VISUALIZAR LAS NOTAS DE LAS MATERIAS" Permite observar las notas de las materias de cada alumno, en función de los criterios de calificación de la materia introducidos. Además, desde la pantalla de destino se puede generar un documento para exportar las notas de las materias a STILUS.

Sheet Criterios de calificacion CClav
D4: CRITERIOS DE CALIFICACIÓN DE LAS COMPETENCIAS CLAVE
D6: Pesos de los criterios de evaluación en el cálculo de la calificación de los descriptores operativos
E8: MEDIA SIMPLE. Se aplica un criterio común para el cálculo de la calificación de todos los descriptores. Todos los criterios de evaluación pesan (ponderan) los mismo en la calificación de los descriptores operativos.
E10: MEDIA PONDERADA POR CARGA HORARIA. Se aplica un criterio común para el cálculo de la calificación de todos los descriptores. El peso de los criterios de evaluación se determina en función de la carga horaria de la materia. (RECOMENDADO)
E12: LIBRE. Se aplica un criterio común para el cálculo de la calificación de todos los descriptores. El peso de cada criterio de evaluación en la calificación de los descriptores se determina por el centro.
E14: LIBRE DIFERENCIADO POR DESCRIPTORES. Se aplica un criterio diferenciado para el cálculo de la calificación de cada descriptor. El peso de cada criterio de evaluación en la calificación de cada descriptor se determina por el centro.
D16: Pesos de los descriptores operativos en el cálculo de la calificación de las competencias clave
E18: MEDIA PONDERADA. El peso de los descriptores operativos en el cálculo de la calificación de la competencia clave se determina en proporción al número de vinculaciones de cada descriptor operativo con los criterios de evaluación (RECOMENDADO)
E20: LIBRE. El peso (ponderación) de los descriptores operativos en el cálculo de la calificación de la competencia clave se determina por el centro.
I873: =#REF! ->  | L873: =#REF! ->  | O873: =#REF! ->  | R873: =#REF! ->  | U873: =#REF! ->  | X873: =#REF! ->  | AA873: =#REF! ->  | AD873: =#REF! ->  | AG873: =#REF! ->  | AJ873: =#REF! ->  | AM873: =#REF! ->  | AP873: =#REF! ->  | AS873: =#REF! ->  | AV873: =#REF! ->  | AY873: =#REF! ->  | BB873: =#REF! ->  | BE873: =#REF! ->  | BH873: =#REF! ->  | BK873: =#REF! ->  | BN873: =#REF! ->  | BQ873: =#REF! ->  | BT873: =#REF! ->  | BW873: =#REF! ->  | BZ873: =#REF! ->  | CC873: =#REF! ->  | CF873: =#REF! ->  | CI873: =#REF! ->  | CL873: =#REF! ->  | CO873: =#REF! ->  | CR873: =#REF! ->  | CU873: =#REF! ->  | CX873: =#REF! ->  | DA873: =#REF! ->  | DD873: =#REF! -> 
I885: =#REF! ->  | L885: =#REF! ->  | O885: =#REF! ->  | R885: =#REF! ->  | U885: =#REF! ->  | X885: =#REF! ->  | AA885: =#REF! ->  | AD885: =#REF! ->  | AG885: =#REF! ->  | AJ885: =#REF! ->  | AM885: =#REF! ->  | AP885: =#REF! ->  | AS885: =#REF! ->  | AV885: =#REF! ->  | AY885: =#REF! ->  | BB885: =#REF! ->  | BE885: =#REF! ->  | BH885: =#REF! ->  | BK885: =#REF! ->  | BN885: =#REF! ->  | BQ885: =#REF! ->  | BT885: =#REF! ->  | BW885: =#REF! ->  | BZ885: =#REF! ->  | CC885: =#REF! ->  | CF885: =#REF! ->  | CI885: =#REF! ->  | CL885: =#REF! ->  | CO885: =#REF! ->  | CR885: =#REF! ->  | CU885: =#REF! ->  | CX885: =#REF! ->  | DA885: =#REF! ->  | DD885: =#REF! -> 

Sheet Peso criterios carga horaria
F4: PESO TODOS
A5: MATERIAS DE 4º ESO | B5: Biología y Geología | C5: Comp. Esp. 1 | D5: Criterio Evaluación 1.1 | F5: 4
D6: Criterio Evaluación 1.2 | F6: 4
D7: Criterio Evaluación 1.3 | F7: 4
C8: Comp. Esp. 2 | D8: Criterio Evaluación 2.1 | F8: 4
D9: Criterio Evaluación 2.2 | F9: 4
D10: Criterio Evaluación 2.3 | F10: 4
C11: Comp. Esp. 3 | D11: Criterio Evaluación 3.1 | F11: 4
D12: Criterio Evaluación 3.2 | F12: 4
D13: Criterio Evaluación 3.3 | F13: 4
D14: Criterio Evaluación 3.4 | F14: 4
D15: Criterio Evaluación 3.5 | F15: 4
D16: Criterio Evaluación 3.6 | F16: 4
C17: Comp. Esp. 4 | D17: Criterio Evaluación 4.1 | F17: 4
D18: Criterio Evaluación 4.2 | F18: 4
C19: Comp. Esp. 5 | D19: Criterio Evaluación 5.1 | F19: 4
D20: Criterio Evaluación 5.2 | F20: 4
D21: Criterio Evaluación 5.3 | F21: 4
D22: Criterio Evaluación 5.4 | F22: 4
C23: Comp. Esp. 6 | D23: Criterio Evaluación 6.1 | F23: 4
D24: Criterio Evaluación 6.2 | F24: 4
B25: Conocimiento de las Matemáticas | C25: Comp. Esp. 1 | D25: Criterio Evaluación 1.1 | F25: 2
D26: Criterio Evaluación 1.2 | F26: 2
D27: Criterio Evaluación 1.3 | F27: 2
C28: Comp. Esp. 2 | D28: Criterio Evaluación 2.1 | F28: 2
C29: Comp. Esp. 3 | D29: Criterio Evaluación 3.1 | F29: 2
D30: Criterio Evaluación 3.2 | F30: 2
D31: Criterio Evaluación 3.3 | F31: 2
C32: Comp. Esp. 4 | D32: Criterio Evaluación 4.1 | F32: 2
D33: Criterio Evaluación 4.2 | F33: 2
D34: Criterio Evaluación 4.3 | F34: 2
C35: Comp. Esp. 5 | D35: Criterio Evaluación 5.1 | F35: 2
D36: Criterio Evaluación 5.2 | F36: 2
D37: Criterio Evaluación 5.3 | F37: 2
D38: Criterio Evaluación 5.4 | F38: 2
B39: Conocimiento del Lenguaje | C39: Comp. Esp. 1 | D39: Criterio Evaluación 1.1 | F39: 2
D40: Criterio Evaluación 1.2 | F40: 2
C41: Comp. Esp. 2 | D41: Criterio Evaluación 2.1 | F41: 2
D42: Criterio Evaluación 2.2 | F42: 2
C43: Comp. Esp. 3 | D43: Criterio Evaluación 3.1 | F43: 2
D44: Criterio Evaluación 3.2 | F44: 2
D45: Criterio Evaluación 3.3 | F45: 2
D46: Criterio Evaluación 3.4 | F46: 2
C47: Comp. Esp. 4 | D47: Criterio Evaluación 4.1 | F47: 2
C48: Comp. Esp. 5 | D48: Criterio Evaluación 5.1 | F48: 2
D49: Criterio Evaluación 5.2 | F49: 2
C50: Comp. Esp. 6 | D50: Criterio Evaluación 6.1 | F50: 2
D51: Criterio Evaluación 6.2 | F51: 2
B52: Cultura Científica | C52: Comp. Esp. 1 | D52: Criterio Evaluación 1.1 | F52: 2
D53: Criterio Evaluación 1.2 | F53: 2
D54: Criterio Evaluación 1.3 | F54: 2
C55: Comp. Esp. 2 | D55: Criterio Evaluación 2.1 | F55: 2
D56: Criterio Evaluación 2.2 | F56: 2
D57: Criterio Evaluación 2.3 | F57: 2
C58: Comp. Esp. 3 | D58: Criterio Evaluación 3.1 | F58: 2
D59: Criterio Evaluación 3.2 | F59: 2
D60: Criterio Evaluación 3.3 | F60: 2
D61: Criterio Evaluación 3.4 | F61: 2
D62: Criterio Evaluación 3.5 | F62: 2
D63: Criterio Evaluación 3.6 | F63: 2
C64: Comp. Esp. 4 | D64: Criterio Evaluación 4.1 | F64: 2
D65: Criterio Evaluación 4.2 | F65: 2
C66: Comp. Esp. 5 | D66: Criterio Evaluación 5.1 | F66: 2
D67: Criterio Evaluación 5.2 | F67: 2
D68: Criterio Evaluación 5.3 | F68: 2
C69: Comp. Esp. 6 | D69: Criterio Evaluación 6.1 | F69: 2
D70: Criterio Evaluación 6.2 | F70: 2
D71: Criterio Evaluación 6.3 | F71: 2
B72: Cultura Clásica | C72: Comp. Esp. 1 | D72: Criterio Evaluación 1.1 | F72: 2
D73: Criterio Evaluación 1.2 | F73: 2
D74: Criterio Evaluación 1.3 | F74: 2
D75: Criterio Evaluación 1.4 | F75: 2
C76: Comp. Esp. 2 | D76: Criterio Evaluación 2.1 | F76: 2
D77: Criterio Evaluación 2.2 | F77: 2
D78: Criterio Evaluación 2.3 | F78: 2
D79: Criterio Evaluación 2.4 | F79: 2
C80: Comp. Esp. 3 | D80: Criterio Evaluación 3.1 | F80: 2
D81: Criterio Evaluación 3.2 | F81: 2
D82: Criterio Evaluación 3.3 | F82: 2
D83: Criterio Evaluación 3.4 | F83: 2
D84: Criterio Evaluación 3.5 | F84: 2
C85: Comp. Esp. 4 | D85: Criterio Evaluación 4.1 | F85: 2
D86: Criterio Evaluación 4.2 | F86: 2
D87: Criterio Evaluación 4.3 | F87: 2
C88: Comp. Esp. 5 | D88: Criterio Evaluación 5.1 | F88: 2
D89: Criterio Evaluación 5.2 | F89: 2
D90: Criterio Evaluación 5.3 | F90: 2
D91: Criterio Evaluación 5.4 | F91: 2
B92: Digitalización | C92: Comp. Esp. 1 | D92: Criterio Evaluación 1.1 | F92: 2
D93: Criterio Evaluación 1.2 | F93: 2
D94: Criterio Evaluación 1.3 | F94: 2
D95: Criterio Evaluación 1.4 | F95: 2
C96: Comp. Esp. 2 | D96: Criterio Evaluación 2.1 | F96: 2
D97: Criterio Evaluación 2.2 | F97: 2
D98: Criterio Evaluación 2.3 | F98: 2
D99: Criterio Evaluación 2.4 | F99: 2
D100: Criterio Evaluación 2.5 | F100: 2
D101: Criterio Evaluación 2.6 | F101: 2
D102: Criterio Evaluación 2.7 | F102: 2
C103: Comp. Esp. 3 | D103: Criterio Evaluación 3.1 | F103: 2
D104: Criterio Evaluación 3.2 | F104: 2
D105: Criterio Evaluación 3.3 | F105: 2
C106: Comp. Esp. 4 | D106: Criterio Evaluación 4.1 | F106: 2
D107: Criterio Evaluación 4.2 | F107: 2
D108: Criterio Evaluación 4.3 | F108: 2
D109: Criterio Evaluación 4.4 | F109: 2
D110: Criterio Evaluación 4.5 | F110: 2
B111: Economía y Emprendimiento | C111: Comp. Esp. 1 | D111: Criterio Evaluación 1.1 | F111: 4
D112: Criterio Evaluación 1.2 | F112: 4
D113: Criterio Evaluación 1.3 | F113: 4
C114: Comp. Esp. 2 | D114: Criterio Evaluación 2.1 | F114: 4
D115: Criterio Evaluación 2.2 | F115: 4
D116: Criterio Evaluación 2.3 | F116: 4
C117: Comp. Esp. 3 | D117: Criterio Evaluación 3.1 | F117: 4
D118: Criterio Evaluación 3.2 | F118: 4
D119: Criterio Evaluación 3.3 | F119: 4
C120: Comp. Esp. 4 | D120: Criterio Evaluación 4.1 | F120: 4
D121: Criterio Evaluación 4.2 | F121: 4
D122: Criterio Evaluación 4.3 | F122: 4
C123: Comp. Esp. 5 | D123: Criterio Evaluación 5.1 | F123: 4
D124: Criterio Evaluación 5.2 | F124: 4
C125: Comp. Esp. 6 | D125: Criterio Evaluación 6.1 | F125: 4
D126: Criterio Evaluación 6.2 | F126: 4
D127: Criterio Evaluación 6.3 | F127: 4
D128: Criterio Evaluación 6.4 | F128: 4
C129: Comp. Esp. 7 | D129: Criterio Evaluación 7.1 | F129: 4
D130: Criterio Evaluación 7.2 | F130: 4
D131: Criterio Evaluación 7.3 | F131: 4
B132: Educación Fínanciera | C132: Comp. Esp. 1 | D132: Criterio Evaluación 1.1 | F132: 2
D133: Criterio Evaluación 1.2 | F133: 2
D134: Criterio Evaluación 1.3 | F134: 2
D135: Criterio Evaluación 1.4 | F135: 2
C136: Comp. Esp. 2 | D136: Criterio Evaluación 2.1 | F136: 2
D137: Criterio Evaluación 2.2 | F137: 2
D138: Criterio Evaluación 2.3 | F138: 2
D139: Criterio Evaluación 2.4 | F139: 2
C140: Comp. Esp. 3 | D140: Criterio Evaluación 3.1 | F140: 2
D141: Criterio Evaluación 3.2 | F141: 2
D142: Criterio Evaluación 3.3 | F142: 2
C143: Comp. Esp. 4 | D143: Criterio Evaluación 4.1 | F143: 2
D144: Criterio Evaluación 4.2 | F144: 2
C145: Comp. Esp. 5 | D145: Criterio Evaluación 5.1 | F145: 2
B146: Educación Física | C146: Comp. Esp. 1 | D146: Criterio Evaluación 1.1 | F146: 2
D147: Criterio Evaluación 1.2 | F147: 2
D148: Criterio Evaluación 1.3 | F148: 2
D149: Criterio Evaluación 1.4 | F149: 2
D150: Criterio Evaluación 1.5 | F150: 2
D151: Criterio Evaluación 1.6 | F151: 2
D152: Criterio Evaluación 1.7 | F152: 2
D153: Criterio Evaluación 1.8 | F153: 2
D154: Criterio Evaluación 1.9 | F154: 2
C155: Comp. Esp. 2 | D155: Criterio Evaluación 2.1 | F155: 2
D156: Criterio Evaluación 2.2 | F156: 2
D157: Criterio Evaluación 2.3 | F157: 2
D158: Criterio Evaluación 2.4 | F158: 2
C159: Comp. Esp. 3 | D159: Criterio Evaluación 3.1 | F159: 2
D160: Criterio Evaluación 3.2 | F160: 2
D161: Criterio Evaluación 3.3 | F161: 2
C162: Comp. Esp. 4 | D162: Criterio Evaluación 4.1 | F162: 2
D163: Criterio Evaluación 4.2 | F163: 2
D164: Criterio Evaluación 4.3 | F164: 2
C165: Comp. Esp. 5 | D165: Criterio Evaluación 5.1 | F165: 2
D166: Criterio Evaluación 5.2 | F166: 2
B167: Expresión Artística | C167: Comp. Esp. 1 | D167: Criterio Evaluación 1.1 | F167: 2
D168: Criterio Evaluación 1.2 | F168: 2
D169: Criterio Evaluación 1.3 | F169: 2
C170: Comp. Esp. 2 | D170: Criterio Evaluación 2.1 | F170: 2
D171: Criterio Evaluación 2.2 | F171: 2
D172: Criterio Evaluación 2.3 | F172: 2
C173: Comp. Esp. 3 | D173: Criterio Evaluación 3.1 | F173: 2
D174: Criterio Evaluación 3.2 | F174: 2
C175: Comp. Esp. 4 | D175: Criterio Evaluación 4.1 | F175: 2
D176: Criterio Evaluación 4.2 | F176: 2
D177: Criterio Evaluación 4.3 | F177: 2
D178: Criterio Evaluación 4.4 | F178: 2
B179: Física y Química | C179: Comp. Esp. 1 | D179: Criterio Evaluación 1.1 | F179: 4
D180: Criterio Evaluación 1.2 | F180: 4
D181: Criterio Evaluación 1.3 | F181: 4
C182: Comp. Esp. 2 | D182: Criterio Evaluación 2.1 | F182: 4
D183: Criterio Evaluación 2.2 | F183: 4
D184: Criterio Evaluación 2.3 | F184: 4
C185: Comp. Esp. 3 | D185: Criterio Evaluación 3.1 | F185: 4
D186: Criterio Evaluación 3.2 | F186: 4
D187: Criterio Evaluación 3.3 | F187: 4
C188: Comp. Esp. 4 | D188: Criterio Evaluación 4.1 | F188: 4
D189: Criterio Evaluación 4.2 | F189: 4
C190: Comp. Esp. 5 | D190: Criterio Evaluación 5.1 | F190: 4
D191: Criterio Evaluación 5.2 | F191: 4
C192: Comp. Esp. 6 | D192: Criterio Evaluación 6.1 | F192: 4
D193: Criterio Evaluación 6.2 | F193: 4
B194: Formación para la empresa y el empleo | C194: Comp. Esp. 1 | D194: Criterio Evaluación 1.1 | F194: 2
D195: Criterio Evaluación 1.2 | F195: 2
D196: Criterio Evaluación 1.3 | F196: 2
C197: Comp. Esp. 2 | D197: Criterio Evaluación 2.1 | F197: 2
D198: Criterio Evaluación 2.2 | F198: 2
D199: Criterio Evaluación 2.3 | F199: 2
D200: Criterio Evaluación 2.4 | F200: 2
C201: Comp. Esp. 3 | D201: Criterio Evaluación 3.1 | F201: 2
D202: Criterio Evaluación 3.2 | F202: 2
D203: Criterio Evaluación 3.3 | F203: 2
... 1536 more rows

Sheet Peso criterios libre
E4: PESO | F4: PORCENTAJE
A5: MATERIAS DE 4º ESO | B5: Biología y Geología | C5: Comp. Esp. 1 | D5: Criterio Evaluación 1.1 | E5: 1 | F5: =E5/SUM($E$5:$E$1094) -> 0.0009174311927
D6: Criterio Evaluación 1.2 | E6: 1 | F6: 0.0009174311927
D7: Criterio Evaluación 1.3 | E7: 1 | F7: 0.0009174311927
C8: Comp. Esp. 2 | D8: Criterio Evaluación 2.1 | E8: 1 | F8: 0.0009174311927
D9: Criterio Evaluación 2.2 | E9: 1 | F9: 0.0009174311927
D10: Criterio Evaluación 2.3 | E10: 1 | F10: 0.0009174311927
C11: Comp. Esp. 3 | D11: Criterio Evaluación 3.1 | E11: 1 | F11: 0.0009174311927
D12: Criterio Evaluación 3.2 | E12: 1 | F12: 0.0009174311927
D13: Criterio Evaluación 3.3 | E13: 1 | F13: 0.0009174311927
D14: Criterio Evaluación 3.4 | E14: 1 | F14: 0.0009174311927
D15: Criterio Evaluación 3.5 | E15: 1 | F15: 0.0009174311927
D16: Criterio Evaluación 3.6 | E16: 1 | F16: 0.0009174311927
C17: Comp. Esp. 4 | D17: Criterio Evaluación 4.1 | E17: 1 | F17: 0.0009174311927
D18: Criterio Evaluación 4.2 | E18: 1 | F18: 0.0009174311927
C19: Comp. Esp. 5 | D19: Criterio Evaluación 5.1 | E19: 1 | F19: 0.0009174311927
D20: Criterio Evaluación 5.2 | E20: 1 | F20: 0.0009174311927
D21: Criterio Evaluación 5.3 | E21: 1 | F21: 0.0009174311927
D22: Criterio Evaluación 5.4 | E22: 1 | F22: 0.0009174311927
C23: Comp. Esp. 6 | D23: Criterio Evaluación 6.1 | E23: 1 | F23: 0.0009174311927
D24: Criterio Evaluación 6.2 | E24: 1 | F24: 0.0009174311927
B25: Conocimiento de las Matemáticas | C25: Comp. Esp. 1 | D25: Criterio Evaluación 1.1 | E25: 1 | F25: 0.0009174311927
D26: Criterio Evaluación 1.2 | E26: 1 | F26: 0.0009174311927
D27: Criterio Evaluación 1.3 | E27: 1 | F27: 0.0009174311927
C28: Comp. Esp. 2 | D28: Criterio Evaluación 2.1 | E28: 1 | F28: 0.0009174311927
C29: Comp. Esp. 3 | D29: Criterio Evaluación 3.1 | E29: 1 | F29: 0.0009174311927
D30: Criterio Evaluación 3.2 | E30: 1 | F30: 0.0009174311927
D31: Criterio Evaluación 3.3 | E31: 1 | F31: 0.0009174311927
C32: Comp. Esp. 4 | D32: Criterio Evaluación 4.1 | E32: 1 | F32: 0.0009174311927
D33: Criterio Evaluación 4.2 | E33: 1 | F33: 0.0009174311927
D34: Criterio Evaluación 4.3 | E34: 1 | F34: 0.0009174311927
C35: Comp. Esp. 5 | D35: Criterio Evaluación 5.1 | E35: 1 | F35: 0.0009174311927
D36: Criterio Evaluación 5.2 | E36: 1 | F36: 0.0009174311927
D37: Criterio Evaluación 5.3 | E37: 1 | F37: 0.0009174311927
D38: Criterio Evaluación 5.4 | E38: 1 | F38: 0.0009174311927
B39: Conocimiento del Lenguaje | C39: Comp. Esp. 1 | D39: Criterio Evaluación 1.1 | E39: 1 | F39: 0.0009174311927
D40: Criterio Evaluación 1.2 | E40: 1 | F40: 0.0009174311927
C41: Comp. Esp. 2 | D41: Criterio Evaluación 2.1 | E41: 1 | F41: 0.0009174311927
D42: Criterio Evaluación 2.2 | E42: 1 | F42: 0.0009174311927
C43: Comp. Esp. 3 | D43: Criterio Evaluación 3.1 | E43: 1 | F43: 0.0009174311927
D44: Criterio Evaluación 3.2 | E44: 1 | F44: 0.0009174311927
D45: Criterio Evaluación 3.3 | E45: 1 | F45: 0.0009174311927
D46: Criterio Evaluación 3.4 | E46: 1 | F46: 0.0009174311927
C47: Comp. Esp. 4 | D47: Criterio Evaluación 4.1 | E47: 1 | F47: 0.0009174311927
C48: Comp. Esp. 5 | D48: Criterio Evaluación 5.1 | E48: 1 | F48: 0.0009174311927
D49: Criterio Evaluación 5.2 | E49: 1 | F49: 0.0009174311927
C50: Comp. Esp. 6 | D50: Criterio Evaluación 6.1 | E50: 1 | F50: 0.0009174311927
D51: Criterio Evaluación 6.2 | E51: 1 | F51: 0.0009174311927
B52: Cultura Científica | C52: Comp. Esp. 1 | D52: Criterio Evaluación 1.1 | E52: 1 | F52: 0.0009174311927
D53: Criterio Evaluación 1.2 | E53: 1 | F53: 0.0009174311927
D54: Criterio Evaluación 1.3 | E54: 1 | F54: 0.0009174311927
C55: Comp. Esp. 2 | D55: Criterio Evaluación 2.1 | E55: 1 | F55: 0.0009174311927
D56: Criterio Evaluación 2.2 | E56: 1 | F56: 0.0009174311927
D57: Criterio Evaluación 2.3 | E57: 1 | F57: 0.0009174311927
C58: Comp. Esp. 3 | D58: Criterio Evaluación 3.1 | E58: 1 | F58: 0.0009174311927
D59: Criterio Evaluación 3.2 | E59: 1 | F59: 0.0009174311927
D60: Criterio Evaluación 3.3 | E60: 1 | F60: 0.0009174311927
D61: Criterio Evaluación 3.4 | E61: 1 | F61: 0.0009174311927
D62: Criterio Evaluación 3.5 | E62: 1 | F62: 0.0009174311927
D63: Criterio Evaluación 3.6 | E63: 1 | F63: 0.0009174311927
C64: Comp. Esp. 4 | D64: Criterio Evaluación 4.1 | E64: 1 | F64: 0.0009174311927
D65: Criterio Evaluación 4.2 | E65: 1 | F65: 0.0009174311927
C66: Comp. Esp. 5 | D66: Criterio Evaluación 5.1 | E66: 1 | F66: 0.0009174311927
D67: Criterio Evaluación 5.2 | E67: 1 | F67: 0.0009174311927
D68: Criterio Evaluación 5.3 | E68: 1 | F68: 0.0009174311927
C69: Comp. Esp. 6 | D69: Criterio Evaluación 6.1 | E69: 1 | F69: =E69/SUM($E$5:$E$1094) -> 0.0009174311927
D70: Criterio Evaluación 6.2 | E70: 1 | F70: 0.0009174311927
D71: Criterio Evaluación 6.3 | E71: 1 | F71: 0.0009174311927
B72: Cultura Clásica | C72: Comp. Esp. 1 | D72: Criterio Evaluación 1.1 | E72: 1 | F72: 0.0009174311927
D73: Criterio Evaluación 1.2 | E73: 1 | F73: 0.0009174311927
D74: Criterio Evaluación 1.3 | E74: 1 | F74: 0.0009174311927
D75: Criterio Evaluación 1.4 | E75: 1 | F75: 0.0009174311927
C76: Comp. Esp. 2 | D76: Criterio Evaluación 2.1 | E76: 1 | F76: 0.0009174311927
D77: Criterio Evaluación 2.2 | E77: 1 | F77: 0.0009174311927
D78: Criterio Evaluación 2.3 | E78: 1 | F78: 0.0009174311927
D79: Criterio Evaluación 2.4 | E79: 1 | F79: 0.0009174311927
C80: Comp. Esp. 3 | D80: Criterio Evaluación 3.1 | E80: 1 | F80: 0.0009174311927
D81: Criterio Evaluación 3.2 | E81: 1 | F81: 0.0009174311927
D82: Criterio Evaluación 3.3 | E82: 1 | F82: 0.0009174311927
D83: Criterio Evaluación 3.4 | E83: 1 | F83: 0.0009174311927
D84: Criterio Evaluación 3.5 | E84: 1 | F84: 0.0009174311927
C85: Comp. Esp. 4 | D85: Criterio Evaluación 4.1 | E85: 1 | F85: 0.0009174311927
D86: Criterio Evaluación 4.2 | E86: 1 | F86: 0.0009174311927
D87: Criterio Evaluación 4.3 | E87: 1 | F87: 0.0009174311927
C88: Comp. Esp. 5 | D88: Criterio Evaluación 5.1 | E88: 1 | F88: 0.0009174311927
D89: Criterio Evaluación 5.2 | E89: 1 | F89: 0.0009174311927
D90: Criterio Evaluación 5.3 | E90: 1 | F90: 0.0009174311927
D91: Criterio Evaluación 5.4 | E91: 1 | F91: 0.0009174311927
B92: Digitalización | C92: Comp. Esp. 1 | D92: Criterio Evaluación 1.1 | E92: 1 | F92: 0.0009174311927
D93: Criterio Evaluación 1.2 | E93: 1 | F93: 0.0009174311927
D94: Criterio Evaluación 1.3 | E94: 1 | F94: 0.0009174311927
D95: Criterio Evaluación 1.4 | E95: 1 | F95: 0.0009174311927
C96: Comp. Esp. 2 | D96: Criterio Evaluación 2.1 | E96: 1 | F96: 0.0009174311927
D97: Criterio Evaluación 2.2 | E97: 1 | F97: 0.0009174311927
D98: Criterio Evaluación 2.3 | E98: 1 | F98: 0.0009174311927
D99: Criterio Evaluación 2.4 | E99: 1 | F99: 0.0009174311927
D100: Criterio Evaluación 2.5 | E100: 1 | F100: 0.0009174311927
D101: Criterio Evaluación 2.6 | E101: 1 | F101: 0.0009174311927
D102: Criterio Evaluación 2.7 | E102: 1 | F102: 0.0009174311927
C103: Comp. Esp. 3 | D103: Criterio Evaluación 3.1 | E103: 1 | F103: 0.0009174311927
D104: Criterio Evaluación 3.2 | E104: 1 | F104: 0.0009174311927
D105: Criterio Evaluación 3.3 | E105: 1 | F105: 0.0009174311927
C106: Comp. Esp. 4 | D106: Criterio Evaluación 4.1 | E106: 1 | F106: 0.0009174311927
D107: Criterio Evaluación 4.2 | E107: 1 | F107: 0.0009174311927
D108: Criterio Evaluación 4.3 | E108: 1 | F108: 0.0009174311927
D109: Criterio Evaluación 4.4 | E109: 1 | F109: 0.0009174311927
D110: Criterio Evaluación 4.5 | E110: 1 | F110: 0.0009174311927
B111: Economía y Emprendimiento | C111: Comp. Esp. 1 | D111: Criterio Evaluación 1.1 | E111: 1 | F111: 0.0009174311927
D112: Criterio Evaluación 1.2 | E112: 1 | F112: 0.0009174311927
D113: Criterio Evaluación 1.3 | E113: 1 | F113: 0.0009174311927
C114: Comp. Esp. 2 | D114: Criterio Evaluación 2.1 | E114: 1 | F114: 0.0009174311927
D115: Criterio Evaluación 2.2 | E115: 1 | F115: 0.0009174311927
D116: Criterio Evaluación 2.3 | E116: 1 | F116: 0.0009174311927
C117: Comp. Esp. 3 | D117: Criterio Evaluación 3.1 | E117: 1 | F117: 0.0009174311927
D118: Criterio Evaluación 3.2 | E118: 1 | F118: 0.0009174311927
D119: Criterio Evaluación 3.3 | E119: 1 | F119: 0.0009174311927
C120: Comp. Esp. 4 | D120: Criterio Evaluación 4.1 | E120: 1 | F120: 0.0009174311927
D121: Criterio Evaluación 4.2 | E121: 1 | F121: 0.0009174311927
D122: Criterio Evaluación 4.3 | E122: 1 | F122: 0.0009174311927
C123: Comp. Esp. 5 | D123: Criterio Evaluación 5.1 | E123: 1 | F123: 0.0009174311927
D124: Criterio Evaluación 5.2 | E124: 1 | F124: 0.0009174311927
C125: Comp. Esp. 6 | D125: Criterio Evaluación 6.1 | E125: 1 | F125: 0.0009174311927
D126: Criterio Evaluación 6.2 | E126: 1 | F126: 0.0009174311927
D127: Criterio Evaluación 6.3 | E127: 1 | F127: 0.0009174311927
D128: Criterio Evaluación 6.4 | E128: 1 | F128: 0.0009174311927
C129: Comp. Esp. 7 | D129: Criterio Evaluación 7.1 | E129: 1 | F129: 0.0009174311927
D130: Criterio Evaluación 7.2 | E130: 1 | F130: 0.0009174311927
D131: Criterio Evaluación 7.3 | E131: 1 | F131: 0.0009174311927
B132: Educación Fínanciera | C132: Comp. Esp. 1 | D132: Criterio Evaluación 1.1 | E132: 1 | F132: 0.0009174311927
D133: Criterio Evaluación 1.2 | E133: 1 | F133: =E133/SUM($E$5:$E$1094) -> 0.0009174311927
D134: Criterio Evaluación 1.3 | E134: 1 | F134: 0.0009174311927
D135: Criterio Evaluación 1.4 | E135: 1 | F135: 0.0009174311927
C136: Comp. Esp. 2 | D136: Criterio Evaluación 2.1 | E136: 1 | F136: 0.0009174311927
D137: Criterio Evaluación 2.2 | E137: 1 | F137: 0.0009174311927
D138: Criterio Evaluación 2.3 | E138: 1 | F138: 0.0009174311927
D139: Criterio Evaluación 2.4 | E139: 1 | F139: 0.0009174311927
C140: Comp. Esp. 3 | D140: Criterio Evaluación 3.1 | E140: 1 | F140: 0.0009174311927
D141: Criterio Evaluación 3.2 | E141: 1 | F141: 0.0009174311927
D142: Criterio Evaluación 3.3 | E142: 1 | F142: 0.0009174311927
C143: Comp. Esp. 4 | D143: Criterio Evaluación 4.1 | E143: 1 | F143: 0.0009174311927
D144: Criterio Evaluación 4.2 | E144: 1 | F144: 0.0009174311927
C145: Comp. Esp. 5 | D145: Criterio Evaluación 5.1 | E145: 1 | F145: 0.0009174311927
B146: Educación Física | C146: Comp. Esp. 1 | D146: Criterio Evaluación 1.1 | E146: 1 | F146: 0.0009174311927
D147: Criterio Evaluación 1.2 | E147: 1 | F147: 0.0009174311927
D148: Criterio Evaluación 1.3 | E148: 1 | F148: 0.0009174311927
D149: Criterio Evaluación 1.4 | E149: 1 | F149: 0.0009174311927
D150: Criterio Evaluación 1.5 | E150: 1 | F150: 0.0009174311927
D151: Criterio Evaluación 1.6 | E151: 1 | F151: 0.0009174311927
D152: Criterio Evaluación 1.7 | E152: 1 | F152: 0.0009174311927
D153: Criterio Evaluación 1.8 | E153: 1 | F153: 0.0009174311927
D154: Criterio Evaluación 1.9 | E154: 1 | F154: 0.0009174311927
C155: Comp. Esp. 2 | D155: Criterio Evaluación 2.1 | E155: 1 | F155: 0.0009174311927
D156: Criterio Evaluación 2.2 | E156: 1 | F156: 0.0009174311927
D157: Criterio Evaluación 2.3 | E157: 1 | F157: 0.0009174311927
D158: Criterio Evaluación 2.4 | E158: 1 | F158: 0.0009174311927
C159: Comp. Esp. 3 | D159: Criterio Evaluación 3.1 | E159: 1 | F159: 0.0009174311927
D160: Criterio Evaluación 3.2 | E160: 1 | F160: 0.0009174311927
D161: Criterio Evaluación 3.3 | E161: 1 | F161: 0.0009174311927
C162: Comp. Esp. 4 | D162: Criterio Evaluación 4.1 | E162: 1 | F162: 0.0009174311927
D163: Criterio Evaluación 4.2 | E163: 1 | F163: 0.0009174311927
D164: Criterio Evaluación 4.3 | E164: 1 | F164: 0.0009174311927
C165: Comp. Esp. 5 | D165: Criterio Evaluación 5.1 | E165: 1 | F165: 0.0009174311927
D166: Criterio Evaluación 5.2 | E166: 1 | F166: 0.0009174311927
B167: Expresión Artística | C167: Comp. Esp. 1 | D167: Criterio Evaluación 1.1 | E167: 1 | F167: 0.0009174311927
D168: Criterio Evaluación 1.2 | E168: 1 | F168: 0.0009174311927
D169: Criterio Evaluación 1.3 | E169: 1 | F169: 0.0009174311927
C170: Comp. Esp. 2 | D170: Criterio Evaluación 2.1 | E170: 1 | F170: 0.0009174311927
D171: Criterio Evaluación 2.2 | E171: 1 | F171: 0.0009174311927
D172: Criterio Evaluación 2.3 | E172: 1 | F172: 0.0009174311927
C173: Comp. Esp. 3 | D173: Criterio Evaluación 3.1 | E173: 1 | F173: 0.0009174311927
D174: Criterio Evaluación 3.2 | E174: 1 | F174: 0.0009174311927
C175: Comp. Esp. 4 | D175: Criterio Evaluación 4.1 | E175: 1 | F175: 0.0009174311927
D176: Criterio Evaluación 4.2 | E176: 1 | F176: 0.0009174311927
D177: Criterio Evaluación 4.3 | E177: 1 | F177: 0.0009174311927
D178: Criterio Evaluación 4.4 | E178: 1 | F178: 0.0009174311927
B179: Física y Química | C179: Comp. Esp. 1 | D179: Criterio Evaluación 1.1 | E179: 1 | F179: 0.0009174311927
D180: Criterio Evaluación 1.2 | E180: 1 | F180: 0.0009174311927
D181: Criterio Evaluación 1.3 | E181: 1 | F181: 0.0009174311927
C182: Comp. Esp. 2 | D182: Criterio Evaluación 2.1 | E182: 1 | F182: 0.0009174311927
D183: Criterio Evaluación 2.2 | E183: 1 | F183: 0.0009174311927
D184: Criterio Evaluación 2.3 | E184: 1 | F184: 0.0009174311927
C185: Comp. Esp. 3 | D185: Criterio Evaluación 3.1 | E185: 1 | F185: 0.0009174311927
D186: Criterio Evaluación 3.2 | E186: 1 | F186: 0.0009174311927
D187: Criterio Evaluación 3.3 | E187: 1 | F187: 0.0009174311927
C188: Comp. Esp. 4 | D188: Criterio Evaluación 4.1 | E188: 1 | F188: 0.0009174311927
D189: Criterio Evaluación 4.2 | E189: 1 | F189: 0.0009174311927
C190: Comp. Esp. 5 | D190: Criterio Evaluación 5.1 | E190: 1 | F190: 0.0009174311927
D191: Criterio Evaluación 5.2 | E191: 1 | F191: 0.0009174311927
C192: Comp. Esp. 6 | D192: Criterio Evaluación 6.1 | E192: 1 | F192: 0.0009174311927
D193: Criterio Evaluación 6.2 | E193: 1 | F193: 0.0009174311927
B194: Formación para la empresa y el empleo | C194: Comp. Esp. 1 | D194: Criterio Evaluación 1.1 | E194: 1 | F194: 0.0009174311927
D195: Criterio Evaluación 1.2 | E195: 1 | F195: 0.0009174311927
D196: Criterio Evaluación 1.3 | E196: 1 | F196: 0.0009174311927
C197: Comp. Esp. 2 | D197: Criterio Evaluación 2.1 | E197: 1 | F197: =E197/SUM($E$5:$E$1094) -> 0.0009174311927
D198: Criterio Evaluación 2.2 | E198: 1 | F198: 0.0009174311927
D199: Criterio Evaluación 2.3 | E199: 1 | F199: 0.0009174311927
D200: Criterio Evaluación 2.4 | E200: 1 | F200: 0.0009174311927
C201: Comp. Esp. 3 | D201: Criterio Evaluación 3.1 | E201: 1 | F201: 0.0009174311927
D202: Criterio Evaluación 3.2 | E202: 1 | F202: 0.0009174311927
D203: Criterio Evaluación 3.3 | E203: 1 | F203: 0.0009174311927
... 1537 more rows

Sheet Peso descrip. libre
E2: Competencia en Comunicación Lingüística | Y2: Competencia Plurilingüe | AK2: Competencia Matemática y Competencia en Ciencia, Tecnología e Ingeniería | BE2: Competencia Digital | BY2: Competencia Personal, Social y de Aprender a Aprender | CS2: Competencia Ciudadana | DI2: Competencia Emprendedora | DU2: Competencia en Conciencia y Expresión Culturales
E3: CCL 1 | I3: CCL 2 | M3: CCL 3 | Q3: CCL 4 | U3: CCL 5 | Y3: CP 1 | AC3: CP 2 | AG3: CP 3 | AK3: STEM 1 | AO3: STEM 2 | AS3: STEM 3 | AW3: STEM 4 | BA3: STEM 5 | BE3: CD 1 | BI3: CD 2 | BM3: CD 3 | BQ3: CD 4 | BU3: CD 5 | BY3: CPSAA 1 | CC3: CPSAA 2 | CG3: CPSAA 3 | CK3: CPSAA 4 | CO3: CPSAA 5 | CS3: CC 1 | CW3: CC 2 | DA3: CC 3 | DE3: CC 4 | DI3: CE 1 | DM3: CE 2 | DQ3: CE 3 | DU3: CCEC 1 | DY3: CCEC 2 | EC3: CCEC 3 | EG3: CCEC 4
B4: NO | C4: PESO DESCRIPTORES | E4: 1 | I4: 1 | M4: 1 | Q4: 1 | U4: 1 | Y4: 1 | AC4: 1 | AG4: 1 | AK4: 1 | AO4: 1 | AS4: 1 | AW4: 1 | BA4: 1 | BE4: 1 | BI4: 1 | BM4: 1 | BQ4: 1 | BU4: 1 | BY4: 1 | CC4: 1 | CG4: 1 | CK4: 1 | CO4: 1 | CS4: 1 | CW4: 1 | DA4: 1 | DE4: 1 | DI4: 1 | DM4: 1 | DQ4: 1 | DU4: 1 | DY4: 1 | EC4: 1 | EG4: 1
C5: PORCENTAJES | E5: =E4/SUM($E4:$U4) -> 0.2 | I5: =I4/SUM($E4:$U4) -> 0.2 | M5: =M4/SUM($E4:$U4) -> 0.2 | Q5: =Q4/SUM($E4:$U4) -> 0.2 | U5: =U4/SUM($E4:$U4) -> 0.2 | Y5: =Y4/SUM($Y4:$AG4) -> 0.3333333333 | AC5: =AC4/SUM($Y4:$AG4) -> 0.3333333333 | AG5: 0.3333333333 | AK5: =AK4/SUM($AK4:$BA4) -> 0.2 | AO5: =AO4/SUM($AK4:$BA4) -> 0.2 | AS5: 0.2 | AW5: 0.2 | BA5: 0.2 | BE5: =BE4/SUM($BE4:$BU4) -> 0.2 | BI5: =BI4/SUM($BE4:$BU4) -> 0.2 | BM5: 0.2 | BQ5: 0.2 | BU5: 0.2 | BY5: =BY4/SUM($BY4:$CO4) -> 0.2 | CC5: =CC4/SUM($BY4:$CO4) -> 0.2 | CG5: 0.2 | CK5: 0.2 | CO5: 0.2 | CS5: =CS4/SUM($CS4:$DE4) -> 0.25 | CW5: =CW4/SUM($CS4:$DE4) -> 0.25 | DA5: 0.25 | DE5: 0.25 | DI5: =DI4/SUM($DI4:$DQ4) -> 0.3333333333 | DM5: =DM4/SUM($DI4:$DQ4) -> 0.3333333333 | DQ5: 0.3333333333 | DU5: =DU4/SUM($DU4:$EG4) -> 0.25 | DY5: =DY4/SUM($DU4:$EG4) -> 0.25 | EC5: 0.25 | EG5: 0.25

Sheet Peso descrip. vinculaciones
E2: Competencia en Comunicación Lingüística | Y2: Competencia Plurilingüe | AK2: Competencia Matemática y Competencia en Ciencia, Tecnología e Ingeniería | BE2: Competencia Digital | BY2: Competencia Personal, Social y de Aprender a Aprender | CS2: Competencia Ciudadana | DI2: Competencia Emprendedora | DU2: Competencia en Conciencia y Expresión Culturales
E3: CCL 1 | I3: CCL 2 | M3: CCL 3 | Q3: CCL 4 | U3: CCL 5 | Y3: CP 1 | AC3: CP 2 | AG3: CP 3 | AK3: STEM 1 | AO3: STEM 2 | AS3: STEM 3 | AW3: STEM 4 | BA3: STEM 5 | BE3: CD 1 | BI3: CD 2 | BM3: CD 3 | BQ3: CD 4 | BU3: CD 5 | BY3: CPSAA 1 | CC3: CPSAA 2 | CG3: CPSAA 3 | CK3: CPSAA 4 | CO3: CPSAA 5 | CS3: CC 1 | CW3: CC 2 | DA3: CC 3 | DE3: CC 4 | DI3: CE 1 | DM3: CE 2 | DQ3: CE 3 | DU3: CCEC 1 | DY3: CCEC 2 | EC3: CCEC 3 | EG3: CCEC 4
B4: NO | C4: PESO DESCRIPTORES | E4: 0.3169014085 | I4: 0.235915493 | M4: 0.2605633803 | Q4: 0.05809859155 | U4: 0.1285211268 | Y4: 0.2933333333 | AC4: 0.4 | AG4: 0.3066666667 | AK4: 0.3197278912 | AO4: 0.2494331066 | AS4: 0.1519274376 | AW4: 0.1814058957 | BA4: 0.09750566893 | BE4: 0.2900608519 | BI4: 0.30831643 | BM4: 0.261663286 | BQ4: 0.07099391481 | BU4: 0.06896551724 | BY4: 0.2273730684 | CC4: 0.04856512141 | CG4: 0.2362030905 | CK4: 0.2693156733 | CO4: 0.2185430464 | CS4: 0.2932960894 | CW4: 0.1927374302 | DA4: 0.3547486034 | DE4: 0.1592178771 | DI4: 0.3517786561 | DM4: 0.1818181818 | DQ4: 0.4664031621 | DU4: 0.3189964158 | DY4: 0.2508960573 | EC4: 0.2401433692 | EG4: 0.1899641577
C5: PORCENTAJES | E5: =E4/SUM($E4:$U4) -> 0.3169014085 | I5: =I4/SUM($E4:$U4) -> 0.235915493 | M5: =M4/SUM($E4:$U4) -> 0.2605633803 | Q5: =Q4/SUM($E4:$U4) -> 0.05809859155 | U5: =U4/SUM($E4:$U4) -> 0.1285211268 | Y5: =Y4/SUM($Y4:$AG4) -> 0.2933333333 | AC5: =AC4/SUM($Y4:$AG4) -> 0.4 | AG5: 0.3066666667 | AK5: =AK4/SUM($AK4:$BA4) -> 0.3197278912 | AO5: =AO4/SUM($AK4:$BA4) -> 0.2494331066 | AS5: 0.1519274376 | AW5: 0.1814058957 | BA5: 0.09750566893 | BE5: =BE4/SUM($BE4:$BU4) -> 0.2900608519 | BI5: =BI4/SUM($BE4:$BU4) -> 0.30831643 | BM5: 0.261663286 | BQ5: 0.07099391481 | BU5: 0.06896551724 | BY5: =BY4/SUM($BY4:$CO4) -> 0.2273730684 | CC5: =CC4/SUM($BY4:$CO4) -> 0.04856512141 | CG5: 0.2362030905 | CK5: 0.2693156733 | CO5: 0.2185430464 | CS5: =CS4/SUM($CS4:$DE4) -> 0.2932960894 | CW5: =CW4/SUM($CS4:$DE4) -> 0.1927374302 | DA5: 0.3547486034 | DE5: 0.1592178771 | DI5: =DI4/SUM($DI4:$DQ4) -> 0.3517786561 | DM5: =DM4/SUM($DI4:$DQ4) -> 0.1818181818 | DQ5: 0.4664031621 | DU5: =DU4/SUM($DU4:$EG4) -> 0.3189964158 | DY5: =DY4/SUM($DU4:$EG4) -> 0.2508960573 | EC5: 0.2401433692 | EG5: 0.1899641577

Sheet Alumnos
C3: LISTADO DE ALUMNOS | F3: MATERIAS 4º ESO | AL3: MATERIAS PENDIENTES DE 3º ESO | BL3: MATERIAS PENDIENTES DE 2ºESO | CD3: MATERIAS PENDIENTES DE 1ºESO
C4: Informe | D4: Grupo 4º _____ | E4: ID Matrícula | F4: MAT A | G4: MAT B | H4: ByG | I4: LAT | J4: EcoyE | K4: FyQ | L4: DIG | M4: EA | N4: FOPP | O4: MUS | P4: 2º LEX | U4: TEC | V4: CMAT | W4: CLEN | X4: CCient. | Y4: CCL | Z4: Efin | AA4: FPEE | AB4: GE | AC4: LabC | AD4: LCCh | AE4: LCGall | AF4: LIU | AG4: PI | AH4: TAE | AI4: TFil | AJ4: MNR | AK4: REL | AL4: ByG | AM4: EVCE | AN4: EF | AO4: FyQ | AP4: GeH | AQ4: LCL | AR4: LEX | AS4: MAT | AT4: TyD | AU4: EPVA | AV4: MUS | AW4: CMAT | AX4: CLEN | AY4: CyR | AZ4: IAEE | BA4: LCCh | BB4: RP | BC4: 2ª LEX | BH4: TAP | BI4: TEM | BJ4: MNR | BK4: REL | BL4: EF | BM4: FyQ | BN4: GeH | BO4: LLC | BP4: LEX | BQ4: MAT | BR4: MUS | BS4: CMAT | BT4: CLEN | BU4: Cclás | BV4: LLCh | BW4: 2ª LEX | CB4: VE | CC4: REL | CD4: ByG | CE4: EF | CF4: EPVA | CG4: GeH | CH4: LCL | CI4: LEX | CJ4: MAT | CK4: TyD | CL4: CMAT | CM4: CLEN | CN4: LLCh | CO4: 2ª LEX | CT4: VE | CU4: REL | CW4: TEAMS / Onedrive
P5: ALE | Q5: FRA | R5: ING | S5: ITA | T5: POR | BC5: ALE | BD5: FRA | BE5: ING | BF5: ITA | BG5: POR | BS5: Cclasi | BW5: ALE | BX5: FRA | BY5: ING | BZ5: ITA | CA5: POR | CO5: ALE | CP5: FRA | CQ5: ING | CR5: ITA | CS5: POR
D6: Nombre_Alumno_1 | E6: 0000000_1 | F6: x | H6: x | L6: x | V6: x | AJ6: x | AL6: x | AU6: x | AW6: x | BJ6: x | BL6: x | BS6: x | CB6: x | CD6: x | CL6: x | CT6: x
C7: 2 | D7: Nombre_Alumno_2 | E7: 0000000_2 | F7: x | K7: x | U7: x | W7: x | AB7: x | AK7: x | AM7: x | AV7: x | AX7: x | BK7: x | BM7: x | BT7: x | CC7: x | CF7: x | CM7: x | CU7: x
C8: 3 | D8: Nombre_Alumno_3 | E8: 0000000_3 | F8: x | H8: x | L8: x | X8: x | AC8: x | AJ8: x | AN8: x | AU8: x | AY8: x | BJ8: x | BN8: x | BV8: x | CG8: x | CN8: x
C9: 4 | D9: Nombre_Alumno_4 | E9: 0000000_4 | F9: x | K9: x | U9: x | Y9: x | AD9: x | AK9: x | AO9: x | AV9: x | AZ9: x | BK9: x | BO9: x | CA9: x | CH9: x | CS9: x
D10: Nombre_Alumno_5 | E10: 0000000_5 | F10: x | H10: x | L10: x | Z10: x | AE10: x | AJ10: x | AP10: x | AU10: x | BA10: x | BJ10: x | BP10: x | CI10: x
C11: 6 | D11: Nombre_Alumno_6 | E11: 0000000_6 | F11: x | K11: x | U11: x | AA11: x | AF11: x | AK11: x | AQ11: x | AV11: x | BB11: x | BK11: x | BQ11: x | CJ11: x
C12: 7 | D12: Nombre_Alumno_7 | E12: 0000000_7 | F12: x | H12: x | L12: x | AG12: x | AJ12: x | AR12: x | AU12: x | BG12: x | BJ12: x | BR12: x
C13: 8 | D13: Nombre_Alumno_8 | E13: 0000000_8 | F13: x | K13: x | U13: x | AH13: x | AK13: x | AS13: x | AV13: x | BH13: x | BK13: x | CK13: x
C14: 9 | D14: Nombre_Alumno_9 | E14: 0000000_9 | F14: x | H14: x | L14: x | AI14: x | AJ14: x | AT14: x | AU14: x | BI14: x | BJ14: x
C15: 10
C16: 11
C17: 12
C18: 13
C19: 14
C20: 15
C21: 16
C22: 17
C23: 18
C24: 19
C25: 20
C26: 21
C27: 22
C28: 23
C29: 24
C30: 25
C31: 26
C32: 27
C33: 28
C34: 29
C35: 30
C36: 31
C37: 32
C38: 33
C39: 34
C40: 35
D41: TOTAL MATRICULADOS | F41: =COUNTA(F6:F40) -> 9 | G41: =COUNTA(G6:G40) -> 0 | H41: 5 | I41: 0 | J41: 0 | K41: 4 | L41: 5 | M41: 0 | N41: 0 | O41: 0 | P41: 0 | Q41: 0 | R41: 0 | S41: 0 | T41: 0 | U41: 4 | V41: 1 | W41: 1 | X41: 1 | Y41: 1 | Z41: 1 | AA41: 1 | AB41: 1 | AC41: 1 | AD41: 1 | AE41: 1 | AF41: 1 | AG41: 1 | AH41: 1 | AI41: 1 | AJ41: 5 | AK41: 4 | AL41: 1 | AM41: 1 | AN41: 1 | AO41: 1 | AP41: 1 | AQ41: 1 | AR41: 1 | AS41: 1 | AT41: 1 | AU41: 5 | AV41: 4 | AW41: 1 | AX41: 1 | AY41: 1 | AZ41: 1 | BA41: 1 | BB41: 1 | BC41: 0 | BD41: 0 | BE41: 0 | BF41: 0 | BG41: 1 | BH41: 1 | BI41: 1 | BJ41: 5 | BK41: 4 | BL41: 1 | BM41: 1 | BN41: 1 | BO41: 1 | BP41: 1 | BQ41: 1 | BR41: 1 | BS41: =COUNTA(BS6:BS40) -> 1 | BT41: 1 | BU41: 0 | BV41: 1 | BW41: 0 | BX41: 0 | BY41: 0 | BZ41: 0 | CA41: 1 | CB41: 1 | CC41: 1 | CD41: 1 | CE41: 0 | CF41: 1 | CG41: 1 | CH41: 1 | CI41: 1 | CJ41: 1 | CK41: 1 | CL41: 1 | CM41: 1 | CN41: 1 | CO41: 0 | CP41: 0 | CQ41: 0 | CR41: 0 | CS41: 1 | CT41: 1 | CU41: 1

Sheet Redondeo
CY2: EXPORTACIÓN NOTAS COMPETENCIAS A STILUS
C3: CALIFICACIÓN DE MATERIAS | CY3: 1º_Introduce para cada materia las centésimas a partir de las que se realizará un redondeo al alza (valor entre 1 y 100):
C4: CENTÉSIMAS REDONDEO
C5: 90 | D5: 90 | E5: 90 | F5: 90 | G5: 90 | H5: 90 | I5: 90 | J5: 90 | K5: 90 | L5: 90 | M5: 90 | N5: 90 | O5: 90 | P5: 90 | Q5: 90 | R5: 90 | S5: 90 | T5: 90 | U5: 90 | V5: 90 | W5: 90 | X5: 90 | Y5: 90 | Z5: 90 | AA5: 90 | AB5: 90 | AC5: 90 | AD5: 90 | AE5: 90 | AF5: 90 | AG5: 90 | AH5: 90 | AI5: 90 | AJ5: 90 | AK5: 90 | AL5: 90 | AM5: 90 | AN5: 90 | AO5: 90 | AP5: 90 | AQ5: 90 | AR5: 90 | AS5: 90 | AT5: 90 | AU5: 90 | AV5: 90 | AW5: 90 | AX5: 90 | AY5: 90 | AZ5: 90 | BA5: 90 | BB5: 90 | BC5: 90 | BD5: 90 | BE5: 90 | BF5: 90 | BG5: 90 | BH5: 90 | BI5: 90 | BJ5: 90 | BK5: 90 | BL5: 90 | BM5: 90 | BN5: 90 | BO5: 90 | BP5: 90 | BQ5: 90 | BR5: 90 | BS5: 90 | BT5: 90 | BU5: 90 | BV5: 90 | BW5: 90 | BX5: 90 | BY5: 90 | BZ5: 90 | CA5: 90 | CB5: 90 | CC5: 90 | CD5: 90 | CE5: 90 | CF5: 90 | CG5: 90 | CH5: 90 | CI5: 90 | CJ5: 90 | CK5: 90 | CL5: 90 | CM5: 90 | CN5: 90 | CO5: 90 | CP5: 90 | CQ5: 90 | CR5: 90 | CS5: 90 | CT5: 90 | CU5: 90 | CV5: 90 | CY5: Ejemplo: si se marca 85, desde el 4,85 (inclusive) se redondeará a 5, Si se marca 100, el 4,99 e inferiores se redondearán a 4
C6: 4º ESO | AM6: 3º ESO PENDIENTES | BM6: 2ºESO PENDIENTES | CE6: 1º ESO PENDIENTES
B7: =TRANSPOSE('Calificación materias'!B5:AK103) -> 0 | C7: Educación Física | D7: Geografía e Historia | E7: Lengua Castellana y L. | F7: Lengua Extranjera | G7: Matemáticas A | H7: Matemáticas B | I7: Biología y Geología | J7: Latín | K7: Economía y Emp. | L7: Física y Química | M7: Digitalización | N7: Expresión Artística | O7: FOPP | P7: Música | Q7: 2ª Lengua Extranjera_ALE | R7: 2ª Lengua Extranjera_FRA | S7: 2ª Lengua Extranjera_ING | T7: 2ª Lengua Extranjera_ITA | U7: 2ª Lengua Extranjera_POR | V7: Tecnología | W7: CMAT | X7: CLEN | Y7: Cultura Científica | Z7: Cultura Clásica | AA7: Educación Financiera | AB7: Formación Empresa y E. | AC7: Geografía Económica | AD7: Laboratorio de Ciencias | AE7: Lengua y Cultura China | AF7: Lengua y Cultura Gall. | AG7: Literatura Universal | AH7: Programación Inf. | AI7: TAE | AJ7: Taller de Filosofía | AK7: Materia no Religión | AL7: Religión | AM7: Biología y Geología | AN7: EVCE | AO7: Educación Física | AP7: Física y Química | AQ7: Geografía e Historia | AR7: Lengua Castellana y L. | AS7: Lengua Extranjera | AT7: Matemáticas | AU7: Tec. y Digitalización | AV7: EPVA | AW7: Música | AX7: CMAT | AY7: CLEN | AZ7: Control y Robótica | BA7: IAEE | BB7: Lengua y Cultura China | BC7: Res. de Problemas | BD7: 2ª Lengua Extranjera_ALE | BE7: 2ª Lengua Extranjera_FRA | BF7: 2ª Lengua Extranjera_ING | BG7: 2ª Lengua Extranjera_ITA | BH7: 2ª Lengua Extranjera_POR | BI7: Taller de Artes Plás. | BJ7: Taller de Exp. Musical | BK7: Materia no Religión | BL7: Religión | BM7: Educación Flisica | BN7: Física y Química | BO7: Geografía e Historia | BP7: Lengua Castellana y L. | BQ7: Lengua Extranjera | BR7: Matemáticas | BS7: Música | BT7: CMAT | BU7: CLEN | BV7: Cultura Clásica | BW7: Lengua y Cultura China | BX7: 2ª Lengua Extranjera_ALE | BY7: 2ª Lengua Extranjera_FRA | BZ7: 2ª Lengua Extranjera_ING | CA7: 2ª Lengua Extranjera_ITA | CB7: 2ª Lengua Extranjera_POR | CC7: MNR | CD7: Religión | CE7: Biología y Geología | CF7: Educación Física | CG7: EPVA | CH7: Geografía e Historia | CI7: Lengua Castellana y L. | CJ7: Lengua Extranjera | CK7: Matemáticas | CL7: Tecnología y Dig. | CM7: CMAT | CN7: CLEN | CO7: Lengua y Cultura China | CP7: 2ª Lengua Extranjera_ALE | CQ7: 2ª Lengua Extranjera_FRA | CR7: 2ª Lengua Extranjera_ING | CS7: 2ª Lengua Extranjera_ITA | CT7: 2ª Lengua Extranjera_POR | CU7: MNR | CV7: Religión | CY7: 2º_Pulsa el siguiente botón:
B8: Nombre_Alumno_1
B9: Nombre_Alumno_2
B10: Nombre_Alumno_3
B11: Nombre_Alumno_4
B12: Nombre_Alumno_5
B13: Nombre_Alumno_6
B14: Nombre_Alumno_7
B15: Nombre_Alumno_8
B16: Nombre_Alumno_9

Sheet Materias
C3: MATERIAS DE 4º ESO
C28: MATERIAS PENDIENTES DE 3º ESO
C47: MATERIAS PENDIENTES DE 2º ESO
C60: MATERIAS PENDIENTES DE 1º ESO

Sheet 2LEX
C2: MATERIAS DE 4º ESO

Sheet 2LEX (3)
C2: MATERIAS PENDIENTES DE 3º ESO

Sheet 2LEX (2)
C2: MATERIAS PENDIENTES DE 2º ESO

Sheet 2LEX (1)
C2: MATERIAS PENDIENTES DE 1º ESO

Sheet Calif. de crit.
E2: =IF(Alumnos!D6="","",Alumnos!D6) -> Nombre_Alumno_1 | F2: =IF(Alumnos!D7="","",Alumnos!D7) -> Nombre_Alumno_2 | G2: =IF(Alumnos!D8="","",Alumnos!D8) -> Nombre_Alumno_3 | H2: =IF(Alumnos!D9="","",Alumnos!D9) -> Nombre_Alumno_4 | I2: =IF(Alumnos!D10="","",Alumnos!D10) -> Nombre_Alumno_5 | J2: =IF(Alumnos!D11="","",Alumnos!D11) -> Nombre_Alumno_6 | K2: =IF(Alumnos!D12="","",Alumnos!D12) -> Nombre_Alumno_7 | L2: =IF(Alumnos!D13="","",Alumnos!D13) -> Nombre_Alumno_8 | M2: =IF(Alumnos!D14="","",Alumnos!D14) -> Nombre_Alumno_9 | N2: =IF(Alumnos!D15="","",Alumnos!D15) ->  | O2: =IF(Alumnos!D16="","",Alumnos!D16) ->  | P2: =IF(Alumnos!D17="","",Alumnos!D17) ->  | Q2: =IF(Alumnos!D18="","",Alumnos!D18) ->  | R2: =IF(Alumnos!D19="","",Alumnos!D19) ->  | S2: =IF(Alumnos!D20="","",Alumnos!D20) ->  | T2: =IF(Alumnos!D21="","",Alumnos!D21) ->  | U2: =IF(Alumnos!D22="","",Alumnos!D22) ->  | V2: =IF(Alumnos!D23="","",Alumnos!D23) ->  | W2: =IF(Alumnos!D24="","",Alumnos!D24) ->  | X2: =IF(Alumnos!D25="","",Alumnos!D25) ->  | Y2: =IF(Alumnos!D26="","",Alumnos!D26) ->  | Z2: =IF(Alumnos!D27="","",Alumnos!D27) ->  | AA2: =IF(Alumnos!D28="","",Alumnos!D28) ->  | AB2: =IF(Alumnos!D29="","",Alumnos!D29) ->  | AC2: =IF(Alumnos!D30="","",Alumnos!D30) ->  | AD2: =IF(Alumnos!D31="","",Alumnos!D31) ->  | AE2: =IF(Alumnos!D32="","",Alumnos!D32) ->  | AF2: =IF(Alumnos!D33="","",Alumnos!D33) ->  | AG2: =IF(Alumnos!D34="","",Alumnos!D34) ->  | AH2: =IF(Alumnos!D35="","",Alumnos!D35) ->  | AI2: =IF(Alumnos!D36="","",Alumnos!D36) ->  | AJ2: =IF(Alumnos!D37="","",Alumnos!D37) ->  | AK2: =IF(Alumnos!D38="","",Alumnos!D38) ->  | AL2: =IF(Alumnos!D39="","",Alumnos!D39) ->  | AM2: =IF(Alumnos!D40="","",Alumnos!D40) -> 
A3: MATERIAS DE 4º ESO | B3: Biología y Geología | C3: Comp. Esp. 1 | D3: Criterio Evaluación 1.1 | E3: =IF('Biologia y Geologia'!H4="","",'Biologia y Geologia'!H4) ->  | F3: =IF('Biologia y Geologia'!I4="","",'Biologia y Geologia'!I4) ->  | G3: =IF('Biologia y Geologia'!J4="","",'Biologia y Geologia'!J4) ->  | H3: =IF('Biologia y Geologia'!K4="","",'Biologia y Geologia'!K4) ->  | I3: =IF('Biologia y Geologia'!L4="","",'Biologia y Geologia'!L4) ->  | J3: =IF('Biologia y Geologia'!M4="","",'Biologia y Geologia'!M4) ->  | K3: =IF('Biologia y Geologia'!N4="","",'Biologia y Geologia'!N4) ->  | L3: =IF('Biologia y Geologia'!O4="","",'Biologia y Geologia'!O4) ->  | M3: =IF('Biologia y Geologia'!P4="","",'Biologia y Geologia'!P4) ->  | N3: =IF('Biologia y Geologia'!Q4="","",'Biologia y Geologia'!Q4) ->  | O3: =IF('Biologia y Geologia'!R4="","",'Biologia y Geologia'!R4) ->  | P3: =IF('Biologia y Geologia'!S4="","",'Biologia y Geologia'!S4) ->  | Q3: =IF('Biologia y Geologia'!T4="","",'Biologia y Geologia'!T4) ->  | R3: =IF('Biologia y Geologia'!U4="","",'Biologia y Geologia'!U4) ->  | S3: =IF('Biologia y Geologia'!V4="","",'Biologia y Geologia'!V4) ->  | T3: =IF('Biologia y Geologia'!W4="","",'Biologia y Geologia'!W4) ->  | U3: =IF('Biologia y Geologia'!X4="","",'Biologia y Geologia'!X4) ->  | V3: =IF('Biologia y Geologia'!Y4="","",'Biologia y Geologia'!Y4) ->  | W3: =IF('Biologia y Geologia'!Z4="","",'Biologia y Geologia'!Z4) ->  | X3: =IF('Biologia y Geologia'!AA4="","",'Biologia y Geologia'!AA4) ->  | Y3: =IF('Biologia y Geologia'!AB4="","",'Biologia y Geologia'!AB4) ->  | Z3: =IF('Biologia y Geologia'!AC4="","",'Biologia y Geologia'!AC4) ->  | AA3: =IF('Biologia y Geologia'!AD4="","",'Biologia y Geologia'!AD4) ->  | AB3: =IF('Biologia y Geologia'!AE4="","",'Biologia y Geologia'!AE4) ->  | AC3: =IF('Biologia y Geologia'!AF4="","",'Biologia y Geologia'!AF4) ->  | AD3: =IF('Biologia y Geologia'!AG4="","",'Biologia y Geologia'!AG4) ->  | AE3: =IF('Biologia y Geologia'!AH4="","",'Biologia y Geologia'!AH4) ->  | AF3: =IF('Biologia y Geologia'!AI4="","",'Biologia y Geologia'!AI4) ->  | AG3: =IF('Biologia y Geologia'!AJ4="","",'Biologia y Geologia'!AJ4) ->  | AH3: =IF('Biologia y Geologia'!AK4="","",'Biologia y Geologia'!AK4) ->  | AI3: =IF('Biologia y Geologia'!AL4="","",'Biologia y Geologia'!AL4) ->  | AJ3: =IF('Biologia y Geologia'!AM4="","",'Biologia y Geologia'!AM4) ->  | AK3: =IF('Biologia y Geologia'!AN4="","",'Biologia y Geologia'!AN4) ->  | AL3: =IF('Biologia y Geologia'!AO4="","",'Biologia y Geologia'!AO4) ->  | AM3: =IF('Biologia y Geologia'!AP4="","",'Biologia y Geologia'!AP4) -> 
D4: Criterio Evaluación 1.2 | E4: =IF('Biologia y Geologia'!H5="","",'Biologia y Geologia'!H5) ->  | F4: =IF('Biologia y Geologia'!I5="","",'Biologia y Geologia'!I5) ->  | G4: =IF('Biologia y Geologia'!J5="","",'Biologia y Geologia'!J5) ->  | H4: =IF('Biologia y Geologia'!K5="","",'Biologia y Geologia'!K5) ->  | I4: =IF('Biologia y Geologia'!L5="","",'Biologia y Geologia'!L5) ->  | J4: =IF('Biologia y Geologia'!M5="","",'Biologia y Geologia'!M5) ->  | K4: =IF('Biologia y Geologia'!N5="","",'Biologia y Geologia'!N5) ->  | L4: =IF('Biologia y Geologia'!O5="","",'Biologia y Geologia'!O5) ->  | M4: =IF('Biologia y Geologia'!P5="","",'Biologia y Geologia'!P5) ->  | N4: =IF('Biologia y Geologia'!Q5="","",'Biologia y Geologia'!Q5) ->  | O4: =IF('Biologia y Geologia'!R5="","",'Biologia y Geologia'!R5) ->  | P4: =IF('Biologia y Geologia'!S5="","",'Biologia y Geologia'!S5) ->  | Q4: =IF('Biologia y Geologia'!T5="","",'Biologia y Geologia'!T5) ->  | R4: =IF('Biologia y Geologia'!U5="","",'Biologia y Geologia'!U5) ->  | S4: =IF('Biologia y Geologia'!V5="","",'Biologia y Geologia'!V5) ->  | T4: =IF('Biologia y Geologia'!W5="","",'Biologia y Geologia'!W5) ->  | U4: =IF('Biologia y Geologia'!X5="","",'Biologia y Geologia'!X5) ->  | V4: =IF('Biologia y Geologia'!Y5="","",'Biologia y Geologia'!Y5) ->  | W4: =IF('Biologia y Geologia'!Z5="","",'Biologia y Geologia'!Z5) ->  | X4: =IF('Biologia y Geologia'!AA5="","",'Biologia y Geologia'!AA5) ->  | Y4: =IF('Biologia y Geologia'!AB5="","",'Biologia y Geologia'!AB5) ->  | Z4: =IF('Biologia y Geologia'!AC5="","",'Biologia y Geologia'!AC5) ->  | AA4: =IF('Biologia y Geologia'!AD5="","",'Biologia y Geologia'!AD5) ->  | AB4: =IF('Biologia y Geologia'!AE5="","",'Biologia y Geologia'!AE5) ->  | AC4: =IF('Biologia y Geologia'!AF5="","",'Biologia y Geologia'!AF5) ->  | AD4: =IF('Biologia y Geologia'!AG5="","",'Biologia y Geologia'!AG5) ->  | AE4: =IF('Biologia y Geologia'!AH5="","",'Biologia y Geologia'!AH5) ->  | AF4: =IF('Biologia y Geologia'!AI5="","",'Biologia y Geologia'!AI5) ->  | AG4: =IF('Biologia y Geologia'!AJ5="","",'Biologia y Geologia'!AJ5) ->  | AH4: =IF('Biologia y Geologia'!AK5="","",'Biologia y Geologia'!AK5) ->  | AI4: =IF('Biologia y Geologia'!AL5="","",'Biologia y Geologia'!AL5) ->  | AJ4: =IF('Biologia y Geologia'!AM5="","",'Biologia y Geologia'!AM5) ->  | AK4: =IF('Biologia y Geologia'!AN5="","",'Biologia y Geologia'!AN5) ->  | AL4: =IF('Biologia y Geologia'!AO5="","",'Biologia y Geologia'!AO5) ->  | AM4: =IF('Biologia y Geologia'!AP5="","",'Biologia y Geologia'!AP5) -> 
D5: Criterio Evaluación 1.3 | E5: =IF('Biologia y Geologia'!H6="","",'Biologia y Geologia'!H6) ->  | F5: =IF('Biologia y Geologia'!I6="","",'Biologia y Geologia'!I6) ->  | G5: =IF('Biologia y Geologia'!J6="","",'Biologia y Geologia'!J6) ->  | H5: =IF('Biologia y Geologia'!K6="","",'Biologia y Geologia'!K6) ->  | I5: =IF('Biologia y Geologia'!L6="","",'Biologia y Geologia'!L6) ->  | J5: =IF('Biologia y Geologia'!M6="","",'Biologia y Geologia'!M6) ->  | K5: =IF('Biologia y Geologia'!N6="","",'Biologia y Geologia'!N6) ->  | L5: =IF('Biologia y Geologia'!O6="","",'Biologia y Geologia'!O6) ->  | M5: =IF('Biologia y Geologia'!P6="","",'Biologia y Geologia'!P6) ->  | N5: =IF('Biologia y Geologia'!Q6="","",'Biologia y Geologia'!Q6) ->  | O5: =IF('Biologia y Geologia'!R6="","",'Biologia y Geologia'!R6) ->  | P5: =IF('Biologia y Geologia'!S6="","",'Biologia y Geologia'!S6) ->  | Q5: =IF('Biologia y Geologia'!T6="","",'Biologia y Geologia'!T6) ->  | R5: =IF('Biologia y Geologia'!U6="","",'Biologia y Geologia'!U6) ->  | S5: =IF('Biologia y Geologia'!V6="","",'Biologia y Geologia'!V6) ->  | T5: =IF('Biologia y Geologia'!W6="","",'Biologia y Geologia'!W6) ->  | U5: =IF('Biologia y Geologia'!X6="","",'Biologia y Geologia'!X6) ->  | V5: =IF('Biologia y Geologia'!Y6="","",'Biologia y Geologia'!Y6) ->  | W5: =IF('Biologia y Geologia'!Z6="","",'Biologia y Geologia'!Z6) ->  | X5: =IF('Biologia y Geologia'!AA6="","",'Biologia y Geologia'!AA6) ->  | Y5: =IF('Biologia y Geologia'!AB6="","",'Biologia y Geologia'!AB6) ->  | Z5: =IF('Biologia y Geologia'!AC6="","",'Biologia y Geologia'!AC6) ->  | AA5: =IF('Biologia y Geologia'!AD6="","",'Biologia y Geologia'!AD6) ->  | AB5: =IF('Biologia y Geologia'!AE6="","",'Biologia y Geologia'!AE6) ->  | AC5: =IF('Biologia y Geologia'!AF6="","",'Biologia y Geologia'!AF6) ->  | AD5: =IF('Biologia y Geologia'!AG6="","",'Biologia y Geologia'!AG6) ->  | AE5: =IF('Biologia y Geologia'!AH6="","",'Biologia y Geologia'!AH6) ->  | AF5: =IF('Biologia y Geologia'!AI6="","",'Biologia y Geologia'!AI6) ->  | AG5: =IF('Biologia y Geologia'!AJ6="","",'Biologia y Geologia'!AJ6) ->  | AH5: =IF('Biologia y Geologia'!AK6="","",'Biologia y Geologia'!AK6) ->  | AI5: =IF('Biologia y Geologia'!AL6="","",'Biologia y Geologia'!AL6) ->  | AJ5: =IF('Biologia y Geologia'!AM6="","",'Biologia y Geologia'!AM6) ->  | AK5: =IF('Biologia y Geologia'!AN6="","",'Biologia y Geologia'!AN6) ->  | AL5: =IF('Biologia y Geologia'!AO6="","",'Biologia y Geologia'!AO6) ->  | AM5: =IF('Biologia y Geologia'!AP6="","",'Biologia y Geologia'!AP6) -> 
C6: Comp. Esp. 2 | D6: Criterio Evaluación 2.1 | E6: =IF('Biologia y Geologia'!H7="","",'Biologia y Geologia'!H7) ->  | F6: =IF('Biologia y Geologia'!I7="","",'Biologia y Geologia'!I7) ->  | G6: =IF('Biologia y Geologia'!J7="","",'Biologia y Geologia'!J7) ->  | H6: =IF('Biologia y Geologia'!K7="","",'Biologia y Geologia'!K7) ->  | I6: =IF('Biologia y Geologia'!L7="","",'Biologia y Geologia'!L7) ->  | J6: =IF('Biologia y Geologia'!M7="","",'Biologia y Geologia'!M7) ->  | K6: =IF('Biologia y Geologia'!N7="","",'Biologia y Geologia'!N7) ->  | L6: =IF('Biologia y Geologia'!O7="","",'Biologia y Geologia'!O7) ->  | M6: =IF('Biologia y Geologia'!P7="","",'Biologia y Geologia'!P7) ->  | N6: =IF('Biologia y Geologia'!Q7="","",'Biologia y Geologia'!Q7) ->  | O6: =IF('Biologia y Geologia'!R7="","",'Biologia y Geologia'!R7) ->  | P6: =IF('Biologia y Geologia'!S7="","",'Biologia y Geologia'!S7) ->  | Q6: =IF('Biologia y Geologia'!T7="","",'Biologia y Geologia'!T7) ->  | R6: =IF('Biologia y Geologia'!U7="","",'Biologia y Geologia'!U7) ->  | S6: =IF('Biologia y Geologia'!V7="","",'Biologia y Geologia'!V7) ->  | T6: =IF('Biologia y Geologia'!W7="","",'Biologia y Geologia'!W7) ->  | U6: =IF('Biologia y Geologia'!X7="","",'Biologia y Geologia'!X7) ->  | V6: =IF('Biologia y Geologia'!Y7="","",'Biologia y Geologia'!Y7) ->  | W6: =IF('Biologia y Geologia'!Z7="","",'Biologia y Geologia'!Z7) ->  | X6: =IF('Biologia y Geologia'!AA7="","",'Biologia y Geologia'!AA7) ->  | Y6: =IF('Biologia y Geologia'!AB7="","",'Biologia y Geologia'!AB7) ->  | Z6: =IF('Biologia y Geologia'!AC7="","",'Biologia y Geologia'!AC7) ->  | AA6: =IF('Biologia y Geologia'!AD7="","",'Biologia y Geologia'!AD7) ->  | AB6: =IF('Biologia y Geologia'!AE7="","",'Biologia y Geologia'!AE7) ->  | AC6: =IF('Biologia y Geologia'!AF7="","",'Biologia y Geologia'!AF7) ->  | AD6: =IF('Biologia y Geologia'!AG7="","",'Biologia y Geologia'!AG7) ->  | AE6: =IF('Biologia y Geologia'!AH7="","",'Biologia y Geologia'!AH7) ->  | AF6: =IF('Biologia y Geologia'!AI7="","",'Biologia y Geologia'!AI7) ->  | AG6: =IF('Biologia y Geologia'!AJ7="","",'Biologia y Geologia'!AJ7) ->  | AH6: =IF('Biologia y Geologia'!AK7="","",'Biologia y Geologia'!AK7) ->  | AI6: =IF('Biologia y Geologia'!AL7="","",'Biologia y Geologia'!AL7) ->  | AJ6: =IF('Biologia y Geologia'!AM7="","",'Biologia y Geologia'!AM7) ->  | AK6: =IF('Biologia y Geologia'!AN7="","",'Biologia y Geologia'!AN7) ->  | AL6: =IF('Biologia y Geologia'!AO7="","",'Biologia y Geologia'!AO7) ->  | AM6: =IF('Biologia y Geologia'!AP7="","",'Biologia y Geologia'!AP7) -> 
D7: Criterio Evaluación 2.2 | E7: =IF('Biologia y Geologia'!H8="","",'Biologia y Geologia'!H8) ->  | F7: =IF('Biologia y Geologia'!I8="","",'Biologia y Geologia'!I8) ->  | G7: =IF('Biologia y Geologia'!J8="","",'Biologia y Geologia'!J8) ->  | H7: =IF('Biologia y Geologia'!K8="","",'Biologia y Geologia'!K8) ->  | I7: =IF('Biologia y Geologia'!L8="","",'Biologia y Geologia'!L8) ->  | J7: =IF('Biologia y Geologia'!M8="","",'Biologia y Geologia'!M8) ->  | K7: =IF('Biologia y Geologia'!N8="","",'Biologia y Geologia'!N8) ->  | L7: =IF('Biologia y Geologia'!O8="","",'Biologia y Geologia'!O8) ->  | M7: =IF('Biologia y Geologia'!P8="","",'Biologia y Geologia'!P8) ->  | N7: =IF('Biologia y Geologia'!Q8="","",'Biologia y Geologia'!Q8) ->  | O7: =IF('Biologia y Geologia'!R8="","",'Biologia y Geologia'!R8) ->  | P7: =IF('Biologia y Geologia'!S8="","",'Biologia y Geologia'!S8) ->  | Q7: =IF('Biologia y Geologia'!T8="","",'Biologia y Geologia'!T8) ->  | R7: =IF('Biologia y Geologia'!U8="","",'Biologia y Geologia'!U8) ->  | S7: =IF('Biologia y Geologia'!V8="","",'Biologia y Geologia'!V8) ->  | T7: =IF('Biologia y Geologia'!W8="","",'Biologia y Geologia'!W8) ->  | U7: =IF('Biologia y Geologia'!X8="","",'Biologia y Geologia'!X8) ->  | V7: =IF('Biologia y Geologia'!Y8="","",'Biologia y Geologia'!Y8) ->  | W7: =IF('Biologia y Geologia'!Z8="","",'Biologia y Geologia'!Z8) ->  | X7: =IF('Biologia y Geologia'!AA8="","",'Biologia y Geologia'!AA8) ->  | Y7: =IF('Biologia y Geologia'!AB8="","",'Biologia y Geologia'!AB8) ->  | Z7: =IF('Biologia y Geologia'!AC8="","",'Biologia y Geologia'!AC8) ->  | AA7: =IF('Biologia y Geologia'!AD8="","",'Biologia y Geologia'!AD8) ->  | AB7: =IF('Biologia y Geologia'!AE8="","",'Biologia y Geologia'!AE8) ->  | AC7: =IF('Biologia y Geologia'!AF8="","",'Biologia y Geologia'!AF8) ->  | AD7: =IF('Biologia y Geologia'!AG8="","",'Biologia y Geologia'!AG8) ->  | AE7: =IF('Biologia y Geologia'!AH8="","",'Biologia y Geologia'!AH8) ->  | AF7: =IF('Biologia y Geologia'!AI8="","",'Biologia y Geologia'!AI8) ->  | AG7: =IF('Biologia y Geologia'!AJ8="","",'Biologia y Geologia'!AJ8) ->  | AH7: =IF('Biologia y Geologia'!AK8="","",'Biologia y Geologia'!AK8) ->  | AI7: =IF('Biologia y Geologia'!AL8="","",'Biologia y Geologia'!AL8) ->  | AJ7: =IF('Biologia y Geologia'!AM8="","",'Biologia y Geologia'!AM8) ->  | AK7: =IF('Biologia y Geologia'!AN8="","",'Biologia y Geologia'!AN8) ->  | AL7: =IF('Biologia y Geologia'!AO8="","",'Biologia y Geologia'!AO8) ->  | AM7: =IF('Biologia y Geologia'!AP8="","",'Biologia y Geologia'!AP8) -> 
D8: Criterio Evaluación 2.3 | E8: =IF('Biologia y Geologia'!H9="","",'Biologia y Geologia'!H9) ->  | F8: =IF('Biologia y Geologia'!I9="","",'Biologia y Geologia'!I9) ->  | G8: =IF('Biologia y Geologia'!J9="","",'Biologia y Geologia'!J9) ->  | H8: =IF('Biologia y Geologia'!K9="","",'Biologia y Geologia'!K9) ->  | I8: =IF('Biologia y Geologia'!L9="","",'Biologia y Geologia'!L9) ->  | J8: =IF('Biologia y Geologia'!M9="","",'Biologia y Geologia'!M9) ->  | K8: =IF('Biologia y Geologia'!N9="","",'Biologia y Geologia'!N9) ->  | L8: =IF('Biologia y Geologia'!O9="","",'Biologia y Geologia'!O9) ->  | M8: =IF('Biologia y Geologia'!P9="","",'Biologia y Geologia'!P9) ->  | N8: =IF('Biologia y Geologia'!Q9="","",'Biologia y Geologia'!Q9) ->  | O8: =IF('Biologia y Geologia'!R9="","",'Biologia y Geologia'!R9) ->  | P8: =IF('Biologia y Geologia'!S9="","",'Biologia y Geologia'!S9) ->  | Q8: =IF('Biologia y Geologia'!T9="","",'Biologia y Geologia'!T9) ->  | R8: =IF('Biologia y Geologia'!U9="","",'Biologia y Geologia'!U9) ->  | S8: =IF('Biologia y Geologia'!V9="","",'Biologia y Geologia'!V9) ->  | T8: =IF('Biologia y Geologia'!W9="","",'Biologia y Geologia'!W9) ->  | U8: =IF('Biologia y Geologia'!X9="","",'Biologia y Geologia'!X9) ->  | V8: =IF('Biologia y Geologia'!Y9="","",'Biologia y Geologia'!Y9) ->  | W8: =IF('Biologia y Geologia'!Z9="","",'Biologia y Geologia'!Z9) ->  | X8: =IF('Biologia y Geologia'!AA9="","",'Biologia y Geologia'!AA9) ->  | Y8: =IF('Biologia y Geologia'!AB9="","",'Biologia y Geologia'!AB9) ->  | Z8: =IF('Biologia y Geologia'!AC9="","",'Biologia y Geologia'!AC9) ->  | AA8: =IF('Biologia y Geologia'!AD9="","",'Biologia y Geologia'!AD9) ->  | AB8: =IF('Biologia y Geologia'!AE9="","",'Biologia y Geologia'!AE9) ->  | AC8: =IF('Biologia y Geologia'!AF9="","",'Biologia y Geologia'!AF9) ->  | AD8: =IF('Biologia y Geologia'!AG9="","",'Biologia y Geologia'!AG9) ->  | AE8: =IF('Biologia y Geologia'!AH9="","",'Biologia y Geologia'!AH9) ->  | AF8: =IF('Biologia y Geologia'!AI9="","",'Biologia y Geologia'!AI9) ->  | AG8: =IF('Biologia y Geologia'!AJ9="","",'Biologia y Geologia'!AJ9) ->  | AH8: =IF('Biologia y Geologia'!AK9="","",'Biologia y Geologia'!AK9) ->  | AI8: =IF('Biologia y Geologia'!AL9="","",'Biologia y Geologia'!AL9) ->  | AJ8: =IF('Biologia y Geologia'!AM9="","",'Biologia y Geologia'!AM9) ->  | AK8: =IF('Biologia y Geologia'!AN9="","",'Biologia y Geologia'!AN9) ->  | AL8: =IF('Biologia y Geologia'!AO9="","",'Biologia y Geologia'!AO9) ->  | AM8: =IF('Biologia y Geologia'!AP9="","",'Biologia y Geologia'!AP9) -> 
C9: Comp. Esp. 3 | D9: Criterio Evaluación 3.1 | E9: =IF('Biologia y Geologia'!H10="","",'Biologia y Geologia'!H10) ->  | F9: =IF('Biologia y Geologia'!I10="","",'Biologia y Geologia'!I10) ->  | G9: =IF('Biologia y Geologia'!J10="","",'Biologia y Geologia'!J10) ->  | H9: =IF('Biologia y Geologia'!K10="","",'Biologia y Geologia'!K10) ->  | I9: =IF('Biologia y Geologia'!L10="","",'Biologia y Geologia'!L10) ->  | J9: =IF('Biologia y Geologia'!M10="","",'Biologia y Geologia'!M10) ->  | K9: =IF('Biologia y Geologia'!N10="","",'Biologia y Geologia'!N10) ->  | L9: =IF('Biologia y Geologia'!O10="","",'Biologia y Geologia'!O10) ->  | M9: =IF('Biologia y Geologia'!P10="","",'Biologia y Geologia'!P10) ->  | N9: =IF('Biologia y Geologia'!Q10="","",'Biologia y Geologia'!Q10) ->  | O9: =IF('Biologia y Geologia'!R10="","",'Biologia y Geologia'!R10) ->  | P9: =IF('Biologia y Geologia'!S10="","",'Biologia y Geologia'!S10) ->  | Q9: =IF('Biologia y Geologia'!T10="","",'Biologia y Geologia'!T10) ->  | R9: =IF('Biologia y Geologia'!U10="","",'Biologia y Geologia'!U10) ->  | S9: =IF('Biologia y Geologia'!V10="","",'Biologia y Geologia'!V10) ->  | T9: =IF('Biologia y Geologia'!W10="","",'Biologia y Geologia'!W10) ->  | U9: =IF('Biologia y Geologia'!X10="","",'Biologia y Geologia'!X10) ->  | V9: =IF('Biologia y Geologia'!Y10="","",'Biologia y Geologia'!Y10) ->  | W9: =IF('Biologia y Geologia'!Z10="","",'Biologia y Geologia'!Z10) ->  | X9: =IF('Biologia y Geologia'!AA10="","",'Biologia y Geologia'!AA10) ->  | Y9: =IF('Biologia y Geologia'!AB10="","",'Biologia y Geologia'!AB10) ->  | Z9: =IF('Biologia y Geologia'!AC10="","",'Biologia y Geologia'!AC10) ->  | AA9: =IF('Biologia y Geologia'!AD10="","",'Biologia y Geologia'!AD10) ->  | AB9: =IF('Biologia y Geologia'!AE10="","",'Biologia y Geologia'!AE10) ->  | AC9: =IF('Biologia y Geologia'!AF10="","",'Biologia y Geologia'!AF10) ->  | AD9: =IF('Biologia y Geologia'!AG10="","",'Biologia y Geologia'!AG10) ->  | AE9: =IF('Biologia y Geologia'!AH10="","",'Biologia y Geologia'!AH10) ->  | AF9: =IF('Biologia y Geologia'!AI10="","",'Biologia y Geologia'!AI10) ->  | AG9: =IF('Biologia y Geologia'!AJ10="","",'Biologia y Geologia'!AJ10) ->  | AH9: =IF('Biologia y Geologia'!AK10="","",'Biologia y Geologia'!AK10) ->  | AI9: =IF('Biologia y Geologia'!AL10="","",'Biologia y Geologia'!AL10) ->  | AJ9: =IF('Biologia y Geologia'!AM10="","",'Biologia y Geologia'!AM10) ->  | AK9: =IF('Biologia y Geologia'!AN10="","",'Biologia y Geologia'!AN10) ->  | AL9: =IF('Biologia y Geologia'!AO10="","",'Biologia y Geologia'!AO10) ->  | AM9: =IF('Biologia y Geologia'!AP10="","",'Biologia y Geologia'!AP10) -> 
D10: Criterio Evaluación 3.2 | E10: =IF('Biologia y Geologia'!H11="","",'Biologia y Geologia'!H11) ->  | F10: =IF('Biologia y Geologia'!I11="","",'Biologia y Geologia'!I11) ->  | G10: =IF('Biologia y Geologia'!J11="","",'Biologia y Geologia'!J11) ->  | H10: =IF('Biologia y Geologia'!K11="","",'Biologia y Geologia'!K11) ->  | I10: =IF('Biologia y Geologia'!L11="","",'Biologia y Geologia'!L11) ->  | J10: =IF('Biologia y Geologia'!M11="","",'Biologia y Geologia'!M11) ->  | K10: =IF('Biologia y Geologia'!N11="","",'Biologia y Geologia'!N11) ->  | L10: =IF('Biologia y Geologia'!O11="","",'Biologia y Geologia'!O11) ->  | M10: =IF('Biologia y Geologia'!P11="","",'Biologia y Geologia'!P11) ->  | N10: =IF('Biologia y Geologia'!Q11="","",'Biologia y Geologia'!Q11) ->  | O10: =IF('Biologia y Geologia'!R11="","",'Biologia y Geologia'!R11) ->  | P10: =IF('Biologia y Geologia'!S11="","",'Biologia y Geologia'!S11) ->  | Q10: =IF('Biologia y Geologia'!T11="","",'Biologia y Geologia'!T11) ->  | R10: =IF('Biologia y Geologia'!U11="","",'Biologia y Geologia'!U11) ->  | S10: =IF('Biologia y Geologia'!V11="","",'Biologia y Geologia'!V11) ->  | T10: =IF('Biologia y Geologia'!W11="","",'Biologia y Geologia'!W11) ->  | U10: =IF('Biologia y Geologia'!X11="","",'Biologia y Geologia'!X11) ->  | V10: =IF('Biologia y Geologia'!Y11="","",'Biologia y Geologia'!Y11) ->  | W10: =IF('Biologia y Geologia'!Z11="","",'Biologia y Geologia'!Z11) ->  | X10: =IF('Biologia y Geologia'!AA11="","",'Biologia y Geologia'!AA11) ->  | Y10: =IF('Biologia y Geologia'!AB11="","",'Biologia y Geologia'!AB11) ->  | Z10: =IF('Biologia y Geologia'!AC11="","",'Biologia y Geologia'!AC11) ->  | AA10: =IF('Biologia y Geologia'!AD11="","",'Biologia y Geologia'!AD11) ->  | AB10: =IF('Biologia y Geologia'!AE11="","",'Biologia y Geologia'!AE11) ->  | AC10: =IF('Biologia y Geologia'!AF11="","",'Biologia y Geologia'!AF11) ->  | AD10: =IF('Biologia y Geologia'!AG11="","",'Biologia y Geologia'!AG11) ->  | AE10: =IF('Biologia y Geologia'!AH11="","",'Biologia y Geologia'!AH11) ->  | AF10: =IF('Biologia y Geologia'!AI11="","",'Biologia y Geologia'!AI11) ->  | AG10: =IF('Biologia y Geologia'!AJ11="","",'Biologia y Geologia'!AJ11) ->  | AH10: =IF('Biologia y Geologia'!AK11="","",'Biologia y Geologia'!AK11) ->  | AI10: =IF('Biologia y Geologia'!AL11="","",'Biologia y Geologia'!AL11) ->  | AJ10: =IF('Biologia y Geologia'!AM11="","",'Biologia y Geologia'!AM11) ->  | AK10: =IF('Biologia y Geologia'!AN11="","",'Biologia y Geologia'!AN11) ->  | AL10: =IF('Biologia y Geologia'!AO11="","",'Biologia y Geologia'!AO11) ->  | AM10: =IF('Biologia y Geologia'!AP11="","",'Biologia y Geologia'!AP11) -> 
D11: Criterio Evaluación 3.3 | E11: =IF('Biologia y Geologia'!H12="","",'Biologia y Geologia'!H12) ->  | F11: =IF('Biologia y Geologia'!I12="","",'Biologia y Geologia'!I12) ->  | G11: =IF('Biologia y Geologia'!J12="","",'Biologia y Geologia'!J12) ->  | H11: =IF('Biologia y Geologia'!K12="","",'Biologia y Geologia'!K12) ->  | I11: =IF('Biologia y Geologia'!L12="","",'Biologia y Geologia'!L12) ->  | J11: =IF('Biologia y Geologia'!M12="","",'Biologia y Geologia'!M12) ->  | K11: =IF('Biologia y Geologia'!N12="","",'Biologia y Geologia'!N12) ->  | L11: =IF('Biologia y Geologia'!O12="","",'Biologia y Geologia'!O12) ->  | M11: =IF('Biologia y Geologia'!P12="","",'Biologia y Geologia'!P12) ->  | N11: =IF('Biologia y Geologia'!Q12="","",'Biologia y Geologia'!Q12) ->  | O11: =IF('Biologia y Geologia'!R12="","",'Biologia y Geologia'!R12) ->  | P11: =IF('Biologia y Geologia'!S12="","",'Biologia y Geologia'!S12) ->  | Q11: =IF('Biologia y Geologia'!T12="","",'Biologia y Geologia'!T12) ->  | R11: =IF('Biologia y Geologia'!U12="","",'Biologia y Geologia'!U12) ->  | S11: =IF('Biologia y Geologia'!V12="","",'Biologia y Geologia'!V12) ->  | T11: =IF('Biologia y Geologia'!W12="","",'Biologia y Geologia'!W12) ->  | U11: =IF('Biologia y Geologia'!X12="","",'Biologia y Geologia'!X12) ->  | V11: =IF('Biologia y Geologia'!Y12="","",'Biologia y Geologia'!Y12) ->  | W11: =IF('Biologia y Geologia'!Z12="","",'Biologia y Geologia'!Z12) ->  | X11: =IF('Biologia y Geologia'!AA12="","",'Biologia y Geologia'!AA12) ->  | Y11: =IF('Biologia y Geologia'!AB12="","",'Biologia y Geologia'!AB12) ->  | Z11: =IF('Biologia y Geologia'!AC12="","",'Biologia y Geologia'!AC12) ->  | AA11: =IF('Biologia y Geologia'!AD12="","",'Biologia y Geologia'!AD12) ->  | AB11: =IF('Biologia y Geologia'!AE12="","",'Biologia y Geologia'!AE12) ->  | AC11: =IF('Biologia y Geologia'!AF12="","",'Biologia y Geologia'!AF12) ->  | AD11: =IF('Biologia y Geologia'!AG12="","",'Biologia y Geologia'!AG12) ->  | AE11: =IF('Biologia y Geologia'!AH12="","",'Biologia y Geologia'!AH12) ->  | AF11: =IF('Biologia y Geologia'!AI12="","",'Biologia y Geologia'!AI12) ->  | AG11: =IF('Biologia y Geologia'!AJ12="","",'Biologia y Geologia'!AJ12) ->  | AH11: =IF('Biologia y Geologia'!AK12="","",'Biologia y Geologia'!AK12) ->  | AI11: =IF('Biologia y Geologia'!AL12="","",'Biologia y Geologia'!AL12) ->  | AJ11: =IF('Biologia y Geologia'!AM12="","",'Biologia y Geologia'!AM12) ->  | AK11: =IF('Biologia y Geologia'!AN12="","",'Biologia y Geologia'!AN12) ->  | AL11: =IF('Biologia y Geologia'!AO12="","",'Biologia y Geologia'!AO12) ->  | AM11: =IF('Biologia y Geologia'!AP12="","",'Biologia y Geologia'!AP12) -> 
D12: Criterio Evaluación 3.4 | E12: =IF('Biologia y Geologia'!H13="","",'Biologia y Geologia'!H13) ->  | F12: =IF('Biologia y Geologia'!I13="","",'Biologia y Geologia'!I13) ->  | G12: =IF('Biologia y Geologia'!J13="","",'Biologia y Geologia'!J13) ->  | H12: =IF('Biologia y Geologia'!K13="","",'Biologia y Geologia'!K13) ->  | I12: =IF('Biologia y Geologia'!L13="","",'Biologia y Geologia'!L13) ->  | J12: =IF('Biologia y Geologia'!M13="","",'Biologia y Geologia'!M13) ->  | K12: =IF('Biologia y Geologia'!N13="","",'Biologia y Geologia'!N13) ->  | L12: =IF('Biologia y Geologia'!O13="","",'Biologia y Geologia'!O13) ->  | M12: =IF('Biologia y Geologia'!P13="","",'Biologia y Geologia'!P13) ->  | N12: =IF('Biologia y Geologia'!Q13="","",'Biologia y Geologia'!Q13) ->  | O12: =IF('Biologia y Geologia'!R13="","",'Biologia y Geologia'!R13) ->  | P12: =IF('Biologia y Geologia'!S13="","",'Biologia y Geologia'!S13) ->  | Q12: =IF('Biologia y Geologia'!T13="","",'Biologia y Geologia'!T13) ->  | R12: =IF('Biologia y Geologia'!U13="","",'Biologia y Geologia'!U13) ->  | S12: =IF('Biologia y Geologia'!V13="","",'Biologia y Geologia'!V13) ->  | T12: =IF('Biologia y Geologia'!W13="","",'Biologia y Geologia'!W13) ->  | U12: =IF('Biologia y Geologia'!X13="","",'Biologia y Geologia'!X13) ->  | V12: =IF('Biologia y Geologia'!Y13="","",'Biologia y Geologia'!Y13) ->  | W12: =IF('Biologia y Geologia'!Z13="","",'Biologia y Geologia'!Z13) ->  | X12: =IF('Biologia y Geologia'!AA13="","",'Biologia y Geologia'!AA13) ->  | Y12: =IF('Biologia y Geologia'!AB13="","",'Biologia y Geologia'!AB13) ->  | Z12: =IF('Biologia y Geologia'!AC13="","",'Biologia y Geologia'!AC13) ->  | AA12: =IF('Biologia y Geologia'!AD13="","",'Biologia y Geologia'!AD13) ->  | AB12: =IF('Biologia y Geologia'!AE13="","",'Biologia y Geologia'!AE13) ->  | AC12: =IF('Biologia y Geologia'!AF13="","",'Biologia y Geologia'!AF13) ->  | AD12: =IF('Biologia y Geologia'!AG13="","",'Biologia y Geologia'!AG13) ->  | AE12: =IF('Biologia y Geologia'!AH13="","",'Biologia y Geologia'!AH13) ->  | AF12: =IF('Biologia y Geologia'!AI13="","",'Biologia y Geologia'!AI13) ->  | AG12: =IF('Biologia y Geologia'!AJ13="","",'Biologia y Geologia'!AJ13) ->  | AH12: =IF('Biologia y Geologia'!AK13="","",'Biologia y Geologia'!AK13) ->  | AI12: =IF('Biologia y Geologia'!AL13="","",'Biologia y Geologia'!AL13) ->  | AJ12: =IF('Biologia y Geologia'!AM13="","",'Biologia y Geologia'!AM13) ->  | AK12: =IF('Biologia y Geologia'!AN13="","",'Biologia y Geologia'!AN13) ->  | AL12: =IF('Biologia y Geologia'!AO13="","",'Biologia y Geologia'!AO13) ->  | AM12: =IF('Biologia y Geologia'!AP13="","",'Biologia y Geologia'!AP13) -> 
D13: Criterio Evaluación 3.5 | E13: =IF('Biologia y Geologia'!H14="","",'Biologia y Geologia'!H14) ->  | F13: =IF('Biologia y Geologia'!I14="","",'Biologia y Geologia'!I14) ->  | G13: =IF('Biologia y Geologia'!J14="","",'Biologia y Geologia'!J14) ->  | H13: =IF('Biologia y Geologia'!K14="","",'Biologia y Geologia'!K14) ->  | I13: =IF('Biologia y Geologia'!L14="","",'Biologia y Geologia'!L14) ->  | J13: =IF('Biologia y Geologia'!M14="","",'Biologia y Geologia'!M14) ->  | K13: =IF('Biologia y Geologia'!N14="","",'Biologia y Geologia'!N14) ->  | L13: =IF('Biologia y Geologia'!O14="","",'Biologia y Geologia'!O14) ->  | M13: =IF('Biologia y Geologia'!P14="","",'Biologia y Geologia'!P14) ->  | N13: =IF('Biologia y Geologia'!Q14="","",'Biologia y Geologia'!Q14) ->  | O13: =IF('Biologia y Geologia'!R14="","",'Biologia y Geologia'!R14) ->  | P13: =IF('Biologia y Geologia'!S14="","",'Biologia y Geologia'!S14) ->  | Q13: =IF('Biologia y Geologia'!T14="","",'Biologia y Geologia'!T14) ->  | R13: =IF('Biologia y Geologia'!U14="","",'Biologia y Geologia'!U14) ->  | S13: =IF('Biologia y Geologia'!V14="","",'Biologia y Geologia'!V14) ->  | T13: =IF('Biologia y Geologia'!W14="","",'Biologia y Geologia'!W14) ->  | U13: =IF('Biologia y Geologia'!X14="","",'Biologia y Geologia'!X14) ->  | V13: =IF('Biologia y Geologia'!Y14="","",'Biologia y Geologia'!Y14) ->  | W13: =IF('Biologia y Geologia'!Z14="","",'Biologia y Geologia'!Z14) ->  | X13: =IF('Biologia y Geologia'!AA14="","",'Biologia y Geologia'!AA14) ->  | Y13: =IF('Biologia y Geologia'!AB14="","",'Biologia y Geologia'!AB14) ->  | Z13: =IF('Biologia y Geologia'!AC14="","",'Biologia y Geologia'!AC14) ->  | AA13: =IF('Biologia y Geologia'!AD14="","",'Biologia y Geologia'!AD14) ->  | AB13: =IF('Biologia y Geologia'!AE14="","",'Biologia y Geologia'!AE14) ->  | AC13: =IF('Biologia y Geologia'!AF14="","",'Biologia y Geologia'!AF14) ->  | AD13: =IF('Biologia y Geologia'!AG14="","",'Biologia y Geologia'!AG14) ->  | AE13: =IF('Biologia y Geologia'!AH14="","",'Biologia y Geologia'!AH14) ->  | AF13: =IF('Biologia y Geologia'!AI14="","",'Biologia y Geologia'!AI14) ->  | AG13: =IF('Biologia y Geologia'!AJ14="","",'Biologia y Geologia'!AJ14) ->  | AH13: =IF('Biologia y Geologia'!AK14="","",'Biologia y Geologia'!AK14) ->  | AI13: =IF('Biologia y Geologia'!AL14="","",'Biologia y Geologia'!AL14) ->  | AJ13: =IF('Biologia y Geologia'!AM14="","",'Biologia y Geologia'!AM14) ->  | AK13: =IF('Biologia y Geologia'!AN14="","",'Biologia y Geologia'!AN14) ->  | AL13: =IF('Biologia y Geologia'!AO14="","",'Biologia y Geologia'!AO14) ->  | AM13: =IF('Biologia y Geologia'!AP14="","",'Biologia y Geologia'!AP14) -> 
D14: Criterio Evaluación 3.6 | E14: =IF('Biologia y Geologia'!H15="","",'Biologia y Geologia'!H15) ->  | F14: =IF('Biologia y Geologia'!I15="","",'Biologia y Geologia'!I15) ->  | G14: =IF('Biologia y Geologia'!J15="","",'Biologia y Geologia'!J15) ->  | H14: =IF('Biologia y Geologia'!K15="","",'Biologia y Geologia'!K15) ->  | I14: =IF('Biologia y Geologia'!L15="","",'Biologia y Geologia'!L15) ->  | J14: =IF('Biologia y Geologia'!M15="","",'Biologia y Geologia'!M15) ->  | K14: =IF('Biologia y Geologia'!N15="","",'Biologia y Geologia'!N15) ->  | L14: =IF('Biologia y Geologia'!O15="","",'Biologia y Geologia'!O15) ->  | M14: =IF('Biologia y Geologia'!P15="","",'Biologia y Geologia'!P15) ->  | N14: =IF('Biologia y Geologia'!Q15="","",'Biologia y Geologia'!Q15) ->  | O14: =IF('Biologia y Geologia'!R15="","",'Biologia y Geologia'!R15) ->  | P14: =IF('Biologia y Geologia'!S15="","",'Biologia y Geologia'!S15) ->  | Q14: =IF('Biologia y Geologia'!T15="","",'Biologia y Geologia'!T15) ->  | R14: =IF('Biologia y Geologia'!U15="","",'Biologia y Geologia'!U15) ->  | S14: =IF('Biologia y Geologia'!V15="","",'Biologia y Geologia'!V15) ->  | T14: =IF('Biologia y Geologia'!W15="","",'Biologia y Geologia'!W15) ->  | U14: =IF('Biologia y Geologia'!X15="","",'Biologia y Geologia'!X15) ->  | V14: =IF('Biologia y Geologia'!Y15="","",'Biologia y Geologia'!Y15) ->  | W14: =IF('Biologia y Geologia'!Z15="","",'Biologia y Geologia'!Z15) ->  | X14: =IF('Biologia y Geologia'!AA15="","",'Biologia y Geologia'!AA15) ->  | Y14: =IF('Biologia y Geologia'!AB15="","",'Biologia y Geologia'!AB15) ->  | Z14: =IF('Biologia y Geologia'!AC15="","",'Biologia y Geologia'!AC15) ->  | AA14: =IF('Biologia y Geologia'!AD15="","",'Biologia y Geologia'!AD15) ->  | AB14: =IF('Biologia y Geologia'!AE15="","",'Biologia y Geologia'!AE15) ->  | AC14: =IF('Biologia y Geologia'!AF15="","",'Biologia y Geologia'!AF15) ->  | AD14: =IF('Biologia y Geologia'!AG15="","",'Biologia y Geologia'!AG15) ->  | AE14: =IF('Biologia y Geologia'!AH15="","",'Biologia y Geologia'!AH15) ->  | AF14: =IF('Biologia y Geologia'!AI15="","",'Biologia y Geologia'!AI15) ->  | AG14: =IF('Biologia y Geologia'!AJ15="","",'Biologia y Geologia'!AJ15) ->  | AH14: =IF('Biologia y Geologia'!AK15="","",'Biologia y Geologia'!AK15) ->  | AI14: =IF('Biologia y Geologia'!AL15="","",'Biologia y Geologia'!AL15) ->  | AJ14: =IF('Biologia y Geologia'!AM15="","",'Biologia y Geologia'!AM15) ->  | AK14: =IF('Biologia y Geologia'!AN15="","",'Biologia y Geologia'!AN15) ->  | AL14: =IF('Biologia y Geologia'!AO15="","",'Biologia y Geologia'!AO15) ->  | AM14: =IF('Biologia y Geologia'!AP15="","",'Biologia y Geologia'!AP15) -> 
C15: Comp. Esp. 4 | D15: Criterio Evaluación 4.1 | E15: =IF('Biologia y Geologia'!H16="","",'Biologia y Geologia'!H16) ->  | F15: =IF('Biologia y Geologia'!I16="","",'Biologia y Geologia'!I16) ->  | G15: =IF('Biologia y Geologia'!J16="","",'Biologia y Geologia'!J16) ->  | H15: =IF('Biologia y Geologia'!K16="","",'Biologia y Geologia'!K16) ->  | I15: =IF('Biologia y Geologia'!L16="","",'Biologia y Geologia'!L16) ->  | J15: =IF('Biologia y Geologia'!M16="","",'Biologia y Geologia'!M16) ->  | K15: =IF('Biologia y Geologia'!N16="","",'Biologia y Geologia'!N16) ->  | L15: =IF('Biologia y Geologia'!O16="","",'Biologia y Geologia'!O16) ->  | M15: =IF('Biologia y Geologia'!P16="","",'Biologia y Geologia'!P16) ->  | N15: =IF('Biologia y Geologia'!Q16="","",'Biologia y Geologia'!Q16) ->  | O15: =IF('Biologia y Geologia'!R16="","",'Biologia y Geologia'!R16) ->  | P15: =IF('Biologia y Geologia'!S16="","",'Biologia y Geologia'!S16) ->  | Q15: =IF('Biologia y Geologia'!T16="","",'Biologia y Geologia'!T16) ->  | R15: =IF('Biologia y Geologia'!U16="","",'Biologia y Geologia'!U16) ->  | S15: =IF('Biologia y Geologia'!V16="","",'Biologia y Geologia'!V16) ->  | T15: =IF('Biologia y Geologia'!W16="","",'Biologia y Geologia'!W16) ->  | U15: =IF('Biologia y Geologia'!X16="","",'Biologia y Geologia'!X16) ->  | V15: =IF('Biologia y Geologia'!Y16="","",'Biologia y Geologia'!Y16) ->  | W15: =IF('Biologia y Geologia'!Z16="","",'Biologia y Geologia'!Z16) ->  | X15: =IF('Biologia y Geologia'!AA16="","",'Biologia y Geologia'!AA16) ->  | Y15: =IF('Biologia y Geologia'!AB16="","",'Biologia y Geologia'!AB16) ->  | Z15: =IF('Biologia y Geologia'!AC16="","",'Biologia y Geologia'!AC16) ->  | AA15: =IF('Biologia y Geologia'!AD16="","",'Biologia y Geologia'!AD16) ->  | AB15: =IF('Biologia y Geologia'!AE16="","",'Biologia y Geologia'!AE16) ->  | AC15: =IF('Biologia y Geologia'!AF16="","",'Biologia y Geologia'!AF16) ->  | AD15: =IF('Biologia y Geologia'!AG16="","",'Biologia y Geologia'!AG16) ->  | AE15: =IF('Biologia y Geologia'!AH16="","",'Biologia y Geologia'!AH16) ->  | AF15: =IF('Biologia y Geologia'!AI16="","",'Biologia y Geologia'!AI16) ->  | AG15: =IF('Biologia y Geologia'!AJ16="","",'Biologia y Geologia'!AJ16) ->  | AH15: =IF('Biologia y Geologia'!AK16="","",'Biologia y Geologia'!AK16) ->  | AI15: =IF('Biologia y Geologia'!AL16="","",'Biologia y Geologia'!AL16) ->  | AJ15: =IF('Biologia y Geologia'!AM16="","",'Biologia y Geologia'!AM16) ->  | AK15: =IF('Biologia y Geologia'!AN16="","",'Biologia y Geologia'!AN16) ->  | AL15: =IF('Biologia y Geologia'!AO16="","",'Biologia y Geologia'!AO16) ->  | AM15: =IF('Biologia y Geologia'!AP16="","",'Biologia y Geologia'!AP16) -> 
D16: Criterio Evaluación 4.2 | E16: =IF('Biologia y Geologia'!H17="","",'Biologia y Geologia'!H17) ->  | F16: =IF('Biologia y Geologia'!I17="","",'Biologia y Geologia'!I17) ->  | G16: =IF('Biologia y Geologia'!J17="","",'Biologia y Geologia'!J17) ->  | H16: =IF('Biologia y Geologia'!K17="","",'Biologia y Geologia'!K17) ->  | I16: =IF('Biologia y Geologia'!L17="","",'Biologia y Geologia'!L17) ->  | J16: =IF('Biologia y Geologia'!M17="","",'Biologia y Geologia'!M17) ->  | K16: =IF('Biologia y Geologia'!N17="","",'Biologia y Geologia'!N17) ->  | L16: =IF('Biologia y Geologia'!O17="","",'Biologia y Geologia'!O17) ->  | M16: =IF('Biologia y Geologia'!P17="","",'Biologia y Geologia'!P17) ->  | N16: =IF('Biologia y Geologia'!Q17="","",'Biologia y Geologia'!Q17) ->  | O16: =IF('Biologia y Geologia'!R17="","",'Biologia y Geologia'!R17) ->  | P16: =IF('Biologia y Geologia'!S17="","",'Biologia y Geologia'!S17) ->  | Q16: =IF('Biologia y Geologia'!T17="","",'Biologia y Geologia'!T17) ->  | R16: =IF('Biologia y Geologia'!U17="","",'Biologia y Geologia'!U17) ->  | S16: =IF('Biologia y Geologia'!V17="","",'Biologia y Geologia'!V17) ->  | T16: =IF('Biologia y Geologia'!W17="","",'Biologia y Geologia'!W17) ->  | U16: =IF('Biologia y Geologia'!X17="","",'Biologia y Geologia'!X17) ->  | V16: =IF('Biologia y Geologia'!Y17="","",'Biologia y Geologia'!Y17) ->  | W16: =IF('Biologia y Geologia'!Z17="","",'Biologia y Geologia'!Z17) ->  | X16: =IF('Biologia y Geologia'!AA17="","",'Biologia y Geologia'!AA17) ->  | Y16: =IF('Biologia y Geologia'!AB17="","",'Biologia y Geologia'!AB17) ->  | Z16: =IF('Biologia y Geologia'!AC17="","",'Biologia y Geologia'!AC17) ->  | AA16: =IF('Biologia y Geologia'!AD17="","",'Biologia y Geologia'!AD17) ->  | AB16: =IF('Biologia y Geologia'!AE17="","",'Biologia y Geologia'!AE17) ->  | AC16: =IF('Biologia y Geologia'!AF17="","",'Biologia y Geologia'!AF17) ->  | AD16: =IF('Biologia y Geologia'!AG17="","",'Biologia y Geologia'!AG17) ->  | AE16: =IF('Biologia y Geologia'!AH17="","",'Biologia y Geologia'!AH17) ->  | AF16: =IF('Biologia y Geologia'!AI17="","",'Biologia y Geologia'!AI17) ->  | AG16: =IF('Biologia y Geologia'!AJ17="","",'Biologia y Geologia'!AJ17) ->  | AH16: =IF('Biologia y Geologia'!AK17="","",'Biologia y Geologia'!AK17) ->  | AI16: =IF('Biologia y Geologia'!AL17="","",'Biologia y Geologia'!AL17) ->  | AJ16: =IF('Biologia y Geologia'!AM17="","",'Biologia y Geologia'!AM17) ->  | AK16: =IF('Biologia y Geologia'!AN17="","",'Biologia y Geologia'!AN17) ->  | AL16: =IF('Biologia y Geologia'!AO17="","",'Biologia y Geologia'!AO17) ->  | AM16: =IF('Biologia y Geologia'!AP17="","",'Biologia y Geologia'!AP17) -> 
C17: Comp. Esp. 5 | D17: Criterio Evaluación 5.1 | E17: =IF('Biologia y Geologia'!H18="","",'Biologia y Geologia'!H18) ->  | F17: =IF('Biologia y Geologia'!I18="","",'Biologia y Geologia'!I18) ->  | G17: =IF('Biologia y Geologia'!J18="","",'Biologia y Geologia'!J18) ->  | H17: =IF('Biologia y Geologia'!K18="","",'Biologia y Geologia'!K18) ->  | I17: =IF('Biologia y Geologia'!L18="","",'Biologia y Geologia'!L18) ->  | J17: =IF('Biologia y Geologia'!M18="","",'Biologia y Geologia'!M18) ->  | K17: =IF('Biologia y Geologia'!N18="","",'Biologia y Geologia'!N18) ->  | L17: =IF('Biologia y Geologia'!O18="","",'Biologia y Geologia'!O18) ->  | M17: =IF('Biologia y Geologia'!P18="","",'Biologia y Geologia'!P18) ->  | N17: =IF('Biologia y Geologia'!Q18="","",'Biologia y Geologia'!Q18) ->  | O17: =IF('Biologia y Geologia'!R18="","",'Biologia y Geologia'!R18) ->  | P17: =IF('Biologia y Geologia'!S18="","",'Biologia y Geologia'!S18) ->  | Q17: =IF('Biologia y Geologia'!T18="","",'Biologia y Geologia'!T18) ->  | R17: =IF('Biologia y Geologia'!U18="","",'Biologia y Geologia'!U18) ->  | S17: =IF('Biologia y Geologia'!V18="","",'Biologia y Geologia'!V18) ->  | T17: =IF('Biologia y Geologia'!W18="","",'Biologia y Geologia'!W18) ->  | U17: =IF('Biologia y Geologia'!X18="","",'Biologia y Geologia'!X18) ->  | V17: =IF('Biologia y Geologia'!Y18="","",'Biologia y Geologia'!Y18) ->  | W17: =IF('Biologia y Geologia'!Z18="","",'Biologia y Geologia'!Z18) ->  | X17: =IF('Biologia y Geologia'!AA18="","",'Biologia y Geologia'!AA18) ->  | Y17: =IF('Biologia y Geologia'!AB18="","",'Biologia y Geologia'!AB18) ->  | Z17: =IF('Biologia y Geologia'!AC18="","",'Biologia y Geologia'!AC18) ->  | AA17: =IF('Biologia y Geologia'!AD18="","",'Biologia y Geologia'!AD18) ->  | AB17: =IF('Biologia y Geologia'!AE18="","",'Biologia y Geologia'!AE18) ->  | AC17: =IF('Biologia y Geologia'!AF18="","",'Biologia y Geologia'!AF18) ->  | AD17: =IF('Biologia y Geologia'!AG18="","",'Biologia y Geologia'!AG18) ->  | AE17: =IF('Biologia y Geologia'!AH18="","",'Biologia y Geologia'!AH18) ->  | AF17: =IF('Biologia y Geologia'!AI18="","",'Biologia y Geologia'!AI18) ->  | AG17: =IF('Biologia y Geologia'!AJ18="","",'Biologia y Geologia'!AJ18) ->  | AH17: =IF('Biologia y Geologia'!AK18="","",'Biologia y Geologia'!AK18) ->  | AI17: =IF('Biologia y Geologia'!AL18="","",'Biologia y Geologia'!AL18) ->  | AJ17: =IF('Biologia y Geologia'!AM18="","",'Biologia y Geologia'!AM18) ->  | AK17: =IF('Biologia y Geologia'!AN18="","",'Biologia y Geologia'!AN18) ->  | AL17: =IF('Biologia y Geologia'!AO18="","",'Biologia y Geologia'!AO18) ->  | AM17: =IF('Biologia y Geologia'!AP18="","",'Biologia y Geologia'!AP18) -> 
D18: Criterio Evaluación 5.2 | E18: =IF('Biologia y Geologia'!H19="","",'Biologia y Geologia'!H19) ->  | F18: =IF('Biologia y Geologia'!I19="","",'Biologia y Geologia'!I19) ->  | G18: =IF('Biologia y Geologia'!J19="","",'Biologia y Geologia'!J19) ->  | H18: =IF('Biologia y Geologia'!K19="","",'Biologia y Geologia'!K19) ->  | I18: =IF('Biologia y Geologia'!L19="","",'Biologia y Geologia'!L19) ->  | J18: =IF('Biologia y Geologia'!M19="","",'Biologia y Geologia'!M19) ->  | K18: =IF('Biologia y Geologia'!N19="","",'Biologia y Geologia'!N19) ->  | L18: =IF('Biologia y Geologia'!O19="","",'Biologia y Geologia'!O19) ->  | M18: =IF('Biologia y Geologia'!P19="","",'Biologia y Geologia'!P19) ->  | N18: =IF('Biologia y Geologia'!Q19="","",'Biologia y Geologia'!Q19) ->  | O18: =IF('Biologia y Geologia'!R19="","",'Biologia y Geologia'!R19) ->  | P18: =IF('Biologia y Geologia'!S19="","",'Biologia y Geologia'!S19) ->  | Q18: =IF('Biologia y Geologia'!T19="","",'Biologia y Geologia'!T19) ->  | R18: =IF('Biologia y Geologia'!U19="","",'Biologia y Geologia'!U19) ->  | S18: =IF('Biologia y Geologia'!V19="","",'Biologia y Geologia'!V19) ->  | T18: =IF('Biologia y Geologia'!W19="","",'Biologia y Geologia'!W19) ->  | U18: =IF('Biologia y Geologia'!X19="","",'Biologia y Geologia'!X19) ->  | V18: =IF('Biologia y Geologia'!Y19="","",'Biologia y Geologia'!Y19) ->  | W18: =IF('Biologia y Geologia'!Z19="","",'Biologia y Geologia'!Z19) ->  | X18: =IF('Biologia y Geologia'!AA19="","",'Biologia y Geologia'!AA19) ->  | Y18: =IF('Biologia y Geologia'!AB19="","",'Biologia y Geologia'!AB19) ->  | Z18: =IF('Biologia y Geologia'!AC19="","",'Biologia y Geologia'!AC19) ->  | AA18: =IF('Biologia y Geologia'!AD19="","",'Biologia y Geologia'!AD19) ->  | AB18: =IF('Biologia y Geologia'!AE19="","",'Biologia y Geologia'!AE19) ->  | AC18: =IF('Biologia y Geologia'!AF19="","",'Biologia y Geologia'!AF19) ->  | AD18: =IF('Biologia y Geologia'!AG19="","",'Biologia y Geologia'!AG19) ->  | AE18: =IF('Biologia y Geologia'!AH19="","",'Biologia y Geologia'!AH19) ->  | AF18: =IF('Biologia y Geologia'!AI19="","",'Biologia y Geologia'!AI19) ->  | AG18: =IF('Biologia y Geologia'!AJ19="","",'Biologia y Geologia'!AJ19) ->  | AH18: =IF('Biologia y Geologia'!AK19="","",'Biologia y Geologia'!AK19) ->  | AI18: =IF('Biologia y Geologia'!AL19="","",'Biologia y Geologia'!AL19) ->  | AJ18: =IF('Biologia y Geologia'!AM19="","",'Biologia y Geologia'!AM19) ->  | AK18: =IF('Biologia y Geologia'!AN19="","",'Biologia y Geologia'!AN19) ->  | AL18: =IF('Biologia y Geologia'!AO19="","",'Biologia y Geologia'!AO19) ->  | AM18: =IF('Biologia y Geologia'!AP19="","",'Biologia y Geologia'!AP19) -> 
D19: Criterio Evaluación 5.3 | E19: =IF('Biologia y Geologia'!H20="","",'Biologia y Geologia'!H20) ->  | F19: =IF('Biologia y Geologia'!I20="","",'Biologia y Geologia'!I20) ->  | G19: =IF('Biologia y Geologia'!J20="","",'Biologia y Geologia'!J20) ->  | H19: =IF('Biologia y Geologia'!K20="","",'Biologia y Geologia'!K20) ->  | I19: =IF('Biologia y Geologia'!L20="","",'Biologia y Geologia'!L20) ->  | J19: =IF('Biologia y Geologia'!M20="","",'Biologia y Geologia'!M20) ->  | K19: =IF('Biologia y Geologia'!N20="","",'Biologia y Geologia'!N20) ->  | L19: =IF('Biologia y Geologia'!O20="","",'Biologia y Geologia'!O20) ->  | M19: =IF('Biologia y Geologia'!P20="","",'Biologia y Geologia'!P20) ->  | N19: =IF('Biologia y Geologia'!Q20="","",'Biologia y Geologia'!Q20) ->  | O19: =IF('Biologia y Geologia'!R20="","",'Biologia y Geologia'!R20) ->  | P19: =IF('Biologia y Geologia'!S20="","",'Biologia y Geologia'!S20) ->  | Q19: =IF('Biologia y Geologia'!T20="","",'Biologia y Geologia'!T20) ->  | R19: =IF('Biologia y Geologia'!U20="","",'Biologia y Geologia'!U20) ->  | S19: =IF('Biologia y Geologia'!V20="","",'Biologia y Geologia'!V20) ->  | T19: =IF('Biologia y Geologia'!W20="","",'Biologia y Geologia'!W20) ->  | U19: =IF('Biologia y Geologia'!X20="","",'Biologia y Geologia'!X20) ->  | V19: =IF('Biologia y Geologia'!Y20="","",'Biologia y Geologia'!Y20) ->  | W19: =IF('Biologia y Geologia'!Z20="","",'Biologia y Geologia'!Z20) ->  | X19: =IF('Biologia y Geologia'!AA20="","",'Biologia y Geologia'!AA20) ->  | Y19: =IF('Biologia y Geologia'!AB20="","",'Biologia y Geologia'!AB20) ->  | Z19: =IF('Biologia y Geologia'!AC20="","",'Biologia y Geologia'!AC20) ->  | AA19: =IF('Biologia y Geologia'!AD20="","",'Biologia y Geologia'!AD20) ->  | AB19: =IF('Biologia y Geologia'!AE20="","",'Biologia y Geologia'!AE20) ->  | AC19: =IF('Biologia y Geologia'!AF20="","",'Biologia y Geologia'!AF20) ->  | AD19: =IF('Biologia y Geologia'!AG20="","",'Biologia y Geologia'!AG20) ->  | AE19: =IF('Biologia y Geologia'!AH20="","",'Biologia y Geologia'!AH20) ->  | AF19: =IF('Biologia y Geologia'!AI20="","",'Biologia y Geologia'!AI20) ->  | AG19: =IF('Biologia y Geologia'!AJ20="","",'Biologia y Geologia'!AJ20) ->  | AH19: =IF('Biologia y Geologia'!AK20="","",'Biologia y Geologia'!AK20) ->  | AI19: =IF('Biologia y Geologia'!AL20="","",'Biologia y Geologia'!AL20) ->  | AJ19: =IF('Biologia y Geologia'!AM20="","",'Biologia y Geologia'!AM20) ->  | AK19: =IF('Biologia y Geologia'!AN20="","",'Biologia y Geologia'!AN20) ->  | AL19: =IF('Biologia y Geologia'!AO20="","",'Biologia y Geologia'!AO20) ->  | AM19: =IF('Biologia y Geologia'!AP20="","",'Biologia y Geologia'!AP20) -> 
D20: Criterio Evaluación 5.4 | E20: =IF('Biologia y Geologia'!H21="","",'Biologia y Geologia'!H21) ->  | F20: =IF('Biologia y Geologia'!I21="","",'Biologia y Geologia'!I21) ->  | G20: =IF('Biologia y Geologia'!J21="","",'Biologia y Geologia'!J21) ->  | H20: =IF('Biologia y Geologia'!K21="","",'Biologia y Geologia'!K21) ->  | I20: =IF('Biologia y Geologia'!L21="","",'Biologia y Geologia'!L21) ->  | J20: =IF('Biologia y Geologia'!M21="","",'Biologia y Geologia'!M21) ->  | K20: =IF('Biologia y Geologia'!N21="","",'Biologia y Geologia'!N21) ->  | L20: =IF('Biologia y Geologia'!O21="","",'Biologia y Geologia'!O21) ->  | M20: =IF('Biologia y Geologia'!P21="","",'Biologia y Geologia'!P21) ->  | N20: =IF('Biologia y Geologia'!Q21="","",'Biologia y Geologia'!Q21) ->  | O20: =IF('Biologia y Geologia'!R21="","",'Biologia y Geologia'!R21) ->  | P20: =IF('Biologia y Geologia'!S21="","",'Biologia y Geologia'!S21) ->  | Q20: =IF('Biologia y Geologia'!T21="","",'Biologia y Geologia'!T21) ->  | R20: =IF('Biologia y Geologia'!U21="","",'Biologia y Geologia'!U21) ->  | S20: =IF('Biologia y Geologia'!V21="","",'Biologia y Geologia'!V21) ->  | T20: =IF('Biologia y Geologia'!W21="","",'Biologia y Geologia'!W21) ->  | U20: =IF('Biologia y Geologia'!X21="","",'Biologia y Geologia'!X21) ->  | V20: =IF('Biologia y Geologia'!Y21="","",'Biologia y Geologia'!Y21) ->  | W20: =IF('Biologia y Geologia'!Z21="","",'Biologia y Geologia'!Z21) ->  | X20: =IF('Biologia y Geologia'!AA21="","",'Biologia y Geologia'!AA21) ->  | Y20: =IF('Biologia y Geologia'!AB21="","",'Biologia y Geologia'!AB21) ->  | Z20: =IF('Biologia y Geologia'!AC21="","",'Biologia y Geologia'!AC21) ->  | AA20: =IF('Biologia y Geologia'!AD21="","",'Biologia y Geologia'!AD21) ->  | AB20: =IF('Biologia y Geologia'!AE21="","",'Biologia y Geologia'!AE21) ->  | AC20: =IF('Biologia y Geologia'!AF21="","",'Biologia y Geologia'!AF21) ->  | AD20: =IF('Biologia y Geologia'!AG21="","",'Biologia y Geologia'!AG21) ->  | AE20: =IF('Biologia y Geologia'!AH21="","",'Biologia y Geologia'!AH21) ->  | AF20: =IF('Biologia y Geologia'!AI21="","",'Biologia y Geologia'!AI21) ->  | AG20: =IF('Biologia y Geologia'!AJ21="","",'Biologia y Geologia'!AJ21) ->  | AH20: =IF('Biologia y Geologia'!AK21="","",'Biologia y Geologia'!AK21) ->  | AI20: =IF('Biologia y Geologia'!AL21="","",'Biologia y Geologia'!AL21) ->  | AJ20: =IF('Biologia y Geologia'!AM21="","",'Biologia y Geologia'!AM21) ->  | AK20: =IF('Biologia y Geologia'!AN21="","",'Biologia y Geologia'!AN21) ->  | AL20: =IF('Biologia y Geologia'!AO21="","",'Biologia y Geologia'!AO21) ->  | AM20: =IF('Biologia y Geologia'!AP21="","",'Biologia y Geologia'!AP21) -> 
C21: Comp. Esp. 6 | D21: Criterio Evaluación 6.1 | E21: =IF('Biologia y Geologia'!H22="","",'Biologia y Geologia'!H22) ->  | F21: =IF('Biologia y Geologia'!I22="","",'Biologia y Geologia'!I22) ->  | G21: =IF('Biologia y Geologia'!J22="","",'Biologia y Geologia'!J22) ->  | H21: =IF('Biologia y Geologia'!K22="","",'Biologia y Geologia'!K22) ->  | I21: =IF('Biologia y Geologia'!L22="","",'Biologia y Geologia'!L22) ->  | J21: =IF('Biologia y Geologia'!M22="","",'Biologia y Geologia'!M22) ->  | K21: =IF('Biologia y Geologia'!N22="","",'Biologia y Geologia'!N22) ->  | L21: =IF('Biologia y Geologia'!O22="","",'Biologia y Geologia'!O22) ->  | M21: =IF('Biologia y Geologia'!P22="","",'Biologia y Geologia'!P22) ->  | N21: =IF('Biologia y Geologia'!Q22="","",'Biologia y Geologia'!Q22) ->  | O21: =IF('Biologia y Geologia'!R22="","",'Biologia y Geologia'!R22) ->  | P21: =IF('Biologia y Geologia'!S22="","",'Biologia y Geologia'!S22) ->  | Q21: =IF('Biologia y Geologia'!T22="","",'Biologia y Geologia'!T22) ->  | R21: =IF('Biologia y Geologia'!U22="","",'Biologia y Geologia'!U22) ->  | S21: =IF('Biologia y Geologia'!V22="","",'Biologia y Geologia'!V22) ->  | T21: =IF('Biologia y Geologia'!W22="","",'Biologia y Geologia'!W22) ->  | U21: =IF('Biologia y Geologia'!X22="","",'Biologia y Geologia'!X22) ->  | V21: =IF('Biologia y Geologia'!Y22="","",'Biologia y Geologia'!Y22) ->  | W21: =IF('Biologia y Geologia'!Z22="","",'Biologia y Geologia'!Z22) ->  | X21: =IF('Biologia y Geologia'!AA22="","",'Biologia y Geologia'!AA22) ->  | Y21: =IF('Biologia y Geologia'!AB22="","",'Biologia y Geologia'!AB22) ->  | Z21: =IF('Biologia y Geologia'!AC22="","",'Biologia y Geologia'!AC22) ->  | AA21: =IF('Biologia y Geologia'!AD22="","",'Biologia y Geologia'!AD22) ->  | AB21: =IF('Biologia y Geologia'!AE22="","",'Biologia y Geologia'!AE22) ->  | AC21: =IF('Biologia y Geologia'!AF22="","",'Biologia y Geologia'!AF22) ->  | AD21: =IF('Biologia y Geologia'!AG22="","",'Biologia y Geologia'!AG22) ->  | AE21: =IF('Biologia y Geologia'!AH22="","",'Biologia y Geologia'!AH22) ->  | AF21: =IF('Biologia y Geologia'!AI22="","",'Biologia y Geologia'!AI22) ->  | AG21: =IF('Biologia y Geologia'!AJ22="","",'Biologia y Geologia'!AJ22) ->  | AH21: =IF('Biologia y Geologia'!AK22="","",'Biologia y Geologia'!AK22) ->  | AI21: =IF('Biologia y Geologia'!AL22="","",'Biologia y Geologia'!AL22) ->  | AJ21: =IF('Biologia y Geologia'!AM22="","",'Biologia y Geologia'!AM22) ->  | AK21: =IF('Biologia y Geologia'!AN22="","",'Biologia y Geologia'!AN22) ->  | AL21: =IF('Biologia y Geologia'!AO22="","",'Biologia y Geologia'!AO22) ->  | AM21: =IF('Biologia y Geologia'!AP22="","",'Biologia y Geologia'!AP22) -> 
D22: Criterio Evaluación 6.2 | E22: =IF('Biologia y Geologia'!H23="","",'Biologia y Geologia'!H23) ->  | F22: =IF('Biologia y Geologia'!I23="","",'Biologia y Geologia'!I23) ->  | G22: =IF('Biologia y Geologia'!J23="","",'Biologia y Geologia'!J23) ->  | H22: =IF('Biologia y Geologia'!K23="","",'Biologia y Geologia'!K23) ->  | I22: =IF('Biologia y Geologia'!L23="","",'Biologia y Geologia'!L23) ->  | J22: =IF('Biologia y Geologia'!M23="","",'Biologia y Geologia'!M23) ->  | K22: =IF('Biologia y Geologia'!N23="","",'Biologia y Geologia'!N23) ->  | L22: =IF('Biologia y Geologia'!O23="","",'Biologia y Geologia'!O23) ->  | M22: =IF('Biologia y Geologia'!P23="","",'Biologia y Geologia'!P23) ->  | N22: =IF('Biologia y Geologia'!Q23="","",'Biologia y Geologia'!Q23) ->  | O22: =IF('Biologia y Geologia'!R23="","",'Biologia y Geologia'!R23) ->  | P22: =IF('Biologia y Geologia'!S23="","",'Biologia y Geologia'!S23) ->  | Q22: =IF('Biologia y Geologia'!T23="","",'Biologia y Geologia'!T23) ->  | R22: =IF('Biologia y Geologia'!U23="","",'Biologia y Geologia'!U23) ->  | S22: =IF('Biologia y Geologia'!V23="","",'Biologia y Geologia'!V23) ->  | T22: =IF('Biologia y Geologia'!W23="","",'Biologia y Geologia'!W23) ->  | U22: =IF('Biologia y Geologia'!X23="","",'Biologia y Geologia'!X23) ->  | V22: =IF('Biologia y Geologia'!Y23="","",'Biologia y Geologia'!Y23) ->  | W22: =IF('Biologia y Geologia'!Z23="","",'Biologia y Geologia'!Z23) ->  | X22: =IF('Biologia y Geologia'!AA23="","",'Biologia y Geologia'!AA23) ->  | Y22: =IF('Biologia y Geologia'!AB23="","",'Biologia y Geologia'!AB23) ->  | Z22: =IF('Biologia y Geologia'!AC23="","",'Biologia y Geologia'!AC23) ->  | AA22: =IF('Biologia y Geologia'!AD23="","",'Biologia y Geologia'!AD23) ->  | AB22: =IF('Biologia y Geologia'!AE23="","",'Biologia y Geologia'!AE23) ->  | AC22: =IF('Biologia y Geologia'!AF23="","",'Biologia y Geologia'!AF23) ->  | AD22: =IF('Biologia y Geologia'!AG23="","",'Biologia y Geologia'!AG23) ->  | AE22: =IF('Biologia y Geologia'!AH23="","",'Biologia y Geologia'!AH23) ->  | AF22: =IF('Biologia y Geologia'!AI23="","",'Biologia y Geologia'!AI23) ->  | AG22: =IF('Biologia y Geologia'!AJ23="","",'Biologia y Geologia'!AJ23) ->  | AH22: =IF('Biologia y Geologia'!AK23="","",'Biologia y Geologia'!AK23) ->  | AI22: =IF('Biologia y Geologia'!AL23="","",'Biologia y Geologia'!AL23) ->  | AJ22: =IF('Biologia y Geologia'!AM23="","",'Biologia y Geologia'!AM23) ->  | AK22: =IF('Biologia y Geologia'!AN23="","",'Biologia y Geologia'!AN23) ->  | AL22: =IF('Biologia y Geologia'!AO23="","",'Biologia y Geologia'!AO23) ->  | AM22: =IF('Biologia y Geologia'!AP23="","",'Biologia y Geologia'!AP23) -> 
B23: Conocimiento de las Matemáticas | C23: Comp. Esp. 1 | D23: Criterio Evaluación 1.1 | E23: =IF(CMAT!H4="","",CMAT!H4) ->  | F23: =IF(CMAT!I4="","",CMAT!I4) ->  | G23: =IF(CMAT!J4="","",CMAT!J4) ->  | H23: =IF(CMAT!K4="","",CMAT!K4) ->  | I23: =IF(CMAT!L4="","",CMAT!L4) ->  | J23: =IF(CMAT!M4="","",CMAT!M4) ->  | K23: =IF(CMAT!N4="","",CMAT!N4) ->  | L23: =IF(CMAT!O4="","",CMAT!O4) ->  | M23: =IF(CMAT!P4="","",CMAT!P4) ->  | N23: =IF(CMAT!Q4="","",CMAT!Q4) ->  | O23: =IF(CMAT!R4="","",CMAT!R4) ->  | P23: =IF(CMAT!S4="","",CMAT!S4) ->  | Q23: =IF(CMAT!T4="","",CMAT!T4) ->  | R23: =IF(CMAT!U4="","",CMAT!U4) ->  | S23: =IF(CMAT!V4="","",CMAT!V4) ->  | T23: =IF(CMAT!W4="","",CMAT!W4) ->  | U23: =IF(CMAT!X4="","",CMAT!X4) ->  | V23: =IF(CMAT!Y4="","",CMAT!Y4) ->  | W23: =IF(CMAT!Z4="","",CMAT!Z4) ->  | X23: =IF(CMAT!AA4="","",CMAT!AA4) ->  | Y23: =IF(CMAT!AB4="","",CMAT!AB4) ->  | Z23: =IF(CMAT!AC4="","",CMAT!AC4) ->  | AA23: =IF(CMAT!AD4="","",CMAT!AD4) ->  | AB23: =IF(CMAT!AE4="","",CMAT!AE4) ->  | AC23: =IF(CMAT!AF4="","",CMAT!AF4) ->  | AD23: =IF(CMAT!AG4="","",CMAT!AG4) ->  | AE23: =IF(CMAT!AH4="","",CMAT!AH4) ->  | AF23: =IF(CMAT!AI4="","",CMAT!AI4) ->  | AG23: =IF(CMAT!AJ4="","",CMAT!AJ4) ->  | AH23: =IF(CMAT!AK4="","",CMAT!AK4) ->  | AI23: =IF(CMAT!AL4="","",CMAT!AL4) ->  | AJ23: =IF(CMAT!AM4="","",CMAT!AM4) ->  | AK23: =IF(CMAT!AN4="","",CMAT!AN4) ->  | AL23: =IF(CMAT!AO4="","",CMAT!AO4) ->  | AM23: =IF(CMAT!AP4="","",CMAT!AP4) -> 
D24: Criterio Evaluación 1.2 | E24: =IF(CMAT!H5="","",CMAT!H5) ->  | F24: =IF(CMAT!I5="","",CMAT!I5) ->  | G24: =IF(CMAT!J5="","",CMAT!J5) ->  | H24: =IF(CMAT!K5="","",CMAT!K5) ->  | I24: =IF(CMAT!L5="","",CMAT!L5) ->  | J24: =IF(CMAT!M5="","",CMAT!M5) ->  | K24: =IF(CMAT!N5="","",CMAT!N5) ->  | L24: =IF(CMAT!O5="","",CMAT!O5) ->  | M24: =IF(CMAT!P5="","",CMAT!P5) ->  | N24: =IF(CMAT!Q5="","",CMAT!Q5) ->  | O24: =IF(CMAT!R5="","",CMAT!R5) ->  | P24: =IF(CMAT!S5="","",CMAT!S5) ->  | Q24: =IF(CMAT!T5="","",CMAT!T5) ->  | R24: =IF(CMAT!U5="","",CMAT!U5) ->  | S24: =IF(CMAT!V5="","",CMAT!V5) ->  | T24: =IF(CMAT!W5="","",CMAT!W5) ->  | U24: =IF(CMAT!X5="","",CMAT!X5) ->  | V24: =IF(CMAT!Y5="","",CMAT!Y5) ->  | W24: =IF(CMAT!Z5="","",CMAT!Z5) ->  | X24: =IF(CMAT!AA5="","",CMAT!AA5) ->  | Y24: =IF(CMAT!AB5="","",CMAT!AB5) ->  | Z24: =IF(CMAT!AC5="","",CMAT!AC5) ->  | AA24: =IF(CMAT!AD5="","",CMAT!AD5) ->  | AB24: =IF(CMAT!AE5="","",CMAT!AE5) ->  | AC24: =IF(CMAT!AF5="","",CMAT!AF5) ->  | AD24: =IF(CMAT!AG5="","",CMAT!AG5) ->  | AE24: =IF(CMAT!AH5="","",CMAT!AH5) ->  | AF24: =IF(CMAT!AI5="","",CMAT!AI5) ->  | AG24: =IF(CMAT!AJ5="","",CMAT!AJ5) ->  | AH24: =IF(CMAT!AK5="","",CMAT!AK5) ->  | AI24: =IF(CMAT!AL5="","",CMAT!AL5) ->  | AJ24: =IF(CMAT!AM5="","",CMAT!AM5) ->  | AK24: =IF(CMAT!AN5="","",CMAT!AN5) ->  | AL24: =IF(CMAT!AO5="","",CMAT!AO5) ->  | AM24: =IF(CMAT!AP5="","",CMAT!AP5) -> 
D25: Criterio Evaluación 1.3 | E25: =IF(CMAT!H6="","",CMAT!H6) ->  | F25: =IF(CMAT!I6="","",CMAT!I6) ->  | G25: =IF(CMAT!J6="","",CMAT!J6) ->  | H25: =IF(CMAT!K6="","",CMAT!K6) ->  | I25: =IF(CMAT!L6="","",CMAT!L6) ->  | J25: =IF(CMAT!M6="","",CMAT!M6) ->  | K25: =IF(CMAT!N6="","",CMAT!N6) ->  | L25: =IF(CMAT!O6="","",CMAT!O6) ->  | M25: =IF(CMAT!P6="","",CMAT!P6) ->  | N25: =IF(CMAT!Q6="","",CMAT!Q6) ->  | O25: =IF(CMAT!R6="","",CMAT!R6) ->  | P25: =IF(CMAT!S6="","",CMAT!S6) ->  | Q25: =IF(CMAT!T6="","",CMAT!T6) ->  | R25: =IF(CMAT!U6="","",CMAT!U6) ->  | S25: =IF(CMAT!V6="","",CMAT!V6) ->  | T25: =IF(CMAT!W6="","",CMAT!W6) ->  | U25: =IF(CMAT!X6="","",CMAT!X6) ->  | V25: =IF(CMAT!Y6="","",CMAT!Y6) ->  | W25: =IF(CMAT!Z6="","",CMAT!Z6) ->  | X25: =IF(CMAT!AA6="","",CMAT!AA6) ->  | Y25: =IF(CMAT!AB6="","",CMAT!AB6) ->  | Z25: =IF(CMAT!AC6="","",CMAT!AC6) ->  | AA25: =IF(CMAT!AD6="","",CMAT!AD6) ->  | AB25: =IF(CMAT!AE6="","",CMAT!AE6) ->  | AC25: =IF(CMAT!AF6="","",CMAT!AF6) ->  | AD25: =IF(CMAT!AG6="","",CMAT!AG6) ->  | AE25: =IF(CMAT!AH6="","",CMAT!AH6) ->  | AF25: =IF(CMAT!AI6="","",CMAT!AI6) ->  | AG25: =IF(CMAT!AJ6="","",CMAT!AJ6) ->  | AH25: =IF(CMAT!AK6="","",CMAT!AK6) ->  | AI25: =IF(CMAT!AL6="","",CMAT!AL6) ->  | AJ25: =IF(CMAT!AM6="","",CMAT!AM6) ->  | AK25: =IF(CMAT!AN6="","",CMAT!AN6) ->  | AL25: =IF(CMAT!AO6="","",CMAT!AO6) ->  | AM25: =IF(CMAT!AP6="","",CMAT!AP6) -> 
C26: Comp. Esp. 2 | D26: Criterio Evaluación 2.1 | E26: =IF(CMAT!H7="","",CMAT!H7) ->  | F26: =IF(CMAT!I7="","",CMAT!I7) ->  | G26: =IF(CMAT!J7="","",CMAT!J7) ->  | H26: =IF(CMAT!K7="","",CMAT!K7) ->  | I26: =IF(CMAT!L7="","",CMAT!L7) ->  | J26: =IF(CMAT!M7="","",CMAT!M7) ->  | K26: =IF(CMAT!N7="","",CMAT!N7) ->  | L26: =IF(CMAT!O7="","",CMAT!O7) ->  | M26: =IF(CMAT!P7="","",CMAT!P7) ->  | N26: =IF(CMAT!Q7="","",CMAT!Q7) ->  | O26: =IF(CMAT!R7="","",CMAT!R7) ->  | P26: =IF(CMAT!S7="","",CMAT!S7) ->  | Q26: =IF(CMAT!T7="","",CMAT!T7) ->  | R26: =IF(CMAT!U7="","",CMAT!U7) ->  | S26: =IF(CMAT!V7="","",CMAT!V7) ->  | T26: =IF(CMAT!W7="","",CMAT!W7) ->  | U26: =IF(CMAT!X7="","",CMAT!X7) ->  | V26: =IF(CMAT!Y7="","",CMAT!Y7) ->  | W26: =IF(CMAT!Z7="","",CMAT!Z7) ->  | X26: =IF(CMAT!AA7="","",CMAT!AA7) ->  | Y26: =IF(CMAT!AB7="","",CMAT!AB7) ->  | Z26: =IF(CMAT!AC7="","",CMAT!AC7) ->  | AA26: =IF(CMAT!AD7="","",CMAT!AD7) ->  | AB26: =IF(CMAT!AE7="","",CMAT!AE7) ->  | AC26: =IF(CMAT!AF7="","",CMAT!AF7) ->  | AD26: =IF(CMAT!AG7="","",CMAT!AG7) ->  | AE26: =IF(CMAT!AH7="","",CMAT!AH7) ->  | AF26: =IF(CMAT!AI7="","",CMAT!AI7) ->  | AG26: =IF(CMAT!AJ7="","",CMAT!AJ7) ->  | AH26: =IF(CMAT!AK7="","",CMAT!AK7) ->  | AI26: =IF(CMAT!AL7="","",CMAT!AL7) ->  | AJ26: =IF(CMAT!AM7="","",CMAT!AM7) ->  | AK26: =IF(CMAT!AN7="","",CMAT!AN7) ->  | AL26: =IF(CMAT!AO7="","",CMAT!AO7) ->  | AM26: =IF(CMAT!AP7="","",CMAT!AP7) -> 
C27: Comp. Esp. 3 | D27: Criterio Evaluación 3.1 | E27: =IF(CMAT!H8="","",CMAT!H8) ->  | F27: =IF(CMAT!I8="","",CMAT!I8) ->  | G27: =IF(CMAT!J8="","",CMAT!J8) ->  | H27: =IF(CMAT!K8="","",CMAT!K8) ->  | I27: =IF(CMAT!L8="","",CMAT!L8) ->  | J27: =IF(CMAT!M8="","",CMAT!M8) ->  | K27: =IF(CMAT!N8="","",CMAT!N8) ->  | L27: =IF(CMAT!O8="","",CMAT!O8) ->  | M27: =IF(CMAT!P8="","",CMAT!P8) ->  | N27: =IF(CMAT!Q8="","",CMAT!Q8) ->  | O27: =IF(CMAT!R8="","",CMAT!R8) ->  | P27: =IF(CMAT!S8="","",CMAT!S8) ->  | Q27: =IF(CMAT!T8="","",CMAT!T8) ->  | R27: =IF(CMAT!U8="","",CMAT!U8) ->  | S27: =IF(CMAT!V8="","",CMAT!V8) ->  | T27: =IF(CMAT!W8="","",CMAT!W8) ->  | U27: =IF(CMAT!X8="","",CMAT!X8) ->  | V27: =IF(CMAT!Y8="","",CMAT!Y8) ->  | W27: =IF(CMAT!Z8="","",CMAT!Z8) ->  | X27: =IF(CMAT!AA8="","",CMAT!AA8) ->  | Y27: =IF(CMAT!AB8="","",CMAT!AB8) ->  | Z27: =IF(CMAT!AC8="","",CMAT!AC8) ->  | AA27: =IF(CMAT!AD8="","",CMAT!AD8) ->  | AB27: =IF(CMAT!AE8="","",CMAT!AE8) ->  | AC27: =IF(CMAT!AF8="","",CMAT!AF8) ->  | AD27: =IF(CMAT!AG8="","",CMAT!AG8) ->  | AE27: =IF(CMAT!AH8="","",CMAT!AH8) ->  | AF27: =IF(CMAT!AI8="","",CMAT!AI8) ->  | AG27: =IF(CMAT!AJ8="","",CMAT!AJ8) ->  | AH27: =IF(CMAT!AK8="","",CMAT!AK8) ->  | AI27: =IF(CMAT!AL8="","",CMAT!AL8) ->  | AJ27: =IF(CMAT!AM8="","",CMAT!AM8) ->  | AK27: =IF(CMAT!AN8="","",CMAT!AN8) ->  | AL27: =IF(CMAT!AO8="","",CMAT!AO8) ->  | AM27: =IF(CMAT!AP8="","",CMAT!AP8) -> 
D28: Criterio Evaluación 3.2 | E28: =IF(CMAT!H9="","",CMAT!H9) ->  | F28: =IF(CMAT!I9="","",CMAT!I9) ->  | G28: =IF(CMAT!J9="","",CMAT!J9) ->  | H28: =IF(CMAT!K9="","",CMAT!K9) ->  | I28: =IF(CMAT!L9="","",CMAT!L9) ->  | J28: =IF(CMAT!M9="","",CMAT!M9) ->  | K28: =IF(CMAT!N9="","",CMAT!N9) ->  | L28: =IF(CMAT!O9="","",CMAT!O9) ->  | M28: =IF(CMAT!P9="","",CMAT!P9) ->  | N28: =IF(CMAT!Q9="","",CMAT!Q9) ->  | O28: =IF(CMAT!R9="","",CMAT!R9) ->  | P28: =IF(CMAT!S9="","",CMAT!S9) ->  | Q28: =IF(CMAT!T9="","",CMAT!T9) ->  | R28: =IF(CMAT!U9="","",CMAT!U9) ->  | S28: =IF(CMAT!V9="","",CMAT!V9) ->  | T28: =IF(CMAT!W9="","",CMAT!W9) ->  | U28: =IF(CMAT!X9="","",CMAT!X9) ->  | V28: =IF(CMAT!Y9="","",CMAT!Y9) ->  | W28: =IF(CMAT!Z9="","",CMAT!Z9) ->  | X28: =IF(CMAT!AA9="","",CMAT!AA9) ->  | Y28: =IF(CMAT!AB9="","",CMAT!AB9) ->  | Z28: =IF(CMAT!AC9="","",CMAT!AC9) ->  | AA28: =IF(CMAT!AD9="","",CMAT!AD9) ->  | AB28: =IF(CMAT!AE9="","",CMAT!AE9) ->  | AC28: =IF(CMAT!AF9="","",CMAT!AF9) ->  | AD28: =IF(CMAT!AG9="","",CMAT!AG9) ->  | AE28: =IF(CMAT!AH9="","",CMAT!AH9) ->  | AF28: =IF(CMAT!AI9="","",CMAT!AI9) ->  | AG28: =IF(CMAT!AJ9="","",CMAT!AJ9) ->  | AH28: =IF(CMAT!AK9="","",CMAT!AK9) ->  | AI28: =IF(CMAT!AL9="","",CMAT!AL9) ->  | AJ28: =IF(CMAT!AM9="","",CMAT!AM9) ->  | AK28: =IF(CMAT!AN9="","",CMAT!AN9) ->  | AL28: =IF(CMAT!AO9="","",CMAT!AO9) ->  | AM28: =IF(CMAT!AP9="","",CMAT!AP9) -> 
D29: Criterio Evaluación 3.3 | E29: =IF(CMAT!H10="","",CMAT!H10) ->  | F29: =IF(CMAT!I10="","",CMAT!I10) ->  | G29: =IF(CMAT!J10="","",CMAT!J10) ->  | H29: =IF(CMAT!K10="","",CMAT!K10) ->  | I29: =IF(CMAT!L10="","",CMAT!L10) ->  | J29: =IF(CMAT!M10="","",CMAT!M10) ->  | K29: =IF(CMAT!N10="","",CMAT!N10) ->  | L29: =IF(CMAT!O10="","",CMAT!O10) ->  | M29: =IF(CMAT!P10="","",CMAT!P10) ->  | N29: =IF(CMAT!Q10="","",CMAT!Q10) ->  | O29: =IF(CMAT!R10="","",CMAT!R10) ->  | P29: =IF(CMAT!S10="","",CMAT!S10) ->  | Q29: =IF(CMAT!T10="","",CMAT!T10) ->  | R29: =IF(CMAT!U10="","",CMAT!U10) ->  | S29: =IF(CMAT!V10="","",CMAT!V10) ->  | T29: =IF(CMAT!W10="","",CMAT!W10) ->  | U29: =IF(CMAT!X10="","",CMAT!X10) ->  | V29: =IF(CMAT!Y10="","",CMAT!Y10) ->  | W29: =IF(CMAT!Z10="","",CMAT!Z10) ->  | X29: =IF(CMAT!AA10="","",CMAT!AA10) ->  | Y29: =IF(CMAT!AB10="","",CMAT!AB10) ->  | Z29: =IF(CMAT!AC10="","",CMAT!AC10) ->  | AA29: =IF(CMAT!AD10="","",CMAT!AD10) ->  | AB29: =IF(CMAT!AE10="","",CMAT!AE10) ->  | AC29: =IF(CMAT!AF10="","",CMAT!AF10) ->  | AD29: =IF(CMAT!AG10="","",CMAT!AG10) ->  | AE29: =IF(CMAT!AH10="","",CMAT!AH10) ->  | AF29: =IF(CMAT!AI10="","",CMAT!AI10) ->  | AG29: =IF(CMAT!AJ10="","",CMAT!AJ10) ->  | AH29: =IF(CMAT!AK10="","",CMAT!AK10) ->  | AI29: =IF(CMAT!AL10="","",CMAT!AL10) ->  | AJ29: =IF(CMAT!AM10="","",CMAT!AM10) ->  | AK29: =IF(CMAT!AN10="","",CMAT!AN10) ->  | AL29: =IF(CMAT!AO10="","",CMAT!AO10) ->  | AM29: =IF(CMAT!AP10="","",CMAT!AP10) -> 
C30: Comp. Esp. 4 | D30: Criterio Evaluación 4.1 | E30: =IF(CMAT!H11="","",CMAT!H11) ->  | F30: =IF(CMAT!I11="","",CMAT!I11) ->  | G30: =IF(CMAT!J11="","",CMAT!J11) ->  | H30: =IF(CMAT!K11="","",CMAT!K11) ->  | I30: =IF(CMAT!L11="","",CMAT!L11) ->  | J30: =IF(CMAT!M11="","",CMAT!M11) ->  | K30: =IF(CMAT!N11="","",CMAT!N11) ->  | L30: =IF(CMAT!O11="","",CMAT!O11) ->  | M30: =IF(CMAT!P11="","",CMAT!P11) ->  | N30: =IF(CMAT!Q11="","",CMAT!Q11) ->  | O30: =IF(CMAT!R11="","",CMAT!R11) ->  | P30: =IF(CMAT!S11="","",CMAT!S11) ->  | Q30: =IF(CMAT!T11="","",CMAT!T11) ->  | R30: =IF(CMAT!U11="","",CMAT!U11) ->  | S30: =IF(CMAT!V11="","",CMAT!V11) ->  | T30: =IF(CMAT!W11="","",CMAT!W11) ->  | U30: =IF(CMAT!X11="","",CMAT!X11) ->  | V30: =IF(CMAT!Y11="","",CMAT!Y11) ->  | W30: =IF(CMAT!Z11="","",CMAT!Z11) ->  | X30: =IF(CMAT!AA11="","",CMAT!AA11) ->  | Y30: =IF(CMAT!AB11="","",CMAT!AB11) ->  | Z30: =IF(CMAT!AC11="","",CMAT!AC11) ->  | AA30: =IF(CMAT!AD11="","",CMAT!AD11) ->  | AB30: =IF(CMAT!AE11="","",CMAT!AE11) ->  | AC30: =IF(CMAT!AF11="","",CMAT!AF11) ->  | AD30: =IF(CMAT!AG11="","",CMAT!AG11) ->  | AE30: =IF(CMAT!AH11="","",CMAT!AH11) ->  | AF30: =IF(CMAT!AI11="","",CMAT!AI11) ->  | AG30: =IF(CMAT!AJ11="","",CMAT!AJ11) ->  | AH30: =IF(CMAT!AK11="","",CMAT!AK11) ->  | AI30: =IF(CMAT!AL11="","",CMAT!AL11) ->  | AJ30: =IF(CMAT!AM11="","",CMAT!AM11) ->  | AK30: =IF(CMAT!AN11="","",CMAT!AN11) ->  | AL30: =IF(CMAT!AO11="","",CMAT!AO11) ->  | AM30: =IF(CMAT!AP11="","",CMAT!AP11) -> 
D31: Criterio Evaluación 4.2 | E31: =IF(CMAT!H12="","",CMAT!H12) ->  | F31: =IF(CMAT!I12="","",CMAT!I12) ->  | G31: =IF(CMAT!J12="","",CMAT!J12) ->  | H31: =IF(CMAT!K12="","",CMAT!K12) ->  | I31: =IF(CMAT!L12="","",CMAT!L12) ->  | J31: =IF(CMAT!M12="","",CMAT!M12) ->  | K31: =IF(CMAT!N12="","",CMAT!N12) ->  | L31: =IF(CMAT!O12="","",CMAT!O12) ->  | M31: =IF(CMAT!P12="","",CMAT!P12) ->  | N31: =IF(CMAT!Q12="","",CMAT!Q12) ->  | O31: =IF(CMAT!R12="","",CMAT!R12) ->  | P31: =IF(CMAT!S12="","",CMAT!S12) ->  | Q31: =IF(CMAT!T12="","",CMAT!T12) ->  | R31: =IF(CMAT!U12="","",CMAT!U12) ->  | S31: =IF(CMAT!V12="","",CMAT!V12) ->  | T31: =IF(CMAT!W12="","",CMAT!W12) ->  | U31: =IF(CMAT!X12="","",CMAT!X12) ->  | V31: =IF(CMAT!Y12="","",CMAT!Y12) ->  | W31: =IF(CMAT!Z12="","",CMAT!Z12) ->  | X31: =IF(CMAT!AA12="","",CMAT!AA12) ->  | Y31: =IF(CMAT!AB12="","",CMAT!AB12) ->  | Z31: =IF(CMAT!AC12="","",CMAT!AC12) ->  | AA31: =IF(CMAT!AD12="","",CMAT!AD12) ->  | AB31: =IF(CMAT!AE12="","",CMAT!AE12) ->  | AC31: =IF(CMAT!AF12="","",CMAT!AF12) ->  | AD31: =IF(CMAT!AG12="","",CMAT!AG12) ->  | AE31: =IF(CMAT!AH12="","",CMAT!AH12) ->  | AF31: =IF(CMAT!AI12="","",CMAT!AI12) ->  | AG31: =IF(CMAT!AJ12="","",CMAT!AJ12) ->  | AH31: =IF(CMAT!AK12="","",CMAT!AK12) ->  | AI31: =IF(CMAT!AL12="","",CMAT!AL12) ->  | AJ31: =IF(CMAT!AM12="","",CMAT!AM12) ->  | AK31: =IF(CMAT!AN12="","",CMAT!AN12) ->  | AL31: =IF(CMAT!AO12="","",CMAT!AO12) ->  | AM31: =IF(CMAT!AP12="","",CMAT!AP12) -> 
D32: Criterio Evaluación 4.3 | E32: =IF(CMAT!H13="","",CMAT!H13) ->  | F32: =IF(CMAT!I13="","",CMAT!I13) ->  | G32: =IF(CMAT!J13="","",CMAT!J13) ->  | H32: =IF(CMAT!K13="","",CMAT!K13) ->  | I32: =IF(CMAT!L13="","",CMAT!L13) ->  | J32: =IF(CMAT!M13="","",CMAT!M13) ->  | K32: =IF(CMAT!N13="","",CMAT!N13) ->  | L32: =IF(CMAT!O13="","",CMAT!O13) ->  | M32: =IF(CMAT!P13="","",CMAT!P13) ->  | N32: =IF(CMAT!Q13="","",CMAT!Q13) ->  | O32: =IF(CMAT!R13="","",CMAT!R13) ->  | P32: =IF(CMAT!S13="","",CMAT!S13) ->  | Q32: =IF(CMAT!T13="","",CMAT!T13) ->  | R32: =IF(CMAT!U13="","",CMAT!U13) ->  | S32: =IF(CMAT!V13="","",CMAT!V13) ->  | T32: =IF(CMAT!W13="","",CMAT!W13) ->  | U32: =IF(CMAT!X13="","",CMAT!X13) ->  | V32: =IF(CMAT!Y13="","",CMAT!Y13) ->  | W32: =IF(CMAT!Z13="","",CMAT!Z13) ->  | X32: =IF(CMAT!AA13="","",CMAT!AA13) ->  | Y32: =IF(CMAT!AB13="","",CMAT!AB13) ->  | Z32: =IF(CMAT!AC13="","",CMAT!AC13) ->  | AA32: =IF(CMAT!AD13="","",CMAT!AD13) ->  | AB32: =IF(CMAT!AE13="","",CMAT!AE13) ->  | AC32: =IF(CMAT!AF13="","",CMAT!AF13) ->  | AD32: =IF(CMAT!AG13="","",CMAT!AG13) ->  | AE32: =IF(CMAT!AH13="","",CMAT!AH13) ->  | AF32: =IF(CMAT!AI13="","",CMAT!AI13) ->  | AG32: =IF(CMAT!AJ13="","",CMAT!AJ13) ->  | AH32: =IF(CMAT!AK13="","",CMAT!AK13) ->  | AI32: =IF(CMAT!AL13="","",CMAT!AL13) ->  | AJ32: =IF(CMAT!AM13="","",CMAT!AM13) ->  | AK32: =IF(CMAT!AN13="","",CMAT!AN13) ->  | AL32: =IF(CMAT!AO13="","",CMAT!AO13) ->  | AM32: =IF(CMAT!AP13="","",CMAT!AP13) -> 
C33: Comp. Esp. 5 | D33: Criterio Evaluación 5.1 | E33: =IF(CMAT!H14="","",CMAT!H14) ->  | F33: =IF(CMAT!I14="","",CMAT!I14) ->  | G33: =IF(CMAT!J14="","",CMAT!J14) ->  | H33: =IF(CMAT!K14="","",CMAT!K14) ->  | I33: =IF(CMAT!L14="","",CMAT!L14) ->  | J33: =IF(CMAT!M14="","",CMAT!M14) ->  | K33: =IF(CMAT!N14="","",CMAT!N14) ->  | L33: =IF(CMAT!O14="","",CMAT!O14) ->  | M33: =IF(CMAT!P14="","",CMAT!P14) ->  | N33: =IF(CMAT!Q14="","",CMAT!Q14) ->  | O33: =IF(CMAT!R14="","",CMAT!R14) ->  | P33: =IF(CMAT!S14="","",CMAT!S14) ->  | Q33: =IF(CMAT!T14="","",CMAT!T14) ->  | R33: =IF(CMAT!U14="","",CMAT!U14) ->  | S33: =IF(CMAT!V14="","",CMAT!V14) ->  | T33: =IF(CMAT!W14="","",CMAT!W14) ->  | U33: =IF(CMAT!X14="","",CMAT!X14) ->  | V33: =IF(CMAT!Y14="","",CMAT!Y14) ->  | W33: =IF(CMAT!Z14="","",CMAT!Z14) ->  | X33: =IF(CMAT!AA14="","",CMAT!AA14) ->  | Y33: =IF(CMAT!AB14="","",CMAT!AB14) ->  | Z33: =IF(CMAT!AC14="","",CMAT!AC14) ->  | AA33: =IF(CMAT!AD14="","",CMAT!AD14) ->  | AB33: =IF(CMAT!AE14="","",CMAT!AE14) ->  | AC33: =IF(CMAT!AF14="","",CMAT!AF14) ->  | AD33: =IF(CMAT!AG14="","",CMAT!AG14) ->  | AE33: =IF(CMAT!AH14="","",CMAT!AH14) ->  | AF33: =IF(CMAT!AI14="","",CMAT!AI14) ->  | AG33: =IF(CMAT!AJ14="","",CMAT!AJ14) ->  | AH33: =IF(CMAT!AK14="","",CMAT!AK14) ->  | AI33: =IF(CMAT!AL14="","",CMAT!AL14) ->  | AJ33: =IF(CMAT!AM14="","",CMAT!AM14) ->  | AK33: =IF(CMAT!AN14="","",CMAT!AN14) ->  | AL33: =IF(CMAT!AO14="","",CMAT!AO14) ->  | AM33: =IF(CMAT!AP14="","",CMAT!AP14) -> 
D34: Criterio Evaluación 5.2 | E34: =IF(CMAT!H15="","",CMAT!H15) ->  | F34: =IF(CMAT!I15="","",CMAT!I15) ->  | G34: =IF(CMAT!J15="","",CMAT!J15) ->  | H34: =IF(CMAT!K15="","",CMAT!K15) ->  | I34: =IF(CMAT!L15="","",CMAT!L15) ->  | J34: =IF(CMAT!M15="","",CMAT!M15) ->  | K34: =IF(CMAT!N15="","",CMAT!N15) ->  | L34: =IF(CMAT!O15="","",CMAT!O15) ->  | M34: =IF(CMAT!P15="","",CMAT!P15) ->  | N34: =IF(CMAT!Q15="","",CMAT!Q15) ->  | O34: =IF(CMAT!R15="","",CMAT!R15) ->  | P34: =IF(CMAT!S15="","",CMAT!S15) ->  | Q34: =IF(CMAT!T15="","",CMAT!T15) ->  | R34: =IF(CMAT!U15="","",CMAT!U15) ->  | S34: =IF(CMAT!V15="","",CMAT!V15) ->  | T34: =IF(CMAT!W15="","",CMAT!W15) ->  | U34: =IF(CMAT!X15="","",CMAT!X15) ->  | V34: =IF(CMAT!Y15="","",CMAT!Y15) ->  | W34: =IF(CMAT!Z15="","",CMAT!Z15) ->  | X34: =IF(CMAT!AA15="","",CMAT!AA15) ->  | Y34: =IF(CMAT!AB15="","",CMAT!AB15) ->  | Z34: =IF(CMAT!AC15="","",CMAT!AC15) ->  | AA34: =IF(CMAT!AD15="","",CMAT!AD15) ->  | AB34: =IF(CMAT!AE15="","",CMAT!AE15) ->  | AC34: =IF(CMAT!AF15="","",CMAT!AF15) ->  | AD34: =IF(CMAT!AG15="","",CMAT!AG15) ->  | AE34: =IF(CMAT!AH15="","",CMAT!AH15) ->  | AF34: =IF(CMAT!AI15="","",CMAT!AI15) ->  | AG34: =IF(CMAT!AJ15="","",CMAT!AJ15) ->  | AH34: =IF(CMAT!AK15="","",CMAT!AK15) ->  | AI34: =IF(CMAT!AL15="","",CMAT!AL15) ->  | AJ34: =IF(CMAT!AM15="","",CMAT!AM15) ->  | AK34: =IF(CMAT!AN15="","",CMAT!AN15) ->  | AL34: =IF(CMAT!AO15="","",CMAT!AO15) ->  | AM34: =IF(CMAT!AP15="","",CMAT!AP15) -> 
D35: Criterio Evaluación 5.3 | E35: =IF(CMAT!H16="","",CMAT!H16) ->  | F35: =IF(CMAT!I16="","",CMAT!I16) ->  | G35: =IF(CMAT!J16="","",CMAT!J16) ->  | H35: =IF(CMAT!K16="","",CMAT!K16) ->  | I35: =IF(CMAT!L16="","",CMAT!L16) ->  | J35: =IF(CMAT!M16="","",CMAT!M16) ->  | K35: =IF(CMAT!N16="","",CMAT!N16) ->  | L35: =IF(CMAT!O16="","",CMAT!O16) ->  | M35: =IF(CMAT!P16="","",CMAT!P16) ->  | N35: =IF(CMAT!Q16="","",CMAT!Q16) ->  | O35: =IF(CMAT!R16="","",CMAT!R16) ->  | P35: =IF(CMAT!S16="","",CMAT!S16) ->  | Q35: =IF(CMAT!T16="","",CMAT!T16) ->  | R35: =IF(CMAT!U16="","",CMAT!U16) ->  | S35: =IF(CMAT!V16="","",CMAT!V16) ->  | T35: =IF(CMAT!W16="","",CMAT!W16) ->  | U35: =IF(CMAT!X16="","",CMAT!X16) ->  | V35: =IF(CMAT!Y16="","",CMAT!Y16) ->  | W35: =IF(CMAT!Z16="","",CMAT!Z16) ->  | X35: =IF(CMAT!AA16="","",CMAT!AA16) ->  | Y35: =IF(CMAT!AB16="","",CMAT!AB16) ->  | Z35: =IF(CMAT!AC16="","",CMAT!AC16) ->  | AA35: =IF(CMAT!AD16="","",CMAT!AD16) ->  | AB35: =IF(CMAT!AE16="","",CMAT!AE16) ->  | AC35: =IF(CMAT!AF16="","",CMAT!AF16) ->  | AD35: =IF(CMAT!AG16="","",CMAT!AG16) ->  | AE35: =IF(CMAT!AH16="","",CMAT!AH16) ->  | AF35: =IF(CMAT!AI16="","",CMAT!AI16) ->  | AG35: =IF(CMAT!AJ16="","",CMAT!AJ16) ->  | AH35: =IF(CMAT!AK16="","",CMAT!AK16) ->  | AI35: =IF(CMAT!AL16="","",CMAT!AL16) ->  | AJ35: =IF(CMAT!AM16="","",CMAT!AM16) ->  | AK35: =IF(CMAT!AN16="","",CMAT!AN16) ->  | AL35: =IF(CMAT!AO16="","",CMAT!AO16) ->  | AM35: =IF(CMAT!AP16="","",CMAT!AP16) -> 
D36: Criterio Evaluación 5.4 | E36: =IF(CMAT!H17="","",CMAT!H17) ->  | F36: =IF(CMAT!I17="","",CMAT!I17) ->  | G36: =IF(CMAT!J17="","",CMAT!J17) ->  | H36: =IF(CMAT!K17="","",CMAT!K17) ->  | I36: =IF(CMAT!L17="","",CMAT!L17) ->  | J36: =IF(CMAT!M17="","",CMAT!M17) ->  | K36: =IF(CMAT!N17="","",CMAT!N17) ->  | L36: =IF(CMAT!O17="","",CMAT!O17) ->  | M36: =IF(CMAT!P17="","",CMAT!P17) ->  | N36: =IF(CMAT!Q17="","",CMAT!Q17) ->  | O36: =IF(CMAT!R17="","",CMAT!R17) ->  | P36: =IF(CMAT!S17="","",CMAT!S17) ->  | Q36: =IF(CMAT!T17="","",CMAT!T17) ->  | R36: =IF(CMAT!U17="","",CMAT!U17) ->  | S36: =IF(CMAT!V17="","",CMAT!V17) ->  | T36: =IF(CMAT!W17="","",CMAT!W17) ->  | U36: =IF(CMAT!X17="","",CMAT!X17) ->  | V36: =IF(CMAT!Y17="","",CMAT!Y17) ->  | W36: =IF(CMAT!Z17="","",CMAT!Z17) ->  | X36: =IF(CMAT!AA17="","",CMAT!AA17) ->  | Y36: =IF(CMAT!AB17="","",CMAT!AB17) ->  | Z36: =IF(CMAT!AC17="","",CMAT!AC17) ->  | AA36: =IF(CMAT!AD17="","",CMAT!AD17) ->  | AB36: =IF(CMAT!AE17="","",CMAT!AE17) ->  | AC36: =IF(CMAT!AF17="","",CMAT!AF17) ->  | AD36: =IF(CMAT!AG17="","",CMAT!AG17) ->  | AE36: =IF(CMAT!AH17="","",CMAT!AH17) ->  | AF36: =IF(CMAT!AI17="","",CMAT!AI17) ->  | AG36: =IF(CMAT!AJ17="","",CMAT!AJ17) ->  | AH36: =IF(CMAT!AK17="","",CMAT!AK17) ->  | AI36: =IF(CMAT!AL17="","",CMAT!AL17) ->  | AJ36: =IF(CMAT!AM17="","",CMAT!AM17) ->  | AK36: =IF(CMAT!AN17="","",CMAT!AN17) ->  | AL36: =IF(CMAT!AO17="","",CMAT!AO17) ->  | AM36: =IF(CMAT!AP17="","",CMAT!AP17) -> 
B37: Conocimiento del Lenguaje | C37: Comp. Esp. 1 | D37: Criterio Evaluación 1.1 | E37: =IF(CLEN!H4="","",CLEN!H4) ->  | F37: =IF(CLEN!I4="","",CLEN!I4) ->  | G37: =IF(CLEN!J4="","",CLEN!J4) ->  | H37: =IF(CLEN!K4="","",CLEN!K4) ->  | I37: =IF(CLEN!L4="","",CLEN!L4) ->  | J37: =IF(CLEN!M4="","",CLEN!M4) ->  | K37: =IF(CLEN!N4="","",CLEN!N4) ->  | L37: =IF(CLEN!O4="","",CLEN!O4) ->  | M37: =IF(CLEN!P4="","",CLEN!P4) ->  | N37: =IF(CLEN!Q4="","",CLEN!Q4) ->  | O37: =IF(CLEN!R4="","",CLEN!R4) ->  | P37: =IF(CLEN!S4="","",CLEN!S4) ->  | Q37: =IF(CLEN!T4="","",CLEN!T4) ->  | R37: =IF(CLEN!U4="","",CLEN!U4) ->  | S37: =IF(CLEN!V4="","",CLEN!V4) ->  | T37: =IF(CLEN!W4="","",CLEN!W4) ->  | U37: =IF(CLEN!X4="","",CLEN!X4) ->  | V37: =IF(CLEN!Y4="","",CLEN!Y4) ->  | W37: =IF(CLEN!Z4="","",CLEN!Z4) ->  | X37: =IF(CLEN!AA4="","",CLEN!AA4) ->  | Y37: =IF(CLEN!AB4="","",CLEN!AB4) ->  | Z37: =IF(CLEN!AC4="","",CLEN!AC4) ->  | AA37: =IF(CLEN!AD4="","",CLEN!AD4) ->  | AB37: =IF(CLEN!AE4="","",CLEN!AE4) ->  | AC37: =IF(CLEN!AF4="","",CLEN!AF4) ->  | AD37: =IF(CLEN!AG4="","",CLEN!AG4) ->  | AE37: =IF(CLEN!AH4="","",CLEN!AH4) ->  | AF37: =IF(CLEN!AI4="","",CLEN!AI4) ->  | AG37: =IF(CLEN!AJ4="","",CLEN!AJ4) ->  | AH37: =IF(CLEN!AK4="","",CLEN!AK4) ->  | AI37: =IF(CLEN!AL4="","",CLEN!AL4) ->  | AJ37: =IF(CLEN!AM4="","",CLEN!AM4) ->  | AK37: =IF(CLEN!AN4="","",CLEN!AN4) ->  | AL37: =IF(CLEN!AO4="","",CLEN!AO4) ->  | AM37: =IF(CLEN!AP4="","",CLEN!AP4) -> 
D38: Criterio Evaluación 1.2 | E38: =IF(CLEN!H5="","",CLEN!H5) ->  | F38: =IF(CLEN!I5="","",CLEN!I5) ->  | G38: =IF(CLEN!J5="","",CLEN!J5) ->  | H38: =IF(CLEN!K5="","",CLEN!K5) ->  | I38: =IF(CLEN!L5="","",CLEN!L5) ->  | J38: =IF(CLEN!M5="","",CLEN!M5) ->  | K38: =IF(CLEN!N5="","",CLEN!N5) ->  | L38: =IF(CLEN!O5="","",CLEN!O5) ->  | M38: =IF(CLEN!P5="","",CLEN!P5) ->  | N38: =IF(CLEN!Q5="","",CLEN!Q5) ->  | O38: =IF(CLEN!R5="","",CLEN!R5) ->  | P38: =IF(CLEN!S5="","",CLEN!S5) ->  | Q38: =IF(CLEN!T5="","",CLEN!T5) ->  | R38: =IF(CLEN!U5="","",CLEN!U5) ->  | S38: =IF(CLEN!V5="","",CLEN!V5) ->  | T38: =IF(CLEN!W5="","",CLEN!W5) ->  | U38: =IF(CLEN!X5="","",CLEN!X5) ->  | V38: =IF(CLEN!Y5="","",CLEN!Y5) ->  | W38: =IF(CLEN!Z5="","",CLEN!Z5) ->  | X38: =IF(CLEN!AA5="","",CLEN!AA5) ->  | Y38: =IF(CLEN!AB5="","",CLEN!AB5) ->  | Z38: =IF(CLEN!AC5="","",CLEN!AC5) ->  | AA38: =IF(CLEN!AD5="","",CLEN!AD5) ->  | AB38: =IF(CLEN!AE5="","",CLEN!AE5) ->  | AC38: =IF(CLEN!AF5="","",CLEN!AF5) ->  | AD38: =IF(CLEN!AG5="","",CLEN!AG5) ->  | AE38: =IF(CLEN!AH5="","",CLEN!AH5) ->  | AF38: =IF(CLEN!AI5="","",CLEN!AI5) ->  | AG38: =IF(CLEN!AJ5="","",CLEN!AJ5) ->  | AH38: =IF(CLEN!AK5="","",CLEN!AK5) ->  | AI38: =IF(CLEN!AL5="","",CLEN!AL5) ->  | AJ38: =IF(CLEN!AM5="","",CLEN!AM5) ->  | AK38: =IF(CLEN!AN5="","",CLEN!AN5) ->  | AL38: =IF(CLEN!AO5="","",CLEN!AO5) ->  | AM38: =IF(CLEN!AP5="","",CLEN!AP5) -> 
C39: Comp. Esp. 2 | D39: Criterio Evaluación 2.1 | E39: =IF(CLEN!H6="","",CLEN!H6) ->  | F39: =IF(CLEN!I6="","",CLEN!I6) ->  | G39: =IF(CLEN!J6="","",CLEN!J6) ->  | H39: =IF(CLEN!K6="","",CLEN!K6) ->  | I39: =IF(CLEN!L6="","",CLEN!L6) ->  | J39: =IF(CLEN!M6="","",CLEN!M6) ->  | K39: =IF(CLEN!N6="","",CLEN!N6) ->  | L39: =IF(CLEN!O6="","",CLEN!O6) ->  | M39: =IF(CLEN!P6="","",CLEN!P6) ->  | N39: =IF(CLEN!Q6="","",CLEN!Q6) ->  | O39: =IF(CLEN!R6="","",CLEN!R6) ->  | P39: =IF(CLEN!S6="","",CLEN!S6) ->  | Q39: =IF(CLEN!T6="","",CLEN!T6) ->  | R39: =IF(CLEN!U6="","",CLEN!U6) ->  | S39: =IF(CLEN!V6="","",CLEN!V6) ->  | T39: =IF(CLEN!W6="","",CLEN!W6) ->  | U39: =IF(CLEN!X6="","",CLEN!X6) ->  | V39: =IF(CLEN!Y6="","",CLEN!Y6) ->  | W39: =IF(CLEN!Z6="","",CLEN!Z6) ->  | X39: =IF(CLEN!AA6="","",CLEN!AA6) ->  | Y39: =IF(CLEN!AB6="","",CLEN!AB6) ->  | Z39: =IF(CLEN!AC6="","",CLEN!AC6) ->  | AA39: =IF(CLEN!AD6="","",CLEN!AD6) ->  | AB39: =IF(CLEN!AE6="","",CLEN!AE6) ->  | AC39: =IF(CLEN!AF6="","",CLEN!AF6) ->  | AD39: =IF(CLEN!AG6="","",CLEN!AG6) ->  | AE39: =IF(CLEN!AH6="","",CLEN!AH6) ->  | AF39: =IF(CLEN!AI6="","",CLEN!AI6) ->  | AG39: =IF(CLEN!AJ6="","",CLEN!AJ6) ->  | AH39: =IF(CLEN!AK6="","",CLEN!AK6) ->  | AI39: =IF(CLEN!AL6="","",CLEN!AL6) ->  | AJ39: =IF(CLEN!AM6="","",CLEN!AM6) ->  | AK39: =IF(CLEN!AN6="","",CLEN!AN6) ->  | AL39: =IF(CLEN!AO6="","",CLEN!AO6) ->  | AM39: =IF(CLEN!AP6="","",CLEN!AP6) -> 
D40: Criterio Evaluación 2.2 | E40: =IF(CLEN!H7="","",CLEN!H7) ->  | F40: =IF(CLEN!I7="","",CLEN!I7) ->  | G40: =IF(CLEN!J7="","",CLEN!J7) ->  | H40: =IF(CLEN!K7="","",CLEN!K7) ->  | I40: =IF(CLEN!L7="","",CLEN!L7) ->  | J40: =IF(CLEN!M7="","",CLEN!M7) ->  | K40: =IF(CLEN!N7="","",CLEN!N7) ->  | L40: =IF(CLEN!O7="","",CLEN!O7) ->  | M40: =IF(CLEN!P7="","",CLEN!P7) ->  | N40: =IF(CLEN!Q7="","",CLEN!Q7) ->  | O40: =IF(CLEN!R7="","",CLEN!R7) ->  | P40: =IF(CLEN!S7="","",CLEN!S7) ->  | Q40: =IF(CLEN!T7="","",CLEN!T7) ->  | R40: =IF(CLEN!U7="","",CLEN!U7) ->  | S40: =IF(CLEN!V7="","",CLEN!V7) ->  | T40: =IF(CLEN!W7="","",CLEN!W7) ->  | U40: =IF(CLEN!X7="","",CLEN!X7) ->  | V40: =IF(CLEN!Y7="","",CLEN!Y7) ->  | W40: =IF(CLEN!Z7="","",CLEN!Z7) ->  | X40: =IF(CLEN!AA7="","",CLEN!AA7) ->  | Y40: =IF(CLEN!AB7="","",CLEN!AB7) ->  | Z40: =IF(CLEN!AC7="","",CLEN!AC7) ->  | AA40: =IF(CLEN!AD7="","",CLEN!AD7) ->  | AB40: =IF(CLEN!AE7="","",CLEN!AE7) ->  | AC40: =IF(CLEN!AF7="","",CLEN!AF7) ->  | AD40: =IF(CLEN!AG7="","",CLEN!AG7) ->  | AE40: =IF(CLEN!AH7="","",CLEN!AH7) ->  | AF40: =IF(CLEN!AI7="","",CLEN!AI7) ->  | AG40: =IF(CLEN!AJ7="","",CLEN!AJ7) ->  | AH40: =IF(CLEN!AK7="","",CLEN!AK7) ->  | AI40: =IF(CLEN!AL7="","",CLEN!AL7) ->  | AJ40: =IF(CLEN!AM7="","",CLEN!AM7) ->  | AK40: =IF(CLEN!AN7="","",CLEN!AN7) ->  | AL40: =IF(CLEN!AO7="","",CLEN!AO7) ->  | AM40: =IF(CLEN!AP7="","",CLEN!AP7) -> 
C41: Comp. Esp. 3 | D41: Criterio Evaluación 3.1 | E41: =IF(CLEN!H8="","",CLEN!H8) ->  | F41: =IF(CLEN!I8="","",CLEN!I8) ->  | G41: =IF(CLEN!J8="","",CLEN!J8) ->  | H41: =IF(CLEN!K8="","",CLEN!K8) ->  | I41: =IF(CLEN!L8="","",CLEN!L8) ->  | J41: =IF(CLEN!M8="","",CLEN!M8) ->  | K41: =IF(CLEN!N8="","",CLEN!N8) ->  | L41: =IF(CLEN!O8="","",CLEN!O8) ->  | M41: =IF(CLEN!P8="","",CLEN!P8) ->  | N41: =IF(CLEN!Q8="","",CLEN!Q8) ->  | O41: =IF(CLEN!R8="","",CLEN!R8) ->  | P41: =IF(CLEN!S8="","",CLEN!S8) ->  | Q41: =IF(CLEN!T8="","",CLEN!T8) ->  | R41: =IF(CLEN!U8="","",CLEN!U8) ->  | S41: =IF(CLEN!V8="","",CLEN!V8) ->  | T41: =IF(CLEN!W8="","",CLEN!W8) ->  | U41: =IF(CLEN!X8="","",CLEN!X8) ->  | V41: =IF(CLEN!Y8="","",CLEN!Y8) ->  | W41: =IF(CLEN!Z8="","",CLEN!Z8) ->  | X41: =IF(CLEN!AA8="","",CLEN!AA8) ->  | Y41: =IF(CLEN!AB8="","",CLEN!AB8) ->  | Z41: =IF(CLEN!AC8="","",CLEN!AC8) ->  | AA41: =IF(CLEN!AD8="","",CLEN!AD8) ->  | AB41: =IF(CLEN!AE8="","",CLEN!AE8) ->  | AC41: =IF(CLEN!AF8="","",CLEN!AF8) ->  | AD41: =IF(CLEN!AG8="","",CLEN!AG8) ->  | AE41: =IF(CLEN!AH8="","",CLEN!AH8) ->  | AF41: =IF(CLEN!AI8="","",CLEN!AI8) ->  | AG41: =IF(CLEN!AJ8="","",CLEN!AJ8) ->  | AH41: =IF(CLEN!AK8="","",CLEN!AK8) ->  | AI41: =IF(CLEN!AL8="","",CLEN!AL8) ->  | AJ41: =IF(CLEN!AM8="","",CLEN!AM8) ->  | AK41: =IF(CLEN!AN8="","",CLEN!AN8) ->  | AL41: =IF(CLEN!AO8="","",CLEN!AO8) ->  | AM41: =IF(CLEN!AP8="","",CLEN!AP8) -> 
D42: Criterio Evaluación 3.2 | E42: =IF(CLEN!H9="","",CLEN!H9) ->  | F42: =IF(CLEN!I9="","",CLEN!I9) ->  | G42: =IF(CLEN!J9="","",CLEN!J9) ->  | H42: =IF(CLEN!K9="","",CLEN!K9) ->  | I42: =IF(CLEN!L9="","",CLEN!L9) ->  | J42: =IF(CLEN!M9="","",CLEN!M9) ->  | K42: =IF(CLEN!N9="","",CLEN!N9) ->  | L42: =IF(CLEN!O9="","",CLEN!O9) ->  | M42: =IF(CLEN!P9="","",CLEN!P9) ->  | N42: =IF(CLEN!Q9="","",CLEN!Q9) ->  | O42: =IF(CLEN!R9="","",CLEN!R9) ->  | P42: =IF(CLEN!S9="","",CLEN!S9) ->  | Q42: =IF(CLEN!T9="","",CLEN!T9) ->  | R42: =IF(CLEN!U9="","",CLEN!U9) ->  | S42: =IF(CLEN!V9="","",CLEN!V9) ->  | T42: =IF(CLEN!W9="","",CLEN!W9) ->  | U42: =IF(CLEN!X9="","",CLEN!X9) ->  | V42: =IF(CLEN!Y9="","",CLEN!Y9) ->  | W42: =IF(CLEN!Z9="","",CLEN!Z9) ->  | X42: =IF(CLEN!AA9="","",CLEN!AA9) ->  | Y42: =IF(CLEN!AB9="","",CLEN!AB9) ->  | Z42: =IF(CLEN!AC9="","",CLEN!AC9) ->  | AA42: =IF(CLEN!AD9="","",CLEN!AD9) ->  | AB42: =IF(CLEN!AE9="","",CLEN!AE9) ->  | AC42: =IF(CLEN!AF9="","",CLEN!AF9) ->  | AD42: =IF(CLEN!AG9="","",CLEN!AG9) ->  | AE42: =IF(CLEN!AH9="","",CLEN!AH9) ->  | AF42: =IF(CLEN!AI9="","",CLEN!AI9) ->  | AG42: =IF(CLEN!AJ9="","",CLEN!AJ9) ->  | AH42: =IF(CLEN!AK9="","",CLEN!AK9) ->  | AI42: =IF(CLEN!AL9="","",CLEN!AL9) ->  | AJ42: =IF(CLEN!AM9="","",CLEN!AM9) ->  | AK42: =IF(CLEN!AN9="","",CLEN!AN9) ->  | AL42: =IF(CLEN!AO9="","",CLEN!AO9) ->  | AM42: =IF(CLEN!AP9="","",CLEN!AP9) -> 
D43: Criterio Evaluación 3.3 | E43: =IF(CLEN!H10="","",CLEN!H10) ->  | F43: =IF(CLEN!I10="","",CLEN!I10) ->  | G43: =IF(CLEN!J10="","",CLEN!J10) ->  | H43: =IF(CLEN!K10="","",CLEN!K10) ->  | I43: =IF(CLEN!L10="","",CLEN!L10) ->  | J43: =IF(CLEN!M10="","",CLEN!M10) ->  | K43: =IF(CLEN!N10="","",CLEN!N10) ->  | L43: =IF(CLEN!O10="","",CLEN!O10) ->  | M43: =IF(CLEN!P10="","",CLEN!P10) ->  | N43: =IF(CLEN!Q10="","",CLEN!Q10) ->  | O43: =IF(CLEN!R10="","",CLEN!R10) ->  | P43: =IF(CLEN!S10="","",CLEN!S10) ->  | Q43: =IF(CLEN!T10="","",CLEN!T10) ->  | R43: =IF(CLEN!U10="","",CLEN!U10) ->  | S43: =IF(CLEN!V10="","",CLEN!V10) ->  | T43: =IF(CLEN!W10="","",CLEN!W10) ->  | U43: =IF(CLEN!X10="","",CLEN!X10) ->  | V43: =IF(CLEN!Y10="","",CLEN!Y10) ->  | W43: =IF(CLEN!Z10="","",CLEN!Z10) ->  | X43: =IF(CLEN!AA10="","",CLEN!AA10) ->  | Y43: =IF(CLEN!AB10="","",CLEN!AB10) ->  | Z43: =IF(CLEN!AC10="","",CLEN!AC10) ->  | AA43: =IF(CLEN!AD10="","",CLEN!AD10) ->  | AB43: =IF(CLEN!AE10="","",CLEN!AE10) ->  | AC43: =IF(CLEN!AF10="","",CLEN!AF10) ->  | AD43: =IF(CLEN!AG10="","",CLEN!AG10) ->  | AE43: =IF(CLEN!AH10="","",CLEN!AH10) ->  | AF43: =IF(CLEN!AI10="","",CLEN!AI10) ->  | AG43: =IF(CLEN!AJ10="","",CLEN!AJ10) ->  | AH43: =IF(CLEN!AK10="","",CLEN!AK10) ->  | AI43: =IF(CLEN!AL10="","",CLEN!AL10) ->  | AJ43: =IF(CLEN!AM10="","",CLEN!AM10) ->  | AK43: =IF(CLEN!AN10="","",CLEN!AN10) ->  | AL43: =IF(CLEN!AO10="","",CLEN!AO10) ->  | AM43: =IF(CLEN!AP10="","",CLEN!AP10) -> 
D44: Criterio Evaluación 3.4 | E44: =IF(CLEN!H11="","",CLEN!H11) ->  | F44: =IF(CLEN!I11="","",CLEN!I11) ->  | G44: =IF(CLEN!J11="","",CLEN!J11) ->  | H44: =IF(CLEN!K11="","",CLEN!K11) ->  | I44: =IF(CLEN!L11="","",CLEN!L11) ->  | J44: =IF(CLEN!M11="","",CLEN!M11) ->  | K44: =IF(CLEN!N11="","",CLEN!N11) ->  | L44: =IF(CLEN!O11="","",CLEN!O11) ->  | M44: =IF(CLEN!P11="","",CLEN!P11) ->  | N44: =IF(CLEN!Q11="","",CLEN!Q11) ->  | O44: =IF(CLEN!R11="","",CLEN!R11) ->  | P44: =IF(CLEN!S11="","",CLEN!S11) ->  | Q44: =IF(CLEN!T11="","",CLEN!T11) ->  | R44: =IF(CLEN!U11="","",CLEN!U11) ->  | S44: =IF(CLEN!V11="","",CLEN!V11) ->  | T44: =IF(CLEN!W11="","",CLEN!W11) ->  | U44: =IF(CLEN!X11="","",CLEN!X11) ->  | V44: =IF(CLEN!Y11="","",CLEN!Y11) ->  | W44: =IF(CLEN!Z11="","",CLEN!Z11) ->  | X44: =IF(CLEN!AA11="","",CLEN!AA11) ->  | Y44: =IF(CLEN!AB11="","",CLEN!AB11) ->  | Z44: =IF(CLEN!AC11="","",CLEN!AC11) ->  | AA44: =IF(CLEN!AD11="","",CLEN!AD11) ->  | AB44: =IF(CLEN!AE11="","",CLEN!AE11) ->  | AC44: =IF(CLEN!AF11="","",CLEN!AF11) ->  | AD44: =IF(CLEN!AG11="","",CLEN!AG11) ->  | AE44: =IF(CLEN!AH11="","",CLEN!AH11) ->  | AF44: =IF(CLEN!AI11="","",CLEN!AI11) ->  | AG44: =IF(CLEN!AJ11="","",CLEN!AJ11) ->  | AH44: =IF(CLEN!AK11="","",CLEN!AK11) ->  | AI44: =IF(CLEN!AL11="","",CLEN!AL11) ->  | AJ44: =IF(CLEN!AM11="","",CLEN!AM11) ->  | AK44: =IF(CLEN!AN11="","",CLEN!AN11) ->  | AL44: =IF(CLEN!AO11="","",CLEN!AO11) ->  | AM44: =IF(CLEN!AP11="","",CLEN!AP11) -> 
C45: Comp. Esp. 4 | D45: Criterio Evaluación 4.1 | E45: =IF(CLEN!H12="","",CLEN!H12) ->  | F45: =IF(CLEN!I12="","",CLEN!I12) ->  | G45: =IF(CLEN!J12="","",CLEN!J12) ->  | H45: =IF(CLEN!K12="","",CLEN!K12) ->  | I45: =IF(CLEN!L12="","",CLEN!L12) ->  | J45: =IF(CLEN!M12="","",CLEN!M12) ->  | K45: =IF(CLEN!N12="","",CLEN!N12) ->  | L45: =IF(CLEN!O12="","",CLEN!O12) ->  | M45: =IF(CLEN!P12="","",CLEN!P12) ->  | N45: =IF(CLEN!Q12="","",CLEN!Q12) ->  | O45: =IF(CLEN!R12="","",CLEN!R12) ->  | P45: =IF(CLEN!S12="","",CLEN!S12) ->  | Q45: =IF(CLEN!T12="","",CLEN!T12) ->  | R45: =IF(CLEN!U12="","",CLEN!U12) ->  | S45: =IF(CLEN!V12="","",CLEN!V12) ->  | T45: =IF(CLEN!W12="","",CLEN!W12) ->  | U45: =IF(CLEN!X12="","",CLEN!X12) ->  | V45: =IF(CLEN!Y12="","",CLEN!Y12) ->  | W45: =IF(CLEN!Z12="","",CLEN!Z12) ->  | X45: =IF(CLEN!AA12="","",CLEN!AA12) ->  | Y45: =IF(CLEN!AB12="","",CLEN!AB12) ->  | Z45: =IF(CLEN!AC12="","",CLEN!AC12) ->  | AA45: =IF(CLEN!AD12="","",CLEN!AD12) ->  | AB45: =IF(CLEN!AE12="","",CLEN!AE12) ->  | AC45: =IF(CLEN!AF12="","",CLEN!AF12) ->  | AD45: =IF(CLEN!AG12="","",CLEN!AG12) ->  | AE45: =IF(CLEN!AH12="","",CLEN!AH12) ->  | AF45: =IF(CLEN!AI12="","",CLEN!AI12) ->  | AG45: =IF(CLEN!AJ12="","",CLEN!AJ12) ->  | AH45: =IF(CLEN!AK12="","",CLEN!AK12) ->  | AI45: =IF(CLEN!AL12="","",CLEN!AL12) ->  | AJ45: =IF(CLEN!AM12="","",CLEN!AM12) ->  | AK45: =IF(CLEN!AN12="","",CLEN!AN12) ->  | AL45: =IF(CLEN!AO12="","",CLEN!AO12) ->  | AM45: =IF(CLEN!AP12="","",CLEN!AP12) -> 
C46: Comp. Esp. 5 | D46: Criterio Evaluación 5.1 | E46: =IF(CLEN!H13="","",CLEN!H13) ->  | F46: =IF(CLEN!I13="","",CLEN!I13) ->  | G46: =IF(CLEN!J13="","",CLEN!J13) ->  | H46: =IF(CLEN!K13="","",CLEN!K13) ->  | I46: =IF(CLEN!L13="","",CLEN!L13) ->  | J46: =IF(CLEN!M13="","",CLEN!M13) ->  | K46: =IF(CLEN!N13="","",CLEN!N13) ->  | L46: =IF(CLEN!O13="","",CLEN!O13) ->  | M46: =IF(CLEN!P13="","",CLEN!P13) ->  | N46: =IF(CLEN!Q13="","",CLEN!Q13) ->  | O46: =IF(CLEN!R13="","",CLEN!R13) ->  | P46: =IF(CLEN!S13="","",CLEN!S13) ->  | Q46: =IF(CLEN!T13="","",CLEN!T13) ->  | R46: =IF(CLEN!U13="","",CLEN!U13) ->  | S46: =IF(CLEN!V13="","",CLEN!V13) ->  | T46: =IF(CLEN!W13="","",CLEN!W13) ->  | U46: =IF(CLEN!X13="","",CLEN!X13) ->  | V46: =IF(CLEN!Y13="","",CLEN!Y13) ->  | W46: =IF(CLEN!Z13="","",CLEN!Z13) ->  | X46: =IF(CLEN!AA13="","",CLEN!AA13) ->  | Y46: =IF(CLEN!AB13="","",CLEN!AB13) ->  | Z46: =IF(CLEN!AC13="","",CLEN!AC13) ->  | AA46: =IF(CLEN!AD13="","",CLEN!AD13) ->  | AB46: =IF(CLEN!AE13="","",CLEN!AE13) ->  | AC46: =IF(CLEN!AF13="","",CLEN!AF13) ->  | AD46: =IF(CLEN!AG13="","",CLEN!AG13) ->  | AE46: =IF(CLEN!AH13="","",CLEN!AH13) ->  | AF46: =IF(CLEN!AI13="","",CLEN!AI13) ->  | AG46: =IF(CLEN!AJ13="","",CLEN!AJ13) ->  | AH46: =IF(CLEN!AK13="","",CLEN!AK13) ->  | AI46: =IF(CLEN!AL13="","",CLEN!AL13) ->  | AJ46: =IF(CLEN!AM13="","",CLEN!AM13) ->  | AK46: =IF(CLEN!AN13="","",CLEN!AN13) ->  | AL46: =IF(CLEN!AO13="","",CLEN!AO13) ->  | AM46: =IF(CLEN!AP13="","",CLEN!AP13) -> 
D47: Criterio Evaluación 5.2 | E47: =IF(CLEN!H14="","",CLEN!H14) ->  | F47: =IF(CLEN!I14="","",CLEN!I14) ->  | G47: =IF(CLEN!J14="","",CLEN!J14) ->  | H47: =IF(CLEN!K14="","",CLEN!K14) ->  | I47: =IF(CLEN!L14="","",CLEN!L14) ->  | J47: =IF(CLEN!M14="","",CLEN!M14) ->  | K47: =IF(CLEN!N14="","",CLEN!N14) ->  | L47: =IF(CLEN!O14="","",CLEN!O14) ->  | M47: =IF(CLEN!P14="","",CLEN!P14) ->  | N47: =IF(CLEN!Q14="","",CLEN!Q14) ->  | O47: =IF(CLEN!R14="","",CLEN!R14) ->  | P47: =IF(CLEN!S14="","",CLEN!S14) ->  | Q47: =IF(CLEN!T14="","",CLEN!T14) ->  | R47: =IF(CLEN!U14="","",CLEN!U14) ->  | S47: =IF(CLEN!V14="","",CLEN!V14) ->  | T47: =IF(CLEN!W14="","",CLEN!W14) ->  | U47: =IF(CLEN!X14="","",CLEN!X14) ->  | V47: =IF(CLEN!Y14="","",CLEN!Y14) ->  | W47: =IF(CLEN!Z14="","",CLEN!Z14) ->  | X47: =IF(CLEN!AA14="","",CLEN!AA14) ->  | Y47: =IF(CLEN!AB14="","",CLEN!AB14) ->  | Z47: =IF(CLEN!AC14="","",CLEN!AC14) ->  | AA47: =IF(CLEN!AD14="","",CLEN!AD14) ->  | AB47: =IF(CLEN!AE14="","",CLEN!AE14) ->  | AC47: =IF(CLEN!AF14="","",CLEN!AF14) ->  | AD47: =IF(CLEN!AG14="","",CLEN!AG14) ->  | AE47: =IF(CLEN!AH14="","",CLEN!AH14) ->  | AF47: =IF(CLEN!AI14="","",CLEN!AI14) ->  | AG47: =IF(CLEN!AJ14="","",CLEN!AJ14) ->  | AH47: =IF(CLEN!AK14="","",CLEN!AK14) ->  | AI47: =IF(CLEN!AL14="","",CLEN!AL14) ->  | AJ47: =IF(CLEN!AM14="","",CLEN!AM14) ->  | AK47: =IF(CLEN!AN14="","",CLEN!AN14) ->  | AL47: =IF(CLEN!AO14="","",CLEN!AO14) ->  | AM47: =IF(CLEN!AP14="","",CLEN!AP14) -> 
C48: Comp. Esp. 6 | D48: Criterio Evaluación 6.1 | E48: =IF(CLEN!H15="","",CLEN!H15) ->  | F48: =IF(CLEN!I15="","",CLEN!I15) ->  | G48: =IF(CLEN!J15="","",CLEN!J15) ->  | H48: =IF(CLEN!K15="","",CLEN!K15) ->  | I48: =IF(CLEN!L15="","",CLEN!L15) ->  | J48: =IF(CLEN!M15="","",CLEN!M15) ->  | K48: =IF(CLEN!N15="","",CLEN!N15) ->  | L48: =IF(CLEN!O15="","",CLEN!O15) ->  | M48: =IF(CLEN!P15="","",CLEN!P15) ->  | N48: =IF(CLEN!Q15="","",CLEN!Q15) ->  | O48: =IF(CLEN!R15="","",CLEN!R15) ->  | P48: =IF(CLEN!S15="","",CLEN!S15) ->  | Q48: =IF(CLEN!T15="","",CLEN!T15) ->  | R48: =IF(CLEN!U15="","",CLEN!U15) ->  | S48: =IF(CLEN!V15="","",CLEN!V15) ->  | T48: =IF(CLEN!W15="","",CLEN!W15) ->  | U48: =IF(CLEN!X15="","",CLEN!X15) ->  | V48: =IF(CLEN!Y15="","",CLEN!Y15) ->  | W48: =IF(CLEN!Z15="","",CLEN!Z15) ->  | X48: =IF(CLEN!AA15="","",CLEN!AA15) ->  | Y48: =IF(CLEN!AB15="","",CLEN!AB15) ->  | Z48: =IF(CLEN!AC15="","",CLEN!AC15) ->  | AA48: =IF(CLEN!AD15="","",CLEN!AD15) ->  | AB48: =IF(CLEN!AE15="","",CLEN!AE15) ->  | AC48: =IF(CLEN!AF15="","",CLEN!AF15) ->  | AD48: =IF(CLEN!AG15="","",CLEN!AG15) ->  | AE48: =IF(CLEN!AH15="","",CLEN!AH15) ->  | AF48: =IF(CLEN!AI15="","",CLEN!AI15) ->  | AG48: =IF(CLEN!AJ15="","",CLEN!AJ15) ->  | AH48: =IF(CLEN!AK15="","",CLEN!AK15) ->  | AI48: =IF(CLEN!AL15="","",CLEN!AL15) ->  | AJ48: =IF(CLEN!AM15="","",CLEN!AM15) ->  | AK48: =IF(CLEN!AN15="","",CLEN!AN15) ->  | AL48: =IF(CLEN!AO15="","",CLEN!AO15) ->  | AM48: =IF(CLEN!AP15="","",CLEN!AP15) -> 
D49: Criterio Evaluación 6.2 | E49: =IF(CLEN!H16="","",CLEN!H16) ->  | F49: =IF(CLEN!I16="","",CLEN!I16) ->  | G49: =IF(CLEN!J16="","",CLEN!J16) ->  | H49: =IF(CLEN!K16="","",CLEN!K16) ->  | I49: =IF(CLEN!L16="","",CLEN!L16) ->  | J49: =IF(CLEN!M16="","",CLEN!M16) ->  | K49: =IF(CLEN!N16="","",CLEN!N16) ->  | L49: =IF(CLEN!O16="","",CLEN!O16) ->  | M49: =IF(CLEN!P16="","",CLEN!P16) ->  | N49: =IF(CLEN!Q16="","",CLEN!Q16) ->  | O49: =IF(CLEN!R16="","",CLEN!R16) ->  | P49: =IF(CLEN!S16="","",CLEN!S16) ->  | Q49: =IF(CLEN!T16="","",CLEN!T16) ->  | R49: =IF(CLEN!U16="","",CLEN!U16) ->  | S49: =IF(CLEN!V16="","",CLEN!V16) ->  | T49: =IF(CLEN!W16="","",CLEN!W16) ->  | U49: =IF(CLEN!X16="","",CLEN!X16) ->  | V49: =IF(CLEN!Y16="","",CLEN!Y16) ->  | W49: =IF(CLEN!Z16="","",CLEN!Z16) ->  | X49: =IF(CLEN!AA16="","",CLEN!AA16) ->  | Y49: =IF(CLEN!AB16="","",CLEN!AB16) ->  | Z49: =IF(CLEN!AC16="","",CLEN!AC16) ->  | AA49: =IF(CLEN!AD16="","",CLEN!AD16) ->  | AB49: =IF(CLEN!AE16="","",CLEN!AE16) ->  | AC49: =IF(CLEN!AF16="","",CLEN!AF16) ->  | AD49: =IF(CLEN!AG16="","",CLEN!AG16) ->  | AE49: =IF(CLEN!AH16="","",CLEN!AH16) ->  | AF49: =IF(CLEN!AI16="","",CLEN!AI16) ->  | AG49: =IF(CLEN!AJ16="","",CLEN!AJ16) ->  | AH49: =IF(CLEN!AK16="","",CLEN!AK16) ->  | AI49: =IF(CLEN!AL16="","",CLEN!AL16) ->  | AJ49: =IF(CLEN!AM16="","",CLEN!AM16) ->  | AK49: =IF(CLEN!AN16="","",CLEN!AN16) ->  | AL49: =IF(CLEN!AO16="","",CLEN!AO16) ->  | AM49: =IF(CLEN!AP16="","",CLEN!AP16) -> 
B50: Cultura Científica | C50: Comp. Esp. 1 | D50: Criterio Evaluación 1.1 | E50: =IF('Cultura Cientifica'!H4="","",'Cultura Cientifica'!H4) ->  | F50: =IF('Cultura Cientifica'!I4="","",'Cultura Cientifica'!I4) ->  | G50: =IF('Cultura Cientifica'!J4="","",'Cultura Cientifica'!J4) ->  | H50: =IF('Cultura Cientifica'!K4="","",'Cultura Cientifica'!K4) ->  | I50: =IF('Cultura Cientifica'!L4="","",'Cultura Cientifica'!L4) ->  | J50: =IF('Cultura Cientifica'!M4="","",'Cultura Cientifica'!M4) ->  | K50: =IF('Cultura Cientifica'!N4="","",'Cultura Cientifica'!N4) ->  | L50: =IF('Cultura Cientifica'!O4="","",'Cultura Cientifica'!O4) ->  | M50: =IF('Cultura Cientifica'!P4="","",'Cultura Cientifica'!P4) ->  | N50: =IF('Cultura Cientifica'!Q4="","",'Cultura Cientifica'!Q4) ->  | O50: =IF('Cultura Cientifica'!R4="","",'Cultura Cientifica'!R4) ->  | P50: =IF('Cultura Cientifica'!S4="","",'Cultura Cientifica'!S4) ->  | Q50: =IF('Cultura Cientifica'!T4="","",'Cultura Cientifica'!T4) ->  | R50: =IF('Cultura Cientifica'!U4="","",'Cultura Cientifica'!U4) ->  | S50: =IF('Cultura Cientifica'!V4="","",'Cultura Cientifica'!V4) ->  | T50: =IF('Cultura Cientifica'!W4="","",'Cultura Cientifica'!W4) ->  | U50: =IF('Cultura Cientifica'!X4="","",'Cultura Cientifica'!X4) ->  | V50: =IF('Cultura Cientifica'!Y4="","",'Cultura Cientifica'!Y4) ->  | W50: =IF('Cultura Cientifica'!Z4="","",'Cultura Cientifica'!Z4) ->  | X50: =IF('Cultura Cientifica'!AA4="","",'Cultura Cientifica'!AA4) ->  | Y50: =IF('Cultura Cientifica'!AB4="","",'Cultura Cientifica'!AB4) ->  | Z50: =IF('Cultura Cientifica'!AC4="","",'Cultura Cientifica'!AC4) ->  | AA50: =IF('Cultura Cientifica'!AD4="","",'Cultura Cientifica'!AD4) ->  | AB50: =IF('Cultura Cientifica'!AE4="","",'Cultura Cientifica'!AE4) ->  | AC50: =IF('Cultura Cientifica'!AF4="","",'Cultura Cientifica'!AF4) ->  | AD50: =IF('Cultura Cientifica'!AG4="","",'Cultura Cientifica'!AG4) ->  | AE50: =IF('Cultura Cientifica'!AH4="","",'Cultura Cientifica'!AH4) ->  | AF50: =IF('Cultura Cientifica'!AI4="","",'Cultura Cientifica'!AI4) ->  | AG50: =IF('Cultura Cientifica'!AJ4="","",'Cultura Cientifica'!AJ4) ->  | AH50: =IF('Cultura Cientifica'!AK4="","",'Cultura Cientifica'!AK4) ->  | AI50: =IF('Cultura Cientifica'!AL4="","",'Cultura Cientifica'!AL4) ->  | AJ50: =IF('Cultura Cientifica'!AM4="","",'Cultura Cientifica'!AM4) ->  | AK50: =IF('Cultura Cientifica'!AN4="","",'Cultura Cientifica'!AN4) ->  | AL50: =IF('Cultura Cientifica'!AO4="","",'Cultura Cientifica'!AO4) ->  | AM50: =IF('Cultura Cientifica'!AP4="","",'Cultura Cientifica'!AP4) -> 
D51: Criterio Evaluación 1.2 | E51: =IF('Cultura Cientifica'!H5="","",'Cultura Cientifica'!H5) ->  | F51: =IF('Cultura Cientifica'!I5="","",'Cultura Cientifica'!I5) ->  | G51: =IF('Cultura Cientifica'!J5="","",'Cultura Cientifica'!J5) ->  | H51: =IF('Cultura Cientifica'!K5="","",'Cultura Cientifica'!K5) ->  | I51: =IF('Cultura Cientifica'!L5="","",'Cultura Cientifica'!L5) ->  | J51: =IF('Cultura Cientifica'!M5="","",'Cultura Cientifica'!M5) ->  | K51: =IF('Cultura Cientifica'!N5="","",'Cultura Cientifica'!N5) ->  | L51: =IF('Cultura Cientifica'!O5="","",'Cultura Cientifica'!O5) ->  | M51: =IF('Cultura Cientifica'!P5="","",'Cultura Cientifica'!P5) ->  | N51: =IF('Cultura Cientifica'!Q5="","",'Cultura Cientifica'!Q5) ->  | O51: =IF('Cultura Cientifica'!R5="","",'Cultura Cientifica'!R5) ->  | P51: =IF('Cultura Cientifica'!S5="","",'Cultura Cientifica'!S5) ->  | Q51: =IF('Cultura Cientifica'!T5="","",'Cultura Cientifica'!T5) ->  | R51: =IF('Cultura Cientifica'!U5="","",'Cultura Cientifica'!U5) ->  | S51: =IF('Cultura Cientifica'!V5="","",'Cultura Cientifica'!V5) ->  | T51: =IF('Cultura Cientifica'!W5="","",'Cultura Cientifica'!W5) ->  | U51: =IF('Cultura Cientifica'!X5="","",'Cultura Cientifica'!X5) ->  | V51: =IF('Cultura Cientifica'!Y5="","",'Cultura Cientifica'!Y5) ->  | W51: =IF('Cultura Cientifica'!Z5="","",'Cultura Cientifica'!Z5) ->  | X51: =IF('Cultura Cientifica'!AA5="","",'Cultura Cientifica'!AA5) ->  | Y51: =IF('Cultura Cientifica'!AB5="","",'Cultura Cientifica'!AB5) ->  | Z51: =IF('Cultura Cientifica'!AC5="","",'Cultura Cientifica'!AC5) ->  | AA51: =IF('Cultura Cientifica'!AD5="","",'Cultura Cientifica'!AD5) ->  | AB51: =IF('Cultura Cientifica'!AE5="","",'Cultura Cientifica'!AE5) ->  | AC51: =IF('Cultura Cientifica'!AF5="","",'Cultura Cientifica'!AF5) ->  | AD51: =IF('Cultura Cientifica'!AG5="","",'Cultura Cientifica'!AG5) ->  | AE51: =IF('Cultura Cientifica'!AH5="","",'Cultura Cientifica'!AH5) ->  | AF51: =IF('Cultura Cientifica'!AI5="","",'Cultura Cientifica'!AI5) ->  | AG51: =IF('Cultura Cientifica'!AJ5="","",'Cultura Cientifica'!AJ5) ->  | AH51: =IF('Cultura Cientifica'!AK5="","",'Cultura Cientifica'!AK5) ->  | AI51: =IF('Cultura Cientifica'!AL5="","",'Cultura Cientifica'!AL5) ->  | AJ51: =IF('Cultura Cientifica'!AM5="","",'Cultura Cientifica'!AM5) ->  | AK51: =IF('Cultura Cientifica'!AN5="","",'Cultura Cientifica'!AN5) ->  | AL51: =IF('Cultura Cientifica'!AO5="","",'Cultura Cientifica'!AO5) ->  | AM51: =IF('Cultura Cientifica'!AP5="","",'Cultura Cientifica'!AP5) -> 
D52: Criterio Evaluación 1.3 | E52: =IF('Cultura Cientifica'!H6="","",'Cultura Cientifica'!H6) ->  | F52: =IF('Cultura Cientifica'!I6="","",'Cultura Cientifica'!I6) ->  | G52: =IF('Cultura Cientifica'!J6="","",'Cultura Cientifica'!J6) ->  | H52: =IF('Cultura Cientifica'!K6="","",'Cultura Cientifica'!K6) ->  | I52: =IF('Cultura Cientifica'!L6="","",'Cultura Cientifica'!L6) ->  | J52: =IF('Cultura Cientifica'!M6="","",'Cultura Cientifica'!M6) ->  | K52: =IF('Cultura Cientifica'!N6="","",'Cultura Cientifica'!N6) ->  | L52: =IF('Cultura Cientifica'!O6="","",'Cultura Cientifica'!O6) ->  | M52: =IF('Cultura Cientifica'!P6="","",'Cultura Cientifica'!P6) ->  | N52: =IF('Cultura Cientifica'!Q6="","",'Cultura Cientifica'!Q6) ->  | O52: =IF('Cultura Cientifica'!R6="","",'Cultura Cientifica'!R6) ->  | P52: =IF('Cultura Cientifica'!S6="","",'Cultura Cientifica'!S6) ->  | Q52: =IF('Cultura Cientifica'!T6="","",'Cultura Cientifica'!T6) ->  | R52: =IF('Cultura Cientifica'!U6="","",'Cultura Cientifica'!U6) ->  | S52: =IF('Cultura Cientifica'!V6="","",'Cultura Cientifica'!V6) ->  | T52: =IF('Cultura Cientifica'!W6="","",'Cultura Cientifica'!W6) ->  | U52: =IF('Cultura Cientifica'!X6="","",'Cultura Cientifica'!X6) ->  | V52: =IF('Cultura Cientifica'!Y6="","",'Cultura Cientifica'!Y6) ->  | W52: =IF('Cultura Cientifica'!Z6="","",'Cultura Cientifica'!Z6) ->  | X52: =IF('Cultura Cientifica'!AA6="","",'Cultura Cientifica'!AA6) ->  | Y52: =IF('Cultura Cientifica'!AB6="","",'Cultura Cientifica'!AB6) ->  | Z52: =IF('Cultura Cientifica'!AC6="","",'Cultura Cientifica'!AC6) ->  | AA52: =IF('Cultura Cientifica'!AD6="","",'Cultura Cientifica'!AD6) ->  | AB52: =IF('Cultura Cientifica'!AE6="","",'Cultura Cientifica'!AE6) ->  | AC52: =IF('Cultura Cientifica'!AF6="","",'Cultura Cientifica'!AF6) ->  | AD52: =IF('Cultura Cientifica'!AG6="","",'Cultura Cientifica'!AG6) ->  | AE52: =IF('Cultura Cientifica'!AH6="","",'Cultura Cientifica'!AH6) ->  | AF52: =IF('Cultura Cientifica'!AI6="","",'Cultura Cientifica'!AI6) ->  | AG52: =IF('Cultura Cientifica'!AJ6="","",'Cultura Cientifica'!AJ6) ->  | AH52: =IF('Cultura Cientifica'!AK6="","",'Cultura Cientifica'!AK6) ->  | AI52: =IF('Cultura Cientifica'!AL6="","",'Cultura Cientifica'!AL6) ->  | AJ52: =IF('Cultura Cientifica'!AM6="","",'Cultura Cientifica'!AM6) ->  | AK52: =IF('Cultura Cientifica'!AN6="","",'Cultura Cientifica'!AN6) ->  | AL52: =IF('Cultura Cientifica'!AO6="","",'Cultura Cientifica'!AO6) ->  | AM52: =IF('Cultura Cientifica'!AP6="","",'Cultura Cientifica'!AP6) -> 
C53: Comp. Esp. 2 | D53: Criterio Evaluación 2.1 | E53: =IF('Cultura Cientifica'!H7="","",'Cultura Cientifica'!H7) ->  | F53: =IF('Cultura Cientifica'!I7="","",'Cultura Cientifica'!I7) ->  | G53: =IF('Cultura Cientifica'!J7="","",'Cultura Cientifica'!J7) ->  | H53: =IF('Cultura Cientifica'!K7="","",'Cultura Cientifica'!K7) ->  | I53: =IF('Cultura Cientifica'!L7="","",'Cultura Cientifica'!L7) ->  | J53: =IF('Cultura Cientifica'!M7="","",'Cultura Cientifica'!M7) ->  | K53: =IF('Cultura Cientifica'!N7="","",'Cultura Cientifica'!N7) ->  | L53: =IF('Cultura Cientifica'!O7="","",'Cultura Cientifica'!O7) ->  | M53: =IF('Cultura Cientifica'!P7="","",'Cultura Cientifica'!P7) ->  | N53: =IF('Cultura Cientifica'!Q7="","",'Cultura Cientifica'!Q7) ->  | O53: =IF('Cultura Cientifica'!R7="","",'Cultura Cientifica'!R7) ->  | P53: =IF('Cultura Cientifica'!S7="","",'Cultura Cientifica'!S7) ->  | Q53: =IF('Cultura Cientifica'!T7="","",'Cultura Cientifica'!T7) ->  | R53: =IF('Cultura Cientifica'!U7="","",'Cultura Cientifica'!U7) ->  | S53: =IF('Cultura Cientifica'!V7="","",'Cultura Cientifica'!V7) ->  | T53: =IF('Cultura Cientifica'!W7="","",'Cultura Cientifica'!W7) ->  | U53: =IF('Cultura Cientifica'!X7="","",'Cultura Cientifica'!X7) ->  | V53: =IF('Cultura Cientifica'!Y7="","",'Cultura Cientifica'!Y7) ->  | W53: =IF('Cultura Cientifica'!Z7="","",'Cultura Cientifica'!Z7) ->  | X53: =IF('Cultura Cientifica'!AA7="","",'Cultura Cientifica'!AA7) ->  | Y53: =IF('Cultura Cientifica'!AB7="","",'Cultura Cientifica'!AB7) ->  | Z53: =IF('Cultura Cientifica'!AC7="","",'Cultura Cientifica'!AC7) ->  | AA53: =IF('Cultura Cientifica'!AD7="","",'Cultura Cientifica'!AD7) ->  | AB53: =IF('Cultura Cientifica'!AE7="","",'Cultura Cientifica'!AE7) ->  | AC53: =IF('Cultura Cientifica'!AF7="","",'Cultura Cientifica'!AF7) ->  | AD53: =IF('Cultura Cientifica'!AG7="","",'Cultura Cientifica'!AG7) ->  | AE53: =IF('Cultura Cientifica'!AH7="","",'Cultura Cientifica'!AH7) ->  | AF53: =IF('Cultura Cientifica'!AI7="","",'Cultura Cientifica'!AI7) ->  | AG53: =IF('Cultura Cientifica'!AJ7="","",'Cultura Cientifica'!AJ7) ->  | AH53: =IF('Cultura Cientifica'!AK7="","",'Cultura Cientifica'!AK7) ->  | AI53: =IF('Cultura Cientifica'!AL7="","",'Cultura Cientifica'!AL7) ->  | AJ53: =IF('Cultura Cientifica'!AM7="","",'Cultura Cientifica'!AM7) ->  | AK53: =IF('Cultura Cientifica'!AN7="","",'Cultura Cientifica'!AN7) ->  | AL53: =IF('Cultura Cientifica'!AO7="","",'Cultura Cientifica'!AO7) ->  | AM53: =IF('Cultura Cientifica'!AP7="","",'Cultura Cientifica'!AP7) -> 
D54: Criterio Evaluación 2.2 | E54: =IF('Cultura Cientifica'!H8="","",'Cultura Cientifica'!H8) ->  | F54: =IF('Cultura Cientifica'!I8="","",'Cultura Cientifica'!I8) ->  | G54: =IF('Cultura Cientifica'!J8="","",'Cultura Cientifica'!J8) ->  | H54: =IF('Cultura Cientifica'!K8="","",'Cultura Cientifica'!K8) ->  | I54: =IF('Cultura Cientifica'!L8="","",'Cultura Cientifica'!L8) ->  | J54: =IF('Cultura Cientifica'!M8="","",'Cultura Cientifica'!M8) ->  | K54: =IF('Cultura Cientifica'!N8="","",'Cultura Cientifica'!N8) ->  | L54: =IF('Cultura Cientifica'!O8="","",'Cultura Cientifica'!O8) ->  | M54: =IF('Cultura Cientifica'!P8="","",'Cultura Cientifica'!P8) ->  | N54: =IF('Cultura Cientifica'!Q8="","",'Cultura Cientifica'!Q8) ->  | O54: =IF('Cultura Cientifica'!R8="","",'Cultura Cientifica'!R8) ->  | P54: =IF('Cultura Cientifica'!S8="","",'Cultura Cientifica'!S8) ->  | Q54: =IF('Cultura Cientifica'!T8="","",'Cultura Cientifica'!T8) ->  | R54: =IF('Cultura Cientifica'!U8="","",'Cultura Cientifica'!U8) ->  | S54: =IF('Cultura Cientifica'!V8="","",'Cultura Cientifica'!V8) ->  | T54: =IF('Cultura Cientifica'!W8="","",'Cultura Cientifica'!W8) ->  | U54: =IF('Cultura Cientifica'!X8="","",'Cultura Cientifica'!X8) ->  | V54: =IF('Cultura Cientifica'!Y8="","",'Cultura Cientifica'!Y8) ->  | W54: =IF('Cultura Cientifica'!Z8="","",'Cultura Cientifica'!Z8) ->  | X54: =IF('Cultura Cientifica'!AA8="","",'Cultura Cientifica'!AA8) ->  | Y54: =IF('Cultura Cientifica'!AB8="","",'Cultura Cientifica'!AB8) ->  | Z54: =IF('Cultura Cientifica'!AC8="","",'Cultura Cientifica'!AC8) ->  | AA54: =IF('Cultura Cientifica'!AD8="","",'Cultura Cientifica'!AD8) ->  | AB54: =IF('Cultura Cientifica'!AE8="","",'Cultura Cientifica'!AE8) ->  | AC54: =IF('Cultura Cientifica'!AF8="","",'Cultura Cientifica'!AF8) ->  | AD54: =IF('Cultura Cientifica'!AG8="","",'Cultura Cientifica'!AG8) ->  | AE54: =IF('Cultura Cientifica'!AH8="","",'Cultura Cientifica'!AH8) ->  | AF54: =IF('Cultura Cientifica'!AI8="","",'Cultura Cientifica'!AI8) ->  | AG54: =IF('Cultura Cientifica'!AJ8="","",'Cultura Cientifica'!AJ8) ->  | AH54: =IF('Cultura Cientifica'!AK8="","",'Cultura Cientifica'!AK8) ->  | AI54: =IF('Cultura Cientifica'!AL8="","",'Cultura Cientifica'!AL8) ->  | AJ54: =IF('Cultura Cientifica'!AM8="","",'Cultura Cientifica'!AM8) ->  | AK54: =IF('Cultura Cientifica'!AN8="","",'Cultura Cientifica'!AN8) ->  | AL54: =IF('Cultura Cientifica'!AO8="","",'Cultura Cientifica'!AO8) ->  | AM54: =IF('Cultura Cientifica'!AP8="","",'Cultura Cientifica'!AP8) -> 
D55: Criterio Evaluación 2.3 | E55: =IF('Cultura Cientifica'!H9="","",'Cultura Cientifica'!H9) ->  | F55: =IF('Cultura Cientifica'!I9="","",'Cultura Cientifica'!I9) ->  | G55: =IF('Cultura Cientifica'!J9="","",'Cultura Cientifica'!J9) ->  | H55: =IF('Cultura Cientifica'!K9="","",'Cultura Cientifica'!K9) ->  | I55: =IF('Cultura Cientifica'!L9="","",'Cultura Cientifica'!L9) ->  | J55: =IF('Cultura Cientifica'!M9="","",'Cultura Cientifica'!M9) ->  | K55: =IF('Cultura Cientifica'!N9="","",'Cultura Cientifica'!N9) ->  | L55: =IF('Cultura Cientifica'!O9="","",'Cultura Cientifica'!O9) ->  | M55: =IF('Cultura Cientifica'!P9="","",'Cultura Cientifica'!P9) ->  | N55: =IF('Cultura Cientifica'!Q9="","",'Cultura Cientifica'!Q9) ->  | O55: =IF('Cultura Cientifica'!R9="","",'Cultura Cientifica'!R9) ->  | P55: =IF('Cultura Cientifica'!S9="","",'Cultura Cientifica'!S9) ->  | Q55: =IF('Cultura Cientifica'!T9="","",'Cultura Cientifica'!T9) ->  | R55: =IF('Cultura Cientifica'!U9="","",'Cultura Cientifica'!U9) ->  | S55: =IF('Cultura Cientifica'!V9="","",'Cultura Cientifica'!V9) ->  | T55: =IF('Cultura Cientifica'!W9="","",'Cultura Cientifica'!W9) ->  | U55: =IF('Cultura Cientifica'!X9="","",'Cultura Cientifica'!X9) ->  | V55: =IF('Cultura Cientifica'!Y9="","",'Cultura Cientifica'!Y9) ->  | W55: =IF('Cultura Cientifica'!Z9="","",'Cultura Cientifica'!Z9) ->  | X55: =IF('Cultura Cientifica'!AA9="","",'Cultura Cientifica'!AA9) ->  | Y55: =IF('Cultura Cientifica'!AB9="","",'Cultura Cientifica'!AB9) ->  | Z55: =IF('Cultura Cientifica'!AC9="","",'Cultura Cientifica'!AC9) ->  | AA55: =IF('Cultura Cientifica'!AD9="","",'Cultura Cientifica'!AD9) ->  | AB55: =IF('Cultura Cientifica'!AE9="","",'Cultura Cientifica'!AE9) ->  | AC55: =IF('Cultura Cientifica'!AF9="","",'Cultura Cientifica'!AF9) ->  | AD55: =IF('Cultura Cientifica'!AG9="","",'Cultura Cientifica'!AG9) ->  | AE55: =IF('Cultura Cientifica'!AH9="","",'Cultura Cientifica'!AH9) ->  | AF55: =IF('Cultura Cientifica'!AI9="","",'Cultura Cientifica'!AI9) ->  | AG55: =IF('Cultura Cientifica'!AJ9="","",'Cultura Cientifica'!AJ9) ->  | AH55: =IF('Cultura Cientifica'!AK9="","",'Cultura Cientifica'!AK9) ->  | AI55: =IF('Cultura Cientifica'!AL9="","",'Cultura Cientifica'!AL9) ->  | AJ55: =IF('Cultura Cientifica'!AM9="","",'Cultura Cientifica'!AM9) ->  | AK55: =IF('Cultura Cientifica'!AN9="","",'Cultura Cientifica'!AN9) ->  | AL55: =IF('Cultura Cientifica'!AO9="","",'Cultura Cientifica'!AO9) ->  | AM55: =IF('Cultura Cientifica'!AP9="","",'Cultura Cientifica'!AP9) -> 
C56: Comp. Esp. 3 | D56: Criterio Evaluación 3.1 | E56: =IF('Cultura Cientifica'!H10="","",'Cultura Cientifica'!H10) ->  | F56: =IF('Cultura Cientifica'!I10="","",'Cultura Cientifica'!I10) ->  | G56: =IF('Cultura Cientifica'!J10="","",'Cultura Cientifica'!J10) ->  | H56: =IF('Cultura Cientifica'!K10="","",'Cultura Cientifica'!K10) ->  | I56: =IF('Cultura Cientifica'!L10="","",'Cultura Cientifica'!L10) ->  | J56: =IF('Cultura Cientifica'!M10="","",'Cultura Cientifica'!M10) ->  | K56: =IF('Cultura Cientifica'!N10="","",'Cultura Cientifica'!N10) ->  | L56: =IF('Cultura Cientifica'!O10="","",'Cultura Cientifica'!O10) ->  | M56: =IF('Cultura Cientifica'!P10="","",'Cultura Cientifica'!P10) ->  | N56: =IF('Cultura Cientifica'!Q10="","",'Cultura Cientifica'!Q10) ->  | O56: =IF('Cultura Cientifica'!R10="","",'Cultura Cientifica'!R10) ->  | P56: =IF('Cultura Cientifica'!S10="","",'Cultura Cientifica'!S10) ->  | Q56: =IF('Cultura Cientifica'!T10="","",'Cultura Cientifica'!T10) ->  | R56: =IF('Cultura Cientifica'!U10="","",'Cultura Cientifica'!U10) ->  | S56: =IF('Cultura Cientifica'!V10="","",'Cultura Cientifica'!V10) ->  | T56: =IF('Cultura Cientifica'!W10="","",'Cultura Cientifica'!W10) ->  | U56: =IF('Cultura Cientifica'!X10="","",'Cultura Cientifica'!X10) ->  | V56: =IF('Cultura Cientifica'!Y10="","",'Cultura Cientifica'!Y10) ->  | W56: =IF('Cultura Cientifica'!Z10="","",'Cultura Cientifica'!Z10) ->  | X56: =IF('Cultura Cientifica'!AA10="","",'Cultura Cientifica'!AA10) ->  | Y56: =IF('Cultura Cientifica'!AB10="","",'Cultura Cientifica'!AB10) ->  | Z56: =IF('Cultura Cientifica'!AC10="","",'Cultura Cientifica'!AC10) ->  | AA56: =IF('Cultura Cientifica'!AD10="","",'Cultura Cientifica'!AD10) ->  | AB56: =IF('Cultura Cientifica'!AE10="","",'Cultura Cientifica'!AE10) ->  | AC56: =IF('Cultura Cientifica'!AF10="","",'Cultura Cientifica'!AF10) ->  | AD56: =IF('Cultura Cientifica'!AG10="","",'Cultura Cientifica'!AG10) ->  | AE56: =IF('Cultura Cientifica'!AH10="","",'Cultura Cientifica'!AH10) ->  | AF56: =IF('Cultura Cientifica'!AI10="","",'Cultura Cientifica'!AI10) ->  | AG56: =IF('Cultura Cientifica'!AJ10="","",'Cultura Cientifica'!AJ10) ->  | AH56: =IF('Cultura Cientifica'!AK10="","",'Cultura Cientifica'!AK10) ->  | AI56: =IF('Cultura Cientifica'!AL10="","",'Cultura Cientifica'!AL10) ->  | AJ56: =IF('Cultura Cientifica'!AM10="","",'Cultura Cientifica'!AM10) ->  | AK56: =IF('Cultura Cientifica'!AN10="","",'Cultura Cientifica'!AN10) ->  | AL56: =IF('Cultura Cientifica'!AO10="","",'Cultura Cientifica'!AO10) ->  | AM56: =IF('Cultura Cientifica'!AP10="","",'Cultura Cientifica'!AP10) -> 
D57: Criterio Evaluación 3.2 | E57: =IF('Cultura Cientifica'!H11="","",'Cultura Cientifica'!H11) ->  | F57: =IF('Cultura Cientifica'!I11="","",'Cultura Cientifica'!I11) ->  | G57: =IF('Cultura Cientifica'!J11="","",'Cultura Cientifica'!J11) ->  | H57: =IF('Cultura Cientifica'!K11="","",'Cultura Cientifica'!K11) ->  | I57: =IF('Cultura Cientifica'!L11="","",'Cultura Cientifica'!L11) ->  | J57: =IF('Cultura Cientifica'!M11="","",'Cultura Cientifica'!M11) ->  | K57: =IF('Cultura Cientifica'!N11="","",'Cultura Cientifica'!N11) ->  | L57: =IF('Cultura Cientifica'!O11="","",'Cultura Cientifica'!O11) ->  | M57: =IF('Cultura Cientifica'!P11="","",'Cultura Cientifica'!P11) ->  | N57: =IF('Cultura Cientifica'!Q11="","",'Cultura Cientifica'!Q11) ->  | O57: =IF('Cultura Cientifica'!R11="","",'Cultura Cientifica'!R11) ->  | P57: =IF('Cultura Cientifica'!S11="","",'Cultura Cientifica'!S11) ->  | Q57: =IF('Cultura Cientifica'!T11="","",'Cultura Cientifica'!T11) ->  | R57: =IF('Cultura Cientifica'!U11="","",'Cultura Cientifica'!U11) ->  | S57: =IF('Cultura Cientifica'!V11="","",'Cultura Cientifica'!V11) ->  | T57: =IF('Cultura Cientifica'!W11="","",'Cultura Cientifica'!W11) ->  | U57: =IF('Cultura Cientifica'!X11="","",'Cultura Cientifica'!X11) ->  | V57: =IF('Cultura Cientifica'!Y11="","",'Cultura Cientifica'!Y11) ->  | W57: =IF('Cultura Cientifica'!Z11="","",'Cultura Cientifica'!Z11) ->  | X57: =IF('Cultura Cientifica'!AA11="","",'Cultura Cientifica'!AA11) ->  | Y57: =IF('Cultura Cientifica'!AB11="","",'Cultura Cientifica'!AB11) ->  | Z57: =IF('Cultura Cientifica'!AC11="","",'Cultura Cientifica'!AC11) ->  | AA57: =IF('Cultura Cientifica'!AD11="","",'Cultura Cientifica'!AD11) ->  | AB57: =IF('Cultura Cientifica'!AE11="","",'Cultura Cientifica'!AE11) ->  | AC57: =IF('Cultura Cientifica'!AF11="","",'Cultura Cientifica'!AF11) ->  | AD57: =IF('Cultura Cientifica'!AG11="","",'Cultura Cientifica'!AG11) ->  | AE57: =IF('Cultura Cientifica'!AH11="","",'Cultura Cientifica'!AH11) ->  | AF57: =IF('Cultura Cientifica'!AI11="","",'Cultura Cientifica'!AI11) ->  | AG57: =IF('Cultura Cientifica'!AJ11="","",'Cultura Cientifica'!AJ11) ->  | AH57: =IF('Cultura Cientifica'!AK11="","",'Cultura Cientifica'!AK11) ->  | AI57: =IF('Cultura Cientifica'!AL11="","",'Cultura Cientifica'!AL11) ->  | AJ57: =IF('Cultura Cientifica'!AM11="","",'Cultura Cientifica'!AM11) ->  | AK57: =IF('Cultura Cientifica'!AN11="","",'Cultura Cientifica'!AN11) ->  | AL57: =IF('Cultura Cientifica'!AO11="","",'Cultura Cientifica'!AO11) ->  | AM57: =IF('Cultura Cientifica'!AP11="","",'Cultura Cientifica'!AP11) -> 
D58: Criterio Evaluación 3.3 | E58: =IF('Cultura Cientifica'!H12="","",'Cultura Cientifica'!H12) ->  | F58: =IF('Cultura Cientifica'!I12="","",'Cultura Cientifica'!I12) ->  | G58: =IF('Cultura Cientifica'!J12="","",'Cultura Cientifica'!J12) ->  | H58: =IF('Cultura Cientifica'!K12="","",'Cultura Cientifica'!K12) ->  | I58: =IF('Cultura Cientifica'!L12="","",'Cultura Cientifica'!L12) ->  | J58: =IF('Cultura Cientifica'!M12="","",'Cultura Cientifica'!M12) ->  | K58: =IF('Cultura Cientifica'!N12="","",'Cultura Cientifica'!N12) ->  | L58: =IF('Cultura Cientifica'!O12="","",'Cultura Cientifica'!O12) ->  | M58: =IF('Cultura Cientifica'!P12="","",'Cultura Cientifica'!P12) ->  | N58: =IF('Cultura Cientifica'!Q12="","",'Cultura Cientifica'!Q12) ->  | O58: =IF('Cultura Cientifica'!R12="","",'Cultura Cientifica'!R12) ->  | P58: =IF('Cultura Cientifica'!S12="","",'Cultura Cientifica'!S12) ->  | Q58: =IF('Cultura Cientifica'!T12="","",'Cultura Cientifica'!T12) ->  | R58: =IF('Cultura Cientifica'!U12="","",'Cultura Cientifica'!U12) ->  | S58: =IF('Cultura Cientifica'!V12="","",'Cultura Cientifica'!V12) ->  | T58: =IF('Cultura Cientifica'!W12="","",'Cultura Cientifica'!W12) ->  | U58: =IF('Cultura Cientifica'!X12="","",'Cultura Cientifica'!X12) ->  | V58: =IF('Cultura Cientifica'!Y12="","",'Cultura Cientifica'!Y12) ->  | W58: =IF('Cultura Cientifica'!Z12="","",'Cultura Cientifica'!Z12) ->  | X58: =IF('Cultura Cientifica'!AA12="","",'Cultura Cientifica'!AA12) ->  | Y58: =IF('Cultura Cientifica'!AB12="","",'Cultura Cientifica'!AB12) ->  | Z58: =IF('Cultura Cientifica'!AC12="","",'Cultura Cientifica'!AC12) ->  | AA58: =IF('Cultura Cientifica'!AD12="","",'Cultura Cientifica'!AD12) ->  | AB58: =IF('Cultura Cientifica'!AE12="","",'Cultura Cientifica'!AE12) ->  | AC58: =IF('Cultura Cientifica'!AF12="","",'Cultura Cientifica'!AF12) ->  | AD58: =IF('Cultura Cientifica'!AG12="","",'Cultura Cientifica'!AG12) ->  | AE58: =IF('Cultura Cientifica'!AH12="","",'Cultura Cientifica'!AH12) ->  | AF58: =IF('Cultura Cientifica'!AI12="","",'Cultura Cientifica'!AI12) ->  | AG58: =IF('Cultura Cientifica'!AJ12="","",'Cultura Cientifica'!AJ12) ->  | AH58: =IF('Cultura Cientifica'!AK12="","",'Cultura Cientifica'!AK12) ->  | AI58: =IF('Cultura Cientifica'!AL12="","",'Cultura Cientifica'!AL12) ->  | AJ58: =IF('Cultura Cientifica'!AM12="","",'Cultura Cientifica'!AM12) ->  | AK58: =IF('Cultura Cientifica'!AN12="","",'Cultura Cientifica'!AN12) ->  | AL58: =IF('Cultura Cientifica'!AO12="","",'Cultura Cientifica'!AO12) ->  | AM58: =IF('Cultura Cientifica'!AP12="","",'Cultura Cientifica'!AP12) -> 
D59: Criterio Evaluación 3.4 | E59: =IF('Cultura Cientifica'!H13="","",'Cultura Cientifica'!H13) ->  | F59: =IF('Cultura Cientifica'!I13="","",'Cultura Cientifica'!I13) ->  | G59: =IF('Cultura Cientifica'!J13="","",'Cultura Cientifica'!J13) ->  | H59: =IF('Cultura Cientifica'!K13="","",'Cultura Cientifica'!K13) ->  | I59: =IF('Cultura Cientifica'!L13="","",'Cultura Cientifica'!L13) ->  | J59: =IF('Cultura Cientifica'!M13="","",'Cultura Cientifica'!M13) ->  | K59: =IF('Cultura Cientifica'!N13="","",'Cultura Cientifica'!N13) ->  | L59: =IF('Cultura Cientifica'!O13="","",'Cultura Cientifica'!O13) ->  | M59: =IF('Cultura Cientifica'!P13="","",'Cultura Cientifica'!P13) ->  | N59: =IF('Cultura Cientifica'!Q13="","",'Cultura Cientifica'!Q13) ->  | O59: =IF('Cultura Cientifica'!R13="","",'Cultura Cientifica'!R13) ->  | P59: =IF('Cultura Cientifica'!S13="","",'Cultura Cientifica'!S13) ->  | Q59: =IF('Cultura Cientifica'!T13="","",'Cultura Cientifica'!T13) ->  | R59: =IF('Cultura Cientifica'!U13="","",'Cultura Cientifica'!U13) ->  | S59: =IF('Cultura Cientifica'!V13="","",'Cultura Cientifica'!V13) ->  | T59: =IF('Cultura Cientifica'!W13="","",'Cultura Cientifica'!W13) ->  | U59: =IF('Cultura Cientifica'!X13="","",'Cultura Cientifica'!X13) ->  | V59: =IF('Cultura Cientifica'!Y13="","",'Cultura Cientifica'!Y13) ->  | W59: =IF('Cultura Cientifica'!Z13="","",'Cultura Cientifica'!Z13) ->  | X59: =IF('Cultura Cientifica'!AA13="","",'Cultura Cientifica'!AA13) ->  | Y59: =IF('Cultura Cientifica'!AB13="","",'Cultura Cientifica'!AB13) ->  | Z59: =IF('Cultura Cientifica'!AC13="","",'Cultura Cientifica'!AC13) ->  | AA59: =IF('Cultura Cientifica'!AD13="","",'Cultura Cientifica'!AD13) ->  | AB59: =IF('Cultura Cientifica'!AE13="","",'Cultura Cientifica'!AE13) ->  | AC59: =IF('Cultura Cientifica'!AF13="","",'Cultura Cientifica'!AF13) ->  | AD59: =IF('Cultura Cientifica'!AG13="","",'Cultura Cientifica'!AG13) ->  | AE59: =IF('Cultura Cientifica'!AH13="","",'Cultura Cientifica'!AH13) ->  | AF59: =IF('Cultura Cientifica'!AI13="","",'Cultura Cientifica'!AI13) ->  | AG59: =IF('Cultura Cientifica'!AJ13="","",'Cultura Cientifica'!AJ13) ->  | AH59: =IF('Cultura Cientifica'!AK13="","",'Cultura Cientifica'!AK13) ->  | AI59: =IF('Cultura Cientifica'!AL13="","",'Cultura Cientifica'!AL13) ->  | AJ59: =IF('Cultura Cientifica'!AM13="","",'Cultura Cientifica'!AM13) ->  | AK59: =IF('Cultura Cientifica'!AN13="","",'Cultura Cientifica'!AN13) ->  | AL59: =IF('Cultura Cientifica'!AO13="","",'Cultura Cientifica'!AO13) ->  | AM59: =IF('Cultura Cientifica'!AP13="","",'Cultura Cientifica'!AP13) -> 
D60: Criterio Evaluación 3.5 | E60: =IF('Cultura Cientifica'!H14="","",'Cultura Cientifica'!H14) ->  | F60: =IF('Cultura Cientifica'!I14="","",'Cultura Cientifica'!I14) ->  | G60: =IF('Cultura Cientifica'!J14="","",'Cultura Cientifica'!J14) ->  | H60: =IF('Cultura Cientifica'!K14="","",'Cultura Cientifica'!K14) ->  | I60: =IF('Cultura Cientifica'!L14="","",'Cultura Cientifica'!L14) ->  | J60: =IF('Cultura Cientifica'!M14="","",'Cultura Cientifica'!M14) ->  | K60: =IF('Cultura Cientifica'!N14="","",'Cultura Cientifica'!N14) ->  | L60: =IF('Cultura Cientifica'!O14="","",'Cultura Cientifica'!O14) ->  | M60: =IF('Cultura Cientifica'!P14="","",'Cultura Cientifica'!P14) ->  | N60: =IF('Cultura Cientifica'!Q14="","",'Cultura Cientifica'!Q14) ->  | O60: =IF('Cultura Cientifica'!R14="","",'Cultura Cientifica'!R14) ->  | P60: =IF('Cultura Cientifica'!S14="","",'Cultura Cientifica'!S14) ->  | Q60: =IF('Cultura Cientifica'!T14="","",'Cultura Cientifica'!T14) ->  | R60: =IF('Cultura Cientifica'!U14="","",'Cultura Cientifica'!U14) ->  | S60: =IF('Cultura Cientifica'!V14="","",'Cultura Cientifica'!V14) ->  | T60: =IF('Cultura Cientifica'!W14="","",'Cultura Cientifica'!W14) ->  | U60: =IF('Cultura Cientifica'!X14="","",'Cultura Cientifica'!X14) ->  | V60: =IF('Cultura Cientifica'!Y14="","",'Cultura Cientifica'!Y14) ->  | W60: =IF('Cultura Cientifica'!Z14="","",'Cultura Cientifica'!Z14) ->  | X60: =IF('Cultura Cientifica'!AA14="","",'Cultura Cientifica'!AA14) ->  | Y60: =IF('Cultura Cientifica'!AB14="","",'Cultura Cientifica'!AB14) ->  | Z60: =IF('Cultura Cientifica'!AC14="","",'Cultura Cientifica'!AC14) ->  | AA60: =IF('Cultura Cientifica'!AD14="","",'Cultura Cientifica'!AD14) ->  | AB60: =IF('Cultura Cientifica'!AE14="","",'Cultura Cientifica'!AE14) ->  | AC60: =IF('Cultura Cientifica'!AF14="","",'Cultura Cientifica'!AF14) ->  | AD60: =IF('Cultura Cientifica'!AG14="","",'Cultura Cientifica'!AG14) ->  | AE60: =IF('Cultura Cientifica'!AH14="","",'Cultura Cientifica'!AH14) ->  | AF60: =IF('Cultura Cientifica'!AI14="","",'Cultura Cientifica'!AI14) ->  | AG60: =IF('Cultura Cientifica'!AJ14="","",'Cultura Cientifica'!AJ14) ->  | AH60: =IF('Cultura Cientifica'!AK14="","",'Cultura Cientifica'!AK14) ->  | AI60: =IF('Cultura Cientifica'!AL14="","",'Cultura Cientifica'!AL14) ->  | AJ60: =IF('Cultura Cientifica'!AM14="","",'Cultura Cientifica'!AM14) ->  | AK60: =IF('Cultura Cientifica'!AN14="","",'Cultura Cientifica'!AN14) ->  | AL60: =IF('Cultura Cientifica'!AO14="","",'Cultura Cientifica'!AO14) ->  | AM60: =IF('Cultura Cientifica'!AP14="","",'Cultura Cientifica'!AP14) -> 
D61: Criterio Evaluación 3.6 | E61: =IF('Cultura Cientifica'!H15="","",'Cultura Cientifica'!H15) ->  | F61: =IF('Cultura Cientifica'!I15="","",'Cultura Cientifica'!I15) ->  | G61: =IF('Cultura Cientifica'!J15="","",'Cultura Cientifica'!J15) ->  | H61: =IF('Cultura Cientifica'!K15="","",'Cultura Cientifica'!K15) ->  | I61: =IF('Cultura Cientifica'!L15="","",'Cultura Cientifica'!L15) ->  | J61: =IF('Cultura Cientifica'!M15="","",'Cultura Cientifica'!M15) ->  | K61: =IF('Cultura Cientifica'!N15="","",'Cultura Cientifica'!N15) ->  | L61: =IF('Cultura Cientifica'!O15="","",'Cultura Cientifica'!O15) ->  | M61: =IF('Cultura Cientifica'!P15="","",'Cultura Cientifica'!P15) ->  | N61: =IF('Cultura Cientifica'!Q15="","",'Cultura Cientifica'!Q15) ->  | O61: =IF('Cultura Cientifica'!R15="","",'Cultura Cientifica'!R15) ->  | P61: =IF('Cultura Cientifica'!S15="","",'Cultura Cientifica'!S15) ->  | Q61: =IF('Cultura Cientifica'!T15="","",'Cultura Cientifica'!T15) ->  | R61: =IF('Cultura Cientifica'!U15="","",'Cultura Cientifica'!U15) ->  | S61: =IF('Cultura Cientifica'!V15="","",'Cultura Cientifica'!V15) ->  | T61: =IF('Cultura Cientifica'!W15="","",'Cultura Cientifica'!W15) ->  | U61: =IF('Cultura Cientifica'!X15="","",'Cultura Cientifica'!X15) ->  | V61: =IF('Cultura Cientifica'!Y15="","",'Cultura Cientifica'!Y15) ->  | W61: =IF('Cultura Cientifica'!Z15="","",'Cultura Cientifica'!Z15) ->  | X61: =IF('Cultura Cientifica'!AA15="","",'Cultura Cientifica'!AA15) ->  | Y61: =IF('Cultura Cientifica'!AB15="","",'Cultura Cientifica'!AB15) ->  | Z61: =IF('Cultura Cientifica'!AC15="","",'Cultura Cientifica'!AC15) ->  | AA61: =IF('Cultura Cientifica'!AD15="","",'Cultura Cientifica'!AD15) ->  | AB61: =IF('Cultura Cientifica'!AE15="","",'Cultura Cientifica'!AE15) ->  | AC61: =IF('Cultura Cientifica'!AF15="","",'Cultura Cientifica'!AF15) ->  | AD61: =IF('Cultura Cientifica'!AG15="","",'Cultura Cientifica'!AG15) ->  | AE61: =IF('Cultura Cientifica'!AH15="","",'Cultura Cientifica'!AH15) ->  | AF61: =IF('Cultura Cientifica'!AI15="","",'Cultura Cientifica'!AI15) ->  | AG61: =IF('Cultura Cientifica'!AJ15="","",'Cultura Cientifica'!AJ15) ->  | AH61: =IF('Cultura Cientifica'!AK15="","",'Cultura Cientifica'!AK15) ->  | AI61: =IF('Cultura Cientifica'!AL15="","",'Cultura Cientifica'!AL15) ->  | AJ61: =IF('Cultura Cientifica'!AM15="","",'Cultura Cientifica'!AM15) ->  | AK61: =IF('Cultura Cientifica'!AN15="","",'Cultura Cientifica'!AN15) ->  | AL61: =IF('Cultura Cientifica'!AO15="","",'Cultura Cientifica'!AO15) ->  | AM61: =IF('Cultura Cientifica'!AP15="","",'Cultura Cientifica'!AP15) -> 
C62: Comp. Esp. 4 | D62: Criterio Evaluación 4.1 | E62: =IF('Cultura Cientifica'!H16="","",'Cultura Cientifica'!H16) ->  | F62: =IF('Cultura Cientifica'!I16="","",'Cultura Cientifica'!I16) ->  | G62: =IF('Cultura Cientifica'!J16="","",'Cultura Cientifica'!J16) ->  | H62: =IF('Cultura Cientifica'!K16="","",'Cultura Cientifica'!K16) ->  | I62: =IF('Cultura Cientifica'!L16="","",'Cultura Cientifica'!L16) ->  | J62: =IF('Cultura Cientifica'!M16="","",'Cultura Cientifica'!M16) ->  | K62: =IF('Cultura Cientifica'!N16="","",'Cultura Cientifica'!N16) ->  | L62: =IF('Cultura Cientifica'!O16="","",'Cultura Cientifica'!O16) ->  | M62: =IF('Cultura Cientifica'!P16="","",'Cultura Cientifica'!P16) ->  | N62: =IF('Cultura Cientifica'!Q16="","",'Cultura Cientifica'!Q16) ->  | O62: =IF('Cultura Cientifica'!R16="","",'Cultura Cientifica'!R16) ->  | P62: =IF('Cultura Cientifica'!S16="","",'Cultura Cientifica'!S16) ->  | Q62: =IF('Cultura Cientifica'!T16="","",'Cultura Cientifica'!T16) ->  | R62: =IF('Cultura Cientifica'!U16="","",'Cultura Cientifica'!U16) ->  | S62: =IF('Cultura Cientifica'!V16="","",'Cultura Cientifica'!V16) ->  | T62: =IF('Cultura Cientifica'!W16="","",'Cultura Cientifica'!W16) ->  | U62: =IF('Cultura Cientifica'!X16="","",'Cultura Cientifica'!X16) ->  | V62: =IF('Cultura Cientifica'!Y16="","",'Cultura Cientifica'!Y16) ->  | W62: =IF('Cultura Cientifica'!Z16="","",'Cultura Cientifica'!Z16) ->  | X62: =IF('Cultura Cientifica'!AA16="","",'Cultura Cientifica'!AA16) ->  | Y62: =IF('Cultura Cientifica'!AB16="","",'Cultura Cientifica'!AB16) ->  | Z62: =IF('Cultura Cientifica'!AC16="","",'Cultura Cientifica'!AC16) ->  | AA62: =IF('Cultura Cientifica'!AD16="","",'Cultura Cientifica'!AD16) ->  | AB62: =IF('Cultura Cientifica'!AE16="","",'Cultura Cientifica'!AE16) ->  | AC62: =IF('Cultura Cientifica'!AF16="","",'Cultura Cientifica'!AF16) ->  | AD62: =IF('Cultura Cientifica'!AG16="","",'Cultura Cientifica'!AG16) ->  | AE62: =IF('Cultura Cientifica'!AH16="","",'Cultura Cientifica'!AH16) ->  | AF62: =IF('Cultura Cientifica'!AI16="","",'Cultura Cientifica'!AI16) ->  | AG62: =IF('Cultura Cientifica'!AJ16="","",'Cultura Cientifica'!AJ16) ->  | AH62: =IF('Cultura Cientifica'!AK16="","",'Cultura Cientifica'!AK16) ->  | AI62: =IF('Cultura Cientifica'!AL16="","",'Cultura Cientifica'!AL16) ->  | AJ62: =IF('Cultura Cientifica'!AM16="","",'Cultura Cientifica'!AM16) ->  | AK62: =IF('Cultura Cientifica'!AN16="","",'Cultura Cientifica'!AN16) ->  | AL62: =IF('Cultura Cientifica'!AO16="","",'Cultura Cientifica'!AO16) ->  | AM62: =IF('Cultura Cientifica'!AP16="","",'Cultura Cientifica'!AP16) -> 
D63: Criterio Evaluación 4.2 | E63: =IF('Cultura Cientifica'!H17="","",'Cultura Cientifica'!H17) ->  | F63: =IF('Cultura Cientifica'!I17="","",'Cultura Cientifica'!I17) ->  | G63: =IF('Cultura Cientifica'!J17="","",'Cultura Cientifica'!J17) ->  | H63: =IF('Cultura Cientifica'!K17="","",'Cultura Cientifica'!K17) ->  | I63: =IF('Cultura Cientifica'!L17="","",'Cultura Cientifica'!L17) ->  | J63: =IF('Cultura Cientifica'!M17="","",'Cultura Cientifica'!M17) ->  | K63: =IF('Cultura Cientifica'!N17="","",'Cultura Cientifica'!N17) ->  | L63: =IF('Cultura Cientifica'!O17="","",'Cultura Cientifica'!O17) ->  | M63: =IF('Cultura Cientifica'!P17="","",'Cultura Cientifica'!P17) ->  | N63: =IF('Cultura Cientifica'!Q17="","",'Cultura Cientifica'!Q17) ->  | O63: =IF('Cultura Cientifica'!R17="","",'Cultura Cientifica'!R17) ->  | P63: =IF('Cultura Cientifica'!S17="","",'Cultura Cientifica'!S17) ->  | Q63: =IF('Cultura Cientifica'!T17="","",'Cultura Cientifica'!T17) ->  | R63: =IF('Cultura Cientifica'!U17="","",'Cultura Cientifica'!U17) ->  | S63: =IF('Cultura Cientifica'!V17="","",'Cultura Cientifica'!V17) ->  | T63: =IF('Cultura Cientifica'!W17="","",'Cultura Cientifica'!W17) ->  | U63: =IF('Cultura Cientifica'!X17="","",'Cultura Cientifica'!X17) ->  | V63: =IF('Cultura Cientifica'!Y17="","",'Cultura Cientifica'!Y17) ->  | W63: =IF('Cultura Cientifica'!Z17="","",'Cultura Cientifica'!Z17) ->  | X63: =IF('Cultura Cientifica'!AA17="","",'Cultura Cientifica'!AA17) ->  | Y63: =IF('Cultura Cientifica'!AB17="","",'Cultura Cientifica'!AB17) ->  | Z63: =IF('Cultura Cientifica'!AC17="","",'Cultura Cientifica'!AC17) ->  | AA63: =IF('Cultura Cientifica'!AD17="","",'Cultura Cientifica'!AD17) ->  | AB63: =IF('Cultura Cientifica'!AE17="","",'Cultura Cientifica'!AE17) ->  | AC63: =IF('Cultura Cientifica'!AF17="","",'Cultura Cientifica'!AF17) ->  | AD63: =IF('Cultura Cientifica'!AG17="","",'Cultura Cientifica'!AG17) ->  | AE63: =IF('Cultura Cientifica'!AH17="","",'Cultura Cientifica'!AH17) ->  | AF63: =IF('Cultura Cientifica'!AI17="","",'Cultura Cientifica'!AI17) ->  | AG63: =IF('Cultura Cientifica'!AJ17="","",'Cultura Cientifica'!AJ17) ->  | AH63: =IF('Cultura Cientifica'!AK17="","",'Cultura Cientifica'!AK17) ->  | AI63: =IF('Cultura Cientifica'!AL17="","",'Cultura Cientifica'!AL17) ->  | AJ63: =IF('Cultura Cientifica'!AM17="","",'Cultura Cientifica'!AM17) ->  | AK63: =IF('Cultura Cientifica'!AN17="","",'Cultura Cientifica'!AN17) ->  | AL63: =IF('Cultura Cientifica'!AO17="","",'Cultura Cientifica'!AO17) ->  | AM63: =IF('Cultura Cientifica'!AP17="","",'Cultura Cientifica'!AP17) -> 
C64: Comp. Esp. 5 | D64: Criterio Evaluación 5.1 | E64: =IF('Cultura Cientifica'!H18="","",'Cultura Cientifica'!H18) ->  | F64: =IF('Cultura Cientifica'!I18="","",'Cultura Cientifica'!I18) ->  | G64: =IF('Cultura Cientifica'!J18="","",'Cultura Cientifica'!J18) ->  | H64: =IF('Cultura Cientifica'!K18="","",'Cultura Cientifica'!K18) ->  | I64: =IF('Cultura Cientifica'!L18="","",'Cultura Cientifica'!L18) ->  | J64: =IF('Cultura Cientifica'!M18="","",'Cultura Cientifica'!M18) ->  | K64: =IF('Cultura Cientifica'!N18="","",'Cultura Cientifica'!N18) ->  | L64: =IF('Cultura Cientifica'!O18="","",'Cultura Cientifica'!O18) ->  | M64: =IF('Cultura Cientifica'!P18="","",'Cultura Cientifica'!P18) ->  | N64: =IF('Cultura Cientifica'!Q18="","",'Cultura Cientifica'!Q18) ->  | O64: =IF('Cultura Cientifica'!R18="","",'Cultura Cientifica'!R18) ->  | P64: =IF('Cultura Cientifica'!S18="","",'Cultura Cientifica'!S18) ->  | Q64: =IF('Cultura Cientifica'!T18="","",'Cultura Cientifica'!T18) ->  | R64: =IF('Cultura Cientifica'!U18="","",'Cultura Cientifica'!U18) ->  | S64: =IF('Cultura Cientifica'!V18="","",'Cultura Cientifica'!V18) ->  | T64: =IF('Cultura Cientifica'!W18="","",'Cultura Cientifica'!W18) ->  | U64: =IF('Cultura Cientifica'!X18="","",'Cultura Cientifica'!X18) ->  | V64: =IF('Cultura Cientifica'!Y18="","",'Cultura Cientifica'!Y18) ->  | W64: =IF('Cultura Cientifica'!Z18="","",'Cultura Cientifica'!Z18) ->  | X64: =IF('Cultura Cientifica'!AA18="","",'Cultura Cientifica'!AA18) ->  | Y64: =IF('Cultura Cientifica'!AB18="","",'Cultura Cientifica'!AB18) ->  | Z64: =IF('Cultura Cientifica'!AC18="","",'Cultura Cientifica'!AC18) ->  | AA64: =IF('Cultura Cientifica'!AD18="","",'Cultura Cientifica'!AD18) ->  | AB64: =IF('Cultura Cientifica'!AE18="","",'Cultura Cientifica'!AE18) ->  | AC64: =IF('Cultura Cientifica'!AF18="","",'Cultura Cientifica'!AF18) ->  | AD64: =IF('Cultura Cientifica'!AG18="","",'Cultura Cientifica'!AG18) ->  | AE64: =IF('Cultura Cientifica'!AH18="","",'Cultura Cientifica'!AH18) ->  | AF64: =IF('Cultura Cientifica'!AI18="","",'Cultura Cientifica'!AI18) ->  | AG64: =IF('Cultura Cientifica'!AJ18="","",'Cultura Cientifica'!AJ18) ->  | AH64: =IF('Cultura Cientifica'!AK18="","",'Cultura Cientifica'!AK18) ->  | AI64: =IF('Cultura Cientifica'!AL18="","",'Cultura Cientifica'!AL18) ->  | AJ64: =IF('Cultura Cientifica'!AM18="","",'Cultura Cientifica'!AM18) ->  | AK64: =IF('Cultura Cientifica'!AN18="","",'Cultura Cientifica'!AN18) ->  | AL64: =IF('Cultura Cientifica'!AO18="","",'Cultura Cientifica'!AO18) ->  | AM64: =IF('Cultura Cientifica'!AP18="","",'Cultura Cientifica'!AP18) -> 
D65: Criterio Evaluación 5.2 | E65: =IF('Cultura Cientifica'!H19="","",'Cultura Cientifica'!H19) ->  | F65: =IF('Cultura Cientifica'!I19="","",'Cultura Cientifica'!I19) ->  | G65: =IF('Cultura Cientifica'!J19="","",'Cultura Cientifica'!J19) ->  | H65: =IF('Cultura Cientifica'!K19="","",'Cultura Cientifica'!K19) ->  | I65: =IF('Cultura Cientifica'!L19="","",'Cultura Cientifica'!L19) ->  | J65: =IF('Cultura Cientifica'!M19="","",'Cultura Cientifica'!M19) ->  | K65: =IF('Cultura Cientifica'!N19="","",'Cultura Cientifica'!N19) ->  | L65: =IF('Cultura Cientifica'!O19="","",'Cultura Cientifica'!O19) ->  | M65: =IF('Cultura Cientifica'!P19="","",'Cultura Cientifica'!P19) ->  | N65: =IF('Cultura Cientifica'!Q19="","",'Cultura Cientifica'!Q19) ->  | O65: =IF('Cultura Cientifica'!R19="","",'Cultura Cientifica'!R19) ->  | P65: =IF('Cultura Cientifica'!S19="","",'Cultura Cientifica'!S19) ->  | Q65: =IF('Cultura Cientifica'!T19="","",'Cultura Cientifica'!T19) ->  | R65: =IF('Cultura Cientifica'!U19="","",'Cultura Cientifica'!U19) ->  | S65: =IF('Cultura Cientifica'!V19="","",'Cultura Cientifica'!V19) ->  | T65: =IF('Cultura Cientifica'!W19="","",'Cultura Cientifica'!W19) ->  | U65: =IF('Cultura Cientifica'!X19="","",'Cultura Cientifica'!X19) ->  | V65: =IF('Cultura Cientifica'!Y19="","",'Cultura Cientifica'!Y19) ->  | W65: =IF('Cultura Cientifica'!Z19="","",'Cultura Cientifica'!Z19) ->  | X65: =IF('Cultura Cientifica'!AA19="","",'Cultura Cientifica'!AA19) ->  | Y65: =IF('Cultura Cientifica'!AB19="","",'Cultura Cientifica'!AB19) ->  | Z65: =IF('Cultura Cientifica'!AC19="","",'Cultura Cientifica'!AC19) ->  | AA65: =IF('Cultura Cientifica'!AD19="","",'Cultura Cientifica'!AD19) ->  | AB65: =IF('Cultura Cientifica'!AE19="","",'Cultura Cientifica'!AE19) ->  | AC65: =IF('Cultura Cientifica'!AF19="","",'Cultura Cientifica'!AF19) ->  | AD65: =IF('Cultura Cientifica'!AG19="","",'Cultura Cientifica'!AG19) ->  | AE65: =IF('Cultura Cientifica'!AH19="","",'Cultura Cientifica'!AH19) ->  | AF65: =IF('Cultura Cientifica'!AI19="","",'Cultura Cientifica'!AI19) ->  | AG65: =IF('Cultura Cientifica'!AJ19="","",'Cultura Cientifica'!AJ19) ->  | AH65: =IF('Cultura Cientifica'!AK19="","",'Cultura Cientifica'!AK19) ->  | AI65: =IF('Cultura Cientifica'!AL19="","",'Cultura Cientifica'!AL19) ->  | AJ65: =IF('Cultura Cientifica'!AM19="","",'Cultura Cientifica'!AM19) ->  | AK65: =IF('Cultura Cientifica'!AN19="","",'Cultura Cientifica'!AN19) ->  | AL65: =IF('Cultura Cientifica'!AO19="","",'Cultura Cientifica'!AO19) ->  | AM65: =IF('Cultura Cientifica'!AP19="","",'Cultura Cientifica'!AP19) -> 
D66: Criterio Evaluación 5.3 | E66: =IF('Cultura Cientifica'!H20="","",'Cultura Cientifica'!H20) ->  | F66: =IF('Cultura Cientifica'!I20="","",'Cultura Cientifica'!I20) ->  | G66: =IF('Cultura Cientifica'!J20="","",'Cultura Cientifica'!J20) ->  | H66: =IF('Cultura Cientifica'!K20="","",'Cultura Cientifica'!K20) ->  | I66: =IF('Cultura Cientifica'!L20="","",'Cultura Cientifica'!L20) ->  | J66: =IF('Cultura Cientifica'!M20="","",'Cultura Cientifica'!M20) ->  | K66: =IF('Cultura Cientifica'!N20="","",'Cultura Cientifica'!N20) ->  | L66: =IF('Cultura Cientifica'!O20="","",'Cultura Cientifica'!O20) ->  | M66: =IF('Cultura Cientifica'!P20="","",'Cultura Cientifica'!P20) ->  | N66: =IF('Cultura Cientifica'!Q20="","",'Cultura Cientifica'!Q20) ->  | O66: =IF('Cultura Cientifica'!R20="","",'Cultura Cientifica'!R20) ->  | P66: =IF('Cultura Cientifica'!S20="","",'Cultura Cientifica'!S20) ->  | Q66: =IF('Cultura Cientifica'!T20="","",'Cultura Cientifica'!T20) ->  | R66: =IF('Cultura Cientifica'!U20="","",'Cultura Cientifica'!U20) ->  | S66: =IF('Cultura Cientifica'!V20="","",'Cultura Cientifica'!V20) ->  | T66: =IF('Cultura Cientifica'!W20="","",'Cultura Cientifica'!W20) ->  | U66: =IF('Cultura Cientifica'!X20="","",'Cultura Cientifica'!X20) ->  | V66: =IF('Cultura Cientifica'!Y20="","",'Cultura Cientifica'!Y20) ->  | W66: =IF('Cultura Cientifica'!Z20="","",'Cultura Cientifica'!Z20) ->  | X66: =IF('Cultura Cientifica'!AA20="","",'Cultura Cientifica'!AA20) ->  | Y66: =IF('Cultura Cientifica'!AB20="","",'Cultura Cientifica'!AB20) ->  | Z66: =IF('Cultura Cientifica'!AC20="","",'Cultura Cientifica'!AC20) ->  | AA66: =IF('Cultura Cientifica'!AD20="","",'Cultura Cientifica'!AD20) ->  | AB66: =IF('Cultura Cientifica'!AE20="","",'Cultura Cientifica'!AE20) ->  | AC66: =IF('Cultura Cientifica'!AF20="","",'Cultura Cientifica'!AF20) ->  | AD66: =IF('Cultura Cientifica'!AG20="","",'Cultura Cientifica'!AG20) ->  | AE66: =IF('Cultura Cientifica'!AH20="","",'Cultura Cientifica'!AH20) ->  | AF66: =IF('Cultura Cientifica'!AI20="","",'Cultura Cientifica'!AI20) ->  | AG66: =IF('Cultura Cientifica'!AJ20="","",'Cultura Cientifica'!AJ20) ->  | AH66: =IF('Cultura Cientifica'!AK20="","",'Cultura Cientifica'!AK20) ->  | AI66: =IF('Cultura Cientifica'!AL20="","",'Cultura Cientifica'!AL20) ->  | AJ66: =IF('Cultura Cientifica'!AM20="","",'Cultura Cientifica'!AM20) ->  | AK66: =IF('Cultura Cientifica'!AN20="","",'Cultura Cientifica'!AN20) ->  | AL66: =IF('Cultura Cientifica'!AO20="","",'Cultura Cientifica'!AO20) ->  | AM66: =IF('Cultura Cientifica'!AP20="","",'Cultura Cientifica'!AP20) -> 
C67: Comp. Esp. 6 | D67: Criterio Evaluación 6.1 | E67: =IF('Cultura Cientifica'!H21="","",'Cultura Cientifica'!H21) ->  | F67: =IF('Cultura Cientifica'!I21="","",'Cultura Cientifica'!I21) ->  | G67: =IF('Cultura Cientifica'!J21="","",'Cultura Cientifica'!J21) ->  | H67: =IF('Cultura Cientifica'!K21="","",'Cultura Cientifica'!K21) ->  | I67: =IF('Cultura Cientifica'!L21="","",'Cultura Cientifica'!L21) ->  | J67: =IF('Cultura Cientifica'!M21="","",'Cultura Cientifica'!M21) ->  | K67: =IF('Cultura Cientifica'!N21="","",'Cultura Cientifica'!N21) ->  | L67: =IF('Cultura Cientifica'!O21="","",'Cultura Cientifica'!O21) ->  | M67: =IF('Cultura Cientifica'!P21="","",'Cultura Cientifica'!P21) ->  | N67: =IF('Cultura Cientifica'!Q21="","",'Cultura Cientifica'!Q21) ->  | O67: =IF('Cultura Cientifica'!R21="","",'Cultura Cientifica'!R21) ->  | P67: =IF('Cultura Cientifica'!S21="","",'Cultura Cientifica'!S21) ->  | Q67: =IF('Cultura Cientifica'!T21="","",'Cultura Cientifica'!T21) ->  | R67: =IF('Cultura Cientifica'!U21="","",'Cultura Cientifica'!U21) ->  | S67: =IF('Cultura Cientifica'!V21="","",'Cultura Cientifica'!V21) ->  | T67: =IF('Cultura Cientifica'!W21="","",'Cultura Cientifica'!W21) ->  | U67: =IF('Cultura Cientifica'!X21="","",'Cultura Cientifica'!X21) ->  | V67: =IF('Cultura Cientifica'!Y21="","",'Cultura Cientifica'!Y21) ->  | W67: =IF('Cultura Cientifica'!Z21="","",'Cultura Cientifica'!Z21) ->  | X67: =IF('Cultura Cientifica'!AA21="","",'Cultura Cientifica'!AA21) ->  | Y67: =IF('Cultura Cientifica'!AB21="","",'Cultura Cientifica'!AB21) ->  | Z67: =IF('Cultura Cientifica'!AC21="","",'Cultura Cientifica'!AC21) ->  | AA67: =IF('Cultura Cientifica'!AD21="","",'Cultura Cientifica'!AD21) ->  | AB67: =IF('Cultura Cientifica'!AE21="","",'Cultura Cientifica'!AE21) ->  | AC67: =IF('Cultura Cientifica'!AF21="","",'Cultura Cientifica'!AF21) ->  | AD67: =IF('Cultura Cientifica'!AG21="","",'Cultura Cientifica'!AG21) ->  | AE67: =IF('Cultura Cientifica'!AH21="","",'Cultura Cientifica'!AH21) ->  | AF67: =IF('Cultura Cientifica'!AI21="","",'Cultura Cientifica'!AI21) ->  | AG67: =IF('Cultura Cientifica'!AJ21="","",'Cultura Cientifica'!AJ21) ->  | AH67: =IF('Cultura Cientifica'!AK21="","",'Cultura Cientifica'!AK21) ->  | AI67: =IF('Cultura Cientifica'!AL21="","",'Cultura Cientifica'!AL21) ->  | AJ67: =IF('Cultura Cientifica'!AM21="","",'Cultura Cientifica'!AM21) ->  | AK67: =IF('Cultura Cientifica'!AN21="","",'Cultura Cientifica'!AN21) ->  | AL67: =IF('Cultura Cientifica'!AO21="","",'Cultura Cientifica'!AO21) ->  | AM67: =IF('Cultura Cientifica'!AP21="","",'Cultura Cientifica'!AP21) -> 
D68: Criterio Evaluación 6.2 | E68: =IF('Cultura Cientifica'!H22="","",'Cultura Cientifica'!H22) ->  | F68: =IF('Cultura Cientifica'!I22="","",'Cultura Cientifica'!I22) ->  | G68: =IF('Cultura Cientifica'!J22="","",'Cultura Cientifica'!J22) ->  | H68: =IF('Cultura Cientifica'!K22="","",'Cultura Cientifica'!K22) ->  | I68: =IF('Cultura Cientifica'!L22="","",'Cultura Cientifica'!L22) ->  | J68: =IF('Cultura Cientifica'!M22="","",'Cultura Cientifica'!M22) ->  | K68: =IF('Cultura Cientifica'!N22="","",'Cultura Cientifica'!N22) ->  | L68: =IF('Cultura Cientifica'!O22="","",'Cultura Cientifica'!O22) ->  | M68: =IF('Cultura Cientifica'!P22="","",'Cultura Cientifica'!P22) ->  | N68: =IF('Cultura Cientifica'!Q22="","",'Cultura Cientifica'!Q22) ->  | O68: =IF('Cultura Cientifica'!R22="","",'Cultura Cientifica'!R22) ->  | P68: =IF('Cultura Cientifica'!S22="","",'Cultura Cientifica'!S22) ->  | Q68: =IF('Cultura Cientifica'!T22="","",'Cultura Cientifica'!T22) ->  | R68: =IF('Cultura Cientifica'!U22="","",'Cultura Cientifica'!U22) ->  | S68: =IF('Cultura Cientifica'!V22="","",'Cultura Cientifica'!V22) ->  | T68: =IF('Cultura Cientifica'!W22="","",'Cultura Cientifica'!W22) ->  | U68: =IF('Cultura Cientifica'!X22="","",'Cultura Cientifica'!X22) ->  | V68: =IF('Cultura Cientifica'!Y22="","",'Cultura Cientifica'!Y22) ->  | W68: =IF('Cultura Cientifica'!Z22="","",'Cultura Cientifica'!Z22) ->  | X68: =IF('Cultura Cientifica'!AA22="","",'Cultura Cientifica'!AA22) ->  | Y68: =IF('Cultura Cientifica'!AB22="","",'Cultura Cientifica'!AB22) ->  | Z68: =IF('Cultura Cientifica'!AC22="","",'Cultura Cientifica'!AC22) ->  | AA68: =IF('Cultura Cientifica'!AD22="","",'Cultura Cientifica'!AD22) ->  | AB68: =IF('Cultura Cientifica'!AE22="","",'Cultura Cientifica'!AE22) ->  | AC68: =IF('Cultura Cientifica'!AF22="","",'Cultura Cientifica'!AF22) ->  | AD68: =IF('Cultura Cientifica'!AG22="","",'Cultura Cientifica'!AG22) ->  | AE68: =IF('Cultura Cientifica'!AH22="","",'Cultura Cientifica'!AH22) ->  | AF68: =IF('Cultura Cientifica'!AI22="","",'Cultura Cientifica'!AI22) ->  | AG68: =IF('Cultura Cientifica'!AJ22="","",'Cultura Cientifica'!AJ22) ->  | AH68: =IF('Cultura Cientifica'!AK22="","",'Cultura Cientifica'!AK22) ->  | AI68: =IF('Cultura Cientifica'!AL22="","",'Cultura Cientifica'!AL22) ->  | AJ68: =IF('Cultura Cientifica'!AM22="","",'Cultura Cientifica'!AM22) ->  | AK68: =IF('Cultura Cientifica'!AN22="","",'Cultura Cientifica'!AN22) ->  | AL68: =IF('Cultura Cientifica'!AO22="","",'Cultura Cientifica'!AO22) ->  | AM68: =IF('Cultura Cientifica'!AP22="","",'Cultura Cientifica'!AP22) -> 
D69: Criterio Evaluación 6.3 | E69: =IF('Cultura Cientifica'!H23="","",'Cultura Cientifica'!H23) ->  | F69: =IF('Cultura Cientifica'!I23="","",'Cultura Cientifica'!I23) ->  | G69: =IF('Cultura Cientifica'!J23="","",'Cultura Cientifica'!J23) ->  | H69: =IF('Cultura Cientifica'!K23="","",'Cultura Cientifica'!K23) ->  | I69: =IF('Cultura Cientifica'!L23="","",'Cultura Cientifica'!L23) ->  | J69: =IF('Cultura Cientifica'!M23="","",'Cultura Cientifica'!M23) ->  | K69: =IF('Cultura Cientifica'!N23="","",'Cultura Cientifica'!N23) ->  | L69: =IF('Cultura Cientifica'!O23="","",'Cultura Cientifica'!O23) ->  | M69: =IF('Cultura Cientifica'!P23="","",'Cultura Cientifica'!P23) ->  | N69: =IF('Cultura Cientifica'!Q23="","",'Cultura Cientifica'!Q23) ->  | O69: =IF('Cultura Cientifica'!R23="","",'Cultura Cientifica'!R23) ->  | P69: =IF('Cultura Cientifica'!S23="","",'Cultura Cientifica'!S23) ->  | Q69: =IF('Cultura Cientifica'!T23="","",'Cultura Cientifica'!T23) ->  | R69: =IF('Cultura Cientifica'!U23="","",'Cultura Cientifica'!U23) ->  | S69: =IF('Cultura Cientifica'!V23="","",'Cultura Cientifica'!V23) ->  | T69: =IF('Cultura Cientifica'!W23="","",'Cultura Cientifica'!W23) ->  | U69: =IF('Cultura Cientifica'!X23="","",'Cultura Cientifica'!X23) ->  | V69: =IF('Cultura Cientifica'!Y23="","",'Cultura Cientifica'!Y23) ->  | W69: =IF('Cultura Cientifica'!Z23="","",'Cultura Cientifica'!Z23) ->  | X69: =IF('Cultura Cientifica'!AA23="","",'Cultura Cientifica'!AA23) ->  | Y69: =IF('Cultura Cientifica'!AB23="","",'Cultura Cientifica'!AB23) ->  | Z69: =IF('Cultura Cientifica'!AC23="","",'Cultura Cientifica'!AC23) ->  | AA69: =IF('Cultura Cientifica'!AD23="","",'Cultura Cientifica'!AD23) ->  | AB69: =IF('Cultura Cientifica'!AE23="","",'Cultura Cientifica'!AE23) ->  | AC69: =IF('Cultura Cientifica'!AF23="","",'Cultura Cientifica'!AF23) ->  | AD69: =IF('Cultura Cientifica'!AG23="","",'Cultura Cientifica'!AG23) ->  | AE69: =IF('Cultura Cientifica'!AH23="","",'Cultura Cientifica'!AH23) ->  | AF69: =IF('Cultura Cientifica'!AI23="","",'Cultura Cientifica'!AI23) ->  | AG69: =IF('Cultura Cientifica'!AJ23="","",'Cultura Cientifica'!AJ23) ->  | AH69: =IF('Cultura Cientifica'!AK23="","",'Cultura Cientifica'!AK23) ->  | AI69: =IF('Cultura Cientifica'!AL23="","",'Cultura Cientifica'!AL23) ->  | AJ69: =IF('Cultura Cientifica'!AM23="","",'Cultura Cientifica'!AM23) ->  | AK69: =IF('Cultura Cientifica'!AN23="","",'Cultura Cientifica'!AN23) ->  | AL69: =IF('Cultura Cientifica'!AO23="","",'Cultura Cientifica'!AO23) ->  | AM69: =IF('Cultura Cientifica'!AP23="","",'Cultura Cientifica'!AP23) -> 
B70: Cultura Clásica | C70: Comp. Esp. 1 | D70: Criterio Evaluación 1.1 | E70: =IF('Cultura Clasica'!H4="","",'Cultura Clasica'!H4) ->  | F70: =IF('Cultura Clasica'!I4="","",'Cultura Clasica'!I4) ->  | G70: =IF('Cultura Clasica'!J4="","",'Cultura Clasica'!J4) ->  | H70: =IF('Cultura Clasica'!K4="","",'Cultura Clasica'!K4) ->  | I70: =IF('Cultura Clasica'!L4="","",'Cultura Clasica'!L4) ->  | J70: =IF('Cultura Clasica'!M4="","",'Cultura Clasica'!M4) ->  | K70: =IF('Cultura Clasica'!N4="","",'Cultura Clasica'!N4) ->  | L70: =IF('Cultura Clasica'!O4="","",'Cultura Clasica'!O4) ->  | M70: =IF('Cultura Clasica'!P4="","",'Cultura Clasica'!P4) ->  | N70: =IF('Cultura Clasica'!Q4="","",'Cultura Clasica'!Q4) ->  | O70: =IF('Cultura Clasica'!R4="","",'Cultura Clasica'!R4) ->  | P70: =IF('Cultura Clasica'!S4="","",'Cultura Clasica'!S4) ->  | Q70: =IF('Cultura Clasica'!T4="","",'Cultura Clasica'!T4) ->  | R70: =IF('Cultura Clasica'!U4="","",'Cultura Clasica'!U4) ->  | S70: =IF('Cultura Clasica'!V4="","",'Cultura Clasica'!V4) ->  | T70: =IF('Cultura Clasica'!W4="","",'Cultura Clasica'!W4) ->  | U70: =IF('Cultura Clasica'!X4="","",'Cultura Clasica'!X4) ->  | V70: =IF('Cultura Clasica'!Y4="","",'Cultura Clasica'!Y4) ->  | W70: =IF('Cultura Clasica'!Z4="","",'Cultura Clasica'!Z4) ->  | X70: =IF('Cultura Clasica'!AA4="","",'Cultura Clasica'!AA4) ->  | Y70: =IF('Cultura Clasica'!AB4="","",'Cultura Clasica'!AB4) ->  | Z70: =IF('Cultura Clasica'!AC4="","",'Cultura Clasica'!AC4) ->  | AA70: =IF('Cultura Clasica'!AD4="","",'Cultura Clasica'!AD4) ->  | AB70: =IF('Cultura Clasica'!AE4="","",'Cultura Clasica'!AE4) ->  | AC70: =IF('Cultura Clasica'!AF4="","",'Cultura Clasica'!AF4) ->  | AD70: =IF('Cultura Clasica'!AG4="","",'Cultura Clasica'!AG4) ->  | AE70: =IF('Cultura Clasica'!AH4="","",'Cultura Clasica'!AH4) ->  | AF70: =IF('Cultura Clasica'!AI4="","",'Cultura Clasica'!AI4) ->  | AG70: =IF('Cultura Clasica'!AJ4="","",'Cultura Clasica'!AJ4) ->  | AH70: =IF('Cultura Clasica'!AK4="","",'Cultura Clasica'!AK4) ->  | AI70: =IF('Cultura Clasica'!AL4="","",'Cultura Clasica'!AL4) ->  | AJ70: =IF('Cultura Clasica'!AM4="","",'Cultura Clasica'!AM4) ->  | AK70: =IF('Cultura Clasica'!AN4="","",'Cultura Clasica'!AN4) ->  | AL70: =IF('Cultura Clasica'!AO4="","",'Cultura Clasica'!AO4) ->  | AM70: =IF('Cultura Clasica'!AP4="","",'Cultura Clasica'!AP4) -> 
D71: Criterio Evaluación 1.2 | E71: =IF('Cultura Clasica'!H5="","",'Cultura Clasica'!H5) ->  | F71: =IF('Cultura Clasica'!I5="","",'Cultura Clasica'!I5) ->  | G71: =IF('Cultura Clasica'!J5="","",'Cultura Clasica'!J5) ->  | H71: =IF('Cultura Clasica'!K5="","",'Cultura Clasica'!K5) ->  | I71: =IF('Cultura Clasica'!L5="","",'Cultura Clasica'!L5) ->  | J71: =IF('Cultura Clasica'!M5="","",'Cultura Clasica'!M5) ->  | K71: =IF('Cultura Clasica'!N5="","",'Cultura Clasica'!N5) ->  | L71: =IF('Cultura Clasica'!O5="","",'Cultura Clasica'!O5) ->  | M71: =IF('Cultura Clasica'!P5="","",'Cultura Clasica'!P5) ->  | N71: =IF('Cultura Clasica'!Q5="","",'Cultura Clasica'!Q5) ->  | O71: =IF('Cultura Clasica'!R5="","",'Cultura Clasica'!R5) ->  | P71: =IF('Cultura Clasica'!S5="","",'Cultura Clasica'!S5) ->  | Q71: =IF('Cultura Clasica'!T5="","",'Cultura Clasica'!T5) ->  | R71: =IF('Cultura Clasica'!U5="","",'Cultura Clasica'!U5) ->  | S71: =IF('Cultura Clasica'!V5="","",'Cultura Clasica'!V5) ->  | T71: =IF('Cultura Clasica'!W5="","",'Cultura Clasica'!W5) ->  | U71: =IF('Cultura Clasica'!X5="","",'Cultura Clasica'!X5) ->  | V71: =IF('Cultura Clasica'!Y5="","",'Cultura Clasica'!Y5) ->  | W71: =IF('Cultura Clasica'!Z5="","",'Cultura Clasica'!Z5) ->  | X71: =IF('Cultura Clasica'!AA5="","",'Cultura Clasica'!AA5) ->  | Y71: =IF('Cultura Clasica'!AB5="","",'Cultura Clasica'!AB5) ->  | Z71: =IF('Cultura Clasica'!AC5="","",'Cultura Clasica'!AC5) ->  | AA71: =IF('Cultura Clasica'!AD5="","",'Cultura Clasica'!AD5) ->  | AB71: =IF('Cultura Clasica'!AE5="","",'Cultura Clasica'!AE5) ->  | AC71: =IF('Cultura Clasica'!AF5="","",'Cultura Clasica'!AF5) ->  | AD71: =IF('Cultura Clasica'!AG5="","",'Cultura Clasica'!AG5) ->  | AE71: =IF('Cultura Clasica'!AH5="","",'Cultura Clasica'!AH5) ->  | AF71: =IF('Cultura Clasica'!AI5="","",'Cultura Clasica'!AI5) ->  | AG71: =IF('Cultura Clasica'!AJ5="","",'Cultura Clasica'!AJ5) ->  | AH71: =IF('Cultura Clasica'!AK5="","",'Cultura Clasica'!AK5) ->  | AI71: =IF('Cultura Clasica'!AL5="","",'Cultura Clasica'!AL5) ->  | AJ71: =IF('Cultura Clasica'!AM5="","",'Cultura Clasica'!AM5) ->  | AK71: =IF('Cultura Clasica'!AN5="","",'Cultura Clasica'!AN5) ->  | AL71: =IF('Cultura Clasica'!AO5="","",'Cultura Clasica'!AO5) ->  | AM71: =IF('Cultura Clasica'!AP5="","",'Cultura Clasica'!AP5) -> 
D72: Criterio Evaluación 1.3 | E72: =IF('Cultura Clasica'!H6="","",'Cultura Clasica'!H6) ->  | F72: =IF('Cultura Clasica'!I6="","",'Cultura Clasica'!I6) ->  | G72: =IF('Cultura Clasica'!J6="","",'Cultura Clasica'!J6) ->  | H72: =IF('Cultura Clasica'!K6="","",'Cultura Clasica'!K6) ->  | I72: =IF('Cultura Clasica'!L6="","",'Cultura Clasica'!L6) ->  | J72: =IF('Cultura Clasica'!M6="","",'Cultura Clasica'!M6) ->  | K72: =IF('Cultura Clasica'!N6="","",'Cultura Clasica'!N6) ->  | L72: =IF('Cultura Clasica'!O6="","",'Cultura Clasica'!O6) ->  | M72: =IF('Cultura Clasica'!P6="","",'Cultura Clasica'!P6) ->  | N72: =IF('Cultura Clasica'!Q6="","",'Cultura Clasica'!Q6) ->  | O72: =IF('Cultura Clasica'!R6="","",'Cultura Clasica'!R6) ->  | P72: =IF('Cultura Clasica'!S6="","",'Cultura Clasica'!S6) ->  | Q72: =IF('Cultura Clasica'!T6="","",'Cultura Clasica'!T6) ->  | R72: =IF('Cultura Clasica'!U6="","",'Cultura Clasica'!U6) ->  | S72: =IF('Cultura Clasica'!V6="","",'Cultura Clasica'!V6) ->  | T72: =IF('Cultura Clasica'!W6="","",'Cultura Clasica'!W6) ->  | U72: =IF('Cultura Clasica'!X6="","",'Cultura Clasica'!X6) ->  | V72: =IF('Cultura Clasica'!Y6="","",'Cultura Clasica'!Y6) ->  | W72: =IF('Cultura Clasica'!Z6="","",'Cultura Clasica'!Z6) ->  | X72: =IF('Cultura Clasica'!AA6="","",'Cultura Clasica'!AA6) ->  | Y72: =IF('Cultura Clasica'!AB6="","",'Cultura Clasica'!AB6) ->  | Z72: =IF('Cultura Clasica'!AC6="","",'Cultura Clasica'!AC6) ->  | AA72: =IF('Cultura Clasica'!AD6="","",'Cultura Clasica'!AD6) ->  | AB72: =IF('Cultura Clasica'!AE6="","",'Cultura Clasica'!AE6) ->  | AC72: =IF('Cultura Clasica'!AF6="","",'Cultura Clasica'!AF6) ->  | AD72: =IF('Cultura Clasica'!AG6="","",'Cultura Clasica'!AG6) ->  | AE72: =IF('Cultura Clasica'!AH6="","",'Cultura Clasica'!AH6) ->  | AF72: =IF('Cultura Clasica'!AI6="","",'Cultura Clasica'!AI6) ->  | AG72: =IF('Cultura Clasica'!AJ6="","",'Cultura Clasica'!AJ6) ->  | AH72: =IF('Cultura Clasica'!AK6="","",'Cultura Clasica'!AK6) ->  | AI72: =IF('Cultura Clasica'!AL6="","",'Cultura Clasica'!AL6) ->  | AJ72: =IF('Cultura Clasica'!AM6="","",'Cultura Clasica'!AM6) ->  | AK72: =IF('Cultura Clasica'!AN6="","",'Cultura Clasica'!AN6) ->  | AL72: =IF('Cultura Clasica'!AO6="","",'Cultura Clasica'!AO6) ->  | AM72: =IF('Cultura Clasica'!AP6="","",'Cultura Clasica'!AP6) -> 
D73: Criterio Evaluación 1.4 | E73: =IF('Cultura Clasica'!H7="","",'Cultura Clasica'!H7) ->  | F73: =IF('Cultura Clasica'!I7="","",'Cultura Clasica'!I7) ->  | G73: =IF('Cultura Clasica'!J7="","",'Cultura Clasica'!J7) ->  | H73: =IF('Cultura Clasica'!K7="","",'Cultura Clasica'!K7) ->  | I73: =IF('Cultura Clasica'!L7="","",'Cultura Clasica'!L7) ->  | J73: =IF('Cultura Clasica'!M7="","",'Cultura Clasica'!M7) ->  | K73: =IF('Cultura Clasica'!N7="","",'Cultura Clasica'!N7) ->  | L73: =IF('Cultura Clasica'!O7="","",'Cultura Clasica'!O7) ->  | M73: =IF('Cultura Clasica'!P7="","",'Cultura Clasica'!P7) ->  | N73: =IF('Cultura Clasica'!Q7="","",'Cultura Clasica'!Q7) ->  | O73: =IF('Cultura Clasica'!R7="","",'Cultura Clasica'!R7) ->  | P73: =IF('Cultura Clasica'!S7="","",'Cultura Clasica'!S7) ->  | Q73: =IF('Cultura Clasica'!T7="","",'Cultura Clasica'!T7) ->  | R73: =IF('Cultura Clasica'!U7="","",'Cultura Clasica'!U7) ->  | S73: =IF('Cultura Clasica'!V7="","",'Cultura Clasica'!V7) ->  | T73: =IF('Cultura Clasica'!W7="","",'Cultura Clasica'!W7) ->  | U73: =IF('Cultura Clasica'!X7="","",'Cultura Clasica'!X7) ->  | V73: =IF('Cultura Clasica'!Y7="","",'Cultura Clasica'!Y7) ->  | W73: =IF('Cultura Clasica'!Z7="","",'Cultura Clasica'!Z7) ->  | X73: =IF('Cultura Clasica'!AA7="","",'Cultura Clasica'!AA7) ->  | Y73: =IF('Cultura Clasica'!AB7="","",'Cultura Clasica'!AB7) ->  | Z73: =IF('Cultura Clasica'!AC7="","",'Cultura Clasica'!AC7) ->  | AA73: =IF('Cultura Clasica'!AD7="","",'Cultura Clasica'!AD7) ->  | AB73: =IF('Cultura Clasica'!AE7="","",'Cultura Clasica'!AE7) ->  | AC73: =IF('Cultura Clasica'!AF7="","",'Cultura Clasica'!AF7) ->  | AD73: =IF('Cultura Clasica'!AG7="","",'Cultura Clasica'!AG7) ->  | AE73: =IF('Cultura Clasica'!AH7="","",'Cultura Clasica'!AH7) ->  | AF73: =IF('Cultura Clasica'!AI7="","",'Cultura Clasica'!AI7) ->  | AG73: =IF('Cultura Clasica'!AJ7="","",'Cultura Clasica'!AJ7) ->  | AH73: =IF('Cultura Clasica'!AK7="","",'Cultura Clasica'!AK7) ->  | AI73: =IF('Cultura Clasica'!AL7="","",'Cultura Clasica'!AL7) ->  | AJ73: =IF('Cultura Clasica'!AM7="","",'Cultura Clasica'!AM7) ->  | AK73: =IF('Cultura Clasica'!AN7="","",'Cultura Clasica'!AN7) ->  | AL73: =IF('Cultura Clasica'!AO7="","",'Cultura Clasica'!AO7) ->  | AM73: =IF('Cultura Clasica'!AP7="","",'Cultura Clasica'!AP7) -> 
C74: Comp. Esp. 2 | D74: Criterio Evaluación 2.1 | E74: =IF('Cultura Clasica'!H8="","",'Cultura Clasica'!H8) ->  | F74: =IF('Cultura Clasica'!I8="","",'Cultura Clasica'!I8) ->  | G74: =IF('Cultura Clasica'!J8="","",'Cultura Clasica'!J8) ->  | H74: =IF('Cultura Clasica'!K8="","",'Cultura Clasica'!K8) ->  | I74: =IF('Cultura Clasica'!L8="","",'Cultura Clasica'!L8) ->  | J74: =IF('Cultura Clasica'!M8="","",'Cultura Clasica'!M8) ->  | K74: =IF('Cultura Clasica'!N8="","",'Cultura Clasica'!N8) ->  | L74: =IF('Cultura Clasica'!O8="","",'Cultura Clasica'!O8) ->  | M74: =IF('Cultura Clasica'!P8="","",'Cultura Clasica'!P8) ->  | N74: =IF('Cultura Clasica'!Q8="","",'Cultura Clasica'!Q8) ->  | O74: =IF('Cultura Clasica'!R8="","",'Cultura Clasica'!R8) ->  | P74: =IF('Cultura Clasica'!S8="","",'Cultura Clasica'!S8) ->  | Q74: =IF('Cultura Clasica'!T8="","",'Cultura Clasica'!T8) ->  | R74: =IF('Cultura Clasica'!U8="","",'Cultura Clasica'!U8) ->  | S74: =IF('Cultura Clasica'!V8="","",'Cultura Clasica'!V8) ->  | T74: =IF('Cultura Clasica'!W8="","",'Cultura Clasica'!W8) ->  | U74: =IF('Cultura Clasica'!X8="","",'Cultura Clasica'!X8) ->  | V74: =IF('Cultura Clasica'!Y8="","",'Cultura Clasica'!Y8) ->  | W74: =IF('Cultura Clasica'!Z8="","",'Cultura Clasica'!Z8) ->  | X74: =IF('Cultura Clasica'!AA8="","",'Cultura Clasica'!AA8) ->  | Y74: =IF('Cultura Clasica'!AB8="","",'Cultura Clasica'!AB8) ->  | Z74: =IF('Cultura Clasica'!AC8="","",'Cultura Clasica'!AC8) ->  | AA74: =IF('Cultura Clasica'!AD8="","",'Cultura Clasica'!AD8) ->  | AB74: =IF('Cultura Clasica'!AE8="","",'Cultura Clasica'!AE8) ->  | AC74: =IF('Cultura Clasica'!AF8="","",'Cultura Clasica'!AF8) ->  | AD74: =IF('Cultura Clasica'!AG8="","",'Cultura Clasica'!AG8) ->  | AE74: =IF('Cultura Clasica'!AH8="","",'Cultura Clasica'!AH8) ->  | AF74: =IF('Cultura Clasica'!AI8="","",'Cultura Clasica'!AI8) ->  | AG74: =IF('Cultura Clasica'!AJ8="","",'Cultura Clasica'!AJ8) ->  | AH74: =IF('Cultura Clasica'!AK8="","",'Cultura Clasica'!AK8) ->  | AI74: =IF('Cultura Clasica'!AL8="","",'Cultura Clasica'!AL8) ->  | AJ74: =IF('Cultura Clasica'!AM8="","",'Cultura Clasica'!AM8) ->  | AK74: =IF('Cultura Clasica'!AN8="","",'Cultura Clasica'!AN8) ->  | AL74: =IF('Cultura Clasica'!AO8="","",'Cultura Clasica'!AO8) ->  | AM74: =IF('Cultura Clasica'!AP8="","",'Cultura Clasica'!AP8) -> 
D75: Criterio Evaluación 2.2 | E75: =IF('Cultura Clasica'!H9="","",'Cultura Clasica'!H9) ->  | F75: =IF('Cultura Clasica'!I9="","",'Cultura Clasica'!I9) ->  | G75: =IF('Cultura Clasica'!J9="","",'Cultura Clasica'!J9) ->  | H75: =IF('Cultura Clasica'!K9="","",'Cultura Clasica'!K9) ->  | I75: =IF('Cultura Clasica'!L9="","",'Cultura Clasica'!L9) ->  | J75: =IF('Cultura Clasica'!M9="","",'Cultura Clasica'!M9) ->  | K75: =IF('Cultura Clasica'!N9="","",'Cultura Clasica'!N9) ->  | L75: =IF('Cultura Clasica'!O9="","",'Cultura Clasica'!O9) ->  | M75: =IF('Cultura Clasica'!P9="","",'Cultura Clasica'!P9) ->  | N75: =IF('Cultura Clasica'!Q9="","",'Cultura Clasica'!Q9) ->  | O75: =IF('Cultura Clasica'!R9="","",'Cultura Clasica'!R9) ->  | P75: =IF('Cultura Clasica'!S9="","",'Cultura Clasica'!S9) ->  | Q75: =IF('Cultura Clasica'!T9="","",'Cultura Clasica'!T9) ->  | R75: =IF('Cultura Clasica'!U9="","",'Cultura Clasica'!U9) ->  | S75: =IF('Cultura Clasica'!V9="","",'Cultura Clasica'!V9) ->  | T75: =IF('Cultura Clasica'!W9="","",'Cultura Clasica'!W9) ->  | U75: =IF('Cultura Clasica'!X9="","",'Cultura Clasica'!X9) ->  | V75: =IF('Cultura Clasica'!Y9="","",'Cultura Clasica'!Y9) ->  | W75: =IF('Cultura Clasica'!Z9="","",'Cultura Clasica'!Z9) ->  | X75: =IF('Cultura Clasica'!AA9="","",'Cultura Clasica'!AA9) ->  | Y75: =IF('Cultura Clasica'!AB9="","",'Cultura Clasica'!AB9) ->  | Z75: =IF('Cultura Clasica'!AC9="","",'Cultura Clasica'!AC9) ->  | AA75: =IF('Cultura Clasica'!AD9="","",'Cultura Clasica'!AD9) ->  | AB75: =IF('Cultura Clasica'!AE9="","",'Cultura Clasica'!AE9) ->  | AC75: =IF('Cultura Clasica'!AF9="","",'Cultura Clasica'!AF9) ->  | AD75: =IF('Cultura Clasica'!AG9="","",'Cultura Clasica'!AG9) ->  | AE75: =IF('Cultura Clasica'!AH9="","",'Cultura Clasica'!AH9) ->  | AF75: =IF('Cultura Clasica'!AI9="","",'Cultura Clasica'!AI9) ->  | AG75: =IF('Cultura Clasica'!AJ9="","",'Cultura Clasica'!AJ9) ->  | AH75: =IF('Cultura Clasica'!AK9="","",'Cultura Clasica'!AK9) ->  | AI75: =IF('Cultura Clasica'!AL9="","",'Cultura Clasica'!AL9) ->  | AJ75: =IF('Cultura Clasica'!AM9="","",'Cultura Clasica'!AM9) ->  | AK75: =IF('Cultura Clasica'!AN9="","",'Cultura Clasica'!AN9) ->  | AL75: =IF('Cultura Clasica'!AO9="","",'Cultura Clasica'!AO9) ->  | AM75: =IF('Cultura Clasica'!AP9="","",'Cultura Clasica'!AP9) -> 
D76: Criterio Evaluación 2.3 | E76: =IF('Cultura Clasica'!H10="","",'Cultura Clasica'!H10) ->  | F76: =IF('Cultura Clasica'!I10="","",'Cultura Clasica'!I10) ->  | G76: =IF('Cultura Clasica'!J10="","",'Cultura Clasica'!J10) ->  | H76: =IF('Cultura Clasica'!K10="","",'Cultura Clasica'!K10) ->  | I76: =IF('Cultura Clasica'!L10="","",'Cultura Clasica'!L10) ->  | J76: =IF('Cultura Clasica'!M10="","",'Cultura Clasica'!M10) ->  | K76: =IF('Cultura Clasica'!N10="","",'Cultura Clasica'!N10) ->  | L76: =IF('Cultura Clasica'!O10="","",'Cultura Clasica'!O10) ->  | M76: =IF('Cultura Clasica'!P10="","",'Cultura Clasica'!P10) ->  | N76: =IF('Cultura Clasica'!Q10="","",'Cultura Clasica'!Q10) ->  | O76: =IF('Cultura Clasica'!R10="","",'Cultura Clasica'!R10) ->  | P76: =IF('Cultura Clasica'!S10="","",'Cultura Clasica'!S10) ->  | Q76: =IF('Cultura Clasica'!T10="","",'Cultura Clasica'!T10) ->  | R76: =IF('Cultura Clasica'!U10="","",'Cultura Clasica'!U10) ->  | S76: =IF('Cultura Clasica'!V10="","",'Cultura Clasica'!V10) ->  | T76: =IF('Cultura Clasica'!W10="","",'Cultura Clasica'!W10) ->  | U76: =IF('Cultura Clasica'!X10="","",'Cultura Clasica'!X10) ->  | V76: =IF('Cultura Clasica'!Y10="","",'Cultura Clasica'!Y10) ->  | W76: =IF('Cultura Clasica'!Z10="","",'Cultura Clasica'!Z10) ->  | X76: =IF('Cultura Clasica'!AA10="","",'Cultura Clasica'!AA10) ->  | Y76: =IF('Cultura Clasica'!AB10="","",'Cultura Clasica'!AB10) ->  | Z76: =IF('Cultura Clasica'!AC10="","",'Cultura Clasica'!AC10) ->  | AA76: =IF('Cultura Clasica'!AD10="","",'Cultura Clasica'!AD10) ->  | AB76: =IF('Cultura Clasica'!AE10="","",'Cultura Clasica'!AE10) ->  | AC76: =IF('Cultura Clasica'!AF10="","",'Cultura Clasica'!AF10) ->  | AD76: =IF('Cultura Clasica'!AG10="","",'Cultura Clasica'!AG10) ->  | AE76: =IF('Cultura Clasica'!AH10="","",'Cultura Clasica'!AH10) ->  | AF76: =IF('Cultura Clasica'!AI10="","",'Cultura Clasica'!AI10) ->  | AG76: =IF('Cultura Clasica'!AJ10="","",'Cultura Clasica'!AJ10) ->  | AH76: =IF('Cultura Clasica'!AK10="","",'Cultura Clasica'!AK10) ->  | AI76: =IF('Cultura Clasica'!AL10="","",'Cultura Clasica'!AL10) ->  | AJ76: =IF('Cultura Clasica'!AM10="","",'Cultura Clasica'!AM10) ->  | AK76: =IF('Cultura Clasica'!AN10="","",'Cultura Clasica'!AN10) ->  | AL76: =IF('Cultura Clasica'!AO10="","",'Cultura Clasica'!AO10) ->  | AM76: =IF('Cultura Clasica'!AP10="","",'Cultura Clasica'!AP10) -> 
D77: Criterio Evaluación 2.4 | E77: =IF('Cultura Clasica'!H11="","",'Cultura Clasica'!H11) ->  | F77: =IF('Cultura Clasica'!I11="","",'Cultura Clasica'!I11) ->  | G77: =IF('Cultura Clasica'!J11="","",'Cultura Clasica'!J11) ->  | H77: =IF('Cultura Clasica'!K11="","",'Cultura Clasica'!K11) ->  | I77: =IF('Cultura Clasica'!L11="","",'Cultura Clasica'!L11) ->  | J77: =IF('Cultura Clasica'!M11="","",'Cultura Clasica'!M11) ->  | K77: =IF('Cultura Clasica'!N11="","",'Cultura Clasica'!N11) ->  | L77: =IF('Cultura Clasica'!O11="","",'Cultura Clasica'!O11) ->  | M77: =IF('Cultura Clasica'!P11="","",'Cultura Clasica'!P11) ->  | N77: =IF('Cultura Clasica'!Q11="","",'Cultura Clasica'!Q11) ->  | O77: =IF('Cultura Clasica'!R11="","",'Cultura Clasica'!R11) ->  | P77: =IF('Cultura Clasica'!S11="","",'Cultura Clasica'!S11) ->  | Q77: =IF('Cultura Clasica'!T11="","",'Cultura Clasica'!T11) ->  | R77: =IF('Cultura Clasica'!U11="","",'Cultura Clasica'!U11) ->  | S77: =IF('Cultura Clasica'!V11="","",'Cultura Clasica'!V11) ->  | T77: =IF('Cultura Clasica'!W11="","",'Cultura Clasica'!W11) ->  | U77: =IF('Cultura Clasica'!X11="","",'Cultura Clasica'!X11) ->  | V77: =IF('Cultura Clasica'!Y11="","",'Cultura Clasica'!Y11) ->  | W77: =IF('Cultura Clasica'!Z11="","",'Cultura Clasica'!Z11) ->  | X77: =IF('Cultura Clasica'!AA11="","",'Cultura Clasica'!AA11) ->  | Y77: =IF('Cultura Clasica'!AB11="","",'Cultura Clasica'!AB11) ->  | Z77: =IF('Cultura Clasica'!AC11="","",'Cultura Clasica'!AC11) ->  | AA77: =IF('Cultura Clasica'!AD11="","",'Cultura Clasica'!AD11) ->  | AB77: =IF('Cultura Clasica'!AE11="","",'Cultura Clasica'!AE11) ->  | AC77: =IF('Cultura Clasica'!AF11="","",'Cultura Clasica'!AF11) ->  | AD77: =IF('Cultura Clasica'!AG11="","",'Cultura Clasica'!AG11) ->  | AE77: =IF('Cultura Clasica'!AH11="","",'Cultura Clasica'!AH11) ->  | AF77: =IF('Cultura Clasica'!AI11="","",'Cultura Clasica'!AI11) ->  | AG77: =IF('Cultura Clasica'!AJ11="","",'Cultura Clasica'!AJ11) ->  | AH77: =IF('Cultura Clasica'!AK11="","",'Cultura Clasica'!AK11) ->  | AI77: =IF('Cultura Clasica'!AL11="","",'Cultura Clasica'!AL11) ->  | AJ77: =IF('Cultura Clasica'!AM11="","",'Cultura Clasica'!AM11) ->  | AK77: =IF('Cultura Clasica'!AN11="","",'Cultura Clasica'!AN11) ->  | AL77: =IF('Cultura Clasica'!AO11="","",'Cultura Clasica'!AO11) ->  | AM77: =IF('Cultura Clasica'!AP11="","",'Cultura Clasica'!AP11) -> 
C78: Comp. Esp. 3 | D78: Criterio Evaluación 3.1 | E78: =IF('Cultura Clasica'!H12="","",'Cultura Clasica'!H12) ->  | F78: =IF('Cultura Clasica'!I12="","",'Cultura Clasica'!I12) ->  | G78: =IF('Cultura Clasica'!J12="","",'Cultura Clasica'!J12) ->  | H78: =IF('Cultura Clasica'!K12="","",'Cultura Clasica'!K12) ->  | I78: =IF('Cultura Clasica'!L12="","",'Cultura Clasica'!L12) ->  | J78: =IF('Cultura Clasica'!M12="","",'Cultura Clasica'!M12) ->  | K78: =IF('Cultura Clasica'!N12="","",'Cultura Clasica'!N12) ->  | L78: =IF('Cultura Clasica'!O12="","",'Cultura Clasica'!O12) ->  | M78: =IF('Cultura Clasica'!P12="","",'Cultura Clasica'!P12) ->  | N78: =IF('Cultura Clasica'!Q12="","",'Cultura Clasica'!Q12) ->  | O78: =IF('Cultura Clasica'!R12="","",'Cultura Clasica'!R12) ->  | P78: =IF('Cultura Clasica'!S12="","",'Cultura Clasica'!S12) ->  | Q78: =IF('Cultura Clasica'!T12="","",'Cultura Clasica'!T12) ->  | R78: =IF('Cultura Clasica'!U12="","",'Cultura Clasica'!U12) ->  | S78: =IF('Cultura Clasica'!V12="","",'Cultura Clasica'!V12) ->  | T78: =IF('Cultura Clasica'!W12="","",'Cultura Clasica'!W12) ->  | U78: =IF('Cultura Clasica'!X12="","",'Cultura Clasica'!X12) ->  | V78: =IF('Cultura Clasica'!Y12="","",'Cultura Clasica'!Y12) ->  | W78: =IF('Cultura Clasica'!Z12="","",'Cultura Clasica'!Z12) ->  | X78: =IF('Cultura Clasica'!AA12="","",'Cultura Clasica'!AA12) ->  | Y78: =IF('Cultura Clasica'!AB12="","",'Cultura Clasica'!AB12) ->  | Z78: =IF('Cultura Clasica'!AC12="","",'Cultura Clasica'!AC12) ->  | AA78: =IF('Cultura Clasica'!AD12="","",'Cultura Clasica'!AD12) ->  | AB78: =IF('Cultura Clasica'!AE12="","",'Cultura Clasica'!AE12) ->  | AC78: =IF('Cultura Clasica'!AF12="","",'Cultura Clasica'!AF12) ->  | AD78: =IF('Cultura Clasica'!AG12="","",'Cultura Clasica'!AG12) ->  | AE78: =IF('Cultura Clasica'!AH12="","",'Cultura Clasica'!AH12) ->  | AF78: =IF('Cultura Clasica'!AI12="","",'Cultura Clasica'!AI12) ->  | AG78: =IF('Cultura Clasica'!AJ12="","",'Cultura Clasica'!AJ12) ->  | AH78: =IF('Cultura Clasica'!AK12="","",'Cultura Clasica'!AK12) ->  | AI78: =IF('Cultura Clasica'!AL12="","",'Cultura Clasica'!AL12) ->  | AJ78: =IF('Cultura Clasica'!AM12="","",'Cultura Clasica'!AM12) ->  | AK78: =IF('Cultura Clasica'!AN12="","",'Cultura Clasica'!AN12) ->  | AL78: =IF('Cultura Clasica'!AO12="","",'Cultura Clasica'!AO12) ->  | AM78: =IF('Cultura Clasica'!AP12="","",'Cultura Clasica'!AP12) -> 
D79: Criterio Evaluación 3.2 | E79: =IF('Cultura Clasica'!H13="","",'Cultura Clasica'!H13) ->  | F79: =IF('Cultura Clasica'!I13="","",'Cultura Clasica'!I13) ->  | G79: =IF('Cultura Clasica'!J13="","",'Cultura Clasica'!J13) ->  | H79: =IF('Cultura Clasica'!K13="","",'Cultura Clasica'!K13) ->  | I79: =IF('Cultura Clasica'!L13="","",'Cultura Clasica'!L13) ->  | J79: =IF('Cultura Clasica'!M13="","",'Cultura Clasica'!M13) ->  | K79: =IF('Cultura Clasica'!N13="","",'Cultura Clasica'!N13) ->  | L79: =IF('Cultura Clasica'!O13="","",'Cultura Clasica'!O13) ->  | M79: =IF('Cultura Clasica'!P13="","",'Cultura Clasica'!P13) ->  | N79: =IF('Cultura Clasica'!Q13="","",'Cultura Clasica'!Q13) ->  | O79: =IF('Cultura Clasica'!R13="","",'Cultura Clasica'!R13) ->  | P79: =IF('Cultura Clasica'!S13="","",'Cultura Clasica'!S13) ->  | Q79: =IF('Cultura Clasica'!T13="","",'Cultura Clasica'!T13) ->  | R79: =IF('Cultura Clasica'!U13="","",'Cultura Clasica'!U13) ->  | S79: =IF('Cultura Clasica'!V13="","",'Cultura Clasica'!V13) ->  | T79: =IF('Cultura Clasica'!W13="","",'Cultura Clasica'!W13) ->  | U79: =IF('Cultura Clasica'!X13="","",'Cultura Clasica'!X13) ->  | V79: =IF('Cultura Clasica'!Y13="","",'Cultura Clasica'!Y13) ->  | W79: =IF('Cultura Clasica'!Z13="","",'Cultura Clasica'!Z13) ->  | X79: =IF('Cultura Clasica'!AA13="","",'Cultura Clasica'!AA13) ->  | Y79: =IF('Cultura Clasica'!AB13="","",'Cultura Clasica'!AB13) ->  | Z79: =IF('Cultura Clasica'!AC13="","",'Cultura Clasica'!AC13) ->  | AA79: =IF('Cultura Clasica'!AD13="","",'Cultura Clasica'!AD13) ->  | AB79: =IF('Cultura Clasica'!AE13="","",'Cultura Clasica'!AE13) ->  | AC79: =IF('Cultura Clasica'!AF13="","",'Cultura Clasica'!AF13) ->  | AD79: =IF('Cultura Clasica'!AG13="","",'Cultura Clasica'!AG13) ->  | AE79: =IF('Cultura Clasica'!AH13="","",'Cultura Clasica'!AH13) ->  | AF79: =IF('Cultura Clasica'!AI13="","",'Cultura Clasica'!AI13) ->  | AG79: =IF('Cultura Clasica'!AJ13="","",'Cultura Clasica'!AJ13) ->  | AH79: =IF('Cultura Clasica'!AK13="","",'Cultura Clasica'!AK13) ->  | AI79: =IF('Cultura Clasica'!AL13="","",'Cultura Clasica'!AL13) ->  | AJ79: =IF('Cultura Clasica'!AM13="","",'Cultura Clasica'!AM13) ->  | AK79: =IF('Cultura Clasica'!AN13="","",'Cultura Clasica'!AN13) ->  | AL79: =IF('Cultura Clasica'!AO13="","",'Cultura Clasica'!AO13) ->  | AM79: =IF('Cultura Clasica'!AP13="","",'Cultura Clasica'!AP13) -> 
D80: Criterio Evaluación 3.3 | E80: =IF('Cultura Clasica'!H14="","",'Cultura Clasica'!H14) ->  | F80: =IF('Cultura Clasica'!I14="","",'Cultura Clasica'!I14) ->  | G80: =IF('Cultura Clasica'!J14="","",'Cultura Clasica'!J14) ->  | H80: =IF('Cultura Clasica'!K14="","",'Cultura Clasica'!K14) ->  | I80: =IF('Cultura Clasica'!L14="","",'Cultura Clasica'!L14) ->  | J80: =IF('Cultura Clasica'!M14="","",'Cultura Clasica'!M14) ->  | K80: =IF('Cultura Clasica'!N14="","",'Cultura Clasica'!N14) ->  | L80: =IF('Cultura Clasica'!O14="","",'Cultura Clasica'!O14) ->  | M80: =IF('Cultura Clasica'!P14="","",'Cultura Clasica'!P14) ->  | N80: =IF('Cultura Clasica'!Q14="","",'Cultura Clasica'!Q14) ->  | O80: =IF('Cultura Clasica'!R14="","",'Cultura Clasica'!R14) ->  | P80: =IF('Cultura Clasica'!S14="","",'Cultura Clasica'!S14) ->  | Q80: =IF('Cultura Clasica'!T14="","",'Cultura Clasica'!T14) ->  | R80: =IF('Cultura Clasica'!U14="","",'Cultura Clasica'!U14) ->  | S80: =IF('Cultura Clasica'!V14="","",'Cultura Clasica'!V14) ->  | T80: =IF('Cultura Clasica'!W14="","",'Cultura Clasica'!W14) ->  | U80: =IF('Cultura Clasica'!X14="","",'Cultura Clasica'!X14) ->  | V80: =IF('Cultura Clasica'!Y14="","",'Cultura Clasica'!Y14) ->  | W80: =IF('Cultura Clasica'!Z14="","",'Cultura Clasica'!Z14) ->  | X80: =IF('Cultura Clasica'!AA14="","",'Cultura Clasica'!AA14) ->  | Y80: =IF('Cultura Clasica'!AB14="","",'Cultura Clasica'!AB14) ->  | Z80: =IF('Cultura Clasica'!AC14="","",'Cultura Clasica'!AC14) ->  | AA80: =IF('Cultura Clasica'!AD14="","",'Cultura Clasica'!AD14) ->  | AB80: =IF('Cultura Clasica'!AE14="","",'Cultura Clasica'!AE14) ->  | AC80: =IF('Cultura Clasica'!AF14="","",'Cultura Clasica'!AF14) ->  | AD80: =IF('Cultura Clasica'!AG14="","",'Cultura Clasica'!AG14) ->  | AE80: =IF('Cultura Clasica'!AH14="","",'Cultura Clasica'!AH14) ->  | AF80: =IF('Cultura Clasica'!AI14="","",'Cultura Clasica'!AI14) ->  | AG80: =IF('Cultura Clasica'!AJ14="","",'Cultura Clasica'!AJ14) ->  | AH80: =IF('Cultura Clasica'!AK14="","",'Cultura Clasica'!AK14) ->  | AI80: =IF('Cultura Clasica'!AL14="","",'Cultura Clasica'!AL14) ->  | AJ80: =IF('Cultura Clasica'!AM14="","",'Cultura Clasica'!AM14) ->  | AK80: =IF('Cultura Clasica'!AN14="","",'Cultura Clasica'!AN14) ->  | AL80: =IF('Cultura Clasica'!AO14="","",'Cultura Clasica'!AO14) ->  | AM80: =IF('Cultura Clasica'!AP14="","",'Cultura Clasica'!AP14) -> 
D81: Criterio Evaluación 3.4 | E81: =IF('Cultura Clasica'!H15="","",'Cultura Clasica'!H15) ->  | F81: =IF('Cultura Clasica'!I15="","",'Cultura Clasica'!I15) ->  | G81: =IF('Cultura Clasica'!J15="","",'Cultura Clasica'!J15) ->  | H81: =IF('Cultura Clasica'!K15="","",'Cultura Clasica'!K15) ->  | I81: =IF('Cultura Clasica'!L15="","",'Cultura Clasica'!L15) ->  | J81: =IF('Cultura Clasica'!M15="","",'Cultura Clasica'!M15) ->  | K81: =IF('Cultura Clasica'!N15="","",'Cultura Clasica'!N15) ->  | L81: =IF('Cultura Clasica'!O15="","",'Cultura Clasica'!O15) ->  | M81: =IF('Cultura Clasica'!P15="","",'Cultura Clasica'!P15) ->  | N81: =IF('Cultura Clasica'!Q15="","",'Cultura Clasica'!Q15) ->  | O81: =IF('Cultura Clasica'!R15="","",'Cultura Clasica'!R15) ->  | P81: =IF('Cultura Clasica'!S15="","",'Cultura Clasica'!S15) ->  | Q81: =IF('Cultura Clasica'!T15="","",'Cultura Clasica'!T15) ->  | R81: =IF('Cultura Clasica'!U15="","",'Cultura Clasica'!U15) ->  | S81: =IF('Cultura Clasica'!V15="","",'Cultura Clasica'!V15) ->  | T81: =IF('Cultura Clasica'!W15="","",'Cultura Clasica'!W15) ->  | U81: =IF('Cultura Clasica'!X15="","",'Cultura Clasica'!X15) ->  | V81: =IF('Cultura Clasica'!Y15="","",'Cultura Clasica'!Y15) ->  | W81: =IF('Cultura Clasica'!Z15="","",'Cultura Clasica'!Z15) ->  | X81: =IF('Cultura Clasica'!AA15="","",'Cultura Clasica'!AA15) ->  | Y81: =IF('Cultura Clasica'!AB15="","",'Cultura Clasica'!AB15) ->  | Z81: =IF('Cultura Clasica'!AC15="","",'Cultura Clasica'!AC15) ->  | AA81: =IF('Cultura Clasica'!AD15="","",'Cultura Clasica'!AD15) ->  | AB81: =IF('Cultura Clasica'!AE15="","",'Cultura Clasica'!AE15) ->  | AC81: =IF('Cultura Clasica'!AF15="","",'Cultura Clasica'!AF15) ->  | AD81: =IF('Cultura Clasica'!AG15="","",'Cultura Clasica'!AG15) ->  | AE81: =IF('Cultura Clasica'!AH15="","",'Cultura Clasica'!AH15) ->  | AF81: =IF('Cultura Clasica'!AI15="","",'Cultura Clasica'!AI15) ->  | AG81: =IF('Cultura Clasica'!AJ15="","",'Cultura Clasica'!AJ15) ->  | AH81: =IF('Cultura Clasica'!AK15="","",'Cultura Clasica'!AK15) ->  | AI81: =IF('Cultura Clasica'!AL15="","",'Cultura Clasica'!AL15) ->  | AJ81: =IF('Cultura Clasica'!AM15="","",'Cultura Clasica'!AM15) ->  | AK81: =IF('Cultura Clasica'!AN15="","",'Cultura Clasica'!AN15) ->  | AL81: =IF('Cultura Clasica'!AO15="","",'Cultura Clasica'!AO15) ->  | AM81: =IF('Cultura Clasica'!AP15="","",'Cultura Clasica'!AP15) -> 
D82: Criterio Evaluación 3.5 | E82: =IF('Cultura Clasica'!H16="","",'Cultura Clasica'!H16) ->  | F82: =IF('Cultura Clasica'!I16="","",'Cultura Clasica'!I16) ->  | G82: =IF('Cultura Clasica'!J16="","",'Cultura Clasica'!J16) ->  | H82: =IF('Cultura Clasica'!K16="","",'Cultura Clasica'!K16) ->  | I82: =IF('Cultura Clasica'!L16="","",'Cultura Clasica'!L16) ->  | J82: =IF('Cultura Clasica'!M16="","",'Cultura Clasica'!M16) ->  | K82: =IF('Cultura Clasica'!N16="","",'Cultura Clasica'!N16) ->  | L82: =IF('Cultura Clasica'!O16="","",'Cultura Clasica'!O16) ->  | M82: =IF('Cultura Clasica'!P16="","",'Cultura Clasica'!P16) ->  | N82: =IF('Cultura Clasica'!Q16="","",'Cultura Clasica'!Q16) ->  | O82: =IF('Cultura Clasica'!R16="","",'Cultura Clasica'!R16) ->  | P82: =IF('Cultura Clasica'!S16="","",'Cultura Clasica'!S16) ->  | Q82: =IF('Cultura Clasica'!T16="","",'Cultura Clasica'!T16) ->  | R82: =IF('Cultura Clasica'!U16="","",'Cultura Clasica'!U16) ->  | S82: =IF('Cultura Clasica'!V16="","",'Cultura Clasica'!V16) ->  | T82: =IF('Cultura Clasica'!W16="","",'Cultura Clasica'!W16) ->  | U82: =IF('Cultura Clasica'!X16="","",'Cultura Clasica'!X16) ->  | V82: =IF('Cultura Clasica'!Y16="","",'Cultura Clasica'!Y16) ->  | W82: =IF('Cultura Clasica'!Z16="","",'Cultura Clasica'!Z16) ->  | X82: =IF('Cultura Clasica'!AA16="","",'Cultura Clasica'!AA16) ->  | Y82: =IF('Cultura Clasica'!AB16="","",'Cultura Clasica'!AB16) ->  | Z82: =IF('Cultura Clasica'!AC16="","",'Cultura Clasica'!AC16) ->  | AA82: =IF('Cultura Clasica'!AD16="","",'Cultura Clasica'!AD16) ->  | AB82: =IF('Cultura Clasica'!AE16="","",'Cultura Clasica'!AE16) ->  | AC82: =IF('Cultura Clasica'!AF16="","",'Cultura Clasica'!AF16) ->  | AD82: =IF('Cultura Clasica'!AG16="","",'Cultura Clasica'!AG16) ->  | AE82: =IF('Cultura Clasica'!AH16="","",'Cultura Clasica'!AH16) ->  | AF82: =IF('Cultura Clasica'!AI16="","",'Cultura Clasica'!AI16) ->  | AG82: =IF('Cultura Clasica'!AJ16="","",'Cultura Clasica'!AJ16) ->  | AH82: =IF('Cultura Clasica'!AK16="","",'Cultura Clasica'!AK16) ->  | AI82: =IF('Cultura Clasica'!AL16="","",'Cultura Clasica'!AL16) ->  | AJ82: =IF('Cultura Clasica'!AM16="","",'Cultura Clasica'!AM16) ->  | AK82: =IF('Cultura Clasica'!AN16="","",'Cultura Clasica'!AN16) ->  | AL82: =IF('Cultura Clasica'!AO16="","",'Cultura Clasica'!AO16) ->  | AM82: =IF('Cultura Clasica'!AP16="","",'Cultura Clasica'!AP16) -> 
C83: Comp. Esp. 4 | D83: Criterio Evaluación 4.1 | E83: =IF('Cultura Clasica'!H17="","",'Cultura Clasica'!H17) ->  | F83: =IF('Cultura Clasica'!I17="","",'Cultura Clasica'!I17) ->  | G83: =IF('Cultura Clasica'!J17="","",'Cultura Clasica'!J17) ->  | H83: =IF('Cultura Clasica'!K17="","",'Cultura Clasica'!K17) ->  | I83: =IF('Cultura Clasica'!L17="","",'Cultura Clasica'!L17) ->  | J83: =IF('Cultura Clasica'!M17="","",'Cultura Clasica'!M17) ->  | K83: =IF('Cultura Clasica'!N17="","",'Cultura Clasica'!N17) ->  | L83: =IF('Cultura Clasica'!O17="","",'Cultura Clasica'!O17) ->  | M83: =IF('Cultura Clasica'!P17="","",'Cultura Clasica'!P17) ->  | N83: =IF('Cultura Clasica'!Q17="","",'Cultura Clasica'!Q17) ->  | O83: =IF('Cultura Clasica'!R17="","",'Cultura Clasica'!R17) ->  | P83: =IF('Cultura Clasica'!S17="","",'Cultura Clasica'!S17) ->  | Q83: =IF('Cultura Clasica'!T17="","",'Cultura Clasica'!T17) ->  | R83: =IF('Cultura Clasica'!U17="","",'Cultura Clasica'!U17) ->  | S83: =IF('Cultura Clasica'!V17="","",'Cultura Clasica'!V17) ->  | T83: =IF('Cultura Clasica'!W17="","",'Cultura Clasica'!W17) ->  | U83: =IF('Cultura Clasica'!X17="","",'Cultura Clasica'!X17) ->  | V83: =IF('Cultura Clasica'!Y17="","",'Cultura Clasica'!Y17) ->  | W83: =IF('Cultura Clasica'!Z17="","",'Cultura Clasica'!Z17) ->  | X83: =IF('Cultura Clasica'!AA17="","",'Cultura Clasica'!AA17) ->  | Y83: =IF('Cultura Clasica'!AB17="","",'Cultura Clasica'!AB17) ->  | Z83: =IF('Cultura Clasica'!AC17="","",'Cultura Clasica'!AC17) ->  | AA83: =IF('Cultura Clasica'!AD17="","",'Cultura Clasica'!AD17) ->  | AB83: =IF('Cultura Clasica'!AE17="","",'Cultura Clasica'!AE17) ->  | AC83: =IF('Cultura Clasica'!AF17="","",'Cultura Clasica'!AF17) ->  | AD83: =IF('Cultura Clasica'!AG17="","",'Cultura Clasica'!AG17) ->  | AE83: =IF('Cultura Clasica'!AH17="","",'Cultura Clasica'!AH17) ->  | AF83: =IF('Cultura Clasica'!AI17="","",'Cultura Clasica'!AI17) ->  | AG83: =IF('Cultura Clasica'!AJ17="","",'Cultura Clasica'!AJ17) ->  | AH83: =IF('Cultura Clasica'!AK17="","",'Cultura Clasica'!AK17) ->  | AI83: =IF('Cultura Clasica'!AL17="","",'Cultura Clasica'!AL17) ->  | AJ83: =IF('Cultura Clasica'!AM17="","",'Cultura Clasica'!AM17) ->  | AK83: =IF('Cultura Clasica'!AN17="","",'Cultura Clasica'!AN17) ->  | AL83: =IF('Cultura Clasica'!AO17="","",'Cultura Clasica'!AO17) ->  | AM83: =IF('Cultura Clasica'!AP17="","",'Cultura Clasica'!AP17) -> 
D84: Criterio Evaluación 4.2 | E84: =IF('Cultura Clasica'!H18="","",'Cultura Clasica'!H18) ->  | F84: =IF('Cultura Clasica'!I18="","",'Cultura Clasica'!I18) ->  | G84: =IF('Cultura Clasica'!J18="","",'Cultura Clasica'!J18) ->  | H84: =IF('Cultura Clasica'!K18="","",'Cultura Clasica'!K18) ->  | I84: =IF('Cultura Clasica'!L18="","",'Cultura Clasica'!L18) ->  | J84: =IF('Cultura Clasica'!M18="","",'Cultura Clasica'!M18) ->  | K84: =IF('Cultura Clasica'!N18="","",'Cultura Clasica'!N18) ->  | L84: =IF('Cultura Clasica'!O18="","",'Cultura Clasica'!O18) ->  | M84: =IF('Cultura Clasica'!P18="","",'Cultura Clasica'!P18) ->  | N84: =IF('Cultura Clasica'!Q18="","",'Cultura Clasica'!Q18) ->  | O84: =IF('Cultura Clasica'!R18="","",'Cultura Clasica'!R18) ->  | P84: =IF('Cultura Clasica'!S18="","",'Cultura Clasica'!S18) ->  | Q84: =IF('Cultura Clasica'!T18="","",'Cultura Clasica'!T18) ->  | R84: =IF('Cultura Clasica'!U18="","",'Cultura Clasica'!U18) ->  | S84: =IF('Cultura Clasica'!V18="","",'Cultura Clasica'!V18) ->  | T84: =IF('Cultura Clasica'!W18="","",'Cultura Clasica'!W18) ->  | U84: =IF('Cultura Clasica'!X18="","",'Cultura Clasica'!X18) ->  | V84: =IF('Cultura Clasica'!Y18="","",'Cultura Clasica'!Y18) ->  | W84: =IF('Cultura Clasica'!Z18="","",'Cultura Clasica'!Z18) ->  | X84: =IF('Cultura Clasica'!AA18="","",'Cultura Clasica'!AA18) ->  | Y84: =IF('Cultura Clasica'!AB18="","",'Cultura Clasica'!AB18) ->  | Z84: =IF('Cultura Clasica'!AC18="","",'Cultura Clasica'!AC18) ->  | AA84: =IF('Cultura Clasica'!AD18="","",'Cultura Clasica'!AD18) ->  | AB84: =IF('Cultura Clasica'!AE18="","",'Cultura Clasica'!AE18) ->  | AC84: =IF('Cultura Clasica'!AF18="","",'Cultura Clasica'!AF18) ->  | AD84: =IF('Cultura Clasica'!AG18="","",'Cultura Clasica'!AG18) ->  | AE84: =IF('Cultura Clasica'!AH18="","",'Cultura Clasica'!AH18) ->  | AF84: =IF('Cultura Clasica'!AI18="","",'Cultura Clasica'!AI18) ->  | AG84: =IF('Cultura Clasica'!AJ18="","",'Cultura Clasica'!AJ18) ->  | AH84: =IF('Cultura Clasica'!AK18="","",'Cultura Clasica'!AK18) ->  | AI84: =IF('Cultura Clasica'!AL18="","",'Cultura Clasica'!AL18) ->  | AJ84: =IF('Cultura Clasica'!AM18="","",'Cultura Clasica'!AM18) ->  | AK84: =IF('Cultura Clasica'!AN18="","",'Cultura Clasica'!AN18) ->  | AL84: =IF('Cultura Clasica'!AO18="","",'Cultura Clasica'!AO18) ->  | AM84: =IF('Cultura Clasica'!AP18="","",'Cultura Clasica'!AP18) -> 
D85: Criterio Evaluación 4.3 | E85: =IF('Cultura Clasica'!H19="","",'Cultura Clasica'!H19) ->  | F85: =IF('Cultura Clasica'!I19="","",'Cultura Clasica'!I19) ->  | G85: =IF('Cultura Clasica'!J19="","",'Cultura Clasica'!J19) ->  | H85: =IF('Cultura Clasica'!K19="","",'Cultura Clasica'!K19) ->  | I85: =IF('Cultura Clasica'!L19="","",'Cultura Clasica'!L19) ->  | J85: =IF('Cultura Clasica'!M19="","",'Cultura Clasica'!M19) ->  | K85: =IF('Cultura Clasica'!N19="","",'Cultura Clasica'!N19) ->  | L85: =IF('Cultura Clasica'!O19="","",'Cultura Clasica'!O19) ->  | M85: =IF('Cultura Clasica'!P19="","",'Cultura Clasica'!P19) ->  | N85: =IF('Cultura Clasica'!Q19="","",'Cultura Clasica'!Q19) ->  | O85: =IF('Cultura Clasica'!R19="","",'Cultura Clasica'!R19) ->  | P85: =IF('Cultura Clasica'!S19="","",'Cultura Clasica'!S19) ->  | Q85: =IF('Cultura Clasica'!T19="","",'Cultura Clasica'!T19) ->  | R85: =IF('Cultura Clasica'!U19="","",'Cultura Clasica'!U19) ->  | S85: =IF('Cultura Clasica'!V19="","",'Cultura Clasica'!V19) ->  | T85: =IF('Cultura Clasica'!W19="","",'Cultura Clasica'!W19) ->  | U85: =IF('Cultura Clasica'!X19="","",'Cultura Clasica'!X19) ->  | V85: =IF('Cultura Clasica'!Y19="","",'Cultura Clasica'!Y19) ->  | W85: =IF('Cultura Clasica'!Z19="","",'Cultura Clasica'!Z19) ->  | X85: =IF('Cultura Clasica'!AA19="","",'Cultura Clasica'!AA19) ->  | Y85: =IF('Cultura Clasica'!AB19="","",'Cultura Clasica'!AB19) ->  | Z85: =IF('Cultura Clasica'!AC19="","",'Cultura Clasica'!AC19) ->  | AA85: =IF('Cultura Clasica'!AD19="","",'Cultura Clasica'!AD19) ->  | AB85: =IF('Cultura Clasica'!AE19="","",'Cultura Clasica'!AE19) ->  | AC85: =IF('Cultura Clasica'!AF19="","",'Cultura Clasica'!AF19) ->  | AD85: =IF('Cultura Clasica'!AG19="","",'Cultura Clasica'!AG19) ->  | AE85: =IF('Cultura Clasica'!AH19="","",'Cultura Clasica'!AH19) ->  | AF85: =IF('Cultura Clasica'!AI19="","",'Cultura Clasica'!AI19) ->  | AG85: =IF('Cultura Clasica'!AJ19="","",'Cultura Clasica'!AJ19) ->  | AH85: =IF('Cultura Clasica'!AK19="","",'Cultura Clasica'!AK19) ->  | AI85: =IF('Cultura Clasica'!AL19="","",'Cultura Clasica'!AL19) ->  | AJ85: =IF('Cultura Clasica'!AM19="","",'Cultura Clasica'!AM19) ->  | AK85: =IF('Cultura Clasica'!AN19="","",'Cultura Clasica'!AN19) ->  | AL85: =IF('Cultura Clasica'!AO19="","",'Cultura Clasica'!AO19) ->  | AM85: =IF('Cultura Clasica'!AP19="","",'Cultura Clasica'!AP19) -> 
C86: Comp. Esp. 5 | D86: Criterio Evaluación 5.1 | E86: =IF('Cultura Clasica'!H20="","",'Cultura Clasica'!H20) ->  | F86: =IF('Cultura Clasica'!I20="","",'Cultura Clasica'!I20) ->  | G86: =IF('Cultura Clasica'!J20="","",'Cultura Clasica'!J20) ->  | H86: =IF('Cultura Clasica'!K20="","",'Cultura Clasica'!K20) ->  | I86: =IF('Cultura Clasica'!L20="","",'Cultura Clasica'!L20) ->  | J86: =IF('Cultura Clasica'!M20="","",'Cultura Clasica'!M20) ->  | K86: =IF('Cultura Clasica'!N20="","",'Cultura Clasica'!N20) ->  | L86: =IF('Cultura Clasica'!O20="","",'Cultura Clasica'!O20) ->  | M86: =IF('Cultura Clasica'!P20="","",'Cultura Clasica'!P20) ->  | N86: =IF('Cultura Clasica'!Q20="","",'Cultura Clasica'!Q20) ->  | O86: =IF('Cultura Clasica'!R20="","",'Cultura Clasica'!R20) ->  | P86: =IF('Cultura Clasica'!S20="","",'Cultura Clasica'!S20) ->  | Q86: =IF('Cultura Clasica'!T20="","",'Cultura Clasica'!T20) ->  | R86: =IF('Cultura Clasica'!U20="","",'Cultura Clasica'!U20) ->  | S86: =IF('Cultura Clasica'!V20="","",'Cultura Clasica'!V20) ->  | T86: =IF('Cultura Clasica'!W20="","",'Cultura Clasica'!W20) ->  | U86: =IF('Cultura Clasica'!X20="","",'Cultura Clasica'!X20) ->  | V86: =IF('Cultura Clasica'!Y20="","",'Cultura Clasica'!Y20) ->  | W86: =IF('Cultura Clasica'!Z20="","",'Cultura Clasica'!Z20) ->  | X86: =IF('Cultura Clasica'!AA20="","",'Cultura Clasica'!AA20) ->  | Y86: =IF('Cultura Clasica'!AB20="","",'Cultura Clasica'!AB20) ->  | Z86: =IF('Cultura Clasica'!AC20="","",'Cultura Clasica'!AC20) ->  | AA86: =IF('Cultura Clasica'!AD20="","",'Cultura Clasica'!AD20) ->  | AB86: =IF('Cultura Clasica'!AE20="","",'Cultura Clasica'!AE20) ->  | AC86: =IF('Cultura Clasica'!AF20="","",'Cultura Clasica'!AF20) ->  | AD86: =IF('Cultura Clasica'!AG20="","",'Cultura Clasica'!AG20) ->  | AE86: =IF('Cultura Clasica'!AH20="","",'Cultura Clasica'!AH20) ->  | AF86: =IF('Cultura Clasica'!AI20="","",'Cultura Clasica'!AI20) ->  | AG86: =IF('Cultura Clasica'!AJ20="","",'Cultura Clasica'!AJ20) ->  | AH86: =IF('Cultura Clasica'!AK20="","",'Cultura Clasica'!AK20) ->  | AI86: =IF('Cultura Clasica'!AL20="","",'Cultura Clasica'!AL20) ->  | AJ86: =IF('Cultura Clasica'!AM20="","",'Cultura Clasica'!AM20) ->  | AK86: =IF('Cultura Clasica'!AN20="","",'Cultura Clasica'!AN20) ->  | AL86: =IF('Cultura Clasica'!AO20="","",'Cultura Clasica'!AO20) ->  | AM86: =IF('Cultura Clasica'!AP20="","",'Cultura Clasica'!AP20) -> 
D87: Criterio Evaluación 5.2 | E87: =IF('Cultura Clasica'!H21="","",'Cultura Clasica'!H21) ->  | F87: =IF('Cultura Clasica'!I21="","",'Cultura Clasica'!I21) ->  | G87: =IF('Cultura Clasica'!J21="","",'Cultura Clasica'!J21) ->  | H87: =IF('Cultura Clasica'!K21="","",'Cultura Clasica'!K21) ->  | I87: =IF('Cultura Clasica'!L21="","",'Cultura Clasica'!L21) ->  | J87: =IF('Cultura Clasica'!M21="","",'Cultura Clasica'!M21) ->  | K87: =IF('Cultura Clasica'!N21="","",'Cultura Clasica'!N21) ->  | L87: =IF('Cultura Clasica'!O21="","",'Cultura Clasica'!O21) ->  | M87: =IF('Cultura Clasica'!P21="","",'Cultura Clasica'!P21) ->  | N87: =IF('Cultura Clasica'!Q21="","",'Cultura Clasica'!Q21) ->  | O87: =IF('Cultura Clasica'!R21="","",'Cultura Clasica'!R21) ->  | P87: =IF('Cultura Clasica'!S21="","",'Cultura Clasica'!S21) ->  | Q87: =IF('Cultura Clasica'!T21="","",'Cultura Clasica'!T21) ->  | R87: =IF('Cultura Clasica'!U21="","",'Cultura Clasica'!U21) ->  | S87: =IF('Cultura Clasica'!V21="","",'Cultura Clasica'!V21) ->  | T87: =IF('Cultura Clasica'!W21="","",'Cultura Clasica'!W21) ->  | U87: =IF('Cultura Clasica'!X21="","",'Cultura Clasica'!X21) ->  | V87: =IF('Cultura Clasica'!Y21="","",'Cultura Clasica'!Y21) ->  | W87: =IF('Cultura Clasica'!Z21="","",'Cultura Clasica'!Z21) ->  | X87: =IF('Cultura Clasica'!AA21="","",'Cultura Clasica'!AA21) ->  | Y87: =IF('Cultura Clasica'!AB21="","",'Cultura Clasica'!AB21) ->  | Z87: =IF('Cultura Clasica'!AC21="","",'Cultura Clasica'!AC21) ->  | AA87: =IF('Cultura Clasica'!AD21="","",'Cultura Clasica'!AD21) ->  | AB87: =IF('Cultura Clasica'!AE21="","",'Cultura Clasica'!AE21) ->  | AC87: =IF('Cultura Clasica'!AF21="","",'Cultura Clasica'!AF21) ->  | AD87: =IF('Cultura Clasica'!AG21="","",'Cultura Clasica'!AG21) ->  | AE87: =IF('Cultura Clasica'!AH21="","",'Cultura Clasica'!AH21) ->  | AF87: =IF('Cultura Clasica'!AI21="","",'Cultura Clasica'!AI21) ->  | AG87: =IF('Cultura Clasica'!AJ21="","",'Cultura Clasica'!AJ21) ->  | AH87: =IF('Cultura Clasica'!AK21="","",'Cultura Clasica'!AK21) ->  | AI87: =IF('Cultura Clasica'!AL21="","",'Cultura Clasica'!AL21) ->  | AJ87: =IF('Cultura Clasica'!AM21="","",'Cultura Clasica'!AM21) ->  | AK87: =IF('Cultura Clasica'!AN21="","",'Cultura Clasica'!AN21) ->  | AL87: =IF('Cultura Clasica'!AO21="","",'Cultura Clasica'!AO21) ->  | AM87: =IF('Cultura Clasica'!AP21="","",'Cultura Clasica'!AP21) -> 
D88: Criterio Evaluación 5.3 | E88: =IF('Cultura Clasica'!H22="","",'Cultura Clasica'!H22) ->  | F88: =IF('Cultura Clasica'!I22="","",'Cultura Clasica'!I22) ->  | G88: =IF('Cultura Clasica'!J22="","",'Cultura Clasica'!J22) ->  | H88: =IF('Cultura Clasica'!K22="","",'Cultura Clasica'!K22) ->  | I88: =IF('Cultura Clasica'!L22="","",'Cultura Clasica'!L22) ->  | J88: =IF('Cultura Clasica'!M22="","",'Cultura Clasica'!M22) ->  | K88: =IF('Cultura Clasica'!N22="","",'Cultura Clasica'!N22) ->  | L88: =IF('Cultura Clasica'!O22="","",'Cultura Clasica'!O22) ->  | M88: =IF('Cultura Clasica'!P22="","",'Cultura Clasica'!P22) ->  | N88: =IF('Cultura Clasica'!Q22="","",'Cultura Clasica'!Q22) ->  | O88: =IF('Cultura Clasica'!R22="","",'Cultura Clasica'!R22) ->  | P88: =IF('Cultura Clasica'!S22="","",'Cultura Clasica'!S22) ->  | Q88: =IF('Cultura Clasica'!T22="","",'Cultura Clasica'!T22) ->  | R88: =IF('Cultura Clasica'!U22="","",'Cultura Clasica'!U22) ->  | S88: =IF('Cultura Clasica'!V22="","",'Cultura Clasica'!V22) ->  | T88: =IF('Cultura Clasica'!W22="","",'Cultura Clasica'!W22) ->  | U88: =IF('Cultura Clasica'!X22="","",'Cultura Clasica'!X22) ->  | V88: =IF('Cultura Clasica'!Y22="","",'Cultura Clasica'!Y22) ->  | W88: =IF('Cultura Clasica'!Z22="","",'Cultura Clasica'!Z22) ->  | X88: =IF('Cultura Clasica'!AA22="","",'Cultura Clasica'!AA22) ->  | Y88: =IF('Cultura Clasica'!AB22="","",'Cultura Clasica'!AB22) ->  | Z88: =IF('Cultura Clasica'!AC22="","",'Cultura Clasica'!AC22) ->  | AA88: =IF('Cultura Clasica'!AD22="","",'Cultura Clasica'!AD22) ->  | AB88: =IF('Cultura Clasica'!AE22="","",'Cultura Clasica'!AE22) ->  | AC88: =IF('Cultura Clasica'!AF22="","",'Cultura Clasica'!AF22) ->  | AD88: =IF('Cultura Clasica'!AG22="","",'Cultura Clasica'!AG22) ->  | AE88: =IF('Cultura Clasica'!AH22="","",'Cultura Clasica'!AH22) ->  | AF88: =IF('Cultura Clasica'!AI22="","",'Cultura Clasica'!AI22) ->  | AG88: =IF('Cultura Clasica'!AJ22="","",'Cultura Clasica'!AJ22) ->  | AH88: =IF('Cultura Clasica'!AK22="","",'Cultura Clasica'!AK22) ->  | AI88: =IF('Cultura Clasica'!AL22="","",'Cultura Clasica'!AL22) ->  | AJ88: =IF('Cultura Clasica'!AM22="","",'Cultura Clasica'!AM22) ->  | AK88: =IF('Cultura Clasica'!AN22="","",'Cultura Clasica'!AN22) ->  | AL88: =IF('Cultura Clasica'!AO22="","",'Cultura Clasica'!AO22) ->  | AM88: =IF('Cultura Clasica'!AP22="","",'Cultura Clasica'!AP22) -> 
D89: Criterio Evaluación 5.4 | E89: =IF('Cultura Clasica'!H23="","",'Cultura Clasica'!H23) ->  | F89: =IF('Cultura Clasica'!I23="","",'Cultura Clasica'!I23) ->  | G89: =IF('Cultura Clasica'!J23="","",'Cultura Clasica'!J23) ->  | H89: =IF('Cultura Clasica'!K23="","",'Cultura Clasica'!K23) ->  | I89: =IF('Cultura Clasica'!L23="","",'Cultura Clasica'!L23) ->  | J89: =IF('Cultura Clasica'!M23="","",'Cultura Clasica'!M23) ->  | K89: =IF('Cultura Clasica'!N23="","",'Cultura Clasica'!N23) ->  | L89: =IF('Cultura Clasica'!O23="","",'Cultura Clasica'!O23) ->  | M89: =IF('Cultura Clasica'!P23="","",'Cultura Clasica'!P23) ->  | N89: =IF('Cultura Clasica'!Q23="","",'Cultura Clasica'!Q23) ->  | O89: =IF('Cultura Clasica'!R23="","",'Cultura Clasica'!R23) ->  | P89: =IF('Cultura Clasica'!S23="","",'Cultura Clasica'!S23) ->  | Q89: =IF('Cultura Clasica'!T23="","",'Cultura Clasica'!T23) ->  | R89: =IF('Cultura Clasica'!U23="","",'Cultura Clasica'!U23) ->  | S89: =IF('Cultura Clasica'!V23="","",'Cultura Clasica'!V23) ->  | T89: =IF('Cultura Clasica'!W23="","",'Cultura Clasica'!W23) ->  | U89: =IF('Cultura Clasica'!X23="","",'Cultura Clasica'!X23) ->  | V89: =IF('Cultura Clasica'!Y23="","",'Cultura Clasica'!Y23) ->  | W89: =IF('Cultura Clasica'!Z23="","",'Cultura Clasica'!Z23) ->  | X89: =IF('Cultura Clasica'!AA23="","",'Cultura Clasica'!AA23) ->  | Y89: =IF('Cultura Clasica'!AB23="","",'Cultura Clasica'!AB23) ->  | Z89: =IF('Cultura Clasica'!AC23="","",'Cultura Clasica'!AC23) ->  | AA89: =IF('Cultura Clasica'!AD23="","",'Cultura Clasica'!AD23) ->  | AB89: =IF('Cultura Clasica'!AE23="","",'Cultura Clasica'!AE23) ->  | AC89: =IF('Cultura Clasica'!AF23="","",'Cultura Clasica'!AF23) ->  | AD89: =IF('Cultura Clasica'!AG23="","",'Cultura Clasica'!AG23) ->  | AE89: =IF('Cultura Clasica'!AH23="","",'Cultura Clasica'!AH23) ->  | AF89: =IF('Cultura Clasica'!AI23="","",'Cultura Clasica'!AI23) ->  | AG89: =IF('Cultura Clasica'!AJ23="","",'Cultura Clasica'!AJ23) ->  | AH89: =IF('Cultura Clasica'!AK23="","",'Cultura Clasica'!AK23) ->  | AI89: =IF('Cultura Clasica'!AL23="","",'Cultura Clasica'!AL23) ->  | AJ89: =IF('Cultura Clasica'!AM23="","",'Cultura Clasica'!AM23) ->  | AK89: =IF('Cultura Clasica'!AN23="","",'Cultura Clasica'!AN23) ->  | AL89: =IF('Cultura Clasica'!AO23="","",'Cultura Clasica'!AO23) ->  | AM89: =IF('Cultura Clasica'!AP23="","",'Cultura Clasica'!AP23) -> 
B90: Digitalización | C90: Comp. Esp. 1 | D90: Criterio Evaluación 1.1 | E90: =IF(Digitalizacion!H4="","",Digitalizacion!H4) ->  | F90: =IF(Digitalizacion!I4="","",Digitalizacion!I4) ->  | G90: =IF(Digitalizacion!J4="","",Digitalizacion!J4) ->  | H90: =IF(Digitalizacion!K4="","",Digitalizacion!K4) ->  | I90: =IF(Digitalizacion!L4="","",Digitalizacion!L4) ->  | J90: =IF(Digitalizacion!M4="","",Digitalizacion!M4) ->  | K90: =IF(Digitalizacion!N4="","",Digitalizacion!N4) ->  | L90: =IF(Digitalizacion!O4="","",Digitalizacion!O4) ->  | M90: =IF(Digitalizacion!P4="","",Digitalizacion!P4) ->  | N90: =IF(Digitalizacion!Q4="","",Digitalizacion!Q4) ->  | O90: =IF(Digitalizacion!R4="","",Digitalizacion!R4) ->  | P90: =IF(Digitalizacion!S4="","",Digitalizacion!S4) ->  | Q90: =IF(Digitalizacion!T4="","",Digitalizacion!T4) ->  | R90: =IF(Digitalizacion!U4="","",Digitalizacion!U4) ->  | S90: =IF(Digitalizacion!V4="","",Digitalizacion!V4) ->  | T90: =IF(Digitalizacion!W4="","",Digitalizacion!W4) ->  | U90: =IF(Digitalizacion!X4="","",Digitalizacion!X4) ->  | V90: =IF(Digitalizacion!Y4="","",Digitalizacion!Y4) ->  | W90: =IF(Digitalizacion!Z4="","",Digitalizacion!Z4) ->  | X90: =IF(Digitalizacion!AA4="","",Digitalizacion!AA4) ->  | Y90: =IF(Digitalizacion!AB4="","",Digitalizacion!AB4) ->  | Z90: =IF(Digitalizacion!AC4="","",Digitalizacion!AC4) ->  | AA90: =IF(Digitalizacion!AD4="","",Digitalizacion!AD4) ->  | AB90: =IF(Digitalizacion!AE4="","",Digitalizacion!AE4) ->  | AC90: =IF(Digitalizacion!AF4="","",Digitalizacion!AF4) ->  | AD90: =IF(Digitalizacion!AG4="","",Digitalizacion!AG4) ->  | AE90: =IF(Digitalizacion!AH4="","",Digitalizacion!AH4) ->  | AF90: =IF(Digitalizacion!AI4="","",Digitalizacion!AI4) ->  | AG90: =IF(Digitalizacion!AJ4="","",Digitalizacion!AJ4) ->  | AH90: =IF(Digitalizacion!AK4="","",Digitalizacion!AK4) ->  | AI90: =IF(Digitalizacion!AL4="","",Digitalizacion!AL4) ->  | AJ90: =IF(Digitalizacion!AM4="","",Digitalizacion!AM4) ->  | AK90: =IF(Digitalizacion!AN4="","",Digitalizacion!AN4) ->  | AL90: =IF(Digitalizacion!AO4="","",Digitalizacion!AO4) ->  | AM90: =IF(Digitalizacion!AP4="","",Digitalizacion!AP4) -> 
D91: Criterio Evaluación 1.2 | E91: =IF(Digitalizacion!H5="","",Digitalizacion!H5) ->  | F91: =IF(Digitalizacion!I5="","",Digitalizacion!I5) ->  | G91: =IF(Digitalizacion!J5="","",Digitalizacion!J5) ->  | H91: =IF(Digitalizacion!K5="","",Digitalizacion!K5) ->  | I91: =IF(Digitalizacion!L5="","",Digitalizacion!L5) ->  | J91: =IF(Digitalizacion!M5="","",Digitalizacion!M5) ->  | K91: =IF(Digitalizacion!N5="","",Digitalizacion!N5) ->  | L91: =IF(Digitalizacion!O5="","",Digitalizacion!O5) ->  | M91: =IF(Digitalizacion!P5="","",Digitalizacion!P5) ->  | N91: =IF(Digitalizacion!Q5="","",Digitalizacion!Q5) ->  | O91: =IF(Digitalizacion!R5="","",Digitalizacion!R5) ->  | P91: =IF(Digitalizacion!S5="","",Digitalizacion!S5) ->  | Q91: =IF(Digitalizacion!T5="","",Digitalizacion!T5) ->  | R91: =IF(Digitalizacion!U5="","",Digitalizacion!U5) ->  | S91: =IF(Digitalizacion!V5="","",Digitalizacion!V5) ->  | T91: =IF(Digitalizacion!W5="","",Digitalizacion!W5) ->  | U91: =IF(Digitalizacion!X5="","",Digitalizacion!X5) ->  | V91: =IF(Digitalizacion!Y5="","",Digitalizacion!Y5) ->  | W91: =IF(Digitalizacion!Z5="","",Digitalizacion!Z5) ->  | X91: =IF(Digitalizacion!AA5="","",Digitalizacion!AA5) ->  | Y91: =IF(Digitalizacion!AB5="","",Digitalizacion!AB5) ->  | Z91: =IF(Digitalizacion!AC5="","",Digitalizacion!AC5) ->  | AA91: =IF(Digitalizacion!AD5="","",Digitalizacion!AD5) ->  | AB91: =IF(Digitalizacion!AE5="","",Digitalizacion!AE5) ->  | AC91: =IF(Digitalizacion!AF5="","",Digitalizacion!AF5) ->  | AD91: =IF(Digitalizacion!AG5="","",Digitalizacion!AG5) ->  | AE91: =IF(Digitalizacion!AH5="","",Digitalizacion!AH5) ->  | AF91: =IF(Digitalizacion!AI5="","",Digitalizacion!AI5) ->  | AG91: =IF(Digitalizacion!AJ5="","",Digitalizacion!AJ5) ->  | AH91: =IF(Digitalizacion!AK5="","",Digitalizacion!AK5) ->  | AI91: =IF(Digitalizacion!AL5="","",Digitalizacion!AL5) ->  | AJ91: =IF(Digitalizacion!AM5="","",Digitalizacion!AM5) ->  | AK91: =IF(Digitalizacion!AN5="","",Digitalizacion!AN5) ->  | AL91: =IF(Digitalizacion!AO5="","",Digitalizacion!AO5) ->  | AM91: =IF(Digitalizacion!AP5="","",Digitalizacion!AP5) -> 
D92: Criterio Evaluación 1.3 | E92: =IF(Digitalizacion!H6="","",Digitalizacion!H6) ->  | F92: =IF(Digitalizacion!I6="","",Digitalizacion!I6) ->  | G92: =IF(Digitalizacion!J6="","",Digitalizacion!J6) ->  | H92: =IF(Digitalizacion!K6="","",Digitalizacion!K6) ->  | I92: =IF(Digitalizacion!L6="","",Digitalizacion!L6) ->  | J92: =IF(Digitalizacion!M6="","",Digitalizacion!M6) ->  | K92: =IF(Digitalizacion!N6="","",Digitalizacion!N6) ->  | L92: =IF(Digitalizacion!O6="","",Digitalizacion!O6) ->  | M92: =IF(Digitalizacion!P6="","",Digitalizacion!P6) ->  | N92: =IF(Digitalizacion!Q6="","",Digitalizacion!Q6) ->  | O92: =IF(Digitalizacion!R6="","",Digitalizacion!R6) ->  | P92: =IF(Digitalizacion!S6="","",Digitalizacion!S6) ->  | Q92: =IF(Digitalizacion!T6="","",Digitalizacion!T6) ->  | R92: =IF(Digitalizacion!U6="","",Digitalizacion!U6) ->  | S92: =IF(Digitalizacion!V6="","",Digitalizacion!V6) ->  | T92: =IF(Digitalizacion!W6="","",Digitalizacion!W6) ->  | U92: =IF(Digitalizacion!X6="","",Digitalizacion!X6) ->  | V92: =IF(Digitalizacion!Y6="","",Digitalizacion!Y6) ->  | W92: =IF(Digitalizacion!Z6="","",Digitalizacion!Z6) ->  | X92: =IF(Digitalizacion!AA6="","",Digitalizacion!AA6) ->  | Y92: =IF(Digitalizacion!AB6="","",Digitalizacion!AB6) ->  | Z92: =IF(Digitalizacion!AC6="","",Digitalizacion!AC6) ->  | AA92: =IF(Digitalizacion!AD6="","",Digitalizacion!AD6) ->  | AB92: =IF(Digitalizacion!AE6="","",Digitalizacion!AE6) ->  | AC92: =IF(Digitalizacion!AF6="","",Digitalizacion!AF6) ->  | AD92: =IF(Digitalizacion!AG6="","",Digitalizacion!AG6) ->  | AE92: =IF(Digitalizacion!AH6="","",Digitalizacion!AH6) ->  | AF92: =IF(Digitalizacion!AI6="","",Digitalizacion!AI6) ->  | AG92: =IF(Digitalizacion!AJ6="","",Digitalizacion!AJ6) ->  | AH92: =IF(Digitalizacion!AK6="","",Digitalizacion!AK6) ->  | AI92: =IF(Digitalizacion!AL6="","",Digitalizacion!AL6) ->  | AJ92: =IF(Digitalizacion!AM6="","",Digitalizacion!AM6) ->  | AK92: =IF(Digitalizacion!AN6="","",Digitalizacion!AN6) ->  | AL92: =IF(Digitalizacion!AO6="","",Digitalizacion!AO6) ->  | AM92: =IF(Digitalizacion!AP6="","",Digitalizacion!AP6) -> 
D93: Criterio Evaluación 1.4 | E93: =IF(Digitalizacion!H7="","",Digitalizacion!H7) ->  | F93: =IF(Digitalizacion!I7="","",Digitalizacion!I7) ->  | G93: =IF(Digitalizacion!J7="","",Digitalizacion!J7) ->  | H93: =IF(Digitalizacion!K7="","",Digitalizacion!K7) ->  | I93: =IF(Digitalizacion!L7="","",Digitalizacion!L7) ->  | J93: =IF(Digitalizacion!M7="","",Digitalizacion!M7) ->  | K93: =IF(Digitalizacion!N7="","",Digitalizacion!N7) ->  | L93: =IF(Digitalizacion!O7="","",Digitalizacion!O7) ->  | M93: =IF(Digitalizacion!P7="","",Digitalizacion!P7) ->  | N93: =IF(Digitalizacion!Q7="","",Digitalizacion!Q7) ->  | O93: =IF(Digitalizacion!R7="","",Digitalizacion!R7) ->  | P93: =IF(Digitalizacion!S7="","",Digitalizacion!S7) ->  | Q93: =IF(Digitalizacion!T7="","",Digitalizacion!T7) ->  | R93: =IF(Digitalizacion!U7="","",Digitalizacion!U7) ->  | S93: =IF(Digitalizacion!V7="","",Digitalizacion!V7) ->  | T93: =IF(Digitalizacion!W7="","",Digitalizacion!W7) ->  | U93: =IF(Digitalizacion!X7="","",Digitalizacion!X7) ->  | V93: =IF(Digitalizacion!Y7="","",Digitalizacion!Y7) ->  | W93: =IF(Digitalizacion!Z7="","",Digitalizacion!Z7) ->  | X93: =IF(Digitalizacion!AA7="","",Digitalizacion!AA7) ->  | Y93: =IF(Digitalizacion!AB7="","",Digitalizacion!AB7) ->  | Z93: =IF(Digitalizacion!AC7="","",Digitalizacion!AC7) ->  | AA93: =IF(Digitalizacion!AD7="","",Digitalizacion!AD7) ->  | AB93: =IF(Digitalizacion!AE7="","",Digitalizacion!AE7) ->  | AC93: =IF(Digitalizacion!AF7="","",Digitalizacion!AF7) ->  | AD93: =IF(Digitalizacion!AG7="","",Digitalizacion!AG7) ->  | AE93: =IF(Digitalizacion!AH7="","",Digitalizacion!AH7) ->  | AF93: =IF(Digitalizacion!AI7="","",Digitalizacion!AI7) ->  | AG93: =IF(Digitalizacion!AJ7="","",Digitalizacion!AJ7) ->  | AH93: =IF(Digitalizacion!AK7="","",Digitalizacion!AK7) ->  | AI93: =IF(Digitalizacion!AL7="","",Digitalizacion!AL7) ->  | AJ93: =IF(Digitalizacion!AM7="","",Digitalizacion!AM7) ->  | AK93: =IF(Digitalizacion!AN7="","",Digitalizacion!AN7) ->  | AL93: =IF(Digitalizacion!AO7="","",Digitalizacion!AO7) ->  | AM93: =IF(Digitalizacion!AP7="","",Digitalizacion!AP7) -> 
C94: Comp. Esp. 2 | D94: Criterio Evaluación 2.1 | E94: =IF(Digitalizacion!H8="","",Digitalizacion!H8) ->  | F94: =IF(Digitalizacion!I8="","",Digitalizacion!I8) ->  | G94: =IF(Digitalizacion!J8="","",Digitalizacion!J8) ->  | H94: =IF(Digitalizacion!K8="","",Digitalizacion!K8) ->  | I94: =IF(Digitalizacion!L8="","",Digitalizacion!L8) ->  | J94: =IF(Digitalizacion!M8="","",Digitalizacion!M8) ->  | K94: =IF(Digitalizacion!N8="","",Digitalizacion!N8) ->  | L94: =IF(Digitalizacion!O8="","",Digitalizacion!O8) ->  | M94: =IF(Digitalizacion!P8="","",Digitalizacion!P8) ->  | N94: =IF(Digitalizacion!Q8="","",Digitalizacion!Q8) ->  | O94: =IF(Digitalizacion!R8="","",Digitalizacion!R8) ->  | P94: =IF(Digitalizacion!S8="","",Digitalizacion!S8) ->  | Q94: =IF(Digitalizacion!T8="","",Digitalizacion!T8) ->  | R94: =IF(Digitalizacion!U8="","",Digitalizacion!U8) ->  | S94: =IF(Digitalizacion!V8="","",Digitalizacion!V8) ->  | T94: =IF(Digitalizacion!W8="","",Digitalizacion!W8) ->  | U94: =IF(Digitalizacion!X8="","",Digitalizacion!X8) ->  | V94: =IF(Digitalizacion!Y8="","",Digitalizacion!Y8) ->  | W94: =IF(Digitalizacion!Z8="","",Digitalizacion!Z8) ->  | X94: =IF(Digitalizacion!AA8="","",Digitalizacion!AA8) ->  | Y94: =IF(Digitalizacion!AB8="","",Digitalizacion!AB8) ->  | Z94: =IF(Digitalizacion!AC8="","",Digitalizacion!AC8) ->  | AA94: =IF(Digitalizacion!AD8="","",Digitalizacion!AD8) ->  | AB94: =IF(Digitalizacion!AE8="","",Digitalizacion!AE8) ->  | AC94: =IF(Digitalizacion!AF8="","",Digitalizacion!AF8) ->  | AD94: =IF(Digitalizacion!AG8="","",Digitalizacion!AG8) ->  | AE94: =IF(Digitalizacion!AH8="","",Digitalizacion!AH8) ->  | AF94: =IF(Digitalizacion!AI8="","",Digitalizacion!AI8) ->  | AG94: =IF(Digitalizacion!AJ8="","",Digitalizacion!AJ8) ->  | AH94: =IF(Digitalizacion!AK8="","",Digitalizacion!AK8) ->  | AI94: =IF(Digitalizacion!AL8="","",Digitalizacion!AL8) ->  | AJ94: =IF(Digitalizacion!AM8="","",Digitalizacion!AM8) ->  | AK94: =IF(Digitalizacion!AN8="","",Digitalizacion!AN8) ->  | AL94: =IF(Digitalizacion!AO8="","",Digitalizacion!AO8) ->  | AM94: =IF(Digitalizacion!AP8="","",Digitalizacion!AP8) -> 
D95: Criterio Evaluación 2.2 | E95: =IF(Digitalizacion!H9="","",Digitalizacion!H9) ->  | F95: =IF(Digitalizacion!I9="","",Digitalizacion!I9) ->  | G95: =IF(Digitalizacion!J9="","",Digitalizacion!J9) ->  | H95: =IF(Digitalizacion!K9="","",Digitalizacion!K9) ->  | I95: =IF(Digitalizacion!L9="","",Digitalizacion!L9) ->  | J95: =IF(Digitalizacion!M9="","",Digitalizacion!M9) ->  | K95: =IF(Digitalizacion!N9="","",Digitalizacion!N9) ->  | L95: =IF(Digitalizacion!O9="","",Digitalizacion!O9) ->  | M95: =IF(Digitalizacion!P9="","",Digitalizacion!P9) ->  | N95: =IF(Digitalizacion!Q9="","",Digitalizacion!Q9) ->  | O95: =IF(Digitalizacion!R9="","",Digitalizacion!R9) ->  | P95: =IF(Digitalizacion!S9="","",Digitalizacion!S9) ->  | Q95: =IF(Digitalizacion!T9="","",Digitalizacion!T9) ->  | R95: =IF(Digitalizacion!U9="","",Digitalizacion!U9) ->  | S95: =IF(Digitalizacion!V9="","",Digitalizacion!V9) ->  | T95: =IF(Digitalizacion!W9="","",Digitalizacion!W9) ->  | U95: =IF(Digitalizacion!X9="","",Digitalizacion!X9) ->  | V95: =IF(Digitalizacion!Y9="","",Digitalizacion!Y9) ->  | W95: =IF(Digitalizacion!Z9="","",Digitalizacion!Z9) ->  | X95: =IF(Digitalizacion!AA9="","",Digitalizacion!AA9) ->  | Y95: =IF(Digitalizacion!AB9="","",Digitalizacion!AB9) ->  | Z95: =IF(Digitalizacion!AC9="","",Digitalizacion!AC9) ->  | AA95: =IF(Digitalizacion!AD9="","",Digitalizacion!AD9) ->  | AB95: =IF(Digitalizacion!AE9="","",Digitalizacion!AE9) ->  | AC95: =IF(Digitalizacion!AF9="","",Digitalizacion!AF9) ->  | AD95: =IF(Digitalizacion!AG9="","",Digitalizacion!AG9) ->  | AE95: =IF(Digitalizacion!AH9="","",Digitalizacion!AH9) ->  | AF95: =IF(Digitalizacion!AI9="","",Digitalizacion!AI9) ->  | AG95: =IF(Digitalizacion!AJ9="","",Digitalizacion!AJ9) ->  | AH95: =IF(Digitalizacion!AK9="","",Digitalizacion!AK9) ->  | AI95: =IF(Digitalizacion!AL9="","",Digitalizacion!AL9) ->  | AJ95: =IF(Digitalizacion!AM9="","",Digitalizacion!AM9) ->  | AK95: =IF(Digitalizacion!AN9="","",Digitalizacion!AN9) ->  | AL95: =IF(Digitalizacion!AO9="","",Digitalizacion!AO9) ->  | AM95: =IF(Digitalizacion!AP9="","",Digitalizacion!AP9) -> 
D96: Criterio Evaluación 2.3 | E96: =IF(Digitalizacion!H10="","",Digitalizacion!H10) ->  | F96: =IF(Digitalizacion!I10="","",Digitalizacion!I10) ->  | G96: =IF(Digitalizacion!J10="","",Digitalizacion!J10) ->  | H96: =IF(Digitalizacion!K10="","",Digitalizacion!K10) ->  | I96: =IF(Digitalizacion!L10="","",Digitalizacion!L10) ->  | J96: =IF(Digitalizacion!M10="","",Digitalizacion!M10) ->  | K96: =IF(Digitalizacion!N10="","",Digitalizacion!N10) ->  | L96: =IF(Digitalizacion!O10="","",Digitalizacion!O10) ->  | M96: =IF(Digitalizacion!P10="","",Digitalizacion!P10) ->  | N96: =IF(Digitalizacion!Q10="","",Digitalizacion!Q10) ->  | O96: =IF(Digitalizacion!R10="","",Digitalizacion!R10) ->  | P96: =IF(Digitalizacion!S10="","",Digitalizacion!S10) ->  | Q96: =IF(Digitalizacion!T10="","",Digitalizacion!T10) ->  | R96: =IF(Digitalizacion!U10="","",Digitalizacion!U10) ->  | S96: =IF(Digitalizacion!V10="","",Digitalizacion!V10) ->  | T96: =IF(Digitalizacion!W10="","",Digitalizacion!W10) ->  | U96: =IF(Digitalizacion!X10="","",Digitalizacion!X10) ->  | V96: =IF(Digitalizacion!Y10="","",Digitalizacion!Y10) ->  | W96: =IF(Digitalizacion!Z10="","",Digitalizacion!Z10) ->  | X96: =IF(Digitalizacion!AA10="","",Digitalizacion!AA10) ->  | Y96: =IF(Digitalizacion!AB10="","",Digitalizacion!AB10) ->  | Z96: =IF(Digitalizacion!AC10="","",Digitalizacion!AC10) ->  | AA96: =IF(Digitalizacion!AD10="","",Digitalizacion!AD10) ->  | AB96: =IF(Digitalizacion!AE10="","",Digitalizacion!AE10) ->  | AC96: =IF(Digitalizacion!AF10="","",Digitalizacion!AF10) ->  | AD96: =IF(Digitalizacion!AG10="","",Digitalizacion!AG10) ->  | AE96: =IF(Digitalizacion!AH10="","",Digitalizacion!AH10) ->  | AF96: =IF(Digitalizacion!AI10="","",Digitalizacion!AI10) ->  | AG96: =IF(Digitalizacion!AJ10="","",Digitalizacion!AJ10) ->  | AH96: =IF(Digitalizacion!AK10="","",Digitalizacion!AK10) ->  | AI96: =IF(Digitalizacion!AL10="","",Digitalizacion!AL10) ->  | AJ96: =IF(Digitalizacion!AM10="","",Digitalizacion!AM10) ->  | AK96: =IF(Digitalizacion!AN10="","",Digitalizacion!AN10) ->  | AL96: =IF(Digitalizacion!AO10="","",Digitalizacion!AO10) ->  | AM96: =IF(Digitalizacion!AP10="","",Digitalizacion!AP10) -> 
D97: Criterio Evaluación 2.4 | E97: =IF(Digitalizacion!H11="","",Digitalizacion!H11) ->  | F97: =IF(Digitalizacion!I11="","",Digitalizacion!I11) ->  | G97: =IF(Digitalizacion!J11="","",Digitalizacion!J11) ->  | H97: =IF(Digitalizacion!K11="","",Digitalizacion!K11) ->  | I97: =IF(Digitalizacion!L11="","",Digitalizacion!L11) ->  | J97: =IF(Digitalizacion!M11="","",Digitalizacion!M11) ->  | K97: =IF(Digitalizacion!N11="","",Digitalizacion!N11) ->  | L97: =IF(Digitalizacion!O11="","",Digitalizacion!O11) ->  | M97: =IF(Digitalizacion!P11="","",Digitalizacion!P11) ->  | N97: =IF(Digitalizacion!Q11="","",Digitalizacion!Q11) ->  | O97: =IF(Digitalizacion!R11="","",Digitalizacion!R11) ->  | P97: =IF(Digitalizacion!S11="","",Digitalizacion!S11) ->  | Q97: =IF(Digitalizacion!T11="","",Digitalizacion!T11) ->  | R97: =IF(Digitalizacion!U11="","",Digitalizacion!U11) ->  | S97: =IF(Digitalizacion!V11="","",Digitalizacion!V11) ->  | T97: =IF(Digitalizacion!W11="","",Digitalizacion!W11) ->  | U97: =IF(Digitalizacion!X11="","",Digitalizacion!X11) ->  | V97: =IF(Digitalizacion!Y11="","",Digitalizacion!Y11) ->  | W97: =IF(Digitalizacion!Z11="","",Digitalizacion!Z11) ->  | X97: =IF(Digitalizacion!AA11="","",Digitalizacion!AA11) ->  | Y97: =IF(Digitalizacion!AB11="","",Digitalizacion!AB11) ->  | Z97: =IF(Digitalizacion!AC11="","",Digitalizacion!AC11) ->  | AA97: =IF(Digitalizacion!AD11="","",Digitalizacion!AD11) ->  | AB97: =IF(Digitalizacion!AE11="","",Digitalizacion!AE11) ->  | AC97: =IF(Digitalizacion!AF11="","",Digitalizacion!AF11) ->  | AD97: =IF(Digitalizacion!AG11="","",Digitalizacion!AG11) ->  | AE97: =IF(Digitalizacion!AH11="","",Digitalizacion!AH11) ->  | AF97: =IF(Digitalizacion!AI11="","",Digitalizacion!AI11) ->  | AG97: =IF(Digitalizacion!AJ11="","",Digitalizacion!AJ11) ->  | AH97: =IF(Digitalizacion!AK11="","",Digitalizacion!AK11) ->  | AI97: =IF(Digitalizacion!AL11="","",Digitalizacion!AL11) ->  | AJ97: =IF(Digitalizacion!AM11="","",Digitalizacion!AM11) ->  | AK97: =IF(Digitalizacion!AN11="","",Digitalizacion!AN11) ->  | AL97: =IF(Digitalizacion!AO11="","",Digitalizacion!AO11) ->  | AM97: =IF(Digitalizacion!AP11="","",Digitalizacion!AP11) -> 
D98: Criterio Evaluación 2.5 | E98: =IF(Digitalizacion!H12="","",Digitalizacion!H12) ->  | F98: =IF(Digitalizacion!I12="","",Digitalizacion!I12) ->  | G98: =IF(Digitalizacion!J12="","",Digitalizacion!J12) ->  | H98: =IF(Digitalizacion!K12="","",Digitalizacion!K12) ->  | I98: =IF(Digitalizacion!L12="","",Digitalizacion!L12) ->  | J98: =IF(Digitalizacion!M12="","",Digitalizacion!M12) ->  | K98: =IF(Digitalizacion!N12="","",Digitalizacion!N12) ->  | L98: =IF(Digitalizacion!O12="","",Digitalizacion!O12) ->  | M98: =IF(Digitalizacion!P12="","",Digitalizacion!P12) ->  | N98: =IF(Digitalizacion!Q12="","",Digitalizacion!Q12) ->  | O98: =IF(Digitalizacion!R12="","",Digitalizacion!R12) ->  | P98: =IF(Digitalizacion!S12="","",Digitalizacion!S12) ->  | Q98: =IF(Digitalizacion!T12="","",Digitalizacion!T12) ->  | R98: =IF(Digitalizacion!U12="","",Digitalizacion!U12) ->  | S98: =IF(Digitalizacion!V12="","",Digitalizacion!V12) ->  | T98: =IF(Digitalizacion!W12="","",Digitalizacion!W12) ->  | U98: =IF(Digitalizacion!X12="","",Digitalizacion!X12) ->  | V98: =IF(Digitalizacion!Y12="","",Digitalizacion!Y12) ->  | W98: =IF(Digitalizacion!Z12="","",Digitalizacion!Z12) ->  | X98: =IF(Digitalizacion!AA12="","",Digitalizacion!AA12) ->  | Y98: =IF(Digitalizacion!AB12="","",Digitalizacion!AB12) ->  | Z98: =IF(Digitalizacion!AC12="","",Digitalizacion!AC12) ->  | AA98: =IF(Digitalizacion!AD12="","",Digitalizacion!AD12) ->  | AB98: =IF(Digitalizacion!AE12="","",Digitalizacion!AE12) ->  | AC98: =IF(Digitalizacion!AF12="","",Digitalizacion!AF12) ->  | AD98: =IF(Digitalizacion!AG12="","",Digitalizacion!AG12) ->  | AE98: =IF(Digitalizacion!AH12="","",Digitalizacion!AH12) ->  | AF98: =IF(Digitalizacion!AI12="","",Digitalizacion!AI12) ->  | AG98: =IF(Digitalizacion!AJ12="","",Digitalizacion!AJ12) ->  | AH98: =IF(Digitalizacion!AK12="","",Digitalizacion!AK12) ->  | AI98: =IF(Digitalizacion!AL12="","",Digitalizacion!AL12) ->  | AJ98: =IF(Digitalizacion!AM12="","",Digitalizacion!AM12) ->  | AK98: =IF(Digitalizacion!AN12="","",Digitalizacion!AN12) ->  | AL98: =IF(Digitalizacion!AO12="","",Digitalizacion!AO12) ->  | AM98: =IF(Digitalizacion!AP12="","",Digitalizacion!AP12) -> 
D99: Criterio Evaluación 2.6 | E99: =IF(Digitalizacion!H13="","",Digitalizacion!H13) ->  | F99: =IF(Digitalizacion!I13="","",Digitalizacion!I13) ->  | G99: =IF(Digitalizacion!J13="","",Digitalizacion!J13) ->  | H99: =IF(Digitalizacion!K13="","",Digitalizacion!K13) ->  | I99: =IF(Digitalizacion!L13="","",Digitalizacion!L13) ->  | J99: =IF(Digitalizacion!M13="","",Digitalizacion!M13) ->  | K99: =IF(Digitalizacion!N13="","",Digitalizacion!N13) ->  | L99: =IF(Digitalizacion!O13="","",Digitalizacion!O13) ->  | M99: =IF(Digitalizacion!P13="","",Digitalizacion!P13) ->  | N99: =IF(Digitalizacion!Q13="","",Digitalizacion!Q13) ->  | O99: =IF(Digitalizacion!R13="","",Digitalizacion!R13) ->  | P99: =IF(Digitalizacion!S13="","",Digitalizacion!S13) ->  | Q99: =IF(Digitalizacion!T13="","",Digitalizacion!T13) ->  | R99: =IF(Digitalizacion!U13="","",Digitalizacion!U13) ->  | S99: =IF(Digitalizacion!V13="","",Digitalizacion!V13) ->  | T99: =IF(Digitalizacion!W13="","",Digitalizacion!W13) ->  | U99: =IF(Digitalizacion!X13="","",Digitalizacion!X13) ->  | V99: =IF(Digitalizacion!Y13="","",Digitalizacion!Y13) ->  | W99: =IF(Digitalizacion!Z13="","",Digitalizacion!Z13) ->  | X99: =IF(Digitalizacion!AA13="","",Digitalizacion!AA13) ->  | Y99: =IF(Digitalizacion!AB13="","",Digitalizacion!AB13) ->  | Z99: =IF(Digitalizacion!AC13="","",Digitalizacion!AC13) ->  | AA99: =IF(Digitalizacion!AD13="","",Digitalizacion!AD13) ->  | AB99: =IF(Digitalizacion!AE13="","",Digitalizacion!AE13) ->  | AC99: =IF(Digitalizacion!AF13="","",Digitalizacion!AF13) ->  | AD99: =IF(Digitalizacion!AG13="","",Digitalizacion!AG13) ->  | AE99: =IF(Digitalizacion!AH13="","",Digitalizacion!AH13) ->  | AF99: =IF(Digitalizacion!AI13="","",Digitalizacion!AI13) ->  | AG99: =IF(Digitalizacion!AJ13="","",Digitalizacion!AJ13) ->  | AH99: =IF(Digitalizacion!AK13="","",Digitalizacion!AK13) ->  | AI99: =IF(Digitalizacion!AL13="","",Digitalizacion!AL13) ->  | AJ99: =IF(Digitalizacion!AM13="","",Digitalizacion!AM13) ->  | AK99: =IF(Digitalizacion!AN13="","",Digitalizacion!AN13) ->  | AL99: =IF(Digitalizacion!AO13="","",Digitalizacion!AO13) ->  | AM99: =IF(Digitalizacion!AP13="","",Digitalizacion!AP13) -> 
D100: Criterio Evaluación 2.7 | E100: =IF(Digitalizacion!H14="","",Digitalizacion!H14) ->  | F100: =IF(Digitalizacion!I14="","",Digitalizacion!I14) ->  | G100: =IF(Digitalizacion!J14="","",Digitalizacion!J14) ->  | H100: =IF(Digitalizacion!K14="","",Digitalizacion!K14) ->  | I100: =IF(Digitalizacion!L14="","",Digitalizacion!L14) ->  | J100: =IF(Digitalizacion!M14="","",Digitalizacion!M14) ->  | K100: =IF(Digitalizacion!N14="","",Digitalizacion!N14) ->  | L100: =IF(Digitalizacion!O14="","",Digitalizacion!O14) ->  | M100: =IF(Digitalizacion!P14="","",Digitalizacion!P14) ->  | N100: =IF(Digitalizacion!Q14="","",Digitalizacion!Q14) ->  | O100: =IF(Digitalizacion!R14="","",Digitalizacion!R14) ->  | P100: =IF(Digitalizacion!S14="","",Digitalizacion!S14) ->  | Q100: =IF(Digitalizacion!T14="","",Digitalizacion!T14) ->  | R100: =IF(Digitalizacion!U14="","",Digitalizacion!U14) ->  | S100: =IF(Digitalizacion!V14="","",Digitalizacion!V14) ->  | T100: =IF(Digitalizacion!W14="","",Digitalizacion!W14) ->  | U100: =IF(Digitalizacion!X14="","",Digitalizacion!X14) ->  | V100: =IF(Digitalizacion!Y14="","",Digitalizacion!Y14) ->  | W100: =IF(Digitalizacion!Z14="","",Digitalizacion!Z14) ->  | X100: =IF(Digitalizacion!AA14="","",Digitalizacion!AA14) ->  | Y100: =IF(Digitalizacion!AB14="","",Digitalizacion!AB14) ->  | Z100: =IF(Digitalizacion!AC14="","",Digitalizacion!AC14) ->  | AA100: =IF(Digitalizacion!AD14="","",Digitalizacion!AD14) ->  | AB100: =IF(Digitalizacion!AE14="","",Digitalizacion!AE14) ->  | AC100: =IF(Digitalizacion!AF14="","",Digitalizacion!AF14) ->  | AD100: =IF(Digitalizacion!AG14="","",Digitalizacion!AG14) ->  | AE100: =IF(Digitalizacion!AH14="","",Digitalizacion!AH14) ->  | AF100: =IF(Digitalizacion!AI14="","",Digitalizacion!AI14) ->  | AG100: =IF(Digitalizacion!AJ14="","",Digitalizacion!AJ14) ->  | AH100: =IF(Digitalizacion!AK14="","",Digitalizacion!AK14) ->  | AI100: =IF(Digitalizacion!AL14="","",Digitalizacion!AL14) ->  | AJ100: =IF(Digitalizacion!AM14="","",Digitalizacion!AM14) ->  | AK100: =IF(Digitalizacion!AN14="","",Digitalizacion!AN14) ->  | AL100: =IF(Digitalizacion!AO14="","",Digitalizacion!AO14) ->  | AM100: =IF(Digitalizacion!AP14="","",Digitalizacion!AP14) -> 
C101: Comp. Esp. 3 | D101: Criterio Evaluación 3.1 | E101: =IF(Digitalizacion!H15="","",Digitalizacion!H15) ->  | F101: =IF(Digitalizacion!I15="","",Digitalizacion!I15) ->  | G101: =IF(Digitalizacion!J15="","",Digitalizacion!J15) ->  | H101: =IF(Digitalizacion!K15="","",Digitalizacion!K15) ->  | I101: =IF(Digitalizacion!L15="","",Digitalizacion!L15) ->  | J101: =IF(Digitalizacion!M15="","",Digitalizacion!M15) ->  | K101: =IF(Digitalizacion!N15="","",Digitalizacion!N15) ->  | L101: =IF(Digitalizacion!O15="","",Digitalizacion!O15) ->  | M101: =IF(Digitalizacion!P15="","",Digitalizacion!P15) ->  | N101: =IF(Digitalizacion!Q15="","",Digitalizacion!Q15) ->  | O101: =IF(Digitalizacion!R15="","",Digitalizacion!R15) ->  | P101: =IF(Digitalizacion!S15="","",Digitalizacion!S15) ->  | Q101: =IF(Digitalizacion!T15="","",Digitalizacion!T15) ->  | R101: =IF(Digitalizacion!U15="","",Digitalizacion!U15) ->  | S101: =IF(Digitalizacion!V15="","",Digitalizacion!V15) ->  | T101: =IF(Digitalizacion!W15="","",Digitalizacion!W15) ->  | U101: =IF(Digitalizacion!X15="","",Digitalizacion!X15) ->  | V101: =IF(Digitalizacion!Y15="","",Digitalizacion!Y15) ->  | W101: =IF(Digitalizacion!Z15="","",Digitalizacion!Z15) ->  | X101: =IF(Digitalizacion!AA15="","",Digitalizacion!AA15) ->  | Y101: =IF(Digitalizacion!AB15="","",Digitalizacion!AB15) ->  | Z101: =IF(Digitalizacion!AC15="","",Digitalizacion!AC15) ->  | AA101: =IF(Digitalizacion!AD15="","",Digitalizacion!AD15) ->  | AB101: =IF(Digitalizacion!AE15="","",Digitalizacion!AE15) ->  | AC101: =IF(Digitalizacion!AF15="","",Digitalizacion!AF15) ->  | AD101: =IF(Digitalizacion!AG15="","",Digitalizacion!AG15) ->  | AE101: =IF(Digitalizacion!AH15="","",Digitalizacion!AH15) ->  | AF101: =IF(Digitalizacion!AI15="","",Digitalizacion!AI15) ->  | AG101: =IF(Digitalizacion!AJ15="","",Digitalizacion!AJ15) ->  | AH101: =IF(Digitalizacion!AK15="","",Digitalizacion!AK15) ->  | AI101: =IF(Digitalizacion!AL15="","",Digitalizacion!AL15) ->  | AJ101: =IF(Digitalizacion!AM15="","",Digitalizacion!AM15) ->  | AK101: =IF(Digitalizacion!AN15="","",Digitalizacion!AN15) ->  | AL101: =IF(Digitalizacion!AO15="","",Digitalizacion!AO15) ->  | AM101: =IF(Digitalizacion!AP15="","",Digitalizacion!AP15) -> 
D102: Criterio Evaluación 3.2 | E102: =IF(Digitalizacion!H16="","",Digitalizacion!H16) ->  | F102: =IF(Digitalizacion!I16="","",Digitalizacion!I16) ->  | G102: =IF(Digitalizacion!J16="","",Digitalizacion!J16) ->  | H102: =IF(Digitalizacion!K16="","",Digitalizacion!K16) ->  | I102: =IF(Digitalizacion!L16="","",Digitalizacion!L16) ->  | J102: =IF(Digitalizacion!M16="","",Digitalizacion!M16) ->  | K102: =IF(Digitalizacion!N16="","",Digitalizacion!N16) ->  | L102: =IF(Digitalizacion!O16="","",Digitalizacion!O16) ->  | M102: =IF(Digitalizacion!P16="","",Digitalizacion!P16) ->  | N102: =IF(Digitalizacion!Q16="","",Digitalizacion!Q16) ->  | O102: =IF(Digitalizacion!R16="","",Digitalizacion!R16) ->  | P102: =IF(Digitalizacion!S16="","",Digitalizacion!S16) ->  | Q102: =IF(Digitalizacion!T16="","",Digitalizacion!T16) ->  | R102: =IF(Digitalizacion!U16="","",Digitalizacion!U16) ->  | S102: =IF(Digitalizacion!V16="","",Digitalizacion!V16) ->  | T102: =IF(Digitalizacion!W16="","",Digitalizacion!W16) ->  | U102: =IF(Digitalizacion!X16="","",Digitalizacion!X16) ->  | V102: =IF(Digitalizacion!Y16="","",Digitalizacion!Y16) ->  | W102: =IF(Digitalizacion!Z16="","",Digitalizacion!Z16) ->  | X102: =IF(Digitalizacion!AA16="","",Digitalizacion!AA16) ->  | Y102: =IF(Digitalizacion!AB16="","",Digitalizacion!AB16) ->  | Z102: =IF(Digitalizacion!AC16="","",Digitalizacion!AC16) ->  | AA102: =IF(Digitalizacion!AD16="","",Digitalizacion!AD16) ->  | AB102: =IF(Digitalizacion!AE16="","",Digitalizacion!AE16) ->  | AC102: =IF(Digitalizacion!AF16="","",Digitalizacion!AF16) ->  | AD102: =IF(Digitalizacion!AG16="","",Digitalizacion!AG16) ->  | AE102: =IF(Digitalizacion!AH16="","",Digitalizacion!AH16) ->  | AF102: =IF(Digitalizacion!AI16="","",Digitalizacion!AI16) ->  | AG102: =IF(Digitalizacion!AJ16="","",Digitalizacion!AJ16) ->  | AH102: =IF(Digitalizacion!AK16="","",Digitalizacion!AK16) ->  | AI102: =IF(Digitalizacion!AL16="","",Digitalizacion!AL16) ->  | AJ102: =IF(Digitalizacion!AM16="","",Digitalizacion!AM16) ->  | AK102: =IF(Digitalizacion!AN16="","",Digitalizacion!AN16) ->  | AL102: =IF(Digitalizacion!AO16="","",Digitalizacion!AO16) ->  | AM102: =IF(Digitalizacion!AP16="","",Digitalizacion!AP16) -> 
D103: Criterio Evaluación 3.3 | E103: =IF(Digitalizacion!H17="","",Digitalizacion!H17) ->  | F103: =IF(Digitalizacion!I17="","",Digitalizacion!I17) ->  | G103: =IF(Digitalizacion!J17="","",Digitalizacion!J17) ->  | H103: =IF(Digitalizacion!K17="","",Digitalizacion!K17) ->  | I103: =IF(Digitalizacion!L17="","",Digitalizacion!L17) ->  | J103: =IF(Digitalizacion!M17="","",Digitalizacion!M17) ->  | K103: =IF(Digitalizacion!N17="","",Digitalizacion!N17) ->  | L103: =IF(Digitalizacion!O17="","",Digitalizacion!O17) ->  | M103: =IF(Digitalizacion!P17="","",Digitalizacion!P17) ->  | N103: =IF(Digitalizacion!Q17="","",Digitalizacion!Q17) ->  | O103: =IF(Digitalizacion!R17="","",Digitalizacion!R17) ->  | P103: =IF(Digitalizacion!S17="","",Digitalizacion!S17) ->  | Q103: =IF(Digitalizacion!T17="","",Digitalizacion!T17) ->  | R103: =IF(Digitalizacion!U17="","",Digitalizacion!U17) ->  | S103: =IF(Digitalizacion!V17="","",Digitalizacion!V17) ->  | T103: =IF(Digitalizacion!W17="","",Digitalizacion!W17) ->  | U103: =IF(Digitalizacion!X17="","",Digitalizacion!X17) ->  | V103: =IF(Digitalizacion!Y17="","",Digitalizacion!Y17) ->  | W103: =IF(Digitalizacion!Z17="","",Digitalizacion!Z17) ->  | X103: =IF(Digitalizacion!AA17="","",Digitalizacion!AA17) ->  | Y103: =IF(Digitalizacion!AB17="","",Digitalizacion!AB17) ->  | Z103: =IF(Digitalizacion!AC17="","",Digitalizacion!AC17) ->  | AA103: =IF(Digitalizacion!AD17="","",Digitalizacion!AD17) ->  | AB103: =IF(Digitalizacion!AE17="","",Digitalizacion!AE17) ->  | AC103: =IF(Digitalizacion!AF17="","",Digitalizacion!AF17) ->  | AD103: =IF(Digitalizacion!AG17="","",Digitalizacion!AG17) ->  | AE103: =IF(Digitalizacion!AH17="","",Digitalizacion!AH17) ->  | AF103: =IF(Digitalizacion!AI17="","",Digitalizacion!AI17) ->  | AG103: =IF(Digitalizacion!AJ17="","",Digitalizacion!AJ17) ->  | AH103: =IF(Digitalizacion!AK17="","",Digitalizacion!AK17) ->  | AI103: =IF(Digitalizacion!AL17="","",Digitalizacion!AL17) ->  | AJ103: =IF(Digitalizacion!AM17="","",Digitalizacion!AM17) ->  | AK103: =IF(Digitalizacion!AN17="","",Digitalizacion!AN17) ->  | AL103: =IF(Digitalizacion!AO17="","",Digitalizacion!AO17) ->  | AM103: =IF(Digitalizacion!AP17="","",Digitalizacion!AP17) -> 
C104: Comp. Esp. 4 | D104: Criterio Evaluación 4.1 | E104: =IF(Digitalizacion!H18="","",Digitalizacion!H18) ->  | F104: =IF(Digitalizacion!I18="","",Digitalizacion!I18) ->  | G104: =IF(Digitalizacion!J18="","",Digitalizacion!J18) ->  | H104: =IF(Digitalizacion!K18="","",Digitalizacion!K18) ->  | I104: =IF(Digitalizacion!L18="","",Digitalizacion!L18) ->  | J104: =IF(Digitalizacion!M18="","",Digitalizacion!M18) ->  | K104: =IF(Digitalizacion!N18="","",Digitalizacion!N18) ->  | L104: =IF(Digitalizacion!O18="","",Digitalizacion!O18) ->  | M104: =IF(Digitalizacion!P18="","",Digitalizacion!P18) ->  | N104: =IF(Digitalizacion!Q18="","",Digitalizacion!Q18) ->  | O104: =IF(Digitalizacion!R18="","",Digitalizacion!R18) ->  | P104: =IF(Digitalizacion!S18="","",Digitalizacion!S18) ->  | Q104: =IF(Digitalizacion!T18="","",Digitalizacion!T18) ->  | R104: =IF(Digitalizacion!U18="","",Digitalizacion!U18) ->  | S104: =IF(Digitalizacion!V18="","",Digitalizacion!V18) ->  | T104: =IF(Digitalizacion!W18="","",Digitalizacion!W18) ->  | U104: =IF(Digitalizacion!X18="","",Digitalizacion!X18) ->  | V104: =IF(Digitalizacion!Y18="","",Digitalizacion!Y18) ->  | W104: =IF(Digitalizacion!Z18="","",Digitalizacion!Z18) ->  | X104: =IF(Digitalizacion!AA18="","",Digitalizacion!AA18) ->  | Y104: =IF(Digitalizacion!AB18="","",Digitalizacion!AB18) ->  | Z104: =IF(Digitalizacion!AC18="","",Digitalizacion!AC18) ->  | AA104: =IF(Digitalizacion!AD18="","",Digitalizacion!AD18) ->  | AB104: =IF(Digitalizacion!AE18="","",Digitalizacion!AE18) ->  | AC104: =IF(Digitalizacion!AF18="","",Digitalizacion!AF18) ->  | AD104: =IF(Digitalizacion!AG18="","",Digitalizacion!AG18) ->  | AE104: =IF(Digitalizacion!AH18="","",Digitalizacion!AH18) ->  | AF104: =IF(Digitalizacion!AI18="","",Digitalizacion!AI18) ->  | AG104: =IF(Digitalizacion!AJ18="","",Digitalizacion!AJ18) ->  | AH104: =IF(Digitalizacion!AK18="","",Digitalizacion!AK18) ->  | AI104: =IF(Digitalizacion!AL18="","",Digitalizacion!AL18) ->  | AJ104: =IF(Digitalizacion!AM18="","",Digitalizacion!AM18) ->  | AK104: =IF(Digitalizacion!AN18="","",Digitalizacion!AN18) ->  | AL104: =IF(Digitalizacion!AO18="","",Digitalizacion!AO18) ->  | AM104: =IF(Digitalizacion!AP18="","",Digitalizacion!AP18) -> 
D105: Criterio Evaluación 4.2 | E105: =IF(Digitalizacion!H19="","",Digitalizacion!H19) ->  | F105: =IF(Digitalizacion!I19="","",Digitalizacion!I19) ->  | G105: =IF(Digitalizacion!J19="","",Digitalizacion!J19) ->  | H105: =IF(Digitalizacion!K19="","",Digitalizacion!K19) ->  | I105: =IF(Digitalizacion!L19="","",Digitalizacion!L19) ->  | J105: =IF(Digitalizacion!M19="","",Digitalizacion!M19) ->  | K105: =IF(Digitalizacion!N19="","",Digitalizacion!N19) ->  | L105: =IF(Digitalizacion!O19="","",Digitalizacion!O19) ->  | M105: =IF(Digitalizacion!P19="","",Digitalizacion!P19) ->  | N105: =IF(Digitalizacion!Q19="","",Digitalizacion!Q19) ->  | O105: =IF(Digitalizacion!R19="","",Digitalizacion!R19) ->  | P105: =IF(Digitalizacion!S19="","",Digitalizacion!S19) ->  | Q105: =IF(Digitalizacion!T19="","",Digitalizacion!T19) ->  | R105: =IF(Digitalizacion!U19="","",Digitalizacion!U19) ->  | S105: =IF(Digitalizacion!V19="","",Digitalizacion!V19) ->  | T105: =IF(Digitalizacion!W19="","",Digitalizacion!W19) ->  | U105: =IF(Digitalizacion!X19="","",Digitalizacion!X19) ->  | V105: =IF(Digitalizacion!Y19="","",Digitalizacion!Y19) ->  | W105: =IF(Digitalizacion!Z19="","",Digitalizacion!Z19) ->  | X105: =IF(Digitalizacion!AA19="","",Digitalizacion!AA19) ->  | Y105: =IF(Digitalizacion!AB19="","",Digitalizacion!AB19) ->  | Z105: =IF(Digitalizacion!AC19="","",Digitalizacion!AC19) ->  | AA105: =IF(Digitalizacion!AD19="","",Digitalizacion!AD19) ->  | AB105: =IF(Digitalizacion!AE19="","",Digitalizacion!AE19) ->  | AC105: =IF(Digitalizacion!AF19="","",Digitalizacion!AF19) ->  | AD105: =IF(Digitalizacion!AG19="","",Digitalizacion!AG19) ->  | AE105: =IF(Digitalizacion!AH19="","",Digitalizacion!AH19) ->  | AF105: =IF(Digitalizacion!AI19="","",Digitalizacion!AI19) ->  | AG105: =IF(Digitalizacion!AJ19="","",Digitalizacion!AJ19) ->  | AH105: =IF(Digitalizacion!AK19="","",Digitalizacion!AK19) ->  | AI105: =IF(Digitalizacion!AL19="","",Digitalizacion!AL19) ->  | AJ105: =IF(Digitalizacion!AM19="","",Digitalizacion!AM19) ->  | AK105: =IF(Digitalizacion!AN19="","",Digitalizacion!AN19) ->  | AL105: =IF(Digitalizacion!AO19="","",Digitalizacion!AO19) ->  | AM105: =IF(Digitalizacion!AP19="","",Digitalizacion!AP19) -> 
D106: Criterio Evaluación 4.3 | E106: =IF(Digitalizacion!H20="","",Digitalizacion!H20) ->  | F106: =IF(Digitalizacion!I20="","",Digitalizacion!I20) ->  | G106: =IF(Digitalizacion!J20="","",Digitalizacion!J20) ->  | H106: =IF(Digitalizacion!K20="","",Digitalizacion!K20) ->  | I106: =IF(Digitalizacion!L20="","",Digitalizacion!L20) ->  | J106: =IF(Digitalizacion!M20="","",Digitalizacion!M20) ->  | K106: =IF(Digitalizacion!N20="","",Digitalizacion!N20) ->  | L106: =IF(Digitalizacion!O20="","",Digitalizacion!O20) ->  | M106: =IF(Digitalizacion!P20="","",Digitalizacion!P20) ->  | N106: =IF(Digitalizacion!Q20="","",Digitalizacion!Q20) ->  | O106: =IF(Digitalizacion!R20="","",Digitalizacion!R20) ->  | P106: =IF(Digitalizacion!S20="","",Digitalizacion!S20) ->  | Q106: =IF(Digitalizacion!T20="","",Digitalizacion!T20) ->  | R106: =IF(Digitalizacion!U20="","",Digitalizacion!U20) ->  | S106: =IF(Digitalizacion!V20="","",Digitalizacion!V20) ->  | T106: =IF(Digitalizacion!W20="","",Digitalizacion!W20) ->  | U106: =IF(Digitalizacion!X20="","",Digitalizacion!X20) ->  | V106: =IF(Digitalizacion!Y20="","",Digitalizacion!Y20) ->  | W106: =IF(Digitalizacion!Z20="","",Digitalizacion!Z20) ->  | X106: =IF(Digitalizacion!AA20="","",Digitalizacion!AA20) ->  | Y106: =IF(Digitalizacion!AB20="","",Digitalizacion!AB20) ->  | Z106: =IF(Digitalizacion!AC20="","",Digitalizacion!AC20) ->  | AA106: =IF(Digitalizacion!AD20="","",Digitalizacion!AD20) ->  | AB106: =IF(Digitalizacion!AE20="","",Digitalizacion!AE20) ->  | AC106: =IF(Digitalizacion!AF20="","",Digitalizacion!AF20) ->  | AD106: =IF(Digitalizacion!AG20="","",Digitalizacion!AG20) ->  | AE106: =IF(Digitalizacion!AH20="","",Digitalizacion!AH20) ->  | AF106: =IF(Digitalizacion!AI20="","",Digitalizacion!AI20) ->  | AG106: =IF(Digitalizacion!AJ20="","",Digitalizacion!AJ20) ->  | AH106: =IF(Digitalizacion!AK20="","",Digitalizacion!AK20) ->  | AI106: =IF(Digitalizacion!AL20="","",Digitalizacion!AL20) ->  | AJ106: =IF(Digitalizacion!AM20="","",Digitalizacion!AM20) ->  | AK106: =IF(Digitalizacion!AN20="","",Digitalizacion!AN20) ->  | AL106: =IF(Digitalizacion!AO20="","",Digitalizacion!AO20) ->  | AM106: =IF(Digitalizacion!AP20="","",Digitalizacion!AP20) -> 
D107: Criterio Evaluación 4.4 | E107: =IF(Digitalizacion!H21="","",Digitalizacion!H21) ->  | F107: =IF(Digitalizacion!I21="","",Digitalizacion!I21) ->  | G107: =IF(Digitalizacion!J21="","",Digitalizacion!J21) ->  | H107: =IF(Digitalizacion!K21="","",Digitalizacion!K21) ->  | I107: =IF(Digitalizacion!L21="","",Digitalizacion!L21) ->  | J107: =IF(Digitalizacion!M21="","",Digitalizacion!M21) ->  | K107: =IF(Digitalizacion!N21="","",Digitalizacion!N21) ->  | L107: =IF(Digitalizacion!O21="","",Digitalizacion!O21) ->  | M107: =IF(Digitalizacion!P21="","",Digitalizacion!P21) ->  | N107: =IF(Digitalizacion!Q21="","",Digitalizacion!Q21) ->  | O107: =IF(Digitalizacion!R21="","",Digitalizacion!R21) ->  | P107: =IF(Digitalizacion!S21="","",Digitalizacion!S21) ->  | Q107: =IF(Digitalizacion!T21="","",Digitalizacion!T21) ->  | R107: =IF(Digitalizacion!U21="","",Digitalizacion!U21) ->  | S107: =IF(Digitalizacion!V21="","",Digitalizacion!V21) ->  | T107: =IF(Digitalizacion!W21="","",Digitalizacion!W21) ->  | U107: =IF(Digitalizacion!X21="","",Digitalizacion!X21) ->  | V107: =IF(Digitalizacion!Y21="","",Digitalizacion!Y21) ->  | W107: =IF(Digitalizacion!Z21="","",Digitalizacion!Z21) ->  | X107: =IF(Digitalizacion!AA21="","",Digitalizacion!AA21) ->  | Y107: =IF(Digitalizacion!AB21="","",Digitalizacion!AB21) ->  | Z107: =IF(Digitalizacion!AC21="","",Digitalizacion!AC21) ->  | AA107: =IF(Digitalizacion!AD21="","",Digitalizacion!AD21) ->  | AB107: =IF(Digitalizacion!AE21="","",Digitalizacion!AE21) ->  | AC107: =IF(Digitalizacion!AF21="","",Digitalizacion!AF21) ->  | AD107: =IF(Digitalizacion!AG21="","",Digitalizacion!AG21) ->  | AE107: =IF(Digitalizacion!AH21="","",Digitalizacion!AH21) ->  | AF107: =IF(Digitalizacion!AI21="","",Digitalizacion!AI21) ->  | AG107: =IF(Digitalizacion!AJ21="","",Digitalizacion!AJ21) ->  | AH107: =IF(Digitalizacion!AK21="","",Digitalizacion!AK21) ->  | AI107: =IF(Digitalizacion!AL21="","",Digitalizacion!AL21) ->  | AJ107: =IF(Digitalizacion!AM21="","",Digitalizacion!AM21) ->  | AK107: =IF(Digitalizacion!AN21="","",Digitalizacion!AN21) ->  | AL107: =IF(Digitalizacion!AO21="","",Digitalizacion!AO21) ->  | AM107: =IF(Digitalizacion!AP21="","",Digitalizacion!AP21) -> 
D108: Criterio Evaluación 4.5 | E108: =IF(Digitalizacion!H22="","",Digitalizacion!H22) ->  | F108: =IF(Digitalizacion!I22="","",Digitalizacion!I22) ->  | G108: =IF(Digitalizacion!J22="","",Digitalizacion!J22) ->  | H108: =IF(Digitalizacion!K22="","",Digitalizacion!K22) ->  | I108: =IF(Digitalizacion!L22="","",Digitalizacion!L22) ->  | J108: =IF(Digitalizacion!M22="","",Digitalizacion!M22) ->  | K108: =IF(Digitalizacion!N22="","",Digitalizacion!N22) ->  | L108: =IF(Digitalizacion!O22="","",Digitalizacion!O22) ->  | M108: =IF(Digitalizacion!P22="","",Digitalizacion!P22) ->  | N108: =IF(Digitalizacion!Q22="","",Digitalizacion!Q22) ->  | O108: =IF(Digitalizacion!R22="","",Digitalizacion!R22) ->  | P108: =IF(Digitalizacion!S22="","",Digitalizacion!S22) ->  | Q108: =IF(Digitalizacion!T22="","",Digitalizacion!T22) ->  | R108: =IF(Digitalizacion!U22="","",Digitalizacion!U22) ->  | S108: =IF(Digitalizacion!V22="","",Digitalizacion!V22) ->  | T108: =IF(Digitalizacion!W22="","",Digitalizacion!W22) ->  | U108: =IF(Digitalizacion!X22="","",Digitalizacion!X22) ->  | V108: =IF(Digitalizacion!Y22="","",Digitalizacion!Y22) ->  | W108: =IF(Digitalizacion!Z22="","",Digitalizacion!Z22) ->  | X108: =IF(Digitalizacion!AA22="","",Digitalizacion!AA22) ->  | Y108: =IF(Digitalizacion!AB22="","",Digitalizacion!AB22) ->  | Z108: =IF(Digitalizacion!AC22="","",Digitalizacion!AC22) ->  | AA108: =IF(Digitalizacion!AD22="","",Digitalizacion!AD22) ->  | AB108: =IF(Digitalizacion!AE22="","",Digitalizacion!AE22) ->  | AC108: =IF(Digitalizacion!AF22="","",Digitalizacion!AF22) ->  | AD108: =IF(Digitalizacion!AG22="","",Digitalizacion!AG22) ->  | AE108: =IF(Digitalizacion!AH22="","",Digitalizacion!AH22) ->  | AF108: =IF(Digitalizacion!AI22="","",Digitalizacion!AI22) ->  | AG108: =IF(Digitalizacion!AJ22="","",Digitalizacion!AJ22) ->  | AH108: =IF(Digitalizacion!AK22="","",Digitalizacion!AK22) ->  | AI108: =IF(Digitalizacion!AL22="","",Digitalizacion!AL22) ->  | AJ108: =IF(Digitalizacion!AM22="","",Digitalizacion!AM22) ->  | AK108: =IF(Digitalizacion!AN22="","",Digitalizacion!AN22) ->  | AL108: =IF(Digitalizacion!AO22="","",Digitalizacion!AO22) ->  | AM108: =IF(Digitalizacion!AP22="","",Digitalizacion!AP22) -> 
B109: Economía y Emprendimiento | C109: Comp. Esp. 1 | D109: Criterio Evaluación 1.1 | E109: =IF(Economia!H4="","",Economia!H4) ->  | F109: =IF(Economia!I4="","",Economia!I4) ->  | G109: =IF(Economia!J4="","",Economia!J4) ->  | H109: =IF(Economia!K4="","",Economia!K4) ->  | I109: =IF(Economia!L4="","",Economia!L4) ->  | J109: =IF(Economia!M4="","",Economia!M4) ->  | K109: =IF(Economia!N4="","",Economia!N4) ->  | L109: =IF(Economia!O4="","",Economia!O4) ->  | M109: =IF(Economia!P4="","",Economia!P4) ->  | N109: =IF(Economia!Q4="","",Economia!Q4) ->  | O109: =IF(Economia!R4="","",Economia!R4) ->  | P109: =IF(Economia!S4="","",Economia!S4) ->  | Q109: =IF(Economia!T4="","",Economia!T4) ->  | R109: =IF(Economia!U4="","",Economia!U4) ->  | S109: =IF(Economia!V4="","",Economia!V4) ->  | T109: =IF(Economia!W4="","",Economia!W4) ->  | U109: =IF(Economia!X4="","",Economia!X4) ->  | V109: =IF(Economia!Y4="","",Economia!Y4) ->  | W109: =IF(Economia!Z4="","",Economia!Z4) ->  | X109: =IF(Economia!AA4="","",Economia!AA4) ->  | Y109: =IF(Economia!AB4="","",Economia!AB4) ->  | Z109: =IF(Economia!AC4="","",Economia!AC4) ->  | AA109: =IF(Economia!AD4="","",Economia!AD4) ->  | AB109: =IF(Economia!AE4="","",Economia!AE4) ->  | AC109: =IF(Economia!AF4="","",Economia!AF4) ->  | AD109: =IF(Economia!AG4="","",Economia!AG4) ->  | AE109: =IF(Economia!AH4="","",Economia!AH4) ->  | AF109: =IF(Economia!AI4="","",Economia!AI4) ->  | AG109: =IF(Economia!AJ4="","",Economia!AJ4) ->  | AH109: =IF(Economia!AK4="","",Economia!AK4) ->  | AI109: =IF(Economia!AL4="","",Economia!AL4) ->  | AJ109: =IF(Economia!AM4="","",Economia!AM4) ->  | AK109: =IF(Economia!AN4="","",Economia!AN4) ->  | AL109: =IF(Economia!AO4="","",Economia!AO4) ->  | AM109: =IF(Economia!AP4="","",Economia!AP4) -> 
D110: Criterio Evaluación 1.2 | E110: =IF(Economia!H5="","",Economia!H5) ->  | F110: =IF(Economia!I5="","",Economia!I5) ->  | G110: =IF(Economia!J5="","",Economia!J5) ->  | H110: =IF(Economia!K5="","",Economia!K5) ->  | I110: =IF(Economia!L5="","",Economia!L5) ->  | J110: =IF(Economia!M5="","",Economia!M5) ->  | K110: =IF(Economia!N5="","",Economia!N5) ->  | L110: =IF(Economia!O5="","",Economia!O5) ->  | M110: =IF(Economia!P5="","",Economia!P5) ->  | N110: =IF(Economia!Q5="","",Economia!Q5) ->  | O110: =IF(Economia!R5="","",Economia!R5) ->  | P110: =IF(Economia!S5="","",Economia!S5) ->  | Q110: =IF(Economia!T5="","",Economia!T5) ->  | R110: =IF(Economia!U5="","",Economia!U5) ->  | S110: =IF(Economia!V5="","",Economia!V5) ->  | T110: =IF(Economia!W5="","",Economia!W5) ->  | U110: =IF(Economia!X5="","",Economia!X5) ->  | V110: =IF(Economia!Y5="","",Economia!Y5) ->  | W110: =IF(Economia!Z5="","",Economia!Z5) ->  | X110: =IF(Economia!AA5="","",Economia!AA5) ->  | Y110: =IF(Economia!AB5="","",Economia!AB5) ->  | Z110: =IF(Economia!AC5="","",Economia!AC5) ->  | AA110: =IF(Economia!AD5="","",Economia!AD5) ->  | AB110: =IF(Economia!AE5="","",Economia!AE5) ->  | AC110: =IF(Economia!AF5="","",Economia!AF5) ->  | AD110: =IF(Economia!AG5="","",Economia!AG5) ->  | AE110: =IF(Economia!AH5="","",Economia!AH5) ->  | AF110: =IF(Economia!AI5="","",Economia!AI5) ->  | AG110: =IF(Economia!AJ5="","",Economia!AJ5) ->  | AH110: =IF(Economia!AK5="","",Economia!AK5) ->  | AI110: =IF(Economia!AL5="","",Economia!AL5) ->  | AJ110: =IF(Economia!AM5="","",Economia!AM5) ->  | AK110: =IF(Economia!AN5="","",Economia!AN5) ->  | AL110: =IF(Economia!AO5="","",Economia!AO5) ->  | AM110: =IF(Economia!AP5="","",Economia!AP5) -> 
D111: Criterio Evaluación 1.3 | E111: =IF(Economia!H6="","",Economia!H6) ->  | F111: =IF(Economia!I6="","",Economia!I6) ->  | G111: =IF(Economia!J6="","",Economia!J6) ->  | H111: =IF(Economia!K6="","",Economia!K6) ->  | I111: =IF(Economia!L6="","",Economia!L6) ->  | J111: =IF(Economia!M6="","",Economia!M6) ->  | K111: =IF(Economia!N6="","",Economia!N6) ->  | L111: =IF(Economia!O6="","",Economia!O6) ->  | M111: =IF(Economia!P6="","",Economia!P6) ->  | N111: =IF(Economia!Q6="","",Economia!Q6) ->  | O111: =IF(Economia!R6="","",Economia!R6) ->  | P111: =IF(Economia!S6="","",Economia!S6) ->  | Q111: =IF(Economia!T6="","",Economia!T6) ->  | R111: =IF(Economia!U6="","",Economia!U6) ->  | S111: =IF(Economia!V6="","",Economia!V6) ->  | T111: =IF(Economia!W6="","",Economia!W6) ->  | U111: =IF(Economia!X6="","",Economia!X6) ->  | V111: =IF(Economia!Y6="","",Economia!Y6) ->  | W111: =IF(Economia!Z6="","",Economia!Z6) ->  | X111: =IF(Economia!AA6="","",Economia!AA6) ->  | Y111: =IF(Economia!AB6="","",Economia!AB6) ->  | Z111: =IF(Economia!AC6="","",Economia!AC6) ->  | AA111: =IF(Economia!AD6="","",Economia!AD6) ->  | AB111: =IF(Economia!AE6="","",Economia!AE6) ->  | AC111: =IF(Economia!AF6="","",Economia!AF6) ->  | AD111: =IF(Economia!AG6="","",Economia!AG6) ->  | AE111: =IF(Economia!AH6="","",Economia!AH6) ->  | AF111: =IF(Economia!AI6="","",Economia!AI6) ->  | AG111: =IF(Economia!AJ6="","",Economia!AJ6) ->  | AH111: =IF(Economia!AK6="","",Economia!AK6) ->  | AI111: =IF(Economia!AL6="","",Economia!AL6) ->  | AJ111: =IF(Economia!AM6="","",Economia!AM6) ->  | AK111: =IF(Economia!AN6="","",Economia!AN6) ->  | AL111: =IF(Economia!AO6="","",Economia!AO6) ->  | AM111: =IF(Economia!AP6="","",Economia!AP6) -> 
C112: Comp. Esp. 2 | D112: Criterio Evaluación 2.1 | E112: =IF(Economia!H7="","",Economia!H7) ->  | F112: =IF(Economia!I7="","",Economia!I7) ->  | G112: =IF(Economia!J7="","",Economia!J7) ->  | H112: =IF(Economia!K7="","",Economia!K7) ->  | I112: =IF(Economia!L7="","",Economia!L7) ->  | J112: =IF(Economia!M7="","",Economia!M7) ->  | K112: =IF(Economia!N7="","",Economia!N7) ->  | L112: =IF(Economia!O7="","",Economia!O7) ->  | M112: =IF(Economia!P7="","",Economia!P7) ->  | N112: =IF(Economia!Q7="","",Economia!Q7) ->  | O112: =IF(Economia!R7="","",Economia!R7) ->  | P112: =IF(Economia!S7="","",Economia!S7) ->  | Q112: =IF(Economia!T7="","",Economia!T7) ->  | R112: =IF(Economia!U7="","",Economia!U7) ->  | S112: =IF(Economia!V7="","",Economia!V7) ->  | T112: =IF(Economia!W7="","",Economia!W7) ->  | U112: =IF(Economia!X7="","",Economia!X7) ->  | V112: =IF(Economia!Y7="","",Economia!Y7) ->  | W112: =IF(Economia!Z7="","",Economia!Z7) ->  | X112: =IF(Economia!AA7="","",Economia!AA7) ->  | Y112: =IF(Economia!AB7="","",Economia!AB7) ->  | Z112: =IF(Economia!AC7="","",Economia!AC7) ->  | AA112: =IF(Economia!AD7="","",Economia!AD7) ->  | AB112: =IF(Economia!AE7="","",Economia!AE7) ->  | AC112: =IF(Economia!AF7="","",Economia!AF7) ->  | AD112: =IF(Economia!AG7="","",Economia!AG7) ->  | AE112: =IF(Economia!AH7="","",Economia!AH7) ->  | AF112: =IF(Economia!AI7="","",Economia!AI7) ->  | AG112: =IF(Economia!AJ7="","",Economia!AJ7) ->  | AH112: =IF(Economia!AK7="","",Economia!AK7) ->  | AI112: =IF(Economia!AL7="","",Economia!AL7) ->  | AJ112: =IF(Economia!AM7="","",Economia!AM7) ->  | AK112: =IF(Economia!AN7="","",Economia!AN7) ->  | AL112: =IF(Economia!AO7="","",Economia!AO7) ->  | AM112: =IF(Economia!AP7="","",Economia!AP7) -> 
D113: Criterio Evaluación 2.2 | E113: =IF(Economia!H8="","",Economia!H8) ->  | F113: =IF(Economia!I8="","",Economia!I8) ->  | G113: =IF(Economia!J8="","",Economia!J8) ->  | H113: =IF(Economia!K8="","",Economia!K8) ->  | I113: =IF(Economia!L8="","",Economia!L8) ->  | J113: =IF(Economia!M8="","",Economia!M8) ->  | K113: =IF(Economia!N8="","",Economia!N8) ->  | L113: =IF(Economia!O8="","",Economia!O8) ->  | M113: =IF(Economia!P8="","",Economia!P8) ->  | N113: =IF(Economia!Q8="","",Economia!Q8) ->  | O113: =IF(Economia!R8="","",Economia!R8) ->  | P113: =IF(Economia!S8="","",Economia!S8) ->  | Q113: =IF(Economia!T8="","",Economia!T8) ->  | R113: =IF(Economia!U8="","",Economia!U8) ->  | S113: =IF(Economia!V8="","",Economia!V8) ->  | T113: =IF(Economia!W8="","",Economia!W8) ->  | U113: =IF(Economia!X8="","",Economia!X8) ->  | V113: =IF(Economia!Y8="","",Economia!Y8) ->  | W113: =IF(Economia!Z8="","",Economia!Z8) ->  | X113: =IF(Economia!AA8="","",Economia!AA8) ->  | Y113: =IF(Economia!AB8="","",Economia!AB8) ->  | Z113: =IF(Economia!AC8="","",Economia!AC8) ->  | AA113: =IF(Economia!AD8="","",Economia!AD8) ->  | AB113: =IF(Economia!AE8="","",Economia!AE8) ->  | AC113: =IF(Economia!AF8="","",Economia!AF8) ->  | AD113: =IF(Economia!AG8="","",Economia!AG8) ->  | AE113: =IF(Economia!AH8="","",Economia!AH8) ->  | AF113: =IF(Economia!AI8="","",Economia!AI8) ->  | AG113: =IF(Economia!AJ8="","",Economia!AJ8) ->  | AH113: =IF(Economia!AK8="","",Economia!AK8) ->  | AI113: =IF(Economia!AL8="","",Economia!AL8) ->  | AJ113: =IF(Economia!AM8="","",Economia!AM8) ->  | AK113: =IF(Economia!AN8="","",Economia!AN8) ->  | AL113: =IF(Economia!AO8="","",Economia!AO8) ->  | AM113: =IF(Economia!AP8="","",Economia!AP8) -> 
D114: Criterio Evaluación 2.3 | E114: =IF(Economia!H9="","",Economia!H9) ->  | F114: =IF(Economia!I9="","",Economia!I9) ->  | G114: =IF(Economia!J9="","",Economia!J9) ->  | H114: =IF(Economia!K9="","",Economia!K9) ->  | I114: =IF(Economia!L9="","",Economia!L9) ->  | J114: =IF(Economia!M9="","",Economia!M9) ->  | K114: =IF(Economia!N9="","",Economia!N9) ->  | L114: =IF(Economia!O9="","",Economia!O9) ->  | M114: =IF(Economia!P9="","",Economia!P9) ->  | N114: =IF(Economia!Q9="","",Economia!Q9) ->  | O114: =IF(Economia!R9="","",Economia!R9) ->  | P114: =IF(Economia!S9="","",Economia!S9) ->  | Q114: =IF(Economia!T9="","",Economia!T9) ->  | R114: =IF(Economia!U9="","",Economia!U9) ->  | S114: =IF(Economia!V9="","",Economia!V9) ->  | T114: =IF(Economia!W9="","",Economia!W9) ->  | U114: =IF(Economia!X9="","",Economia!X9) ->  | V114: =IF(Economia!Y9="","",Economia!Y9) ->  | W114: =IF(Economia!Z9="","",Economia!Z9) ->  | X114: =IF(Economia!AA9="","",Economia!AA9) ->  | Y114: =IF(Economia!AB9="","",Economia!AB9) ->  | Z114: =IF(Economia!AC9="","",Economia!AC9) ->  | AA114: =IF(Economia!AD9="","",Economia!AD9) ->  | AB114: =IF(Economia!AE9="","",Economia!AE9) ->  | AC114: =IF(Economia!AF9="","",Economia!AF9) ->  | AD114: =IF(Economia!AG9="","",Economia!AG9) ->  | AE114: =IF(Economia!AH9="","",Economia!AH9) ->  | AF114: =IF(Economia!AI9="","",Economia!AI9) ->  | AG114: =IF(Economia!AJ9="","",Economia!AJ9) ->  | AH114: =IF(Economia!AK9="","",Economia!AK9) ->  | AI114: =IF(Economia!AL9="","",Economia!AL9) ->  | AJ114: =IF(Economia!AM9="","",Economia!AM9) ->  | AK114: =IF(Economia!AN9="","",Economia!AN9) ->  | AL114: =IF(Economia!AO9="","",Economia!AO9) ->  | AM114: =IF(Economia!AP9="","",Economia!AP9) -> 
C115: Comp. Esp. 3 | D115: Criterio Evaluación 3.1 | E115: =IF(Economia!H10="","",Economia!H10) ->  | F115: =IF(Economia!I10="","",Economia!I10) ->  | G115: =IF(Economia!J10="","",Economia!J10) ->  | H115: =IF(Economia!K10="","",Economia!K10) ->  | I115: =IF(Economia!L10="","",Economia!L10) ->  | J115: =IF(Economia!M10="","",Economia!M10) ->  | K115: =IF(Economia!N10="","",Economia!N10) ->  | L115: =IF(Economia!O10="","",Economia!O10) ->  | M115: =IF(Economia!P10="","",Economia!P10) ->  | N115: =IF(Economia!Q10="","",Economia!Q10) ->  | O115: =IF(Economia!R10="","",Economia!R10) ->  | P115: =IF(Economia!S10="","",Economia!S10) ->  | Q115: =IF(Economia!T10="","",Economia!T10) ->  | R115: =IF(Economia!U10="","",Economia!U10) ->  | S115: =IF(Economia!V10="","",Economia!V10) ->  | T115: =IF(Economia!W10="","",Economia!W10) ->  | U115: =IF(Economia!X10="","",Economia!X10) ->  | V115: =IF(Economia!Y10="","",Economia!Y10) ->  | W115: =IF(Economia!Z10="","",Economia!Z10) ->  | X115: =IF(Economia!AA10="","",Economia!AA10) ->  | Y115: =IF(Economia!AB10="","",Economia!AB10) ->  | Z115: =IF(Economia!AC10="","",Economia!AC10) ->  | AA115: =IF(Economia!AD10="","",Economia!AD10) ->  | AB115: =IF(Economia!AE10="","",Economia!AE10) ->  | AC115: =IF(Economia!AF10="","",Economia!AF10) ->  | AD115: =IF(Economia!AG10="","",Economia!AG10) ->  | AE115: =IF(Economia!AH10="","",Economia!AH10) ->  | AF115: =IF(Economia!AI10="","",Economia!AI10) ->  | AG115: =IF(Economia!AJ10="","",Economia!AJ10) ->  | AH115: =IF(Economia!AK10="","",Economia!AK10) ->  | AI115: =IF(Economia!AL10="","",Economia!AL10) ->  | AJ115: =IF(Economia!AM10="","",Economia!AM10) ->  | AK115: =IF(Economia!AN10="","",Economia!AN10) ->  | AL115: =IF(Economia!AO10="","",Economia!AO10) ->  | AM115: =IF(Economia!AP10="","",Economia!AP10) -> 
D116: Criterio Evaluación 3.2 | E116: =IF(Economia!H11="","",Economia!H11) ->  | F116: =IF(Economia!I11="","",Economia!I11) ->  | G116: =IF(Economia!J11="","",Economia!J11) ->  | H116: =IF(Economia!K11="","",Economia!K11) ->  | I116: =IF(Economia!L11="","",Economia!L11) ->  | J116: =IF(Economia!M11="","",Economia!M11) ->  | K116: =IF(Economia!N11="","",Economia!N11) ->  | L116: =IF(Economia!O11="","",Economia!O11) ->  | M116: =IF(Economia!P11="","",Economia!P11) ->  | N116: =IF(Economia!Q11="","",Economia!Q11) ->  | O116: =IF(Economia!R11="","",Economia!R11) ->  | P116: =IF(Economia!S11="","",Economia!S11) ->  | Q116: =IF(Economia!T11="","",Economia!T11) ->  | R116: =IF(Economia!U11="","",Economia!U11) ->  | S116: =IF(Economia!V11="","",Economia!V11) ->  | T116: =IF(Economia!W11="","",Economia!W11) ->  | U116: =IF(Economia!X11="","",Economia!X11) ->  | V116: =IF(Economia!Y11="","",Economia!Y11) ->  | W116: =IF(Economia!Z11="","",Economia!Z11) ->  | X116: =IF(Economia!AA11="","",Economia!AA11) ->  | Y116: =IF(Economia!AB11="","",Economia!AB11) ->  | Z116: =IF(Economia!AC11="","",Economia!AC11) ->  | AA116: =IF(Economia!AD11="","",Economia!AD11) ->  | AB116: =IF(Economia!AE11="","",Economia!AE11) ->  | AC116: =IF(Economia!AF11="","",Economia!AF11) ->  | AD116: =IF(Economia!AG11="","",Economia!AG11) ->  | AE116: =IF(Economia!AH11="","",Economia!AH11) ->  | AF116: =IF(Economia!AI11="","",Economia!AI11) ->  | AG116: =IF(Economia!AJ11="","",Economia!AJ11) ->  | AH116: =IF(Economia!AK11="","",Economia!AK11) ->  | AI116: =IF(Economia!AL11="","",Economia!AL11) ->  | AJ116: =IF(Economia!AM11="","",Economia!AM11) ->  | AK116: =IF(Economia!AN11="","",Economia!AN11) ->  | AL116: =IF(Economia!AO11="","",Economia!AO11) ->  | AM116: =IF(Economia!AP11="","",Economia!AP11) -> 
D117: Criterio Evaluación 3.3 | E117: =IF(Economia!H12="","",Economia!H12) ->  | F117: =IF(Economia!I12="","",Economia!I12) ->  | G117: =IF(Economia!J12="","",Economia!J12) ->  | H117: =IF(Economia!K12="","",Economia!K12) ->  | I117: =IF(Economia!L12="","",Economia!L12) ->  | J117: =IF(Economia!M12="","",Economia!M12) ->  | K117: =IF(Economia!N12="","",Economia!N12) ->  | L117: =IF(Economia!O12="","",Economia!O12) ->  | M117: =IF(Economia!P12="","",Economia!P12) ->  | N117: =IF(Economia!Q12="","",Economia!Q12) ->  | O117: =IF(Economia!R12="","",Economia!R12) ->  | P117: =IF(Economia!S12="","",Economia!S12) ->  | Q117: =IF(Economia!T12="","",Economia!T12) ->  | R117: =IF(Economia!U12="","",Economia!U12) ->  | S117: =IF(Economia!V12="","",Economia!V12) ->  | T117: =IF(Economia!W12="","",Economia!W12) ->  | U117: =IF(Economia!X12="","",Economia!X12) ->  | V117: =IF(Economia!Y12="","",Economia!Y12) ->  | W117: =IF(Economia!Z12="","",Economia!Z12) ->  | X117: =IF(Economia!AA12="","",Economia!AA12) ->  | Y117: =IF(Economia!AB12="","",Economia!AB12) ->  | Z117: =IF(Economia!AC12="","",Economia!AC12) ->  | AA117: =IF(Economia!AD12="","",Economia!AD12) ->  | AB117: =IF(Economia!AE12="","",Economia!AE12) ->  | AC117: =IF(Economia!AF12="","",Economia!AF12) ->  | AD117: =IF(Economia!AG12="","",Economia!AG12) ->  | AE117: =IF(Economia!AH12="","",Economia!AH12) ->  | AF117: =IF(Economia!AI12="","",Economia!AI12) ->  | AG117: =IF(Economia!AJ12="","",Economia!AJ12) ->  | AH117: =IF(Economia!AK12="","",Economia!AK12) ->  | AI117: =IF(Economia!AL12="","",Economia!AL12) ->  | AJ117: =IF(Economia!AM12="","",Economia!AM12) ->  | AK117: =IF(Economia!AN12="","",Economia!AN12) ->  | AL117: =IF(Economia!AO12="","",Economia!AO12) ->  | AM117: =IF(Economia!AP12="","",Economia!AP12) -> 
C118: Comp. Esp. 4 | D118: Criterio Evaluación 4.1 | E118: =IF(Economia!H13="","",Economia!H13) ->  | F118: =IF(Economia!I13="","",Economia!I13) ->  | G118: =IF(Economia!J13="","",Economia!J13) ->  | H118: =IF(Economia!K13="","",Economia!K13) ->  | I118: =IF(Economia!L13="","",Economia!L13) ->  | J118: =IF(Economia!M13="","",Economia!M13) ->  | K118: =IF(Economia!N13="","",Economia!N13) ->  | L118: =IF(Economia!O13="","",Economia!O13) ->  | M118: =IF(Economia!P13="","",Economia!P13) ->  | N118: =IF(Economia!Q13="","",Economia!Q13) ->  | O118: =IF(Economia!R13="","",Economia!R13) ->  | P118: =IF(Economia!S13="","",Economia!S13) ->  | Q118: =IF(Economia!T13="","",Economia!T13) ->  | R118: =IF(Economia!U13="","",Economia!U13) ->  | S118: =IF(Economia!V13="","",Economia!V13) ->  | T118: =IF(Economia!W13="","",Economia!W13) ->  | U118: =IF(Economia!X13="","",Economia!X13) ->  | V118: =IF(Economia!Y13="","",Economia!Y13) ->  | W118: =IF(Economia!Z13="","",Economia!Z13) ->  | X118: =IF(Economia!AA13="","",Economia!AA13) ->  | Y118: =IF(Economia!AB13="","",Economia!AB13) ->  | Z118: =IF(Economia!AC13="","",Economia!AC13) ->  | AA118: =IF(Economia!AD13="","",Economia!AD13) ->  | AB118: =IF(Economia!AE13="","",Economia!AE13) ->  | AC118: =IF(Economia!AF13="","",Economia!AF13) ->  | AD118: =IF(Economia!AG13="","",Economia!AG13) ->  | AE118: =IF(Economia!AH13="","",Economia!AH13) ->  | AF118: =IF(Economia!AI13="","",Economia!AI13) ->  | AG118: =IF(Economia!AJ13="","",Economia!AJ13) ->  | AH118: =IF(Economia!AK13="","",Economia!AK13) ->  | AI118: =IF(Economia!AL13="","",Economia!AL13) ->  | AJ118: =IF(Economia!AM13="","",Economia!AM13) ->  | AK118: =IF(Economia!AN13="","",Economia!AN13) ->  | AL118: =IF(Economia!AO13="","",Economia!AO13) ->  | AM118: =IF(Economia!AP13="","",Economia!AP13) -> 
D119: Criterio Evaluación 4.2 | E119: =IF(Economia!H14="","",Economia!H14) ->  | F119: =IF(Economia!I14="","",Economia!I14) ->  | G119: =IF(Economia!J14="","",Economia!J14) ->  | H119: =IF(Economia!K14="","",Economia!K14) ->  | I119: =IF(Economia!L14="","",Economia!L14) ->  | J119: =IF(Economia!M14="","",Economia!M14) ->  | K119: =IF(Economia!N14="","",Economia!N14) ->  | L119: =IF(Economia!O14="","",Economia!O14) ->  | M119: =IF(Economia!P14="","",Economia!P14) ->  | N119: =IF(Economia!Q14="","",Economia!Q14) ->  | O119: =IF(Economia!R14="","",Economia!R14) ->  | P119: =IF(Economia!S14="","",Economia!S14) ->  | Q119: =IF(Economia!T14="","",Economia!T14) ->  | R119: =IF(Economia!U14="","",Economia!U14) ->  | S119: =IF(Economia!V14="","",Economia!V14) ->  | T119: =IF(Economia!W14="","",Economia!W14) ->  | U119: =IF(Economia!X14="","",Economia!X14) ->  | V119: =IF(Economia!Y14="","",Economia!Y14) ->  | W119: =IF(Economia!Z14="","",Economia!Z14) ->  | X119: =IF(Economia!AA14="","",Economia!AA14) ->  | Y119: =IF(Economia!AB14="","",Economia!AB14) ->  | Z119: =IF(Economia!AC14="","",Economia!AC14) ->  | AA119: =IF(Economia!AD14="","",Economia!AD14) ->  | AB119: =IF(Economia!AE14="","",Economia!AE14) ->  | AC119: =IF(Economia!AF14="","",Economia!AF14) ->  | AD119: =IF(Economia!AG14="","",Economia!AG14) ->  | AE119: =IF(Economia!AH14="","",Economia!AH14) ->  | AF119: =IF(Economia!AI14="","",Economia!AI14) ->  | AG119: =IF(Economia!AJ14="","",Economia!AJ14) ->  | AH119: =IF(Economia!AK14="","",Economia!AK14) ->  | AI119: =IF(Economia!AL14="","",Economia!AL14) ->  | AJ119: =IF(Economia!AM14="","",Economia!AM14) ->  | AK119: =IF(Economia!AN14="","",Economia!AN14) ->  | AL119: =IF(Economia!AO14="","",Economia!AO14) ->  | AM119: =IF(Economia!AP14="","",Economia!AP14) -> 
D120: Criterio Evaluación 4.3 | E120: =IF(Economia!H15="","",Economia!H15) ->  | F120: =IF(Economia!I15="","",Economia!I15) ->  | G120: =IF(Economia!J15="","",Economia!J15) ->  | H120: =IF(Economia!K15="","",Economia!K15) ->  | I120: =IF(Economia!L15="","",Economia!L15) ->  | J120: =IF(Economia!M15="","",Economia!M15) ->  | K120: =IF(Economia!N15="","",Economia!N15) ->  | L120: =IF(Economia!O15="","",Economia!O15) ->  | M120: =IF(Economia!P15="","",Economia!P15) ->  | N120: =IF(Economia!Q15="","",Economia!Q15) ->  | O120: =IF(Economia!R15="","",Economia!R15) ->  | P120: =IF(Economia!S15="","",Economia!S15) ->  | Q120: =IF(Economia!T15="","",Economia!T15) ->  | R120: =IF(Economia!U15="","",Economia!U15) ->  | S120: =IF(Economia!V15="","",Economia!V15) ->  | T120: =IF(Economia!W15="","",Economia!W15) ->  | U120: =IF(Economia!X15="","",Economia!X15) ->  | V120: =IF(Economia!Y15="","",Economia!Y15) ->  | W120: =IF(Economia!Z15="","",Economia!Z15) ->  | X120: =IF(Economia!AA15="","",Economia!AA15) ->  | Y120: =IF(Economia!AB15="","",Economia!AB15) ->  | Z120: =IF(Economia!AC15="","",Economia!AC15) ->  | AA120: =IF(Economia!AD15="","",Economia!AD15) ->  | AB120: =IF(Economia!AE15="","",Economia!AE15) ->  | AC120: =IF(Economia!AF15="","",Economia!AF15) ->  | AD120: =IF(Economia!AG15="","",Economia!AG15) ->  | AE120: =IF(Economia!AH15="","",Economia!AH15) ->  | AF120: =IF(Economia!AI15="","",Economia!AI15) ->  | AG120: =IF(Economia!AJ15="","",Economia!AJ15) ->  | AH120: =IF(Economia!AK15="","",Economia!AK15) ->  | AI120: =IF(Economia!AL15="","",Economia!AL15) ->  | AJ120: =IF(Economia!AM15="","",Economia!AM15) ->  | AK120: =IF(Economia!AN15="","",Economia!AN15) ->  | AL120: =IF(Economia!AO15="","",Economia!AO15) ->  | AM120: =IF(Economia!AP15="","",Economia!AP15) -> 
